Workbook

Sheet PRESTAMOS OTORGADOS
A1: PRESTAMOS AÑO 2024
A2: Nº | B2: N° D.N.I. | C2: FECHA | D2: N° B/E | E2: APELLIDOS Y NOMBRES | F2: TIPO CONTRATO | G2: D.N.I. N° | H2: ENERO | I2: FEBRERO | J2: MARZO | K2: ABRIL | L2: MAYO | M2: JUNIO | N2: JULIO | O2: AGOSTO | P2: SEPTIEMBRE | Q2: OCTUBRE | R2: NOVIEMBRE | S2: DICIEMBRE | T2: TOTAL PRESTAMO | U2: INTERESES | V2: TOTAL | W2: SALDO
A3: 1 | B3: 17933727 | E3: AHUANARI ZUMBA, RICARDO | F3: CAS | G3: 40291265 | H3: 1000 | I3: 500 | J3: 0 | K3: 0 | L3: 0 | M3: 0 | N3: 0 | O3: 0 | P3: 0 | Q3: 0 | R3: 0 | S3: 0 | T3: =SUM(H3:S3) -> 1500 | U3: =T3*10% -> 150 | V3: =+T3+U3 -> 1650
A4: 2 | B4: 00802127 | E4: ASPAJO CHUMBE, VICTOR RAUL | F4: CAS | G4: 42821941 | H4: 200 | I4: 800 | J4: 0 | K4: 0 | L4: 0 | M4: 800 | N4: 0 | O4: 1600 | P4: 0 | Q4: 0 | R4: 0 | S4: 0 | T4: 3400 | U4: 340 | V4: 3740
A5: 3 | B5: 16680144 | E5: BARDALEZ ALVA, ANITA MERCEDES | F5: 276 | G5: 00819657 | H5: 3000 | I5: 0 | J5: 0 | K5: 0 | L5: 0 | M5: 0 | N5: 0 | O5: 0 | P5: 0 | Q5: 0 | R5: 0 | S5: 0 | T5: 3000 | U5: 300 | V5: 3300
A6: 4 | B6: 41931092 | E6: BEJARANO AGUILAR, MAGALY ROCIO | F6: CAS | G6: 43180463 | H6: 3000 | I6: 0 | J6: 0 | K6: 3000 | L6: 0 | M6: 0 | N6: 0 | O6: 2000 | P6: 0 | Q6: 0 | R6: 0 | S6: 0 | T6: 8000 | U6: 800 | V6: 8800
A7: 5 | B7: 40360384 | E7: BEJARANO AROSEMENA, AUREA MILAGROS | F7: CAS | G7: 45541324 | H7: 0 | I7: 0 | J7: 0 | K7: 500 | L7: 0 | M7: 0 | N7: 0 | O7: 0 | P7: 0 | Q7: 0 | R7: 0 | S7: 0 | T7: 500 | U7: 50 | V7: 550
A8: 6 | B8: 06796264 | E8: BAZAN VARGAS, KIEFFER SEGUNDO | F8: 276 | G8: 6796264 | N8: 2500 | T8: =SUM(H8:S8) -> 2500 | U8: =T8*10% -> 250 | V8: =+T8+U8 -> 2750
A9: 7 | B9: 10276387 | E9: CABALLERO FERNANDEZ, MARIA ELEANA | F9: CAS | G9: 17838963 | H9: 1000 | I9: 0 | J9: 0 | K9: 0 | L9: 0 | M9: 0 | N9: 0 | O9: 0 | P9: 0 | Q9: 0 | R9: 1500 | S9: 0 | T9: 2500 | U9: 250 | V9: 2750
A10: 8 | B10: 42553620 | E10: CALAMPA MAS, ELVIA JOSEFINA | F10: 276 | G10: 07018656 | H10: 0 | I10: 3000 | J10: 0 | K10: 0 | L10: 0 | M10: 0 | N10: 0 | O10: 0 | P10: 0 | Q10: 0 | R10: 0 | S10: 0 | T10: 3000 | U10: 300 | V10: 3300
A11: 9 | B11: 45349774 | E11: CAMPOS AVALOS, MOISES RAMIRO | F11: 276 | G11: 18169707 | H11: 0 | I11: 0 | J11: 3000 | K11: 0 | L11: 0 | M11: 0 | N11: 0 | O11: 0 | P11: 0 | Q11: 0 | R11: 0 | S11: 0 | T11: 3000 | U11: 300 | V11: 3300
A12: 10 | E12: CASTILLO MARINA, EDDY | F12: CAS | G12: 41482777 | H12: 3000 | I12: 0 | J12: 0 | K12: 0 | L12: 0 | M12: 0 | N12: 1500 | O12: 0 | P12: 0 | Q12: 550 | R12: 0 | S12: 2500 | T12: 7550 | U12: 755 | V12: 8305
A13: 11 | B13: 40536257 | E13: CISNEROS HIDALGO, LOURDES AUGUSTA | F13: CAS | G13: 00833790 | H13: 0 | I13: 0 | J13: 0 | K13: 0 | L13: 0 | M13: 300 | N13: 0 | O13: 0 | P13: 0 | Q13: 0 | R13: 0 | S13: 0 | T13: 300 | U13: 30 | V13: 330
A14: 12 | E14: CORDOVA CAMPOS, CLARA | F14: 276 | G14: 00860881 | H14: 0 | I14: 0 | J14: 1000 | K14: 0 | L14: 0 | M14: 0 | N14: 0 | O14: 0 | P14: 0 | Q14: 0 | R14: 0 | S14: 0 | T14: 1000 | U14: 100 | V14: 1100
A15: 13 | B15: 70421070 | E15: CORTEZ SALDAÑA, ROGER UBEDELINDO | F15: 276 | G15: 41109969 | H15: 3000 | I15: 0 | J15: 0 | K15: 0 | L15: 0 | M15: 0 | N15: 0 | O15: 0 | P15: 0 | Q15: 0 | R15: 0 | S15: 0 | T15: 3000 | U15: 300 | V15: 3300
A16: 14 | E16: CULQUI HERRERA, MARILU | F16: 276 | G16: 00838453 | H16: 0 | I16: 0 | J16: 3000 | K16: 0 | L16: 0 | M16: 0 | N16: 0 | O16: 0 | P16: 0 | Q16: 0 | R16: 0 | S16: 0 | T16: 3000 | U16: 300 | V16: 3300
A17: 15 | B17: 43562698 | C17: 17/07/2024 | E17: CONTRERAS ASPAJO MIKY PAOLA | F17: 276 | G17: 43562698 | H17: 0 | I17: 0 | J17: 0 | K17: 0 | L17: 0 | M17: 0 | N17: 2000 | O17: 0 | P17: 0 | Q17: 0 | R17: 0 | S17: 0 | T17: =SUM(H17:S17) -> 2000 | U17: =T17*10% -> 200 | V17: =+T17+U17 -> 2200
E18: CLIDER DIAZ DIAZ | H18: 0 | I18: 0 | J18: 0 | K18: 0 | L18: 0 | M18: 0 | N18: 0 | O18: 0 | P18: 0 | Q18: 0 | R18: 2500 | S18: 0 | T18: =SUM(H18:S18) -> 2500 | U18: =T18*10% -> 250 | V18: =+T18+U18 -> 2750
A19: 16 | B19: 41482777 | E19: DAHUA SALAZAR, ROGER A. | F19: CAS | G19: 40517481 | H19: 3000 | I19: 0 | J19: 0 | K19: 0 | L19: 0 | M19: 0 | N19: 0 | O19: 0 | P19: 0 | Q19: 0 | R19: 0 | S19: 0 | T19: 3000 | U19: 300 | V19: 3300
A20: 17 | B20: 41482777 | E20: FARRIS ARCENTALES, CARLOS ALBERTO | F20: 276 | G20: 00860936 | H20: 3000 | I20: 0 | J20: 0 | K20: 0 | L20: 0 | M20: 0 | N20: 0 | O20: 0 | P20: 0 | Q20: 0 | R20: 2500 | S20: 0 | T20: 5500 | U20: 550 | V20: 6050
A21: 18 | E21: GASCO GUERRERO, OLGA LICETH. | F21: CAS | G21: 47967611 | H21: 1000 | I21: 0 | J21: 0 | K21: 1000 | L21: 0 | M21: 0 | N21: 0 | O21: 0 | P21: 0 | Q21: 0 | R21: 0 | S21: 0 | T21: 2000 | U21: 200 | V21: 2200
A22: 19 | B22: 45546499 | E22: GONZALES SAAVEDRA, ANA | F22: 276 | G22: 16680144 | H22: 0 | I22: 0 | J22: 2500 | K22: 0 | L22: 0 | M22: 0 | N22: 0 | O22: 0 | P22: 0 | Q22: 0 | R22: 0 | S22: 0 | T22: 2500 | U22: 250 | V22: 2750
A23: 20 | B23: 00801714 | E23: GONZALES SIMARRA, JHON HENRY | F23: 276 | G23: 42179278 | H23: 3000 | I23: 0 | J23: 0 | K23: 0 | L23: 0 | M23: 0 | N23: 0 | O23: 0 | P23: 0 | Q23: 0 | R23: 0 | S23: 0 | T23: 3000 | U23: 300 | V23: 3300
A24: 21 | B24: 01166486 | E24: GUERRERO GARCIA, TEOBALDO | F24: 276 | G24: 00831944 | H24: 0 | I24: 0 | J24: 1500 | K24: 0 | L24: 0 | M24: 0 | N24: 0 | O24: 0 | P24: 0 | Q24: 0 | R24: 0 | S24: 0 | T24: 1500 | U24: 150 | V24: 1650
A25: 22 | B25: 40517481 | E25: LINARES SANCHEZ, LIYANCI | F25: CAS | G25: 45433072 | H25: 2500 | I25: 0 | J25: 0 | K25: 0 | L25: 0 | M25: 0 | N25: 0 | O25: 0 | P25: 0 | Q25: 0 | R25: 0 | S25: 0 | T25: 2500 | U25: 250 | V25: 2750
A26: 23 | B26: 40291265 | E26: LLAJA DIAZ, ALPINO | F26: 276 | G26: 00803522 | H26: 4000 | I26: 0 | J26: 0 | K26: 0 | L26: 0 | M26: 0 | N26: 0 | O26: 0 | P26: 0 | Q26: 0 | R26: 0 | S26: 2500 | T26: 6500 | U26: 650 | V26: 7150
A27: 24 | B27: 41482777 | E27: MARINA QUINTANA, JHINS JACKSSON | F27: CAS | G27: 45546499 | H27: 3000 | I27: 1000 | J27: 0 | K27: 0 | L27: 0 | M27: 0 | N27: 0 | O27: 0 | P27: 0 | Q27: 0 | R27: 0 | S27: 0 | T27: 4000 | U27: 400 | V27: 4400
A28: 25 | B28: 70208500 | E28: MARTINEZ BENAVIDEZ, RODRIGO | F28: CAS | G28: 72461720 | H28: 2000 | I28: 0 | J28: 0 | K28: 0 | L28: 0 | M28: 0 | N28: 0 | O28: 0 | P28: 0 | Q28: 0 | R28: 0 | S28: 0 | T28: 2000 | U28: 200 | V28: 2200
A29: 26 | E29: MENDOZA BOCANEGRA, ROYLER | F29: CAS | G29: 45349774 | H29: 3200 | I29: 0 | J29: 0 | K29: 0 | L29: 0 | M29: 0 | N29: 0 | O29: 0 | P29: 0 | Q29: 0 | R29: 0 | S29: 0 | T29: 3200 | U29: 320 | V29: 3520
A30: 27 | B30: 00860936 | E30: MESIA GARCIA, CHRISTIAN ERICK | F30: 276 | G30: 72317983 | H30: 0 | I30: =1500+1000 -> 2500 | J30: 0 | K30: 1000 | L30: 2000 | M30: 0 | N30: 0 | O30: 0 | P30: 0 | Q30: 0 | R30: 0 | S30: 0 | T30: 5500 | U30: 550 | V30: 6050
A31: 28 | B31: 42553620 | E31: MUNDACA FLORES, KELVIN | F31: 276 | G31: 43437357 | H31: 0 | I31: 600 | J31: 0 | K31: 0 | L31: 0 | M31: 0 | N31: 0 | O31: 0 | P31: 0 | Q31: 0 | R31: 0 | S31: 0 | T31: 600 | U31: 60 | V31: 660
A32: 29 | E32: NARVA QUISPE, MARIANO JOSE | F32: 276 | G32: 00815508 | H32: 0 | I32: 0 | J32: 0 | K32: 400 | L32: 0 | M32: 0 | N32: 0 | O32: 0 | P32: 0 | Q32: 0 | R32: 0 | S32: 0 | T32: 400 | U32: 40 | V32: 440
A33: 30 | B33: 00801714 | E33: PAREDES AGUILAR, MARITA CAROLA | F33: 276 | G33: 10276387 | H33: 4000 | I33: 0 | J33: 0 | K33: 0 | L33: 0 | M33: 0 | N33: 0 | O33: 0 | P33: 0 | Q33: 0 | R33: 0 | S33: 2500 | T33: 6500 | U33: 650 | V33: 7150
A34: 31 | B34: 00838472 | E34: PICHI ROBALINO, MARLLORI | F34: CAS | G34: 40709980 | H34: 2000 | I34: 0 | J34: 0 | K34: 0 | L34: 0 | M34: 0 | N34: 0 | O34: 0 | P34: 0 | Q34: 0 | R34: 0 | S34: 0 | T34: 2000 | U34: 200 | V34: 2200
A35: 32 | B35: 40292540 | E35: PINEDO BENZAQUEN, MARLY | F35: CAS | G35: 43186542 | H35: 0 | I35: 1000 | J35: 0 | K35: 0 | L35: 0 | M35: 0 | N35: 0 | O35: 0 | P35: 0 | Q35: 0 | R35: 0 | S35: 0 | T35: 1000 | U35: 100 | V35: 1100
A36: 33 | B36: 40292540 | E36: PISCO CACHIQUE, LENNIN | F36: CAS | G36: 70814205 | H36: 0 | I36: 0 | J36: 0 | K36: 600 | L36: 0 | M36: 0 | N36: 0 | O36: 0 | P36: 0 | Q36: 0 | R36: 0 | S36: 0 | T36: 600 | U36: 60 | V36: 660
A37: 34 | B37: 00821066 | E37: QUIJANDRIA ARTEAGA, PEDRO JHONATAN | F37: CAS | G37: 43338868 | H37: 3000 | I37: 0 | J37: 0 | K37: 0 | L37: 0 | M37: 0 | N37: 0 | O37: 0 | P37: 0 | Q37: 0 | R37: 0 | S37: 0 | T37: 3000 | U37: 300 | V37: 3300
A38: 35 | B38: 45433072 | E38: REATEGUI TELLO, LIZ JEANE | F38: 276 | G38: 44055448 | H38: 0 | I38: =800+1500 -> 2300 | J38: 0 | K38: 0 | L38: 0 | M38: 0 | N38: 0 | O38: 0 | P38: 0 | Q38: 0 | R38: 0 | S38: 0 | T38: =SUM(H38:S38) -> 2300 | U38: =T38*10% -> 230 | V38: =+T38+U38 -> 2530
A39: 36 | B39: 45433072 | E39: RENGIFO TUESTA, MERIDA | F39: 276 | G39: 00815786 | H39: 0 | I39: 0 | J39: 0 | K39: 1000 | L39: 1000 | M39: 0 | N39: 0 | O39: 0 | P39: 0 | Q39: 0 | R39: 0 | S39: 0 | T39: 2000 | U39: 200 | V39: 2200
A40: 37 | B40: 45433072 | E40: ROJAS LINARES, LENNIN | F40: CAS | G40: 43244448 | H40: 0 | I40: 0 | J40: 0 | K40: 1000 | L40: 0 | M40: 0 | N40: 0 | O40: 0 | P40: 0 | Q40: 0 | R40: 0 | S40: 0 | T40: 1000 | U40: 100 | V40: 1100
A41: 38 | B41: 838472 | E41: ROJAS BECERRA, LUCIA | F41: 276 | G41: 838472 | H41: 0 | I41: 0 | J41: 0 | K41: 0 | L41: 0 | M41: 0 | N41: 0 | O41: 0 | P41: 300 | Q41: 0 | R41: 0 | S41: 0 | T41: =SUM(H41:S41) -> 300 | U41: =T41*10% -> 30 | V41: =(+T41+U41)+755.59 -> 1085.59
A42: 39 | B42: 43186542 | E42: RUIZ INUMA, KAREM PAOLA | F42: CAS | G42: 46708679 | H42: 0 | I42: 0 | J42: 0 | K42: 0 | L42: 3000 | M42: 0 | N42: 0 | O42: 0 | P42: 0 | Q42: 0 | R42: 0 | S42: 0 | T42: 3000 | U42: 300 | V42: 3300
A43: 40 | B43: 45433072 | E43: RUIZ PANDURO, KAREN L. | F43: CAS | G43: 43244448 | H43: 0 | I43: 0 | J43: 0 | K43: 1500 | L43: 0 | M43: 0 | N43: 0 | O43: 0 | P43: 0 | Q43: 0 | R43: 0 | S43: 0 | T43: 1500 | U43: 150 | V43: 1650
A44: 41 | B44: 41482777 | E44: RUIZ PEREZ, EMERSON | F44: CAS | G44: 43338868 | H44: 2000 | I44: 0 | J44: 0 | K44: 500 | L44: 0 | M44: 0 | N44: 0 | O44: 0 | P44: 0 | Q44: 0 | R44: 0 | S44: 0 | T44: 2500 | U44: 250 | V44: 2750
A45: 42 | B45: 41482777 | E45: SAYAVERDE ROSALES, ENLY LADWIN | F45: CAS | G45: 44835307 | H45: 0 | I45: 0 | J45: 0 | K45: 1000 | L45: 0 | M45: 0 | N45: 0 | O45: 0 | P45: 0 | Q45: 0 | R45: 0 | S45: 0 | T45: 1000 | U45: 100 | V45: 1100
A46: 37 | B46: 00821066 | E46: SEPULVEDA VELA, SERGIO ANTONIO | F46: 276 | G46: 00821066 | H46: 3000 | I46: 0 | J46: 0 | K46: 0 | L46: 0 | M46: 0 | N46: 0 | O46: 0 | P46: 0 | Q46: 0 | R46: 0 | S46: 0 | T46: 3000 | U46: 300 | V46: 3300
A47: 38 | E47: TORRES BARDALEZ, JAVIER | F47: 276 | G47: 00802127 | H47: 2000 | I47: 0 | J47: 0 | K47: 0 | L47: 0 | M47: 0 | N47: 0 | O47: 0 | P47: 0 | Q47: 0 | R47: 2000 | S47: 0 | T47: 4000 | U47: 400 | V47: 4400
A48: 39 | E48: TORRES REATEGUI, MARIANELA | F48: 276 | G48: 00860667 | H48: 0 | I48: 0 | J48: 1000 | K48: 2000 | L48: 0 | M48: 0 | N48: 0 | O48: 1500 | P48: 0 | Q48: 0 | R48: 2500 | S48: 0 | T48: 7000 | U48: 700 | V48: 7700
A49: 40 | B49: 42553620 | E49: VASQUEZ HIDALGO, CUSTODIO | F49: 276 | G49: 00806058 | H49: 0 | I49: 300 | J49: 0 | K49: =250+500 -> 750 | L49: 0 | M49: 0 | N49: 0 | O49: 1200 | P49: 0 | Q49: 0 | R49: 0 | S49: 0 | T49: 2250 | U49: 225 | V49: =(+T49+U49)+35.9 -> 2510.9
A50: 41 | B50: 00803522 | E50: VASQUEZ RODRIGUEZ, JORGE MIGUEL | F50: CAS | G50: 43032207 | H50: 2500 | I50: 0 | J50: 0 | K50: 0 | L50: 0 | M50: 0 | N50: 0 | O50: 0 | P50: 0 | Q50: 0 | R50: 2000 | S50: 0 | T50: 4500 | U50: 450 | V50: 4950
A51: 42 | B51: 00823888 | E51: VELA CASILLAS, MERLITH | F51: CAS | G51: 00831310 | H51: 0 | I51: 0 | J51: 0 | K51: 0 | L51: 0 | M51: 700 | N51: 0 | O51: 0 | P51: 0 | Q51: 0 | R51: 0 | S51: 0 | T51: 700 | U51: 70 | V51: 770
A52: 37 | B52: 41519956 | E52: VENEGAS MENDOZA, MARTHA | F52: 276 | G52: 01027724 | H52: 0 | I52: 0 | J52: 1600 | K52: 0 | L52: 0 | M52: 0 | N52: 0 | O52: 0 | P52: 0 | Q52: 0 | R52: 0 | S52: 0 | T52: 1600 | U52: 160 | V52: 1760
A53: 38 | E53: VILCHEZ SECLEN, MILKA | F53: 276 | G53: 16704655 | H53: 3000 | I53: 0 | J53: 0 | K53: 0 | L53: 0 | M53: 0 | N53: 0 | O53: 0 | P53: 0 | Q53: 0 | R53: 0 | S53: 2500 | T53: 5500 | U53: 550 | V53: 6050
A54: 39 | B54: 40145400 | E54: YNGA CASIQUE, GEOMAR | F54: CAS | G54: 00821756 | H54: 2500 | I54: 0 | J54: 0 | K54: 0 | L54: 0 | M54: 0 | N54: 0 | O54: 0 | P54: 0 | Q54: 0 | R54: 0 | S54: 0 | T54: 2500 | U54: 250 | V54: 2750
A55: 40 | B55: 41697516 | E55: MEJIA BABILONIA, SUSAN | F55: CAS | G55: 41697516 | H55: 0 | I55: 0 | J55: 0 | K55: 0 | L55: 0 | M55: 0 | N55: 0 | O55: 0 | P55: 500 | Q55: 0 | R55: 0 | S55: 0 | T55: 500 | U55: 50 | V55: 550
A56: 52 | B56: 71851009 | E56: JHON XAVIER TOLEDO LUAN | F56: CAS | G56: 71851009 | H56: 0 | I56: 0 | J56: 0 | K56: 0 | L56: 0 | M56: 0 | N56: 0 | O56: 0 | P56: 0 | Q56: 0 | R56: 2500 | S56: 0 | T56: 2500 | U56: 250 | V56: 2750
A57: 53 | B57: 71069412 | E57: JUAN CARLOS GALLARDO PINEDO | F57: CAS | G57: 71069412 | H57: 0 | I57: 0 | J57: 0 | K57: 0 | L57: 0 | M57: 0 | N57: 0 | O57: 0 | P57: 0 | Q57: 0 | R57: 1000 | S57: 0 | T57: 1000 | U57: 100 | V57: 1100
H58: 0 | I58: 0 | J58: 0 | K58: 0 | L58: 0 | M58: 0 | N58: 0 | O58: 0 | P58: 0 | Q58: 0 | R58: 0 | S58: 0 | T58: 0 | U58: 0 | V58: 0
A59: TOTAL S/. | H59: =SUM(H3:H58) -> 62900 | I59: =SUM(I3:I58) -> 12000 | J59: 13600 | K59: 14250 | L59: 6000 | M59: 1800 | N59: 6000 | O59: 6300 | P59: 800 | Q59: 550 | R59: 16500 | S59: 10000 | T59: 150700 | U59: =SUM(U3:U58) -> 15070 | V59: =SUM(V3:V58) -> 166561.49

Sheet APORTE-PRESTAMO-INTER (hidden)
A1: APORTACIONES, PRESTAMOS Y OTROS - 2012
A2: Nº | B2: APELLIDOS Y NOMBRES | C2: ENERO | J2: FEBRERO | Q2: MARZO | X2: ABRIL | AE2: MAYO | AL2: JUNIO | AS2: JULIO | AZ2: AGOSTO | BG2: SEPTIEMBRE | BN2: OCTUBRE | BU2: NOVIEMBRE | CB2: DICIEMBRE | CI2: TOTAL
C3: APORTE | D3: PREST. | E3: TOTAL | F3: CANASTA | G3: OTROS | H3: TOTAL | I3: TOTAL ENERO | J3: APORTE | K3: PREST. | L3: TOTAL | M3: CANASTA | N3: OTROS | O3: TOTAL | P3: TOTAL FEBRERO | Q3: APORTE | R3: PREST. | S3: TOTAL | T3: CANASTA | U3: OTROS | V3: TOTAL | W3: TOTAL MARZO | X3: APORTE | Y3: PREST. | Z3: TOTAL | AA3: CANASTA | AB3: OTROS | AC3: TOTAL | AD3: TOTAL ABRIL | AE3: APORTE | AF3: PREST. | AG3: TOTAL | AH3: CANASTA | AI3: OTROS | AJ3: TOTAL | AK3: TOTAL MAYO | AL3: APORTE | AM3: PREST. | AN3: TOTAL | AO3: CANASTA | AP3: OTROS | AQ3: TOTAL | AR3: TOTAL JUNIO | AS3: APORTE | AT3: PREST. | AU3: TOTAL | AV3: CANASTA | AW3: OTROS | AX3: TOTAL | AY3: TOTAL JULIO | AZ3: APORTE | BA3: PREST. | BB3: TOTAL | BC3: CANASTA | BD3: OTROS | BE3: TOTAL | BF3: TOTAL AGOSTO | BG3: APORTE | BH3: PREST. | BI3: TOTAL | BJ3: CANASTA | BK3: OTROS | BL3: TOTAL | BM3: TOTAL SEPTIEMB | BN3: APORTE | BO3: PREST. | BP3: TOTAL | BQ3: CANASTA | BR3: OTROS | BS3: TOTAL | BT3: TOTAL OCTUBRE | BU3: APORTE | BV3: PREST. | BW3: TOTAL | BX3: CANASTA | BY3: OTROS | BZ3: TOTAL | CA3: TOTAL NOVIEM | CB3: APORTE | CC3: PREST. | CD3: TOTAL | CE3: CANASTA | CF3: OTROS | CG3: TOTAL | CH3: TOTAL DICIEM | CI3: APORTE | CJ3: PREST. INT. | CK3: SUB TOTAL | CL3: CANASTA | CM3: OTROS | CN3: SUB TOTAL | CO3: TOTAL AÑO
A4: 1 | B4: ADAN ALLUI, NANCY | C4: 0 | E4: =+C4+D4 -> 0 | G4: 15 | H4: =+F4+G4 -> 15 | I4: =+E4+H4 -> 15 | L4: =+J4+K4 -> 0 | O4: =+M4+N4 -> 0 | P4: =+L4+O4 -> 0 | S4: =+Q4+R4 -> 0 | U4: 30 | V4: =+T4+U4 -> 30 | W4: =+S4+V4 -> 30 | Z4: =+X4+Y4 -> 0 | AC4: =+AA4+AB4 -> 0 | AD4: =+Z4+AC4 -> 0 | AG4: =+AE4+AF4 -> 0 | AI4: =15+15 -> 30 | AJ4: =+AH4+AI4 -> 30 | AK4: =+AG4+AJ4 -> 30 | AN4: =+AL4+AM4 -> 0 | AQ4: =+AO4+AP4 -> 0 | AR4: =+AN4+AQ4 -> 0 | AU4: =+AS4+AT4 -> 0 | AX4: =+AV4+AW4 -> 0 | AY4: =+AU4+AX4 -> 0 | BB4: =+AZ4+BA4 -> 0 | BE4: =+BC4+BD4 -> 0 | BF4: =+BB4+BE4 -> 0 | BI4: =+BG4+BH4 -> 0 | BL4: =+BJ4+BK4 -> 0 | BM4: =+BI4+BL4 -> 0 | BP4: =+BN4+BO4 -> 0 | BS4: =+BQ4+BR4 -> 0 | BT4: =+BP4+BS4 -> 0 | BW4: =+BU4+BV4 -> 0 | BZ4: =+BX4+BY4 -> 0 | CA4: =+BW4+BZ4 -> 0 | CD4: =+CB4+CC4 -> 0 | CG4: =+CE4+CF4 -> 0 | CH4: =+CD4+CG4 -> 0 | CI4: =+C4+J4+Q4+X4+AE4+AL4+AS4+AZ4+BG4+BN4+BU4+CB4 -> 0 | CJ4: =+D4+K4+R4+Y4+AF4+AM4+AT4+BA4+BH4+BO4+BV4+CC4 -> 0 | CK4: =+CI4+CJ4 -> 0 | CL4: =+F4+M4+T4+AA4+AH4+AO4+AV4+BC4+BJ4+BQ4+BX4+CE4 -> 0 | CM4: =+G4+N4+U4+AB4+AI4+AP4+AW4+BD4+BK4+BR4+BY4+CF4 -> 75 | CN4: =+CL4+CM4 -> 75 | CO4: =+CK4+CN4 -> 75
A5: 2 | B5: AGUILAR ARTEAGA, ROSALI SANTIAGO | C5: 0 | E5: =+C5+D5 -> 0 | F5: 32.5 | H5: =+F5+G5 -> 32.5 | I5: =+E5+H5 -> 32.5 | L5: =+J5+K5 -> 0 | M5: 25 | O5: =+M5+N5 -> 25 | P5: =+L5+O5 -> 25 | S5: =+Q5+R5 -> 0 | T5: 25 | V5: =+T5+U5 -> 25 | W5: =+S5+V5 -> 25 | Z5: =+X5+Y5 -> 0 | AA5: 20 | AC5: =+AA5+AB5 -> 20 | AD5: =+Z5+AC5 -> 20 | AG5: =+AE5+AF5 -> 0 | AH5: 5 | AJ5: =+AH5+AI5 -> 5 | AK5: =+AG5+AJ5 -> 5 | AN5: =+AL5+AM5 -> 0 | AO5: 12.5 | AQ5: =+AO5+AP5 -> 12.5 | AR5: =+AN5+AQ5 -> 12.5 | AU5: =+AS5+AT5 -> 0 | AV5: 20 | AX5: =+AV5+AW5 -> 20 | AY5: =+AU5+AX5 -> 20 | BB5: =+AZ5+BA5 -> 0 | BC5: 20 | BE5: =+BC5+BD5 -> 20 | BF5: =+BB5+BE5 -> 20 | BI5: =+BG5+BH5 -> 0 | BL5: =+BJ5+BK5 -> 0 | BM5: =+BI5+BL5 -> 0 | BP5: =+BN5+BO5 -> 0 | BS5: =+BQ5+BR5 -> 0 | BT5: =+BP5+BS5 -> 0 | BW5: =+BU5+BV5 -> 0 | BZ5: =+BX5+BY5 -> 0 | CA5: =+BW5+BZ5 -> 0 | CD5: =+CB5+CC5 -> 0 | CG5: =+CE5+CF5 -> 0 | CH5: =+CD5+CG5 -> 0 | CI5: =+C5+J5+Q5+X5+AE5+AL5+AS5+AZ5+BG5+BN5+BU5+CB5 -> 0 | CJ5: =+D5+K5+R5+Y5+AF5+AM5+AT5+BA5+BH5+BO5+BV5+CC5 -> 0 | CK5: =+CI5+CJ5 -> 0 | CL5: =+F5+M5+T5+AA5+AH5+AO5+AV5+BC5+BJ5+BQ5+BX5+CE5 -> 160 | CM5: =+G5+N5+U5+AB5+AI5+AP5+AW5+BD5+BK5+BR5+BY5+CF5 -> 0 | CN5: =+CL5+CM5 -> 160 | CO5: =+CK5+CN5 -> 160
A6: 3 | B6: APAESTEGUI HUANCA, LUZ HERMELINDA | C6: 0 | E6: 0 | H6: 0 | I6: 0 | L6: 0 | O6: 0 | P6: 0 | S6: 0 | V6: 0 | W6: 0 | Z6: 0 | AC6: 0 | AD6: 0 | AG6: 0 | AJ6: 0 | AK6: 0 | AN6: 0 | AP6: 75 | AQ6: 75 | AR6: 75 | AU6: 0 | AX6: 0 | AY6: 0 | BB6: 0 | BE6: 0 | BF6: 0 | BI6: =+BG6+BH6 -> 0 | BL6: 0 | BM6: 0 | BP6: 0 | BS6: 0 | BT6: 0 | BW6: 0 | BZ6: 0 | CA6: 0 | CD6: 0 | CG6: 0 | CH6: 0 | CI6: 0 | CJ6: 0 | CK6: 0 | CL6: 0 | CM6: 75 | CN6: 75 | CO6: 75
A7: 4 | B7: ARIAS VASQUEZ, ALDO | C7: 0 | E7: 0 | H7: 0 | I7: 0 | J7: 5 | L7: 5 | M7: 40 | O7: 40 | P7: 45 | Q7: 5 | S7: 5 | T7: 40 | V7: 40 | W7: 45 | Z7: 0 | AC7: 0 | AD7: 0 | AE7: 10 | AF7: 68 | AG7: 78 | AH7: 20 | AJ7: 20 | AK7: 98 | AL7: 5 | AM7: 80 | AN7: 85 | AO7: 20 | AQ7: 20 | AR7: 105 | AS7: 5 | AT7: 63 | AU7: 68 | AV7: 20 | AX7: 20 | AY7: 88 | AZ7: 5 | BA7: 63 | BB7: 68 | BC7: 20 | BE7: 20 | BF7: 88 | BI7: 0 | BL7: 0 | BM7: 0 | BP7: 0 | BS7: 0 | BT7: 0 | BW7: 0 | BZ7: 0 | CA7: 0 | CD7: 0 | CG7: 0 | CH7: 0 | CI7: 35 | CJ7: 274 | CK7: 309 | CL7: 160 | CM7: 0 | CN7: 160 | CO7: 469 | CP7: 166
A8: 5 | B8: ARIAS NORIEGA, CECILIA | C8: 5 | E8: 5 | H8: 0 | I8: 5 | J8: 5 | L8: 5 | O8: 0 | P8: 5 | Q8: 5 | S8: 5 | V8: 0 | W8: 5 | X8: 5 | Z8: 5 | AC8: 0 | AD8: 5 | AE8: 5 | AG8: 5 | AJ8: 0 | AK8: 5 | AL8: 5 | AN8: 5 | AQ8: 0 | AR8: 5 | AS8: 5 | AU8: 5 | AX8: 0 | AY8: 5 | AZ8: 5 | BB8: 5 | BE8: 0 | BF8: 5 | BI8: 0 | BL8: 0 | BM8: 0 | BP8: 0 | BS8: 0 | BT8: 0 | BW8: 0 | BZ8: 0 | CA8: 0 | CD8: 0 | CG8: 0 | CH8: 0 | CI8: 40 | CJ8: 0 | CK8: 40 | CL8: 0 | CM8: 0 | CN8: 0 | CO8: 40
A9: 6 | B9: ASTOLINGON NUÑEZ, JULY ROXANA | E9: 0 | H9: 0 | I9: 0 | L9: 0 | O9: 0 | P9: 0 | S9: 0 | V9: 0 | W9: 0 | Z9: 0 | AC9: 0 | AD9: 0 | AG9: 0 | AJ9: 0 | AK9: 0 | AN9: 0 | AP9: 30 | AQ9: 30 | AR9: 30 | AU9: 0 | AX9: 0 | AY9: 0 | BB9: 0 | BE9: 0 | BF9: 0 | BI9: 0 | BL9: 0 | BM9: 0 | BP9: 0 | BS9: 0 | BT9: 0 | BW9: 0 | BZ9: 0 | CA9: 0 | CD9: 0 | CG9: 0 | CH9: 0 | CI9: 0 | CJ9: 0 | CK9: 0 | CL9: 0 | CM9: 30 | CN9: 30 | CO9: 30
A10: 7 | B10: BARDALEZ ALVA, ANITA MERCEDES | C10: 5 | E10: 5 | G10: 15 | H10: 15 | I10: 20 | J10: 5 | L10: 5 | M10: =40+40 -> 80 | N10: =30+15 -> 45 | O10: 125 | P10: 130 | Q10: 5 | S10: 5 | T10: =55+20 -> 75 | U10: 15 | V10: 90 | W10: 95 | X10: 5 | Z10: 5 | AA10: =15+10 -> 25 | AC10: 25 | AD10: 30 | AE10: 5 | AG10: 5 | AH10: 10 | AJ10: 10 | AK10: 15 | AL10: 5 | AN10: 5 | AQ10: 0 | AR10: 5 | AS10: 5 | AT10: 91 | AU10: 96 | AX10: 0 | AY10: 96 | AZ10: 5 | BA10: 400 | BB10: 405 | BE10: 0 | BF10: 405 | BI10: 0 | BL10: 0 | BM10: 0 | BP10: 0 | BS10: 0 | BT10: 0 | BW10: 0 | BZ10: 0 | CA10: 0 | CD10: 0 | CG10: 0 | CH10: 0 | CI10: 40 | CJ10: 491 | CK10: 531 | CL10: 190 | CM10: 75 | CN10: 265 | CO10: 796 | CP10: 609
A11: 8 | B11: BARDALEZ VASQUEZ, JORGE LUIS | C11: 5 | E11: 5 | H11: 0 | I11: 5 | J11: 5 | L11: 5 | M11: 40 | O11: 40 | P11: 45 | Q11: 5 | S11: 5 | T11: 40 | V11: 40 | W11: 45 | X11: 5 | Z11: 5 | AA11: 20 | AC11: 20 | AD11: 25 | AE11: 5 | AG11: 5 | AH11: 20 | AJ11: 20 | AK11: 25 | AL11: 5 | AN11: 5 | AQ11: 0 | AR11: 5 | AS11: 5 | AU11: 5 | AV11: 20 | AX11: 20 | AY11: 25 | AZ11: 5 | BB11: 5 | BC11: 20 | BE11: 20 | BF11: 25 | BI11: 0 | BL11: 0 | BM11: 0 | BP11: 0 | BS11: 0 | BT11: 0 | BW11: 0 | BZ11: 0 | CA11: 0 | CD11: 0 | CG11: 0 | CH11: 0 | CI11: 40 | CJ11: 0 | CK11: 40 | CL11: 160 | CM11: 0 | CN11: 160 | CO11: 200
A12: 9 | B12: BARDALEZ VASQUEZ, WILLIAM | C12: 5 | E12: 5 | H12: 0 | I12: 5 | J12: 5 | L12: 5 | O12: 0 | P12: 5 | Q12: 5 | S12: 5 | V12: 0 | W12: 5 | X12: 5 | Z12: 5 | AC12: 0 | AD12: 5 | AE12: 5 | AG12: 5 | AJ12: 0 | AK12: 5 | AL12: 5 | AN12: 5 | AQ12: 0 | AR12: 5 | AU12: 0 | AX12: 0 | AY12: 0 | AZ12: 25 | BB12: 25 | BE12: 0 | BF12: 25 | BI12: 0 | BL12: 0 | BM12: 0 | BP12: 0 | BS12: 0 | BT12: 0 | BW12: 0 | BZ12: 0 | CA12: 0 | CD12: 0 | CG12: 0 | CH12: 0 | CI12: 55 | CJ12: 0 | CK12: 55 | CL12: 0 | CM12: 0 | CN12: 0 | CO12: 55
A13: 10 | B13: BAZAN VELA, SAMUEL | C13: 5 | E13: 5 | H13: 0 | I13: 5 | J13: 5 | L13: 5 | O13: 0 | P13: 5 | Q13: 5 | S13: 5 | V13: 0 | W13: 5 | X13: 5 | Z13: 5 | AC13: 0 | AD13: 5 | AE13: 5 | AG13: 5 | AJ13: 0 | AK13: 5 | AL13: 5 | AN13: 5 | AQ13: 0 | AR13: 5 | AS13: 5 | AU13: 5 | AX13: 0 | AY13: 5 | AZ13: 5 | BB13: 5 | BE13: 0 | BF13: 5 | BI13: 0 | BL13: 0 | BM13: 0 | BP13: 0 | BS13: 0 | BT13: 0 | BW13: 0 | BZ13: 0 | CA13: 0 | CD13: 0 | CG13: 0 | CH13: 0 | CI13: 40 | CJ13: 0 | CK13: 40 | CL13: 0 | CM13: 0 | CN13: 0 | CO13: 40
A14: 11 | B14: BENZAQUEN BARDALEZ, GUILLERMO | C14: 5 | E14: 5 | H14: 0 | I14: 5 | J14: 5 | L14: 5 | O14: 0 | P14: 5 | Q14: 5 | S14: 5 | V14: 0 | W14: 5 | X14: 5 | Z14: 5 | AC14: 0 | AD14: 5 | AE14: 5 | AG14: 5 | AJ14: 0 | AK14: 5 | AL14: 5 | AN14: 5 | AQ14: 0 | AR14: 5 | AS14: 5 | AU14: 5 | AX14: 0 | AY14: 5 | AZ14: 5 | BB14: 5 | BE14: 0 | BF14: 5 | BI14: 0 | BL14: 0 | BM14: 0 | BP14: 0 | BS14: 0 | BT14: 0 | BW14: 0 | BZ14: 0 | CA14: 0 | CD14: 0 | CG14: 0 | CH14: 0 | CI14: 40 | CJ14: 0 | CK14: 40 | CL14: 0 | CM14: 0 | CN14: 0 | CO14: 40
A15: 12 | B15: BOCANEGRA ROJAS, DAISY MARIA | C15: 5 | E15: 5 | H15: 0 | I15: 5 | J15: 5 | L15: 5 | O15: 0 | P15: 5 | Q15: 5 | S15: 5 | V15: 0 | W15: 5 | X15: 5 | Z15: 5 | AC15: 0 | AD15: 5 | AE15: 5 | AG15: 5 | AJ15: 0 | AK15: 5 | AL15: 5 | AN15: 5 | AQ15: 0 | AR15: 5 | AS15: 5 | AU15: 5 | AX15: 0 | AY15: 5 | AZ15: 5 | BB15: 5 | BE15: 0 | BF15: 5 | BI15: 0 | BL15: 0 | BM15: 0 | BP15: 0 | BS15: 0 | BT15: 0 | BW15: 0 | BZ15: 0 | CA15: 0 | CD15: 0 | CG15: 0 | CH15: 0 | CI15: 40 | CJ15: 0 | CK15: 40 | CL15: 0 | CM15: 0 | CN15: 0 | CO15: 40
A16: 13 | B16: CARRANZA ABAD, FLOR EDITH | E16: 0 | H16: 0 | I16: 0 | L16: 0 | O16: 0 | P16: 0 | S16: 0 | V16: 0 | W16: 0 | Z16: 0 | AC16: 0 | AD16: 0 | AG16: 0 | AJ16: 0 | AK16: 0 | AN16: 0 | AP16: 75 | AQ16: 75 | AR16: 75 | AU16: 0 | AX16: 0 | AY16: 0 | BB16: 0 | BE16: 0 | BF16: 0 | BI16: 0 | BL16: 0 | BM16: 0 | BP16: 0 | BS16: 0 | BT16: 0 | BW16: 0 | BZ16: 0 | CA16: 0 | CD16: 0 | CG16: 0 | CH16: 0 | CI16: 0 | CJ16: 0 | CK16: 0 | CL16: 0 | CM16: 75 | CN16: 75 | CO16: 75
A17: 14 | B17: CELIZ VENTURA, LIZBETH | E17: 0 | H17: 0 | I17: 0 | L17: 0 | O17: 0 | P17: 0 | S17: 0 | V17: 0 | W17: 0 | Z17: 0 | AC17: 0 | AD17: 0 | AG17: 0 | AI17: 75 | AJ17: 75 | AK17: 75 | AN17: 0 | AQ17: 0 | AR17: 0 | AU17: 0 | AX17: 0 | AY17: 0 | BB17: 0 | BE17: 0 | BF17: 0 | BI17: 0 | BL17: 0 | BM17: 0 | BP17: 0 | BS17: 0 | BT17: 0 | BW17: 0 | BZ17: 0 | CA17: 0 | CD17: 0 | CG17: 0 | CH17: 0 | CI17: 0 | CJ17: 0 | CK17: 0 | CL17: 0 | CM17: 75 | CN17: 75 | CO17: 75
A18: 15 | B18: CENTURION TAPIA, BEATRIZ | C18: 5 | E18: 5 | H18: 0 | I18: 5 | J18: 5 | L18: 5 | O18: 0 | P18: 5 | Q18: 5 | S18: 5 | V18: 0 | W18: 5 | X18: 5 | Z18: 5 | AC18: 0 | AD18: 5 | AE18: 5 | AG18: 5 | AJ18: 0 | AK18: 5 | AL18: 5 | AN18: 5 | AQ18: 0 | AR18: 5 | AS18: 5 | AU18: 5 | AX18: 0 | AY18: 5 | AZ18: 5 | BB18: 5 | BE18: 0 | BF18: 5 | BI18: 0 | BL18: 0 | BM18: 0 | BP18: 0 | BS18: 0 | BT18: 0 | BW18: 0 | BZ18: 0 | CA18: 0 | CD18: 0 | CG18: 0 | CH18: 0 | CI18: 40 | CJ18: 0 | CK18: 40 | CL18: 0 | CM18: 0 | CN18: 0 | CO18: 40
A19: 16 | B19: CISNEROS HIDALGO, LOURDES AUGUSTA | C19: 5 | D19: 96.8 | E19: 101.8 | G19: 15 | H19: 15 | I19: 116.8 | J19: 5 | K19: 96.8 | L19: 101.8 | N19: =15+20 -> 35 | O19: 35 | P19: 136.8 | Q19: 5 | R19: 96.8 | S19: 101.8 | U19: 15 | V19: 15 | W19: 116.8 | X19: 45 | Y19: 105 | Z19: 150 | AB19: 15 | AC19: 15 | AD19: 165 | AF19: 105 | AG19: 105 | AI19: 15 | AJ19: 15 | AK19: 120 | AM19: 145 | AN19: 145 | AP19: 25 | AQ19: 25 | AR19: 170 | AT19: 84.3 | AU19: 84.3 | AX19: 0 | AY19: 84.3 | BA19: 84.3 | BB19: 84.3 | BE19: 0 | BF19: 84.3 | BI19: 0 | BL19: 0 | BM19: 0 | BP19: 0 | BS19: 0 | BT19: 0 | BW19: 0 | BZ19: 0 | CA19: 0 | CD19: 0 | CG19: 0 | CH19: 0 | CI19: 60 | CJ19: 814 | CK19: 874 | CL19: 0 | CM19: 120 | CN19: 120 | CO19: 994 | CP19: 550
A20: 17 | B20: COLLAZOS SANTILLAN, ELVIA OLINDA | C20: 5 | E20: 5 | H20: 0 | I20: 5 | J20: 5 | L20: 5 | M20: 40 | N20: 30 | O20: 70 | P20: 75 | Q20: 5 | S20: 5 | T20: 5 | U20: 30 | V20: 35 | W20: 40 | X20: 5 | Z20: 5 | AA20: 20 | AB20: 15 | AC20: 35 | AD20: 40 | AE20: 5 | AG20: 5 | AH20: 35 | AJ20: 35 | AK20: 40 | AL20: 5 | AM20: =183 -> 183 | AN20: 188 | AO20: 20 | AQ20: 20 | AR20: 208 | AS20: 5 | AT20: =230+183 -> 413 | AU20: 418 | AV20: 20 | AX20: 20 | AY20: 438 | AZ20: 5 | BA20: 183 | BB20: 188 | BC20: 20 | BE20: 20 | BF20: 208 | BI20: 0 | BL20: 0 | BM20: 0 | BP20: 0 | BS20: 0 | BT20: 0 | BW20: 0 | BZ20: 0 | CA20: 0 | CD20: 0 | CG20: 0 | CH20: 0 | CI20: 40 | CJ20: 779 | CK20: 819 | CL20: 160 | CM20: 75 | CN20: 235 | CO20: 1054 | CP20: 321 | CQ20: 165
A21: 18 | B21: CORDOVA CAMPOS, CLARA | C21: 0 | E21: 0 | G21: 15 | H21: 15 | I21: 15 | L21: 0 | N21: 15 | O21: 15 | P21: 15 | S21: 0 | U21: 15 | V21: 15 | W21: 15 | Z21: 0 | AC21: 0 | AD21: 0 | AG21: 0 | AI21: 30 | AJ21: 30 | AK21: 30 | AN21: 0 | AQ21: 0 | AR21: 0 | AU21: 0 | AX21: 0 | AY21: 0 | BB21: 0 | BE21: 0 | BF21: 0 | BI21: 0 | BL21: 0 | BM21: 0 | BP21: 0 | BS21: 0 | BT21: 0 | BW21: 0 | BZ21: 0 | CA21: 0 | CD21: 0 | CG21: 0 | CH21: 0 | CI21: 0 | CJ21: 0 | CK21: 0 | CL21: 0 | CM21: 75 | CN21: 75 | CO21: 75
A22: 19 | B22: CORDOVA FALEN, MIGUEL ANGEL | C22: 5 | E22: 5 | H22: 0 | I22: 5 | J22: 5 | L22: 5 | M22: 40 | O22: 40 | P22: 45 | Q22: 5 | S22: 5 | T22: 20 | V22: 20 | W22: 25 | X22: 5 | Z22: 5 | AA22: 20 | AC22: 20 | AD22: 25 | AE22: 5 | AG22: 5 | AH22: 20 | AJ22: 20 | AK22: 25 | AL22: 5 | AN22: 5 | AO22: 20 | AQ22: 20 | AR22: 25 | AS22: 5 | AU22: 5 | AV22: 20 | AX22: 20 | AY22: 25 | AZ22: 5 | BB22: 5 | BC22: 20 | BE22: 20 | BF22: 25 | BI22: 0 | BL22: 0 | BM22: 0 | BP22: 0 | BS22: 0 | BT22: 0 | BW22: 0 | BZ22: 0 | CA22: 0 | CD22: 0 | CG22: 0 | CH22: 0 | CI22: 40 | CJ22: 0 | CK22: 40 | CL22: 160 | CM22: 0 | CN22: 160 | CO22: 200
A23: 20 | B23: CORONEL ALARCON, AGUSTIN | C23: 0 | E23: 0 | H23: 0 | I23: 0 | L23: 0 | O23: 0 | P23: 0 | S23: 0 | V23: 0 | W23: 0 | Z23: 0 | AC23: 0 | AD23: 0 | AG23: 0 | AJ23: 0 | AK23: 0 | AN23: 0 | AQ23: 0 | AR23: 0 | AU23: 0 | AX23: 0 | AY23: 0 | BB23: 0 | BE23: 0 | BF23: 0 | BI23: 0 | BL23: 0 | BM23: 0 | BP23: 0 | BS23: 0 | BT23: 0 | BW23: 0 | BZ23: 0 | CA23: 0 | CD23: 0 | CG23: 0 | CH23: 0 | CI23: 0 | CJ23: 0 | CK23: 0 | CL23: 0 | CM23: 0 | CN23: 0 | CO23: 0
A24: 21 | B24: CORONEL BARDALES, MIKE | C24: 0 | E24: 0 | H24: 0 | I24: 0 | L24: 0 | M24: 40 | O24: 40 | P24: 40 | S24: 0 | T24: 40 | V24: 40 | W24: 40 | Z24: 0 | AC24: 0 | AD24: 0 | AG24: 0 | AH24: 20 | AJ24: 20 | AK24: 20 | AN24: 0 | AO24: 20 | AQ24: 20 | AR24: 20 | AU24: 0 | AX24: 0 | AY24: 0 | BB24: 0 | BE24: 0 | BF24: 0 | BI24: 0 | BL24: 0 | BM24: 0 | BP24: 0 | BS24: 0 | BT24: 0 | BW24: 0 | BZ24: 0 | CA24: 0 | CD24: 0 | CG24: 0 | CH24: 0 | CI24: 0 | CJ24: 0 | CK24: 0 | CL24: 120 | CM24: 0 | CN24: 120 | CO24: 120
A25: 22 | B25: CUENTAS NUÑEZ DE LA TORRE, GIOVANA | C25: 0 | E25: 0 | H25: 0 | I25: 0 | L25: 0 | O25: 0 | P25: 0 | S25: 0 | V25: 0 | W25: 0 | Z25: 0 | AC25: 0 | AD25: 0 | AG25: 0 | AJ25: 0 | AK25: 0 | AN25: 0 | AP25: 30 | AQ25: 30 | AR25: 30 | AU25: 0 | AX25: 0 | AY25: 0 | BB25: 0 | BE25: 0 | BF25: 0 | BI25: 0 | BL25: 0 | BM25: 0 | BP25: 0 | BS25: 0 | BT25: 0 | BW25: 0 | BZ25: 0 | CA25: 0 | CD25: 0 | CG25: 0 | CH25: 0 | CI25: 0 | CJ25: 0 | CK25: 0 | CL25: 0 | CM25: 30 | CN25: 30 | CO25: 30
A26: 23 | B26: CHACALIAZA ANGULO, LUZ VERONICA | C26: 5 | E26: 5 | H26: 0 | I26: 5 | J26: 5 | L26: 5 | O26: 0 | P26: 5 | Q26: 5 | S26: 5 | V26: 0 | W26: 5 | X26: 5 | Y26: 82.5 | Z26: 87.5 | AC26: 0 | AD26: 87.5 | AE26: 5 | AF26: 82.5 | AG26: 87.5 | AJ26: 0 | AK26: 87.5 | AL26: 5 | AM26: 82.5 | AN26: 87.5 | AQ26: 0 | AR26: 87.5 | AS26: 5 | AT26: 93.5 | AU26: 98.5 | AX26: 0 | AY26: 98.5 | AZ26: 5 | BA26: 93.5 | BB26: 98.5 | BE26: 0 | BF26: 98.5 | BI26: 0 | BL26: 0 | BM26: 0 | BP26: 0 | BS26: 0 | BT26: 0 | BW26: 0 | BZ26: 0 | CA26: 0 | CD26: 0 | CG26: 0 | CH26: 0 | CI26: 40 | CJ26: 434.5 | CK26: 474.5 | CL26: 0 | CM26: 0 | CN26: 0 | CO26: 474.5 | CP26: 93.5
A27: 24 | B27: CHACON DEL AGUILA, GLADYS | C27: 0 | E27: 0 | H27: 0 | I27: 0 | L27: 0 | M27: =20+20 -> 40 | N27: 15 | O27: 55 | P27: 55 | S27: 0 | T27: 20 | U27: 15 | V27: 35 | W27: 35 | Z27: 0 | AA27: 20 | AB27: 15 | AC27: 35 | AD27: 35 | AG27: 0 | AH27: 5 | AI27: 30 | AJ27: 35 | AK27: 35 | AN27: 0 | AO27: 20 | AQ27: 20 | AR27: 20 | AU27: 0 | AV27: 20 | AX27: 20 | AY27: 20 | BB27: 0 | BC27: 20 | BE27: 20 | BF27: 20 | BI27: 0 | BL27: 0 | BM27: 0 | BP27: 0 | BS27: 0 | BT27: 0 | BW27: 0 | BZ27: 0 | CA27: 0 | CD27: 0 | CG27: 0 | CH27: 0 | CI27: 0 | CJ27: 0 | CK27: 0 | CL27: 145 | CM27: 75 | CN27: 220 | CO27: 220
A28: 25 | B28: DAVILA CASIQUE, MARIA ELENA | C28: 5 | E28: 5 | H28: 0 | I28: 5 | J28: 5 | L28: 5 | N28: 30 | O28: 30 | P28: 35 | Q28: 5 | S28: 5 | V28: 0 | W28: 5 | X28: 5 | Z28: 5 | AC28: 0 | AD28: 5 | AG28: 0 | AJ28: 0 | AK28: 0 | AN28: 0 | AQ28: 0 | AR28: 0 | AS28: 5 | AU28: 5 | AX28: 0 | AY28: 5 | AZ28: 5 | BB28: 5 | BE28: 0 | BF28: 5 | BI28: 0 | BL28: 0 | BM28: 0 | BP28: 0 | BS28: 0 | BT28: 0 | BW28: 0 | BZ28: 0 | CA28: 0 | CD28: 0 | CG28: 0 | CH28: 0 | CI28: 30 | CJ28: 0 | CK28: 30 | CL28: 0 | CM28: 30 | CN28: 30 | CO28: 60
A29: 26 | B29: DAVILA RENGIFO, DALILA | C29: 5 | E29: 5 | H29: 0 | I29: 5 | J29: 5 | L29: 5 | O29: 0 | P29: 5 | Q29: 5 | S29: 5 | V29: 0 | W29: 5 | X29: 5 | Z29: 5 | AC29: 0 | AD29: 5 | AE29: 5 | AG29: 5 | AJ29: 0 | AK29: 5 | AL29: 5 | AN29: 5 | AQ29: 0 | AR29: 5 | AS29: 5 | AU29: 5 | AX29: 0 | AY29: 5 | AZ29: 5 | BB29: 5 | BE29: 0 | BF29: 5 | BI29: 0 | BL29: 0 | BM29: 0 | BP29: 0 | BS29: 0 | BT29: 0 | BW29: 0 | BZ29: 0 | CA29: 0 | CD29: 0 | CG29: 0 | CH29: 0 | CI29: 40 | CJ29: 0 | CK29: 40 | CL29: 0 | CM29: 0 | CN29: 0 | CO29: 40
A30: 27 | B30: DAZA PEREZ, AURORA CONSUELO | C30: 0 | E30: 0 | H30: 0 | I30: 0 | J30: 10 | L30: 10 | N30: 5 | O30: 5 | P30: 15 | S30: 0 | V30: 0 | W30: 0 | Z30: 0 | AC30: 0 | AD30: 0 | AG30: 0 | AJ30: 0 | AK30: 0 | AN30: 0 | AP30: 70 | AQ30: 70 | AR30: 70 | AU30: 0 | AX30: 0 | AY30: 0 | BB30: 0 | BE30: 0 | BF30: 0 | BI30: 0 | BL30: 0 | BM30: 0 | BP30: 0 | BS30: 0 | BT30: 0 | BW30: 0 | BZ30: 0 | CA30: 0 | CD30: 0 | CG30: 0 | CH30: 0 | CI30: 10 | CJ30: 0 | CK30: 10 | CL30: 0 | CM30: 75 | CN30: 75 | CO30: 85
A31: 28 | B31: DEL AGUILA ESCOBEDO, LIA LUZ | C31: 0 | E31: 0 | H31: 0 | I31: 0 | L31: 0 | M31: 40 | N31: 30 | O31: 70 | P31: 70 | S31: 0 | T31: 5 | U31: 30 | V31: 35 | W31: 35 | Z31: 0 | AA31: 20 | AB31: 15 | AC31: 35 | AD31: 35 | AG31: 0 | AH31: 35 | AJ31: 35 | AK31: 35 | AN31: 0 | AO31: 20 | AQ31: 20 | AR31: 20 | AU31: 0 | AV31: 20 | AX31: 20 | AY31: 20 | BB31: 0 | BC31: 20 | BE31: 20 | BF31: 20 | BI31: 0 | BL31: 0 | BM31: 0 | BP31: 0 | BS31: 0 | BT31: 0 | BW31: 0 | BZ31: 0 | CA31: 0 | CD31: 0 | CG31: 0 | CH31: 0 | CI31: 0 | CJ31: 0 | CK31: 0 | CL31: 160 | CM31: 75 | CN31: 235 | CO31: 235
A32: 29 | B32: DEL AGUILA MARIN, JUAN CARLOS | C32: 0 | E32: 0 | H32: 0 | I32: 0 | L32: 0 | O32: 0 | P32: 0 | S32: 0 | V32: 0 | W32: 0 | X32: 5 | Z32: 5 | AC32: 0 | AD32: 5 | AE32: 5 | AG32: 5 | AJ32: 0 | AK32: 5 | AL32: 5 | AN32: 5 | AQ32: 0 | AR32: 5 | AS32: 5 | AU32: 5 | AX32: 0 | AY32: 5 | AZ32: 5 | BB32: 5 | BE32: 0 | BF32: 5 | BI32: 0 | BL32: 0 | BM32: 0 | BP32: 0 | BS32: 0 | BT32: 0 | BW32: 0 | BZ32: 0 | CA32: 0 | CD32: 0 | CG32: 0 | CH32: 0 | CI32: 25 | CJ32: 0 | CK32: 25 | CL32: 0 | CM32: 0 | CN32: 0 | CO32: 25
A33: 30 | B33: FERNANDEZ VASQUEZ, ERIKA MILAGROS | E33: 0 | H33: 0 | I33: 0 | L33: 0 | O33: 0 | P33: 0 | S33: 0 | V33: 0 | W33: 0 | Z33: 0 | AC33: 0 | AD33: 0 | AG33: 0 | AI33: 75 | AJ33: 75 | AK33: 75 | AN33: 0 | AQ33: 0 | AR33: 0 | AU33: 0 | AX33: 0 | AY33: 0 | BB33: 0 | BE33: 0 | BF33: 0 | BI33: 0 | BL33: 0 | BM33: 0 | BP33: 0 | BS33: 0 | BT33: 0 | BW33: 0 | BZ33: 0 | CA33: 0 | CD33: 0 | CG33: 0 | CH33: 0 | CI33: 0 | CJ33: 0 | CK33: 0 | CL33: 0 | CM33: 75 | CN33: 75 | CO33: 75
A34: 31 | B34: GONZALES CAMPOS, EVARISTO | C34: 5 | E34: 5 | H34: 0 | I34: 5 | J34: 5 | L34: 5 | O34: 0 | P34: 5 | Q34: 5 | S34: 5 | V34: 0 | W34: 5 | X34: 5 | Z34: 5 | AC34: 0 | AD34: 5 | AE34: 5 | AG34: 5 | AJ34: 0 | AK34: 5 | AL34: 5 | AN34: 5 | AQ34: 0 | AR34: 5 | AS34: 5 | AU34: 5 | AX34: 0 | AY34: 5 | AZ34: 5 | BB34: 5 | BE34: 0 | BF34: 5 | BI34: 0 | BL34: 0 | BM34: 0 | BP34: 0 | BS34: 0 | BT34: 0 | BW34: 0 | BZ34: 0 | CA34: 0 | CD34: 0 | CG34: 0 | CH34: 0 | CI34: 40 | CJ34: 0 | CK34: 40 | CL34: 0 | CM34: 0 | CN34: 0 | CO34: 40
A35: 32 | B35: GONZALES TORRES DE RENGIFO, DALILA | C35: 5 | E35: 5 | H35: 0 | I35: 5 | J35: 5 | L35: 5 | O35: 0 | P35: 5 | Q35: 5 | S35: 5 | V35: 0 | W35: 5 | X35: 5 | Z35: 5 | AC35: 0 | AD35: 5 | AE35: 5 | AG35: 5 | AJ35: 0 | AK35: 5 | AL35: 5 | AN35: 5 | AQ35: 0 | AR35: 5 | AS35: 5 | AU35: 5 | AX35: 0 | AY35: 5 | AZ35: 5 | BB35: 5 | BE35: 0 | BF35: 5 | BI35: 0 | BL35: 0 | BM35: 0 | BP35: 0 | BS35: 0 | BT35: 0 | BW35: 0 | BZ35: 0 | CA35: 0 | CD35: 0 | CG35: 0 | CH35: 0 | CI35: 40 | CJ35: 0 | CK35: 40 | CL35: 0 | CM35: 0 | CN35: 0 | CO35: 40
A36: 33 | B36: GONZALES SIMARRA, JHON HENRY | C36: 5 | E36: 5 | H36: 0 | I36: 5 | J36: 5 | L36: 5 | O36: 0 | P36: 5 | Q36: 5 | S36: 5 | V36: 0 | W36: 5 | X36: 5 | Z36: 5 | AC36: 0 | AD36: 5 | AE36: 5 | AF36: 157 | AG36: 162 | AJ36: 0 | AK36: 162 | AL36: 5 | AM36: 157 | AN36: 162 | AQ36: 0 | AR36: 162 | AS36: 5 | AT36: =121.12 -> 121.12 | AU36: 126.12 | AX36: 0 | AY36: 126.12 | AZ36: 5 | BA36: =157+35.9 -> 192.9 | BB36: 197.9 | BE36: 0 | BF36: 197.9 | BI36: 0 | BL36: 0 | BM36: 0 | BP36: 0 | BS36: 0 | BT36: 0 | BW36: 0 | BZ36: 0 | CA36: 0 | CD36: 0 | CG36: 0 | CH36: 0 | CI36: 40 | CJ36: 628.02 | CK36: 668.02 | CL36: 0 | CM36: 0 | CN36: 0 | CO36: 668.02 | CP36: 472
A37: 34 | B37: GUERRERO GARCIA, TEOBALDO | C37: 0 | E37: 0 | H37: 0 | I37: 0 | L37: 0 | M37: 40 | O37: 40 | P37: 40 | S37: 0 | T37: 40 | V37: 40 | W37: 40 | Z37: 0 | AC37: 0 | AD37: 0 | AG37: 0 | AH37: 20 | AJ37: 20 | AK37: 20 | AN37: 0 | AO37: 20 | AQ37: 20 | AR37: 20 | AU37: 0 | AV37: 20 | AX37: 20 | AY37: 20 | BB37: 0 | BC37: 20 | BE37: 20 | BF37: 20 | BI37: 0 | BL37: 0 | BM37: 0 | BP37: 0 | BS37: 0 | BT37: 0 | BW37: 0 | BZ37: 0 | CA37: 0 | CD37: 0 | CG37: 0 | CH37: 0 | CI37: 0 | CJ37: 0 | CK37: 0 | CL37: 160 | CM37: 0 | CN37: 160 | CO37: 160
A38: 35 | B38: HUAMAN RODRIGUEZ, PRESILA | C38: 0 | E38: 0 | H38: 0 | I38: 0 | L38: 0 | O38: 0 | P38: 0 | S38: 0 | V38: 0 | W38: 0 | Z38: 0 | AC38: 0 | AD38: 0 | AG38: 0 | AI38: 75 | AJ38: 75 | AK38: 75 | AN38: 0 | AQ38: 0 | AR38: 0 | AU38: 0 | AX38: 0 | AY38: 0 | BB38: 0 | BE38: 0 | BF38: 0 | BI38: 0 | BL38: 0 | BM38: 0 | BP38: 0 | BS38: 0 | BT38: 0 | BW38: 0 | BZ38: 0 | CA38: 0 | CD38: 0 | CG38: 0 | CH38: 0 | CI38: 0 | CJ38: 0 | CK38: 0 | CL38: 0 | CM38: 75 | CN38: 75 | CO38: 75
A39: 36 | B39: LINAREZ SANDOVAL, MARIA | C39: 0 | E39: 0 | H39: 0 | I39: 0 | J39: 5 | L39: 5 | O39: 0 | P39: 5 | Q39: 5 | S39: 5 | V39: 0 | W39: 5 | X39: 5 | Z39: 5 | AC39: 0 | AD39: 5 | AE39: 10 | AG39: 10 | AJ39: 0 | AK39: 10 | AL39: 5 | AN39: 5 | AQ39: 0 | AR39: 5 | AS39: 5 | AU39: 5 | AX39: 0 | AY39: 5 | AZ39: 5 | BB39: 5 | BE39: 0 | BF39: 5 | BI39: 0 | BL39: 0 | BM39: 0 | BP39: 0 | BS39: 0 | BT39: 0 | BW39: 0 | BZ39: 0 | CA39: 0 | CD39: 0 | CG39: 0 | CH39: 0 | CI39: 40 | CJ39: 0 | CK39: 40 | CL39: 0 | CM39: 0 | CN39: 0 | CO39: 40
A40: 37 | B40: LOPEZ MIRANO, EDITH | C40: 5 | E40: 5 | H40: 0 | I40: 5 | J40: 5 | L40: 5 | O40: 0 | P40: 5 | Q40: 5 | S40: 5 | V40: 0 | W40: 5 | X40: 5 | Z40: 5 | AC40: 0 | AD40: 5 | AE40: 5 | AG40: 5 | AJ40: 0 | AK40: 5 | AL40: 5 | AN40: 5 | AQ40: 0 | AR40: 5 | AS40: 5 | AU40: 5 | AX40: 0 | AY40: 5 | AZ40: 5 | BB40: 5 | BE40: 0 | BF40: 5 | BI40: 0 | BL40: 0 | BM40: 0 | BP40: 0 | BS40: 0 | BT40: 0 | BW40: 0 | BZ40: 0 | CA40: 0 | CD40: 0 | CG40: 0 | CH40: 0 | CI40: 40 | CJ40: 0 | CK40: 40 | CL40: 0 | CM40: 0 | CN40: 0 | CO40: 40
A41: 38 | B41: LOPEZ PEREZ, MONICA | C41: 5 | E41: 5 | H41: 0 | I41: 5 | J41: 5 | L41: 5 | M41: =20+20 -> 40 | N41: 30 | O41: 70 | P41: 75 | Q41: 5 | S41: 5 | T41: 20 | U41: 15 | V41: 35 | W41: 40 | X41: 5 | Z41: 5 | AA41: 20 | AB41: 15 | AC41: 35 | AD41: 40 | AE41: 5 | AG41: 5 | AH41: 5 | AI41: 15 | AJ41: 20 | AK41: 25 | AL41: 5 | AN41: 5 | AO41: 35 | AQ41: 35 | AR41: 40 | AS41: 5 | AU41: 5 | AV41: 20 | AX41: 20 | AY41: 25 | AZ41: 5 | BB41: 5 | BC41: 20 | BE41: 20 | BF41: 25 | BI41: 0 | BL41: 0 | BM41: 0 | BP41: 0 | BS41: 0 | BT41: 0 | BW41: 0 | BZ41: 0 | CA41: 0 | CD41: 0 | CG41: 0 | CH41: 0 | CI41: 40 | CJ41: 0 | CK41: 40 | CL41: 160 | CM41: 75 | CN41: 235 | CO41: 275
A42: 39 | B42: LLAJA DIAZ, ALPINO | C42: 5 | E42: 5 | H42: 0 | I42: 5 | J42: 5 | K42: 110 | L42: 115 | M42: 40 | O42: 40 | P42: 155 | Q42: 5 | R42: =110+55 -> 165 | S42: 170 | T42: 20 | V42: 20 | W42: 190 | X42: 5 | Y42: 110 | Z42: 115 | AA42: 20 | AC42: 20 | AD42: 135 | AE42: 5 | AF42: =110+72+61 -> 243 | AG42: 248 | AH42: 20 | AJ42: 20 | AK42: 268 | AL42: 5 | AM42: =110 -> 110 | AN42: 115 | AO42: 20 | AQ42: 20 | AR42: 135 | AS42: 5 | AT42: =110+61+61 -> 232 | AU42: 237 | AV42: 20 | AX42: 20 | AY42: 257 | BA42: =110+61 -> 171 | BB42: 171 | BE42: 0 | BF42: 171 | BI42: 0 | BL42: 0 | BM42: 0 | BP42: 0 | BS42: 0 | BT42: 0 | BW42: 0 | BZ42: 0 | CA42: 0 | CD42: 0 | CG42: 0 | CH42: 0 | CI42: 35 | CJ42: 1141 | CK42: 1176 | CL42: 140 | CM42: 0 | CN42: 140 | CO42: 1316 | CP42: 330 | CQ42: 191
A43: 40 | B43: LLAJA DIAZ, SEGUNDO MIGUEL | C43: 5 | E43: 5 | H43: 0 | I43: 5 | J43: 5 | L43: 5 | M43: 40 | O43: 40 | P43: 45 | Q43: 5 | S43: 5 | T43: 20 | V43: 20 | W43: 25 | X43: 5 | Z43: 5 | AA43: 20 | AC43: 20 | AD43: 25 | AE43: 5 | AG43: 5 | AH43: 20 | AJ43: 20 | AK43: 25 | AL43: 5 | AN43: 5 | AO43: 20 | AQ43: 20 | AR43: 25 | AS43: 5 | AU43: 5 | AV43: 20 | AX43: 20 | AY43: 25 | AZ43: 5 | BB43: 5 | BC43: 20 | BE43: 20 | BF43: 25 | BI43: 0 | BL43: 0 | BM43: 0 | BP43: 0 | BS43: 0 | BT43: 0 | BW43: 0 | BZ43: 0 | CA43: 0 | CD43: 0 | CG43: 0 | CH43: 0 | CI43: 40 | CJ43: 0 | CK43: 40 | CL43: 160 | CM43: 0 | CN43: 160 | CO43: 200
A44: 41 | B44: MASHIAN DEKENTAI, ROBERTO | C44: 0 | E44: 0 | F44: 20 | H44: 20 | I44: 20 | L44: 0 | M44: 40 | O44: 40 | P44: 40 | S44: 0 | T44: 20 | V44: 20 | W44: 20 | Z44: 0 | AA44: 20 | AC44: 20 | AD44: 20 | AG44: 0 | AJ44: 0 | AK44: 0 | AN44: 0 | AO44: 20 | AQ44: 20 | AR44: 20 | AU44: 0 | AV44: 20 | AX44: 20 | AY44: 20 | BB44: 0 | BC44: 20 | BE44: 20 | BF44: 20 | BI44: 0 | BL44: 0 | BM44: 0 | BP44: 0 | BS44: 0 | BT44: 0 | BW44: 0 | BZ44: 0 | CA44: 0 | CD44: 0 | CG44: 0 | CH44: 0 | CI44: 0 | CJ44: 0 | CK44: 0 | CL44: 160 | CM44: 0 | CN44: 160 | CO44: 160
A45: 42 | B45: MENDOZA VALERA, LUIS ALBERTO | C45: 5 | E45: 5 | H45: 0 | I45: 5 | J45: 5 | L45: 5 | O45: 0 | P45: 5 | Q45: 5 | S45: 5 | V45: 0 | W45: 5 | X45: 5 | Z45: 5 | AC45: 0 | AD45: 5 | AE45: 5 | AG45: 5 | AJ45: 0 | AK45: 5 | AL45: 5 | AN45: 5 | AQ45: 0 | AR45: 5 | AS45: 5 | AU45: 5 | AX45: 0 | AY45: 5 | AZ45: 5 | BB45: 5 | BE45: 0 | BF45: 5 | BI45: 0 | BL45: 0 | BM45: 0 | BP45: 0 | BS45: 0 | BT45: 0 | BW45: 0 | BZ45: 0 | CA45: 0 | CD45: 0 | CG45: 0 | CH45: 0 | CI45: 40 | CJ45: 0 | CK45: 40 | CL45: 0 | CM45: 0 | CN45: 0 | CO45: 40
A46: 43 | B46: MEZA GONZALES, ANGIE | C46: 0 | E46: 0 | H46: 0 | I46: 0 | L46: 0 | M46: 40 | N46: =20+15 -> 35 | O46: 75 | P46: 75 | S46: 0 | T46: 30 | U46: 15 | V46: 45 | W46: 45 | Z46: 0 | AA46: 25 | AB46: 15 | AC46: 40 | AD46: 40 | AG46: 0 | AH46: 10 | AI46: 10 | AJ46: 20 | AK46: 20 | AN46: 0 | AO46: 15 | AQ46: 15 | AR46: 15 | AU46: 0 | AV46: 20 | AX46: 20 | AY46: 20 | BB46: 0 | BC46: 20 | BE46: 20 | BF46: 20 | BI46: 0 | BL46: 0 | BM46: 0 | BP46: 0 | BS46: 0 | BT46: 0 | BW46: 0 | BZ46: 0 | CA46: 0 | CD46: 0 | CG46: 0 | CH46: 0 | CI46: 0 | CJ46: 0 | CK46: 0 | CL46: 160 | CM46: 75 | CN46: 235 | CO46: 235
A47: 44 | B47: MONTES RAMIREZ, HOLLYMAN | C47: 5 | E47: 5 | H47: 0 | I47: 5 | J47: 5 | L47: 5 | O47: 0 | P47: 5 | Q47: 5 | S47: 5 | V47: 0 | W47: 5 | X47: 5 | Z47: 5 | AC47: 0 | AD47: 5 | AE47: 5 | AG47: 5 | AJ47: 0 | AK47: 5 | AL47: 5 | AN47: 5 | AQ47: 0 | AR47: 5 | AS47: 5 | AU47: 5 | AX47: 0 | AY47: 5 | AZ47: 5 | BB47: 5 | BE47: 0 | BF47: 5 | BI47: 0 | BL47: 0 | BM47: 0 | BP47: 0 | BS47: 0 | BT47: 0 | BW47: 0 | BZ47: 0 | CA47: 0 | CD47: 0 | CG47: 0 | CH47: 0 | CI47: 40 | CJ47: 0 | CK47: 40 | CL47: 0 | CM47: 0 | CN47: 0 | CO47: 40
A48: 45 | B48: MORI MERINO, MIRIAM | C48: 0 | E48: 0 | F48: 20 | H48: 20 | I48: 20 | L48: 0 | M48: 40 | N48: 15 | O48: 55 | P48: 55 | S48: 0 | T48: 20 | U48: 20 | V48: 40 | W48: 40 | Z48: 0 | AA48: 20 | AB48: 15 | AC48: 35 | AD48: 35 | AG48: 0 | AI48: 25 | AJ48: 25 | AK48: 25 | AN48: 0 | AO48: 20 | AQ48: 20 | AR48: 20 | AU48: 0 | AV48: 20 | AX48: 20 | AY48: 20 | BB48: 0 | BC48: 20 | BE48: 20 | BF48: 20 | BI48: 0 | BL48: 0 | BM48: 0 | BP48: 0 | BS48: 0 | BT48: 0 | BW48: 0 | BZ48: 0 | CA48: 0 | CD48: 0 | CG48: 0 | CH48: 0 | CI48: 0 | CJ48: 0 | CK48: 0 | CL48: 160 | CM48: 75 | CN48: 235 | CO48: 235
A49: 46 | B49: MOZOMBITE CABRERA, DAVID | C49: 5 | E49: 5 | H49: 0 | I49: 5 | J49: 5 | L49: 5 | O49: 0 | P49: 5 | Q49: 5 | S49: 5 | V49: 0 | W49: 5 | X49: 5 | Z49: 5 | AC49: 0 | AD49: 5 | AE49: 5 | AG49: 5 | AJ49: 0 | AK49: 5 | AL49: 5 | AN49: 5 | AQ49: 0 | AR49: 5 | AS49: 5 | AU49: 5 | AX49: 0 | AY49: 5 | AZ49: 5 | BB49: 5 | BE49: 0 | BF49: 5 | BI49: 0 | BL49: 0 | BM49: 0 | BP49: 0 | BS49: 0 | BT49: 0 | BW49: 0 | BZ49: 0 | CA49: 0 | CD49: 0 | CG49: 0 | CH49: 0 | CI49: 40 | CJ49: 0 | CK49: 40 | CL49: 0 | CM49: 0 | CN49: 0 | CO49: 40
A50: 47 | B50: MUNDACA FLORES, KELVIN | C50: 0 | E50: 0 | H50: 0 | I50: 0 | L50: 0 | M50: 40 | O50: 40 | P50: 40 | S50: 0 | T50: 40 | V50: 40 | W50: 40 | Z50: 0 | AC50: 0 | AD50: 0 | AG50: 0 | AH50: 20 | AJ50: 20 | AK50: 20 | AN50: 0 | AO50: 20 | AQ50: 20 | AR50: 20 | AU50: 0 | AV50: 20 | AX50: 20 | AY50: 20 | BB50: 0 | BC50: 20 | BE50: 20 | BF50: 20 | BI50: 0 | BL50: 0 | BM50: 0 | BP50: 0 | BS50: 0 | BT50: 0 | BW50: 0 | BZ50: 0 | CA50: 0 | CD50: 0 | CG50: 0 | CH50: 0 | CI50: 0 | CJ50: 0 | CK50: 0 | CL50: 160 | CM50: 0 | CN50: 160 | CO50: 160
A51: 48 | B51: NARVA QUISPE, MARIANO JOSE | C51: 5 | E51: 5 | H51: 0 | I51: 5 | J51: 5 | L51: 5 | O51: 0 | P51: 5 | Q51: 5 | S51: 5 | V51: 0 | W51: 5 | X51: 5 | Z51: 5 | AC51: 0 | AD51: 5 | AE51: 5 | AG51: 5 | AJ51: 0 | AK51: 5 | AL51: 5 | AN51: 5 | AQ51: 0 | AR51: 5 | AS51: 5 | AU51: 5 | AX51: 0 | AY51: 5 | AZ51: 5 | BB51: 5 | BE51: 0 | BF51: 5 | BI51: 0 | BL51: 0 | BM51: 0 | BP51: 0 | BS51: 0 | BT51: 0 | BW51: 0 | BZ51: 0 | CA51: 0 | CD51: 0 | CG51: 0 | CH51: 0 | CI51: 40 | CJ51: 0 | CK51: 40 | CL51: 0 | CM51: 0 | CN51: 0 | CO51: 40
A52: 49 | B52: ORTEGA CHAVEZ, JOSE HUMBERTO | C52: 5 | D52: 94 | E52: 99 | H52: 0 | I52: 99 | J52: 5 | K52: 94 | L52: 99 | M52: 40 | O52: 40 | P52: 139 | Q52: 5 | R52: 94 | S52: 99 | T52: 20 | V52: 20 | W52: 119 | X52: 5 | Y52: 102 | Z52: 107 | AA52: 20 | AC52: 20 | AD52: 127 | AE52: 5 | AF52: 149 | AG52: 154 | AH52: 20 | AJ52: 20 | AK52: 174 | AL52: 5 | AM52: 149 | AN52: 154 | AO52: 20 | AQ52: 20 | AR52: 174 | AS52: 5 | AT52: 193.6 | AU52: 198.6 | AV52: 20 | AX52: 20 | AY52: 218.6 | AZ52: 5 | BA52: 193.6 | BB52: 198.6 | BC52: 20 | BE52: 20 | BF52: 218.6 | BI52: 0 | BL52: 0 | BM52: 0 | BP52: 0 | BS52: 0 | BT52: 0 | BW52: 0 | BZ52: 0 | CA52: 0 | CD52: 0 | CG52: 0 | CH52: 0 | CI52: 40 | CJ52: 1069.2 | CK52: 1109.2 | CL52: 160 | CM52: 0 | CN52: 160 | CO52: 1269.2 | CP52: 580.8
A53: 50 | B53: PANDURO BAZAN, MARTHA | C53: 5 | E53: 5 | H53: 0 | I53: 5 | J53: 5 | L53: 5 | O53: 0 | P53: 5 | Q53: 5 | S53: 5 | V53: 0 | W53: 5 | X53: 5 | Z53: 5 | AC53: 0 | AD53: 5 | AE53: 5 | AG53: 5 | AJ53: 0 | AK53: 5 | AL53: 5 | AN53: 5 | AQ53: 0 | AR53: 5 | AS53: 5 | AU53: 5 | AX53: 0 | AY53: 5 | AZ53: 5 | BB53: 5 | BE53: 0 | BF53: 5 | BI53: 0 | BL53: 0 | BM53: 0 | BP53: 0 | BS53: 0 | BT53: 0 | BW53: 0 | BZ53: 0 | CA53: 0 | CD53: 0 | CG53: 0 | CH53: 0 | CI53: 40 | CJ53: 0 | CK53: 40 | CL53: 0 | CM53: 0 | CN53: 0 | CO53: 40
A54: 51 | B54: PEREZ RUIZ, AMANDA | E54: 0 | H54: 0 | I54: 0 | L54: 0 | O54: 0 | P54: 0 | S54: 0 | V54: 0 | W54: 0 | Z54: 0 | AC54: 0 | AD54: 0 | AG54: 0 | AI54: 75 | AJ54: 75 | AK54: 75 | AN54: 0 | AQ54: 0 | AR54: 0 | AU54: 0 | AX54: 0 | AY54: 0 | BB54: 0 | BE54: 0 | BF54: 0 | BI54: 0 | BL54: 0 | BM54: 0 | BP54: 0 | BS54: 0 | BT54: 0 | BW54: 0 | BZ54: 0 | CA54: 0 | CD54: 0 | CG54: 0 | CH54: 0 | CI54: 0 | CJ54: 0 | CK54: 0 | CL54: 0 | CM54: 75 | CN54: 75 | CO54: 75
A55: 52 | B55: PEZO PEZO, ARNALDO | C55: 5 | E55: 5 | H55: 0 | I55: 5 | J55: 5 | L55: 5 | O55: 0 | P55: 5 | Q55: 5 | S55: 5 | V55: 0 | W55: 5 | X55: 5 | Z55: 5 | AC55: 0 | AD55: 5 | AE55: 5 | AG55: 5 | AJ55: 0 | AK55: 5 | AL55: 5 | AN55: 5 | AQ55: 0 | AR55: 5 | AS55: 5 | AU55: 5 | AX55: 0 | AY55: 5 | AZ55: 5 | BB55: 5 | BE55: 0 | BF55: 5 | BI55: 0 | BL55: 0 | BM55: 0 | BP55: 0 | BS55: 0 | BT55: 0 | BW55: 0 | BZ55: 0 | CA55: 0 | CD55: 0 | CG55: 0 | CH55: 0 | CI55: 40 | CJ55: 0 | CK55: 40 | CL55: 0 | CM55: 0 | CN55: 0 | CO55: 40
A56: 53 | B56: PINEDO RODRIGUEZ, JESSICA | E56: 0 | H56: 0 | I56: 0 | L56: 0 | O56: 0 | P56: 0 | S56: 0 | V56: 0 | W56: 0 | Z56: 0 | AC56: 0 | AD56: 0 | AG56: 0 | AI56: 75 | AJ56: 75 | AK56: 75 | AN56: 0 | AQ56: 0 | AR56: 0 | AU56: 0 | AX56: 0 | AY56: 0 | BB56: 0 | BE56: 0 | BF56: 0 | BI56: 0 | BL56: 0 | BM56: 0 | BP56: 0 | BS56: 0 | BT56: 0 | BW56: 0 | BZ56: 0 | CA56: 0 | CD56: 0 | CG56: 0 | CH56: 0 | CI56: 0 | CJ56: 0 | CK56: 0 | CL56: 0 | CM56: 75 | CN56: 75 | CO56: 75
A57: 54 | B57: PIÑA LOPEZ, ROMELIO | C57: 5 | E57: 5 | H57: 0 | I57: 5 | J57: 5 | L57: 5 | O57: 0 | P57: 5 | S57: 0 | V57: 0 | W57: 0 | Z57: 0 | AC57: 0 | AD57: 0 | AE57: 5 | AG57: 5 | AJ57: 0 | AK57: 5 | AL57: 5 | AN57: 5 | AQ57: 0 | AR57: 5 | AS57: 5 | AU57: 5 | AX57: 0 | AY57: 5 | AZ57: 5 | BB57: 5 | BE57: 0 | BF57: 5 | BI57: 0 | BL57: 0 | BM57: 0 | BP57: 0 | BS57: 0 | BT57: 0 | BW57: 0 | BZ57: 0 | CA57: 0 | CD57: 0 | CG57: 0 | CH57: 0 | CI57: 30 | CJ57: 0 | CK57: 30 | CL57: 0 | CM57: 0 | CN57: 0 | CO57: 30
A58: 55 | B58: PONTE AGUILAR, ALBERTO EDUARDO | C58: 5 | E58: 5 | H58: 0 | I58: 5 | J58: 5 | L58: 5 | M58: 20 | O58: 20 | P58: 25 | Q58: 5 | R58: 183 | S58: 188 | T58: 20 | V58: 20 | W58: 208 | X58: 5 | Z58: 5 | AA58: 20 | AC58: 20 | AD58: 25 | AE58: 5 | AF58: =183+183+2 -> 368 | AG58: 373 | AH58: 40 | AJ58: 40 | AK58: 413 | AL58: 5 | AM58: =61.19+183 -> 244.19 | AN58: 249.19 | AO58: 20 | AQ58: 20 | AR58: 269.19 | AS58: 5 | AT58: 122 | AU58: 127 | AV58: 20 | AX58: 20 | AY58: 147 | AZ58: 5 | BA58: =47.08+136+183 -> 366.08 | BB58: 371.08 | BE58: 0 | BF58: 371.08 | BI58: 0 | BL58: 0 | BM58: 0 | BP58: 0 | BS58: 0 | BT58: 0 | BW58: 0 | BZ58: 0 | CA58: 0 | CD58: 0 | CG58: 0 | CH58: 0 | CI58: 40 | CJ58: 1283.27 | CK58: 1323.27 | CL58: 140 | CM58: 0 | CN58: 140 | CO58: 1463.27 | CP58: 366.73
A59: 56 | B59: PUMALLOCLLA CARDENAS, DORA | C59: 5 | E59: 5 | H59: 0 | I59: 5 | J59: 5 | L59: 5 | O59: 0 | P59: 5 | Q59: 5 | S59: 5 | V59: 0 | W59: 5 | X59: 5 | Z59: 5 | AC59: 0 | AD59: 5 | AE59: 5 | AG59: 5 | AJ59: 0 | AK59: 5 | AL59: 5 | AN59: 5 | AQ59: 0 | AR59: 5 | AS59: 5 | AU59: 5 | AX59: 0 | AY59: 5 | AZ59: 5 | BB59: 5 | BE59: 0 | BF59: 5 | BI59: 0 | BL59: 0 | BM59: 0 | BP59: 0 | BS59: 0 | BT59: 0 | BW59: 0 | BZ59: 0 | CA59: 0 | CD59: 0 | CG59: 0 | CH59: 0 | CI59: 40 | CJ59: 0 | CK59: 40 | CL59: 0 | CM59: 0 | CN59: 0 | CO59: 40
A60: 57 | B60: QUINTANA ZUMAETA, JAIRO | E60: 0 | H60: 0 | I60: 0 | L60: 0 | M60: 20 | O60: 20 | P60: 20 | S60: 0 | V60: 0 | W60: 0 | Z60: 0 | AC60: 0 | AD60: 0 | AG60: 0 | AH60: 60 | AJ60: 60 | AK60: 60 | AN60: 0 | AO60: 20 | AQ60: 20 | AR60: 20 | AU60: 0 | AX60: 0 | AY60: 0 | BB60: 0 | BE60: 0 | BF60: 0 | BI60: 0 | BL60: 0 | BM60: 0 | BP60: 0 | BS60: 0 | BT60: 0 | BW60: 0 | BZ60: 0 | CA60: 0 | CD60: 0 | CG60: 0 | CH60: 0 | CI60: 0 | CJ60: 0 | CK60: 0 | CL60: 100 | CM60: 0 | CN60: 100 | CO60: 100
A61: 58 | B61: RAMIREZ PINEDO, LAUREN | E61: 0 | G61: 5 | H61: 5 | I61: 5 | L61: 0 | M61: 40 | N61: =20+20 -> 40 | O61: 80 | P61: 80 | S61: 0 | T61: 25 | U61: 15 | V61: 40 | W61: 40 | Z61: 0 | AA61: 25 | AB61: 15 | AC61: 40 | AD61: 40 | AE61: 5 | AG61: 5 | AH61: 10 | AJ61: 10 | AK61: 15 | AN61: 0 | AO61: 20 | AQ61: 20 | AR61: 20 | AS61: 5 | AU61: 5 | AV61: 20 | AX61: 20 | AY61: 25 | AZ61: 5 | BB61: 5 | BC61: 20 | BE61: 20 | BF61: 25 | BI61: 0 | BL61: 0 | BM61: 0 | BP61: 0 | BS61: 0 | BT61: 0 | BW61: 0 | BZ61: 0 | CA61: 0 | CD61: 0 | CG61: 0 | CH61: 0 | CI61: 15 | CJ61: 0 | CK61: 15 | CL61: 160 | CM61: 75 | CN61: 235 | CO61: 250
A62: 59 | B62: RAMIREZ VASQUEZ, LITA | C62: 5 | D62: 68 | E62: 73 | H62: 0 | I62: 73 | J62: 5 | K62: 68 | L62: 73 | M62: 40 | N62: =15+15 -> 30 | O62: 70 | P62: 143 | Q62: 5 | R62: 68 | S62: 73 | T62: 20 | U62: 15 | V62: 35 | W62: 108 | X62: 5 | Y62: 112 | Z62: 117 | AA62: 20 | AB62: 15 | AC62: 35 | AD62: 152 | AE62: 5 | AF62: 112 | AG62: 117 | AH62: 20 | AI62: 15 | AJ62: 35 | AK62: 152 | AL62: 5 | AM62: 112 | AN62: 117 | AO62: 20 | AQ62: 20 | AR62: 137 | AS62: 5 | AT62: 112 | AU62: 117 | AV62: 20 | AX62: 20 | AY62: 137 | AZ62: 5 | BA62: 112 | BB62: 117 | BC62: 20 | BE62: 20 | BF62: 137 | BI62: 0 | BL62: 0 | BM62: 0 | BP62: 0 | BS62: 0 | BT62: 0 | BW62: 0 | BZ62: 0 | CA62: 0 | CD62: 0 | CG62: 0 | CH62: 0 | CI62: 40 | CJ62: 764 | CK62: 804 | CL62: 160 | CM62: 75 | CN62: 235 | CO62: 1039 | CP62: 336
A63: 60 | B63: REATEGUI TUESTA, ALBERTO | C63: 5 | E63: 5 | H63: 0 | I63: 5 | J63: 5 | L63: 5 | M63: 40 | O63: 40 | P63: 45 | Q63: 5 | S63: 5 | T63: 20 | V63: 20 | W63: 25 | X63: 5 | Z63: 5 | AA63: 20 | AC63: 20 | AD63: 25 | AE63: 5 | AG63: 5 | AH63: 20 | AJ63: 20 | AK63: 25 | AL63: 5 | AN63: 5 | AO63: 20 | AQ63: 20 | AR63: 25 | AS63: 5 | AU63: 5 | AV63: 20 | AX63: 20 | AY63: 25 | AZ63: 5 | BB63: 5 | BC63: 20 | BE63: 20 | BF63: 25 | BI63: 0 | BL63: 0 | BM63: 0 | BP63: 0 | BS63: 0 | BT63: 0 | BW63: 0 | BZ63: 0 | CA63: 0 | CD63: 0 | CG63: 0 | CH63: 0 | CI63: 40 | CJ63: 0 | CK63: 40 | CL63: 160 | CM63: 0 | CN63: 160 | CO63: 200
A64: 61 | B64: RENGIFO CARDOZO, WALTER | C64: 0 | E64: 0 | H64: 0 | I64: 0 | L64: 0 | M64: 40 | O64: 40 | P64: 40 | S64: 0 | T64: 40 | V64: 40 | W64: 40 | Z64: 0 | AC64: 0 | AD64: 0 | AG64: 0 | AH64: 20 | AJ64: 20 | AK64: 20 | AN64: 0 | AO64: 20 | AQ64: 20 | AR64: 20 | AU64: 0 | AV64: 20 | AX64: 20 | AY64: 20 | BB64: 0 | BC64: 20 | BE64: 20 | BF64: 20 | BI64: 0 | BL64: 0 | BM64: 0 | BP64: 0 | BS64: 0 | BT64: 0 | BW64: 0 | BZ64: 0 | CA64: 0 | CD64: 0 | CG64: 0 | CH64: 0 | CI64: 0 | CJ64: 0 | CK64: 0 | CL64: 160 | CM64: 0 | CN64: 160 | CO64: 160
A65: 62 | B65: RENGIFO REATEGUI, WALTER | C65: 5 | E65: 5 | H65: 0 | I65: 5 | J65: 5 | L65: 5 | M65: 40 | O65: 40 | P65: 45 | Q65: 5 | S65: 5 | T65: 20 | V65: 20 | W65: 25 | X65: 5 | Z65: 5 | AA65: 20 | AC65: 20 | AD65: 25 | AE65: 5 | AG65: 5 | AH65: 20 | AJ65: 20 | AK65: 25 | AL65: 5 | AN65: 5 | AO65: 20 | AQ65: 20 | AR65: 25 | AS65: 5 | AU65: 5 | AV65: 20 | AX65: 20 | AY65: 25 | AZ65: 5 | BB65: 5 | BC65: 20 | BE65: 20 | BF65: 25 | BI65: 0 | BL65: 0 | BM65: 0 | BP65: 0 | BS65: 0 | BT65: 0 | BW65: 0 | BZ65: 0 | CA65: 0 | CD65: 0 | CG65: 0 | CH65: 0 | CI65: 40 | CJ65: 0 | CK65: 40 | CL65: 160 | CM65: 0 | CN65: 160 | CO65: 200
A66: 63 | B66: RENGIFO RUIZ, RIDER | C66: 5 | E66: 5 | H66: 0 | I66: 5 | J66: 5 | K66: 110 | L66: 115 | O66: 0 | P66: 115 | Q66: 5 | R66: 110 | S66: 115 | V66: 0 | W66: 115 | X66: 5 | Y66: 110 | Z66: 115 | AC66: 0 | AD66: 115 | AE66: 5 | AF66: 110 | AG66: 115 | AJ66: 0 | AK66: 115 | AL66: 5 | AM66: 110 | AN66: 115 | AQ66: 0 | AR66: 115 | AS66: 5 | AT66: 110 | AU66: 115 | AX66: 0 | AY66: 115 | AZ66: 5 | BA66: 110 | BB66: 115 | BE66: 0 | BF66: 115 | BI66: 0 | BL66: 0 | BM66: 0 | BP66: 0 | BS66: 0 | BT66: 0 | BW66: 0 | BZ66: 0 | CA66: 0 | CD66: 0 | CG66: 0 | CH66: 0 | CI66: 40 | CJ66: 770 | CK66: 810 | CL66: 0 | CM66: 0 | CN66: 0 | CO66: 810 | CP66: 330
A67: 64 | B67: REYES CHAVEZ, DUDLYTH HEYVET | E67: 0 | H67: 0 | I67: 0 | L67: 0 | O67: 0 | P67: 0 | S67: 0 | V67: 0 | W67: 0 | Z67: 0 | AC67: 0 | AD67: 0 | AG67: 0 | AJ67: 0 | AK67: 0 | AN67: 0 | AP67: 75 | AQ67: 75 | AR67: 75 | AU67: 0 | AX67: 0 | AY67: 0 | BB67: 0 | BE67: 0 | BF67: 0 | BI67: 0 | BL67: 0 | BM67: 0 | BP67: 0 | BS67: 0 | BT67: 0 | BW67: 0 | BZ67: 0 | CA67: 0 | CD67: 0 | CG67: 0 | CH67: 0 | CI67: 0 | CJ67: 0 | CK67: 0 | CL67: 0 | CM67: 75 | CN67: 75 | CO67: 75
A68: 65 | B68: ROJAS BARBARAN, MARIA ELENA | C68: 5 | E68: 5 | H68: 0 | I68: 5 | J68: 5 | L68: 5 | M68: 40 | N68: 30 | O68: 70 | P68: 75 | Q68: 5 | S68: 5 | T68: 20 | U68: 15 | V68: 35 | W68: 40 | X68: 5 | Y68: 50 | Z68: 55 | AA68: 20 | AB68: 15 | AC68: 35 | AD68: 90 | AE68: 5 | AF68: 50 | AG68: 55 | AH68: 20 | AI68: 15 | AJ68: 35 | AK68: 90 | AL68: 5 | AM68: 50 | AN68: 55 | AO68: 20 | AQ68: 20 | AR68: 75 | AS68: 5 | AT68: 80 | AU68: 85 | AV68: 20 | AX68: 20 | AY68: 105 | AZ68: 5 | BA68: 80 | BB68: 85 | BC68: 20 | BE68: 20 | BF68: 105 | BI68: 0 | BL68: 0 | BM68: 0 | BP68: 0 | BS68: 0 | BT68: 0 | BW68: 0 | BZ68: 0 | CA68: 0 | CD68: 0 | CG68: 0 | CH68: 0 | CI68: 40 | CJ68: 310 | CK68: 350 | CL68: 160 | CM68: 75 | CN68: 235 | CO68: 585 | CP68: 240 | CR68: 73
A69: 66 | B69: ROJAS BECERRA, LUCIA | C69: 5 | E69: =+C69+D69 -> 5 | H69: =+F69+G69 -> 0 | I69: =+E69+H69 -> 5 | J69: 5 | L69: =+J69+K69 -> 5 | M69: 40 | N69: 30 | O69: =+M69+N69 -> 70 | P69: =+L69+O69 -> 75 | Q69: 5 | S69: =+Q69+R69 -> 5 | T69: 20 | U69: 15 | V69: =+T69+U69 -> 35 | W69: =+S69+V69 -> 40 | X69: 5 | Z69: =+X69+Y69 -> 5 | AA69: 20 | AB69: 15 | AC69: =+AA69+AB69 -> 35 | AD69: =+Z69+AC69 -> 40 | AE69: 5 | AG69: =+AE69+AF69 -> 5 | AH69: 20 | AI69: 15 | AJ69: =+AH69+AI69 -> 35 | AK69: =+AG69+AJ69 -> 40 | AL69: 5 | AN69: =+AL69+AM69 -> 5 | AO69: 20 | AQ69: =+AO69+AP69 -> 20 | AR69: =+AN69+AQ69 -> 25 | AS69: 5 | AU69: =+AS69+AT69 -> 5 | AV69: 20 | AX69: =+AV69+AW69 -> 20 | AY69: =+AU69+AX69 -> 25 | AZ69: 5 | BB69: =+AZ69+BA69 -> 5 | BC69: 20 | BE69: =+BC69+BD69 -> 20 | BF69: =+BB69+BE69 -> 25 | BI69: 0 | BL69: =+BJ69+BK69 -> 0 | BM69: =+BI69+BL69 -> 0 | BP69: =+BN69+BO69 -> 0 | BS69: =+BQ69+BR69 -> 0 | BT69: =+BP69+BS69 -> 0 | BW69: =+BU69+BV69 -> 0 | BZ69: =+BX69+BY69 -> 0 | CA69: =+BW69+BZ69 -> 0 | CD69: =+CB69+CC69 -> 0 | CG69: =+CE69+CF69 -> 0 | CH69: =+CD69+CG69 -> 0 | CI69: =+C69+J69+Q69+X69+AE69+AL69+AS69+AZ69+BG69+BN69+BU69+CB69 -> 40 | CJ69: =+D69+K69+R69+Y69+AF69+AM69+AT69+BA69+BH69+BO69+BV69+CC69 -> 0 | CK69: =+CI69+CJ69 -> 40 | CL69: =+F69+M69+T69+AA69+AH69+AO69+AV69+BC69+BJ69+BQ69+BX69+CE69 -> 160 | CM69: =+G69+N69+U69+AB69+AI69+AP69+AW69+BD69+BK69+BR69+BY69+CF69 -> 75 | CN69: =+CL69+CM69 -> 235 | CO69: =+CK69+CN69 -> 275
A70: 67 | B70: ROJAS CARRION, AMERICO | C70: 5 | E70: 5 | H70: 0 | I70: 5 | J70: 5 | L70: 5 | M70: 40 | O70: 40 | P70: 45 | Q70: 5 | S70: 5 | T70: 20 | V70: 20 | W70: 25 | X70: 5 | Z70: 5 | AA70: 20 | AC70: 20 | AD70: 25 | AE70: 5 | AG70: 5 | AH70: 20 | AJ70: 20 | AK70: 25 | AL70: 5 | AN70: 5 | AO70: 20 | AQ70: 20 | AR70: 25 | AS70: 5 | AU70: 5 | AV70: 20 | AX70: 20 | AY70: 25 | AZ70: 5 | BB70: 5 | BC70: 20 | BE70: 20 | BF70: 25 | BI70: =+BG70+BH70 -> 0 | BL70: 0 | BM70: 0 | BP70: 0 | BS70: 0 | BT70: 0 | BW70: 0 | BZ70: 0 | CA70: 0 | CD70: 0 | CG70: 0 | CH70: 0 | CI70: 40 | CJ70: 0 | CK70: 40 | CL70: 160 | CM70: 0 | CN70: 160 | CO70: 200
A71: 68 | B71: ROJAS PEÑA JUAN MIGUEL | C71: 0 | E71: 0 | H71: 0 | I71: 0 | L71: 0 | M71: 40 | O71: 40 | P71: 40 | S71: 0 | T71: 20 | V71: 20 | W71: 20 | Z71: 0 | AA71: 20 | AC71: 20 | AD71: 20 | AG71: 0 | AH71: 20 | AJ71: 20 | AK71: 20 | AN71: 0 | AO71: 20 | AQ71: 20 | AR71: 20 | AU71: 0 | AV71: 20 | AX71: 20 | AY71: 20 | BB71: 0 | BC71: 20 | BE71: 20 | BF71: 20 | BI71: 0 | BL71: 0 | BM71: 0 | BP71: 0 | BS71: 0 | BT71: 0 | BW71: 0 | BZ71: 0 | CA71: 0 | CD71: 0 | CG71: 0 | CH71: 0 | CI71: 0 | CJ71: 0 | CK71: 0 | CL71: 160 | CM71: 0 | CN71: 160 | CO71: 160
A72: 69 | B72: ROJAS PISCO, MAURO | C72: 5 | E72: 5 | H72: 0 | I72: 5 | J72: 5 | L72: 5 | O72: 0 | P72: 5 | Q72: 5 | S72: 5 | V72: 0 | W72: 5 | X72: 5 | Z72: 5 | AC72: 0 | AD72: 5 | AE72: 5 | AG72: 5 | AJ72: 0 | AK72: 5 | AL72: 5 | AN72: 5 | AQ72: 0 | AR72: 5 | AS72: 5 | AU72: 5 | AX72: 0 | AY72: 5 | AZ72: 5 | BB72: 5 | BE72: 0 | BF72: 5 | BI72: 0 | BL72: 0 | BM72: 0 | BP72: 0 | BS72: 0 | BT72: 0 | BW72: 0 | BZ72: 0 | CA72: 0 | CD72: 0 | CG72: 0 | CH72: 0 | CI72: 40 | CJ72: 0 | CK72: 40 | CL72: 0 | CM72: 0 | CN72: 0 | CO72: 40
A73: 70 | B73: ROJAS VARGAS, MELANIA | C73: 0 | E73: 0 | G73: 15 | H73: 15 | I73: 15 | L73: 0 | M73: 45 | N73: 30 | O73: 75 | P73: 75 | S73: 0 | T73: 30 | U73: 15 | V73: 45 | W73: 45 | Z73: 0 | AA73: 25 | AB73: 15 | AC73: 40 | AD73: 40 | AG73: 0 | AJ73: 0 | AK73: 0 | AN73: 0 | AO73: 20 | AQ73: 20 | AR73: 20 | AU73: 0 | AV73: 20 | AX73: 20 | AY73: 20 | BB73: 0 | BC73: 20 | BE73: 20 | BF73: 20 | BI73: 0 | BL73: 0 | BM73: 0 | BP73: 0 | BS73: 0 | BT73: 0 | BW73: 0 | BZ73: 0 | CA73: 0 | CD73: 0 | CG73: 0 | CH73: 0 | CI73: 0 | CJ73: 0 | CK73: 0 | CL73: 160 | CM73: 75 | CN73: 235 | CO73: 235
A74: 71 | B74: RUIZ AGUILAR, JUAN LUIS | C74: 5 | E74: 5 | H74: 0 | I74: 5 | J74: 10 | L74: 10 | M74: 40 | O74: 40 | P74: 50 | Q74: 5 | S74: 5 | T74: 20 | V74: 20 | W74: 25 | X74: 5 | Z74: 5 | AA74: 20 | AC74: 20 | AD74: 25 | AE74: 5 | AG74: 5 | AH74: 20 | AJ74: 20 | AK74: 25 | AN74: 0 | AO74: 20 | AQ74: 20 | AR74: 20 | AS74: 5 | AU74: 5 | AV74: 20 | AX74: 20 | AY74: 25 | AZ74: 5 | BB74: 5 | BC74: 20 | BE74: 20 | BF74: 25 | BI74: 0 | BL74: 0 | BM74: 0 | BP74: 0 | BS74: 0 | BT74: 0 | BW74: 0 | BZ74: 0 | CA74: 0 | CD74: 0 | CG74: 0 | CH74: 0 | CI74: 40 | CJ74: 0 | CK74: 40 | CL74: 160 | CM74: 0 | CN74: 160 | CO74: 200
A75: 72 | B75: RUIZ PUSCAN, RAFAEL | C75: 5 | E75: 5 | H75: 0 | I75: 5 | J75: 5 | L75: 5 | M75: 40 | O75: 40 | P75: 45 | Q75: 5 | S75: 5 | T75: 20 | V75: 20 | W75: 25 | X75: 5 | Z75: 5 | AA75: 20 | AC75: 20 | AD75: 25 | AE75: 5 | AG75: 5 | AH75: 20 | AJ75: 20 | AK75: 25 | AL75: 5 | AN75: 5 | AO75: 20 | AQ75: 20 | AR75: 25 | AS75: 5 | AU75: 5 | AV75: 20 | AX75: 20 | AY75: 25 | AZ75: 5 | BB75: 5 | BC75: 20 | BE75: 20 | BF75: 25 | BI75: 0 | BL75: 0 | BM75: 0 | BP75: 0 | BS75: 0 | BT75: 0 | BW75: 0 | BZ75: 0 | CA75: 0 | CD75: 0 | CG75: 0 | CH75: 0 | CI75: 40 | CJ75: 0 | CK75: 40 | CL75: 160 | CM75: 0 | CN75: 160 | CO75: 200
A76: 73 | B76: RUIZ TERRONES, SENITH | E76: 0 | H76: 0 | I76: 0 | L76: 0 | O76: 0 | P76: 0 | S76: 0 | V76: 0 | W76: 0 | Z76: 0 | AC76: 0 | AD76: 0 | AG76: 0 | AJ76: 0 | AK76: 0 | AN76: 0 | AP76: 75 | AQ76: 75 | AR76: 75 | AU76: 0 | AX76: 0 | AY76: 0 | BB76: 0 | BE76: 0 | BF76: 0 | BI76: 0 | BL76: 0 | BM76: 0 | BP76: 0 | BS76: 0 | BT76: 0 | BW76: 0 | BZ76: 0 | CA76: 0 | CD76: 0 | CG76: 0 | CH76: 0 | CI76: 0 | CJ76: 0 | CK76: 0 | CL76: 0 | CM76: 75 | CN76: 75 | CO76: 75
A77: 74 | B77: SANDOVAL ZAMORA, HILDEBRANDO | C77: 5 | E77: 5 | H77: 0 | I77: 5 | J77: 5 | L77: 5 | M77: 40 | O77: 40 | P77: 45 | Q77: 5 | S77: 5 | T77: 20 | V77: 20 | W77: 25 | X77: 5 | Z77: 5 | AA77: 20 | AC77: 20 | AD77: 25 | AE77: 5 | AG77: 5 | AH77: 20 | AJ77: 20 | AK77: 25 | AL77: 5 | AN77: 5 | AO77: 20 | AQ77: 20 | AR77: 25 | AS77: 5 | AU77: 5 | AV77: 20 | AX77: 20 | AY77: 25 | AZ77: 5 | BB77: 5 | BC77: 20 | BE77: 20 | BF77: 25 | BI77: 0 | BL77: 0 | BM77: 0 | BP77: 0 | BS77: 0 | BT77: 0 | BW77: 0 | BZ77: 0 | CA77: 0 | CD77: 0 | CG77: 0 | CH77: 0 | CI77: 40 | CJ77: 0 | CK77: 40 | CL77: 160 | CM77: 0 | CN77: 160 | CO77: 200
A78: 75 | B78: SEPULVEDA VELA, SERGIO ANTONIO | C78: 5 | E78: 5 | H78: 0 | I78: 5 | J78: 5 | K78: 110 | L78: 115 | O78: 0 | P78: 115 | Q78: 5 | R78: 110 | S78: 115 | V78: 0 | W78: 115 | X78: 5 | Y78: 110 | Z78: 115 | AC78: 0 | AD78: 115 | AE78: 5 | AF78: 110 | AG78: 115 | AJ78: 0 | AK78: 115 | AL78: 5 | AM78: 110 | AN78: 115 | AQ78: 0 | AR78: 115 | AS78: 5 | AT78: 100.1 | AU78: 105.1 | AX78: 0 | AY78: 105.1 | AZ78: 5 | BA78: 110 | BB78: 115 | BE78: 0 | BF78: 115 | BI78: 0 | BL78: 0 | BM78: 0 | BP78: 0 | BS78: 0 | BT78: 0 | BW78: 0 | BZ78: 0 | CA78: 0 | CD78: 0 | CG78: 0 | CH78: 0 | CI78: 40 | CJ78: 760.1 | CK78: 800.1 | CL78: 0 | CM78: 0 | CN78: 0 | CO78: 800.1 | CP78: 449.9
A79: 76 | B79: SERRANO BOCANEGRA, MARISOL | C79: 5 | E79: 5 | H79: 0 | I79: 5 | J79: 5 | L79: 5 | O79: 0 | P79: 5 | Q79: 5 | S79: 5 | V79: 0 | W79: 5 | X79: 5 | Z79: 5 | AC79: 0 | AD79: 5 | AE79: 5 | AG79: 5 | AJ79: 0 | AK79: 5 | AL79: 5 | AN79: 5 | AQ79: 0 | AR79: 5 | AS79: 5 | AU79: 5 | AX79: 0 | AY79: 5 | AZ79: 5 | BB79: 5 | BE79: 0 | BF79: 5 | BI79: 0 | BL79: 0 | BM79: 0 | BP79: 0 | BS79: 0 | BT79: 0 | BW79: 0 | BZ79: 0 | CA79: 0 | CD79: 0 | CG79: 0 | CH79: 0 | CI79: 40 | CJ79: 0 | CK79: 40 | CL79: 0 | CM79: 0 | CN79: 0 | CO79: 40
A80: 77 | B80: SHOWIN ESPINOZA, DANIEL ALBERTO | E80: 0 | H80: 0 | I80: 0 | L80: 0 | O80: 0 | P80: 0 | S80: 0 | V80: 0 | W80: 0 | Z80: 0 | AC80: 0 | AD80: 0 | AG80: 0 | AJ80: 0 | AK80: 0 | AN80: 0 | AQ80: 0 | AR80: 0 | AU80: 0 | AX80: 0 | AY80: 0 | BB80: 0 | BE80: 0 | BF80: 0 | BI80: 0 | BL80: 0 | BM80: 0 | BP80: 0 | BS80: 0 | BT80: 0 | BW80: 0 | BZ80: 0 | CA80: 0 | CD80: 0 | CG80: 0 | CH80: 0 | CI80: 0 | CJ80: 0 | CK80: 0 | CL80: 0 | CM80: 0 | CN80: 0 | CO80: 0
A81: 78 | B81: TELLO GONZALES, CELIA | C81: 5 | E81: 5 | H81: 0 | I81: 5 | J81: 5 | L81: 5 | O81: 0 | P81: 5 | Q81: 5 | S81: 5 | V81: 0 | W81: 5 | X81: 5 | Z81: 5 | AC81: 0 | AD81: 5 | AE81: 5 | AG81: 5 | AJ81: 0 | AK81: 5 | AL81: 5 | AN81: 5 | AQ81: 0 | AR81: 5 | AS81: 5 | AU81: 5 | AX81: 0 | AY81: 5 | AZ81: 5 | BB81: 5 | BE81: 0 | BF81: 5 | BI81: 0 | BL81: 0 | BM81: 0 | BP81: 0 | BS81: 0 | BT81: 0 | BW81: 0 | BZ81: 0 | CA81: 0 | CD81: 0 | CG81: 0 | CH81: 0 | CI81: 40 | CJ81: 0 | CK81: 40 | CL81: 0 | CM81: 0 | CN81: 0 | CO81: 40
A82: 79 | B82: TESEN MORE, CARMEN | C82: 5 | E82: 5 | H82: 0 | I82: 5 | J82: 5 | L82: 5 | O82: 0 | P82: 5 | Q82: 5 | S82: 5 | V82: 0 | W82: 5 | X82: 5 | Z82: 5 | AC82: 0 | AD82: 5 | AE82: 5 | AG82: 5 | AJ82: 0 | AK82: 5 | AL82: 5 | AN82: 5 | AQ82: 0 | AR82: 5 | AS82: 5 | AU82: 5 | AX82: 0 | AY82: 5 | AZ82: 5 | BB82: 5 | BE82: 0 | BF82: 5 | BI82: 0 | BL82: 0 | BM82: 0 | BP82: 0 | BS82: 0 | BT82: 0 | BW82: 0 | BZ82: 0 | CA82: 0 | CD82: 0 | CG82: 0 | CH82: 0 | CI82: 40 | CJ82: 0 | CK82: 40 | CL82: 0 | CM82: 0 | CN82: 0 | CO82: 40
A83: 80 | B83: TORRES BARDALEZ, JAVIER | C83: 5 | E83: 5 | H83: 0 | I83: 5 | J83: 5 | L83: 5 | M83: 40 | O83: 40 | P83: 45 | Q83: 5 | S83: 5 | T83: 20 | V83: 20 | W83: 25 | X83: 5 | Z83: 5 | AA83: 20 | AC83: 20 | AD83: 25 | AE83: 5 | AG83: 5 | AH83: 20 | AJ83: 20 | AK83: 25 | AL83: 5 | AN83: 5 | AO83: 20 | AQ83: 20 | AR83: 25 | AS83: 5 | AU83: 5 | AV83: 20 | AX83: 20 | AY83: 25 | AZ83: 5 | BB83: 5 | BC83: 20 | BE83: 20 | BF83: 25 | BI83: 0 | BL83: 0 | BM83: 0 | BP83: 0 | BS83: 0 | BT83: 0 | BW83: 0 | BZ83: 0 | CA83: 0 | CD83: 0 | CG83: 0 | CH83: 0 | CI83: 40 | CJ83: 0 | CK83: 40 | CL83: 160 | CM83: 0 | CN83: 160 | CO83: 200
A84: 81 | B84: TORRES DIAZ, OSCAR | C84: 5 | E84: 5 | H84: 0 | I84: 5 | J84: 5 | L84: 5 | M84: 40 | O84: 40 | P84: 45 | Q84: 5 | S84: 5 | T84: 20 | V84: 20 | W84: 25 | X84: 5 | Z84: 5 | AA84: 20 | AC84: 20 | AD84: 25 | AE84: 5 | AG84: 5 | AH84: 20 | AJ84: 20 | AK84: 25 | AL84: 5 | AN84: 5 | AO84: 20 | AQ84: 20 | AR84: 25 | AS84: 5 | AU84: 5 | AV84: 20 | AX84: 20 | AY84: 25 | AZ84: 5 | BB84: 5 | BC84: 20 | BE84: 20 | BF84: 25 | BI84: 0 | BL84: 0 | BM84: 0 | BP84: 0 | BS84: 0 | BT84: 0 | BW84: 0 | BZ84: 0 | CA84: 0 | CD84: 0 | CG84: 0 | CH84: 0 | CI84: 40 | CJ84: 0 | CK84: 40 | CL84: 160 | CM84: 0 | CN84: 160 | CO84: 200
A85: 82 | B85: TORRES TANGOA, MEDARDO | C85: 0 | E85: 0 | F85: 20 | H85: 20 | I85: 20 | L85: 0 | M85: 40 | O85: 40 | P85: 40 | S85: 0 | T85: 20 | V85: 20 | W85: 20 | Z85: 0 | AA85: 20 | AC85: 20 | AD85: 20 | AG85: 0 | AH85: 20 | AJ85: 20 | AK85: 20 | AN85: 0 | AQ85: 0 | AR85: 0 | AU85: 0 | AV85: 20 | AX85: 20 | AY85: 20 | BB85: 0 | BC85: 20 | BE85: 20 | BF85: 20 | BI85: 0 | BL85: 0 | BM85: 0 | BP85: 0 | BS85: 0 | BT85: 0 | BW85: 0 | BZ85: 0 | CA85: 0 | CD85: 0 | CG85: 0 | CH85: 0 | CI85: 0 | CJ85: 0 | CK85: 0 | CL85: 160 | CM85: 0 | CN85: 160 | CO85: 160
A86: 83 | B86: TORRES VILLACORTA, LESLIE SARITA | C86: 0 | E86: 0 | F86: 20 | H86: 20 | I86: 20 | L86: 0 | M86: 40 | N86: =20+15 -> 35 | O86: 75 | P86: 75 | S86: 0 | T86: 30 | U86: 15 | V86: 45 | W86: 45 | Z86: 0 | AA86: 15 | AB86: 25 | AC86: 40 | AD86: 40 | AG86: 0 | AJ86: 0 | AK86: 0 | AN86: 0 | AO86: 15 | AQ86: 15 | AR86: 15 | AU86: 0 | AV86: 20 | AX86: 20 | AY86: 20 | BB86: 0 | BC86: 20 | BE86: 20 | BF86: 20 | BI86: 0 | BL86: 0 | BM86: 0 | BP86: 0 | BS86: 0 | BT86: 0 | BW86: 0 | BZ86: 0 | CA86: 0 | CD86: 0 | CG86: 0 | CH86: 0 | CI86: 0 | CJ86: 0 | CK86: 0 | CL86: 160 | CM86: 75 | CN86: 235 | CO86: 235
A87: 84 | B87: URBINA ARAUJO, MARIO ISMAEL | C87: 5 | E87: 5 | H87: 0 | I87: 5 | J87: 5 | K87: 91 | L87: 96 | O87: 0 | P87: 96 | Q87: 5 | R87: 91 | S87: 96 | V87: 0 | W87: 96 | X87: 5 | Y87: 91 | Z87: 96 | AC87: 0 | AD87: 96 | AE87: 5 | AF87: 91 | AG87: 96 | AJ87: 0 | AK87: 96 | AL87: 5 | AM87: =111 -> 111 | AN87: 116 | AQ87: 0 | AR87: 116 | AS87: 5 | AT87: 625 | AU87: 630 | AX87: 0 | AY87: 630 | AZ87: 5 | BB87: 5 | BE87: 0 | BF87: 5 | BI87: 0 | BL87: 0 | BM87: 0 | BP87: 0 | BS87: 0 | BT87: 0 | BW87: 0 | BZ87: 0 | CA87: 0 | CD87: 0 | CG87: 0 | CH87: 0 | CI87: 40 | CJ87: 1100 | CK87: 1140 | CL87: 0 | CM87: 0 | CN87: 0 | CO87: 1140
A88: 85 | B88: VALLES MONTES, NANCY | C88: 0 | E88: 0 | H88: 0 | I88: 0 | J88: 10 | L88: 10 | M88: 40 | N88: =10+15 -> 25 | O88: 65 | P88: 75 | Q88: 5 | S88: 5 | T88: 20 | U88: =15+5 -> 20 | V88: 40 | W88: 45 | X88: 5 | Y88: 78 | Z88: 83 | AA88: 20 | AB88: 15 | AC88: 35 | AD88: 118 | AE88: 5 | AF88: 78 | AG88: 83 | AH88: 20 | AI88: 15 | AJ88: 35 | AK88: 118 | AL88: 5 | AM88: 58 | AN88: 63 | AO88: 20 | AQ88: 20 | AR88: 83 | AS88: 5 | AT88: 78 | AU88: 83 | AV88: 20 | AX88: 20 | AY88: 103 | AZ88: 5 | BA88: 78 | BB88: 83 | BC88: 20 | BE88: 20 | BF88: 103 | BI88: 0 | BL88: 0 | BM88: 0 | BP88: 0 | BS88: 0 | BT88: 0 | BW88: 0 | BZ88: 0 | CA88: 0 | CD88: 0 | CG88: 0 | CH88: 0 | CI88: 40 | CJ88: 370 | CK88: 410 | CL88: 160 | CM88: 75 | CN88: 235 | CO88: 645 | CP88: 180
A89: 86 | B89: VASQUEZ HIDALGO, CUSTODIO | C89: 5 | E89: 5 | H89: 0 | I89: 5 | J89: 5 | L89: 5 | O89: 0 | P89: 5 | Q89: 5 | R89: 130 | S89: 135 | V89: 0 | W89: 135 | X89: 5 | Z89: 5 | AC89: 0 | AD89: 5 | AE89: 5 | AF89: =130+130 -> 260 | AG89: 265 | AJ89: 0 | AK89: 265 | AL89: 5 | AM89: 130 | AN89: 135 | AQ89: 0 | AR89: 135 | AT89: 100 | AU89: 100 | AX89: 0 | AY89: 100 | BB89: 0 | BE89: 0 | BF89: 0 | BI89: 0 | BL89: 0 | BM89: 0 | BP89: 0 | BS89: 0 | BT89: 0 | BW89: 0 | BZ89: 0 | CA89: 0 | CD89: 0 | CG89: 0 | CH89: 0 | CI89: 30 | CJ89: 620 | CK89: 650 | CL89: 0 | CM89: 0 | CN89: 0 | CO89: 650 | CP89: 480
A90: 87 | B90: VASQUEZ VASQUEZ, MILI ELIZBETH | E90: 0 | H90: 0 | I90: 0 | L90: 0 | O90: 0 | P90: 0 | S90: 0 | V90: 0 | W90: 0 | Z90: 0 | AC90: 0 | AD90: 0 | AG90: 0 | AI90: 75 | AJ90: 75 | AK90: 75 | AN90: 0 | AQ90: 0 | AR90: 0 | AU90: 0 | AX90: 0 | AY90: 0 | BB90: 0 | BE90: 0 | BF90: 0 | BI90: 0 | BL90: 0 | BM90: 0 | BP90: 0 | BS90: 0 | BT90: 0 | BW90: 0 | BZ90: 0 | CA90: 0 | CD90: 0 | CG90: 0 | CH90: 0 | CI90: 0 | CJ90: 0 | CK90: 0 | CL90: 0 | CM90: 75 | CN90: 75 | CO90: 75
A91: 88 | B91: VELA CASILLAS, MERLITH | C91: 10 | E91: 10 | G91: 15 | H91: 15 | I91: 25 | J91: 5 | L91: 5 | M91: 40 | N91: 20 | O91: 60 | P91: 65 | Q91: 5 | S91: 5 | T91: 40 | U91: 20 | V91: 60 | W91: 65 | X91: 5 | Z91: 5 | AA91: 40 | AB91: 20 | AC91: 60 | AD91: 65 | AG91: 0 | AJ91: 0 | AK91: 0 | AL91: 5 | AN91: 5 | AQ91: 0 | AR91: 5 | AS91: 5 | AU91: 5 | AX91: 0 | AY91: 5 | AZ91: 5 | BB91: 5 | BE91: 0 | BF91: 5 | BH91: 55 | BI91: 55 | BJ91: 40 | BL91: 40 | BM91: 95 | BP91: 0 | BS91: 0 | BT91: 0 | BW91: 0 | BZ91: 0 | CA91: 0 | CD91: 0 | CG91: 0 | CH91: 0 | CI91: 40 | CJ91: 55 | CK91: 95 | CL91: 160 | CM91: 75 | CN91: 235 | CO91: 330 | CP91: 165
A92: 89 | B92: VELA CASIQUE, PERCY LUIS | C92: 0 | E92: 0 | H92: 0 | I92: 0 | L92: 0 | M92: 40 | O92: 40 | P92: 40 | S92: 0 | T92: 40 | V92: 40 | W92: 40 | Z92: 0 | AC92: 0 | AD92: 0 | AG92: 0 | AH92: 20 | AJ92: 20 | AK92: 20 | AN92: 0 | AO92: 20 | AQ92: 20 | AR92: 20 | AU92: 0 | AV92: 20 | AX92: 20 | AY92: 20 | BB92: 0 | BC92: 20 | BE92: 20 | BF92: 20 | BI92: 0 | BL92: 0 | BM92: 0 | BP92: 0 | BS92: 0 | BT92: 0 | BW92: 0 | BZ92: 0 | CA92: 0 | CD92: 0 | CG92: 0 | CH92: 0 | CI92: 0 | CJ92: 0 | CK92: 0 | CL92: 160 | CM92: 0 | CN92: 160 | CO92: 160
A93: 90 | B93: VELA PORTOCARRERO, MARCO ANTONIO | C93: 0 | E93: 0 | H93: 0 | I93: 0 | J93: 5 | L93: 5 | M93: 20 | O93: 20 | P93: 25 | Q93: 20 | S93: 20 | T93: 20 | V93: 20 | W93: 40 | Z93: 0 | AA93: 20 | AC93: 20 | AD93: 20 | AG93: 0 | AH93: 15 | AJ93: 15 | AK93: 15 | AL93: 5 | AM93: 183 | AN93: 188 | AO93: 20 | AQ93: 20 | AR93: 208 | AS93: 5 | AT93: 183 | AU93: 188 | AV93: 20 | AX93: 20 | AY93: 208 | AZ93: 5 | BA93: 183 | BB93: 188 | BC93: 20 | BE93: 20 | BF93: 208 | BI93: 0 | BL93: 0 | BM93: 0 | BP93: 0 | BS93: 0 | BT93: 0 | BW93: 0 | BZ93: 0 | CA93: 0 | CD93: 0 | CG93: 0 | CH93: 0 | CI93: 40 | CJ93: 549 | CK93: 589 | CL93: 135 | CM93: 0 | CN93: 135 | CO93: 724 | CP93: 551
A94: 91 | B94: VILCA RAMIREZ, KATTY JHOVANNY | C94: 0 | E94: 0 | H94: 0 | I94: 0 | L94: 0 | O94: 0 | P94: 0 | S94: 0 | V94: 0 | W94: 0 | Z94: 0 | AC94: 0 | AD94: 0 | AG94: 0 | AI94: 75 | AJ94: 75 | AK94: 75 | AN94: 0 | AQ94: 0 | AR94: 0 | AU94: 0 | AX94: 0 | AY94: 0 | BB94: 0 | BE94: 0 | BF94: 0 | BI94: =+BG94+BH94 -> 0 | BL94: 0 | BM94: 0 | BP94: 0 | BS94: 0 | BT94: 0 | BW94: 0 | BZ94: 0 | CA94: 0 | CD94: 0 | CG94: 0 | CH94: 0 | CI94: 0 | CJ94: 0 | CK94: 0 | CL94: 0 | CM94: 75 | CN94: 75 | CO94: 75
A95: TOTAL | C95: =SUM(C4:C94) -> 260 | D95: 258.8 | E95: 518.8 | F95: 112.5 | G95: 95 | H95: 207.5 | I95: =+E95+H95 -> 726.3 | J95: =SUM(J4:J94) -> 295 | K95: =SUM(K4:K94) -> 679.8 | L95: =SUM(L4:L94) -> 974.8 | M95: =SUM(M5:M94) -> 1610 | N95: =SUM(N4:N94) -> 525 | O95: 2135 | P95: 3109.8 | Q95: =SUM(Q4:Q94) -> 285 | R95: =SUM(R4:R94) -> 1047.8 | S95: 1332.8 | T95: =SUM(T4:T94) -> 1025 | U95: =SUM(U4:U94) -> 330 | V95: 1355 | W95: =SUM(W4:W94) -> 2687.8 | X95: 305 | Y95: 950.5 | Z95: 1255.5 | AA95: 715 | AB95: 240 | AC95: 955 | AD95: 2210.5 | AE95: 275 | AF95: 1983.5 | AG95: 2258.5 | AH95: 730 | AI95: 740 | AJ95: 1470 | AK95: 3728.5 | AL95: 265 | AM95: 2014.69 | AN95: 2279.69 | AO95: 737.5 | AP95: 455 | AQ95: 1192.5 | AR95: 3472.19 | AS95: 270 | AT95: 2801.62 | AU95: 3071.62 | AV95: 740 | AW95: 0 | AX95: 740 | AY95: 3811.62 | AZ95: 290 | BA95: 2420.38 | BB95: 2710.38 | BC95: =SUM(BC4:BC94) -> 700 | BD95: 0 | BE95: 700 | BF95: 3410.38 | BG95: 0 | BH95: 55 | BI95: 55 | BJ95: 40 | BK95: 0 | BL95: 40 | BM95: 95 | BN95: 0 | BO95: 0 | BP95: 0 | BQ95: 0 | BR95: 0 | BS95: 0 | BT95: 0 | BU95: 0 | BV95: 0 | BW95: 0 | BX95: 0 | BY95: 0 | BZ95: 0 | CA95: 0 | CB95: 0 | CC95: 0 | CD95: 0 | CE95: 0 | CF95: 0 | CG95: 0 | CH95: 0 | CI95: =SUM(CI4:CI94) -> 2245 | CJ95: 12212.09 | CK95: 14457.09 | CL95: 6410 | CM95: 2385 | CN95: 8795 | CO95: 23252.09
I98: 641.3 | P98: 2569.8 | W98: 1949.8 | AD98: 2055.5 | AK98: 2252.5 | AR98: 2599.19 | AY98: 2233.62 | BF98: 2098.48 | CK98: =+CK95+CL95 -> 20867.09
I99: 85 | P99: 210 | W99: 300 | AD99: 100 | AK99: 115 | AR99: 105 | AY99: 105 | BF99: 105
I100: =SUM(I98:I99) -> 726.3 | P100: 105 | W100: 45 | AD100: 55 | AK100: 130 | AR100: 145 | AY100: 91 | BF100: 400 | CQ100: =+CK95+CN95 -> 23252.09
P101: 145 | W101: 5 | AD101: =SUM(AD98:AD100) -> 2210.5 | AK101: 72 | AR101: 280 | AY101: 61 | BF101: 35.9
P102: 80 | W102: 20 | AK102: 183 | AR102: 30 | AY102: 230 | BF102: 183
P103: =SUM(P98:P102) -> 3109.8 | W103: 130 | AK103: 30 | AR103: 183 | AY103: 625 | BF103: 136
BF104: 208
W105: 183 | AK105: 130 | AR105: 130 | AY105: 61 | BF105: 183
W106: 55 | AK106: 185 | AR106: =SUM(AR98:AR105) -> 3472.19 | AY106: 183 | BF106: 61
W107: =SUM(W98:W106) -> 2687.8 | AK107: 570 | AY107: 122 | BF107: =SUM(BF98:BF106) -> 3410.38
AK108: 61 | AY108: 100
AK109: =SUM(AK98:AK108) -> 3728.5 | AY109: =SUM(AY98:AY108) -> 3811.62

Sheet RENDICION
A4: MES | B4: CONCEPTO | C4: INGRESOS | D4: EGRESOS
A5: JUNIO | B5: SALDO ANTERIOR JUNIO | C5: 33401.08
B6: REUNION SINDICAL (ENTREGA TESORERIA Y CENA) | D6: 593
B7: DEVOLUCION DE APORTACION PARA CANASTA NAVIDEÑA (276) (1 PERSONA) | D7: 500
B8: REFRIGERIO EN EL PARO DEL 19 Y 20/06/2024 | D8: 86
B9: PAGO EFECTIVO DE PRESTAMO (LETRA DE JUNIO) (1 PERSONA) | C9: 550
A10: JULIO | B10: CUOTA SINDICAL, APORTES, DEV. PRESTAMO Y OTROS - CAS - JUNIO | C10: 9793
B11: CUOTA SINDICAL, APORTES, DEV. PRESTAMO Y OTROS - 276 - JUNIO | C11: 10149.64
B12: DEVOLUCION DE APORTACION PARA CANASTA (4 PERSONA) | D12: 3200
B13: PAGO EFECTIVO DE PRESTAMO (1 PERSONA) | C13: 1832
B14: PRESTAMOS OTORGADOS 276 | D14: 4500
B15: PRESTAMOS OTORGADOS CAS | D15: 1500
A16: AGOSTO | B16: PRESTADOS OTORGADO CAS | D16: 3600
B17: LIQUIDACION DE PRESTAMO EN EFECTIVO (1 PERSONA) | C17: 292
B18: CUOTA SINDICAL, APORTES, DEV. PRESTAMO Y OTROS - CAS - JULIO | C18: 8825.58
B19: CUOTA SINDICAL, APORTES, DEV. PRESTAMO Y OTROS - 276 - JULIO | C19: 10755
B20: DEVOLUCION DE APORTE CANASTA (276 = 1 PERSONA) | D20: 300
B21: ENTREGA DINERO POR SEPELIO SAMUEL BAZAN VELA | D21: 500
B22: PRESTADOS OTORGADO 276 | D22: 1200
B23: DEVOLUCION DE APORTACION PARA CANASTA (CAS= 1 PERSONA) | D23: 400
B24: PAGO EN EFECTIVO PRESTAMO (LIQUIDACION = 2 PERSONAS) | C24: 613
B25: GASTOS DE REPRESENTACION SINDICATO (PARO) SE ENTREGO AL SR. SERGIO SEPULVEDA | D25: 150
A26: SETIEMBRE | B26: DEVOLUCION DE APORTES (276 = 4 PERSONAS) | D26: 3180
B27: DEVOLUCION DE APORTES ( CAS = 2 PERSONAS) | D27: 6100
B28: PRESTAMOS OTORGADOS 276 | D28: 1800
B29: PRESTAMO OTORGADO CAS | D29: 500
B30: PAGO EFECTIVO DE PRESTAMOS (5 PERSONAS) | C30: 1201.4
B31: CUOTA SINDICAL, APORTES, DEV. PRESTAMO Y OTROS - CAS - AGOSTO | C31: 8274
B32: CUOTA SINDICAL, APORTES, DEV. PRESTAMO Y OTROS - 276 - AGOSTO | C32: 10796.43
B33: CUOTA SINDICAL, APORTES, DEV. PRESTAMO Y OTROS - 276 - AGOSTO SUBCAFAE | C33: 186
A34: OCTUBRE | B34: PAGO EFECTIVO DE PRESTAMO (6 PERSONAS) | C34: 1715.5
B35: CUOTA SINDICAL, APORTES, DEV. PRESTAMO Y OTROS - CAS - SETIEMBRE | C35: 8284
B36: CUOTA SINDICAL, APORTES, DEV. PRESTAMO Y OTROS - 276 - SETIEMBRE | C36: 9940.59
B37: CUOTA SINDICAL, APORTES, DEV. PRESTAMO Y OTROS - 276 - SETIEMBRE SUBCAFAE | C37: 363
B38: DEVOLUCION APORTE CANASTA ( 3 PERSONAS) | D38: 2700
B39: PRESTAMOS OTORGADO (CAS) | D39: 550
B40: DEPOSITO A DELEGADOS (PARTICIPAR EN ASAMBLEA NACIONAL ESTATAL 17/10/2024 EN LIMA) | D40: 100
B41: VIATICOS ASAMBLEA GENERAL EXTRAORDINARIA 25/10/2024 (PARTICIPO SR. SERGIO Y SRA. ANITA BARDALEZ) | D41: 360
A42: NOVIEMBRE | B42: PASAJES DE REPRESENTACION EN LIMA PARO DEL 5 AL 7 NOV (SERGIO SEPULVEDA VELA) | D42: 260
B43: VIATICO PARA REPRESENTAR EN EL PARO DEL 5 AL 7 NOV EN LIMA (SERGIO SEPULVEDA V) | D43: 960
B44: PASAJES DE REPRESENTACION EN LIMA PARO DEL 5 AL 7 NOV (CARLOS FARRIS) | D44: 260
B45: VIATICO PARA REPRESENTAR EN EL PARO DEL 5 AL 7 NOV EN LIMA (CARLOS FARRIS) | D45: 960
B46: PRESTAMO OTORGADO CAS | D46: 7000
B47: PRESTAMO OTORGADO 276 | D47: 9500
B48: DEVOLUCION DE APORTACION PARA CANASTA NAVIDEÑA (CAS = 1 PERSONA) | D48: 250
B49: PAGO EFECTIVO DE PRESTAMOS (4 PERSONAS) | C49: 1050
B50: CUOTA SINDICAL, APORTES, DEV. PRESTAMO Y OTROS - 276 - OCTUBRE | C50: 9697.71
B51: CUOTA SINDICAL, APORTES, DEV. PRESTAMO Y OTROS - 276 - OCTUBRE SUB CAFAE (SERGIO) | C51: 245.25
B52: CUOTA SINDICAL, APORTES, DEV. PRESTAMO Y OTROS - CAS - OCTUBRE | C52: 7222.71
B53: CUOTA SINDICAL, APORTES, DEV. PRESTAMO Y OTROS - CAS - OCTUBRE | C53: 50
B54: ENTREGA DINERO POR SEPELIO A RIDER RENGIFO (FALLECIMIENTO DE SU MAMA) | D54: 500
A55: DICIEMBRE | B55: DEVOLUCION DE APORTACION PARA CANASTA NAVIDEÑA (CAS = 8 PERSONA) | D55: 7670 | F55: 7670
B56: DEVOLUCION DE APORTACION PARA CANASTA NAVIDEÑA (276 = 1 PERSONA) | D56: 400 | F56: 400
B57: CUOTA SINDICAL, APORTES, DEV. PRESTAMO Y OTROS - CAS - NOVIEMBRE | C57: 7624.33
B58: CUOTA SINDICAL, APORTES, DEV. PRESTAMO Y OTROS - 276 - NOVIEMBRE | C58: 8340.01
B59: CUOTA SINDICAL, APORTES, DEV. PRESTAMO Y OTROS - 276 - NOVIEMBRE | C59: 608.29
B60: PAGO EFECTIVO DE PRESTAMO (2 PERSONAS) | C60: 404
B61: PRESTAMO OTORGADO CAS | D61: 2500
B62: PRESTAMO OTORGADO 276 | D62: 7500
B65: INGRESOS | C65: =SUM(C5:C64) -> 152214.52
B66: EGRESOS | C66: =SUM(D5:D64) -> 69579
B67: SALDO ACTIAL | C67: =+C65-C66 -> 82635.52

Sheet CUOTA MENSUAL
A1: RELACION DE TAPS. NOMBRADOS Y CONTRATADOS PLAZO FIJO 276, QUE REALIZAN LABOR ADMINISTRATIVA QUE APORTAN VOLUNTARIAMENTE AL SITRAS-BM, MENSUALMENTE EL MONTO DE S/. 10.00 Y APORTE PARA CANASTA, CORRESPONDIENTE AL MES DE JULIO - 2024
A2: Nº | B2: Nº DNI | C2: NOMBRES Y APELLIDOS | D2: CUOTA | E2: PRESTAMO | F2: CANASTA | G2: OTROS | H2: TOTAL | I2: saldo
A3: 1 | B3: 804505 | C3: ARIAS NORIEGA, CECILIA | D3: 10 | H3: =SUM(D3:E3,F3,G3) -> 10 | I3: =IFERROR(VLOOKUP(B3,'DSCTO PRESTAMO'!$C$4:$E$29,3,0),0) -> 0
A4: 2 | B4: 819657 | C4: BARDALEZ ALVA, ANITA MERCEDES | D4: 10 | E4: 300 | H4: =SUM(D4:E4,F4,G4) -> 310 | I4: =IFERROR(VLOOKUP(B4,'DSCTO PRESTAMO'!$C$4:$E$29,3,0),0) -> 0 | J4: enero a noviembre S/, 300 mensual
A5: 3 | B5: 807060 | C5: BAZAN VELA, SAMUEL | D5: 10 | F5: 100 | H5: =SUM(D5:E5,F5,G5) -> 110 | I5: =IFERROR(VLOOKUP(B5,'DSCTO PRESTAMO'!$C$4:$E$29,3,0),0) -> 0
A6: 4 | B6: 830793 | C6: CENTURION TAPIA, BEATRIZ | D6: 10 | H6: =SUM(D6:E6,F6,G6) -> 10 | I6: =IFERROR(VLOOKUP(B6,'DSCTO PRESTAMO'!$C$4:$E$29,3,0),0) -> 0
A7: 5 | B7: 1045926 | C7: CHACON DEL AGUILA, GLADYS | D7: 10 | H7: 10 | I7: =IFERROR(VLOOKUP(B7,'DSCTO PRESTAMO'!$C$4:$E$29,3,0),0) -> 0
A8: 6 | B8: 43143883 | C8: CORONEL BARDALES, MIKE | D8: 10 | F8: 100 | H8: 110 | I8: =IFERROR(VLOOKUP(B8,'DSCTO PRESTAMO'!$C$4:$E$29,3,0),0) -> 0
A9: 7 | B9: 860881 | C9: CORDOVA CAMPOS, CLARA | D9: 10 | E9: 122 | H9: 132 | I9: =IFERROR(VLOOKUP(B9,'DSCTO PRESTAMO'!$C$4:$E$29,3,0),0) -> -1 | J9: de marzo a noviembre (a partir de julio considerar 122 mensual)
A10: 8 | B10: 44405357 | C10: CORONEL BARDALES, TANIA | D10: 10 | F10: 200 | H10: 210 | I10: =IFERROR(VLOOKUP(B10,'DSCTO PRESTAMO'!$C$4:$E$29,3,0),0) -> 0
A11: 9 | B11: 16733999 | C11: DAVILA RENGIFO, DALILA | D11: 10 | F11: 40 | H11: 50 | I11: =IFERROR(VLOOKUP(B11,'DSCTO PRESTAMO'!$C$4:$E$29,3,0),0) -> 0
A12: 10 | B12: 42245490 | C12: DEL CASTILLO GARCIA, JIMMY GERSON | D12: 10 | F12: 100 | H12: 110 | I12: =IFERROR(VLOOKUP(B12,'DSCTO PRESTAMO'!$C$4:$E$29,3,0),0) -> 0
A13: 11 | B13: 43238538 | C13: DIAZ BUSTAMANTE, WILSON | D13: 10 | F13: 100 | H13: 110 | I13: =IFERROR(VLOOKUP(B13,'DSCTO PRESTAMO'!$C$4:$E$29,3,0),0) -> 0
A14: 12 | B14: 40536257 | C14: DIAZ DIAZ, CLIDER | D14: 10 | H14: 10 | I14: =IFERROR(VLOOKUP(B14,'DSCTO PRESTAMO'!$C$4:$E$29,3,0),0) -> 0
A15: 13 | B15: 860936 | C15: FARRIS ARCENTALES, CARLOS ALBERTO | D15: 10 | E15: 300 | F15: 20 | H15: 330 | I15: =IFERROR(VLOOKUP(B15,'DSCTO PRESTAMO'!$C$4:$E$29,3,0),0) -> 2750 | J15: enero a noviembre S/, 330 mensual
A16: 14 | B16: 860048 | C16: FERNANDEZ CHAVEZ, JUAN MANUEL | D16: 10 | F16: 40 | H16: 50 | I16: =IFERROR(VLOOKUP(B16,'DSCTO PRESTAMO'!$C$4:$E$29,3,0),0) -> 0
A17: 15 | B17: 832485 | C17: GONZALES DE RENGIFO, DALILA | D17: 10 | H17: 10 | I17: =IFERROR(VLOOKUP(B17,'DSCTO PRESTAMO'!$C$4:$E$29,3,0),0) -> 0
A18: 16 | B18: 42179278 | C18: GONZALES SIMARRA, JHON HENRY | D18: 10 | E18: 400 | H18: 410 | I18: =IFERROR(VLOOKUP(B18,'DSCTO PRESTAMO'!$C$4:$E$29,3,0),0) -> 3300 | J18: prestamo del 2023
A19: 17 | B19: 831944 | C19: GUERRERO GARCIA, TEOBALDO | D19: 10 | E19: 184 | H19: 194 | I19: =IFERROR(VLOOKUP(B19,'DSCTO PRESTAMO'!$C$4:$E$29,3,0),0) -> 0 | J19: marzo a noviembre
A20: 18 | B20: 41519956 | C20: HUAMAN RODRIGUEZ, PRESILA | D20: 10 | H20: 10 | I20: =IFERROR(VLOOKUP(B20,'DSCTO PRESTAMO'!$C$4:$E$29,3,0),0) -> 0
A21: 19 | B21: 46916242 | C21: JIMENEZ PADILLA, IVETH | D21: 10 | F21: 150 | H21: 160 | I21: =IFERROR(VLOOKUP(B21,'DSCTO PRESTAMO'!$C$4:$E$29,3,0),0) -> 0
A22: 20 | B22: 803522 | C22: LLAJA DIAZ, ALPINO | D22: 10 | E22: 400 | H22: 410 | I22: =IFERROR(VLOOKUP(B22,'DSCTO PRESTAMO'!$C$4:$E$29,3,0),0) -> 2750 | J22: enero a noviembre S/400
A23: 21 | B23: 801714 | C23: LLAJA DIAZ, SEGUNDO | D23: 10 | H23: 10 | I23: =IFERROR(VLOOKUP(B23,'DSCTO PRESTAMO'!$C$4:$E$29,3,0),0) -> 0
A24: 22 | B24: 811938 | C24: LOPEZ MIRANO, EDITH | D24: 10 | F24: 50 | H24: 60 | I24: =IFERROR(VLOOKUP(B24,'DSCTO PRESTAMO'!$C$4:$E$29,3,0),0) -> 0
A25: 23 | B25: 6792607 | C25: LOPEZ PEREZ, MONICA | D25: 10 | F25: 40 | H25: 50 | I25: =IFERROR(VLOOKUP(B25,'DSCTO PRESTAMO'!$C$4:$E$29,3,0),0) -> 0
A26: 24 | B26: 803189 | C26: MOZOMBITE CABRERA, DAVID | D26: 10 | F26: 100 | H26: 110 | I26: =IFERROR(VLOOKUP(B26,'DSCTO PRESTAMO'!$C$4:$E$29,3,0),0) -> 0
A27: 25 | B27: 43437357 | C27: MUNDACA FLORES, KELVIN | D27: 10 | F27: 200 | H27: 210 | I27: =IFERROR(VLOOKUP(B27,'DSCTO PRESTAMO'!$C$4:$E$29,3,0),0) -> -660 | J27: ya no tiene dscto prestamo
A28: 26 | B28: 815508 | C28: NARVA QUISPE, MARIANO JOSE | D28: 10 | E28: 110 | H28: 120 | I28: =IFERROR(VLOOKUP(B28,'DSCTO PRESTAMO'!$C$4:$E$29,3,0),0) -> 0 | J28: su dscto es de mayo a agosto S/, 110 | L28: pero en mayo no se dscto y en junio solo 74 del prestamo que era 110
A29: 27 | B29: 800974 | C29: PEZO PEZO, ARNALDO | D29: 10 | F29: 110 | H29: 120 | I29: =IFERROR(VLOOKUP(B29,'DSCTO PRESTAMO'!$C$4:$E$29,3,0),0) -> 0
A30: 28 | B30: 821392 | C30: RAMIREZ VASQUEZ, LITA | D30: 10 | F30: 200 | H30: 210 | I30: =IFERROR(VLOOKUP(B30,'DSCTO PRESTAMO'!$C$4:$E$29,3,0),0) -> 0
A31: 29 | B31: 804403 | C31: REATEGUI TUESTA, ALBERTO | D31: 10 | H31: 10 | I31: =IFERROR(VLOOKUP(B31,'DSCTO PRESTAMO'!$C$4:$E$29,3,0),0) -> 0
A32: 30 | B32: 800866 | C32: RENGIFO REATEGUI, WALTER | D32: 10 | H32: 10 | I32: =IFERROR(VLOOKUP(B32,'DSCTO PRESTAMO'!$C$4:$E$29,3,0),0) -> 0
A33: 31 | B33: 907880 | C33: RENGIFO RUIZ, RIDER | D33: 10 | H33: 10 | I33: =IFERROR(VLOOKUP(B33,'DSCTO PRESTAMO'!$C$4:$E$29,3,0),0) -> 0
A34: 32 | B34: 40175785 | C34: RETAMOZO VARGAS, JENNY MARIBEL | D34: 10 | F34: 300 | H34: 310 | I34: =IFERROR(VLOOKUP(B34,'DSCTO PRESTAMO'!$C$4:$E$29,3,0),0) -> 0
A35: 33 | B35: 40252218 | C35: RODRIGUEZ, ROJAS, GLADYS KARINA | D35: 10 | H35: 10 | I35: =IFERROR(VLOOKUP(B35,'DSCTO PRESTAMO'!$C$4:$E$29,3,0),0) -> 0
A36: 34 | B36: 42750620 | C36: RODRIGUEZ TORRES, WILDER | D36: 10 | H36: 10 | I36: =IFERROR(VLOOKUP(B36,'DSCTO PRESTAMO'!$C$4:$E$29,3,0),0) -> 0
A37: 35 | B37: 838472 | C37: ROJAS BECERRA, LUCIA | D37: 10 | E37: 90 | F37: 100 | H37: 200 | I37: =IFERROR(VLOOKUP(B37,'DSCTO PRESTAMO'!$C$4:$E$29,3,0),0) -> 110 | J37: prestamo del 2023 755,6
A38: 36 | B38: 806018 | C38: ROJAS CARRION, AMERICO | D38: 10 | H38: 10 | I38: =IFERROR(VLOOKUP(B38,'DSCTO PRESTAMO'!$C$4:$E$29,3,0),0) -> 0
A39: 37 | B39: 837974 | C39: ROJAS PISCO, MAURO | D39: 10 | F39: 100 | H39: 110 | I39: =IFERROR(VLOOKUP(B39,'DSCTO PRESTAMO'!$C$4:$E$29,3,0),0) -> 0
A40: 38 | B40: 805434 | C40: ROJAS SIFUENTES, EDGARDO | D40: 10 | H40: 10 | I40: =IFERROR(VLOOKUP(B40,'DSCTO PRESTAMO'!$C$4:$E$29,3,0),0) -> 0
A41: 39 | B41: 42252971 | C41: RUBIO ARAUJO, KEVIN YASEK | D41: 10 | H41: 10 | I41: =IFERROR(VLOOKUP(B41,'DSCTO PRESTAMO'!$C$4:$E$29,3,0),0) -> 0
A42: 40 | B42: 821066 | C42: SEPULVEDA VELA, SERGIO ANTONIO | D42: 10 | E42: 400 | H42: 410 | I42: =IFERROR(VLOOKUP(B42,'DSCTO PRESTAMO'!$C$4:$E$29,3,0),0) -> 1580.04
A43: 41 | B43: 802127 | C43: TORRES BARDALEZ, JAVIER | D43: 10 | E43: 200 | H43: 210 | I43: =IFERROR(VLOOKUP(B43,'DSCTO PRESTAMO'!$C$4:$E$29,3,0),0) -> 2200 | J43: Enero a noviembre S/200
A44: 42 | B44: 821102 | C44: TORRES DIAZ, OSCAR | D44: 10 | F44: 50 | H44: 60 | I44: =IFERROR(VLOOKUP(B44,'DSCTO PRESTAMO'!$C$4:$E$29,3,0),0) -> 0
A45: 43 | B45: 806058 | C45: VASQUEZ HIDALGO, CUSTODIO | D45: 10 | E45: 176 | H45: 186 | I45: =IFERROR(VLOOKUP(B45,'DSCTO PRESTAMO'!$C$4:$E$29,3,0),0) -> 350.5 | J45: mayo a agosto S/ 176 | K45: nuevo setiembre a diciembre 353
A46: 44 | B46: 42614497 | C46: VELA CASIQUE, PERCY | D46: 10 | H46: 10 | I46: =IFERROR(VLOOKUP(B46,'DSCTO PRESTAMO'!$C$4:$E$29,3,0),0) -> 0
A47: 45 | B47: 7018656 | C47: CALAMPA MAS, ELVIA JOSEFINA | E47: 367 | H47: =SUM(D47:E47,F47,G47) -> 367 | I47: =IFERROR(VLOOKUP(B47,'DSCTO PRESTAMO'!$C$4:$E$29,3,0),0) -> -1.5 | J47: febrero a noviembre S/330 mensual | K47: pero en ebrero no pago
A48: 46 | B48: 18169707 | C48: CAMPOS AVALOS, MOISES RAMIRO | E48: 550 | H48: =SUM(D48,E48,F48,G48) -> 550 | I48: =IFERROR(VLOOKUP(B48,'DSCTO PRESTAMO'!$C$4:$E$29,3,0),0) -> 0 | J48: ABRIL A OCTUBRE | K48: su dscto va hasta octubre (pero el verdadero era de marzo a agosto) como no pago abril y mayo va hasta octubre
A49: 47 | B49: 42118509 | C49: CASIQUE BOCANEGRA, PAWEL | F49: 100 | H49: 100 | I49: =IFERROR(VLOOKUP(B49,'DSCTO PRESTAMO'!$C$4:$E$29,3,0),0) -> 0
A50: 48 | B50: 834319 | C50: COLLAZOS SANTILLAN, ELVIA OLINDA | F50: 110 | H50: =SUM(D50:E50,F50,G50) -> 110 | I50: =IFERROR(VLOOKUP(B50,'DSCTO PRESTAMO'!$C$4:$E$29,3,0),0) -> 0
A51: 49 | B51: 41109969 | C51: CORTEZ SALDAÑA, ROGER UBEDELINDO | E51: 400 | H51: =SUM(D51:E51,F51,G51) -> 400 | I51: =IFERROR(VLOOKUP(B51,'DSCTO PRESTAMO'!$C$4:$E$29,3,0),0) -> 900 | J51: enero a noviembre S/, 300 mensual | K51: pero no pago enero y febrero y en marzo, abril y mayo dio en efectivo
A52: 50 | B52: 838453 | C52: CULQUI HERRERA, MARILU | E52: 367 | H52: =SUM(D52:E52,F52,G52) -> 367 | I52: =IFERROR(VLOOKUP(B52,'DSCTO PRESTAMO'!$C$4:$E$29,3,0),0) -> 0 | J52: marzo a noviembre
A53: 51 | B53: 16680144 | C53: GONZALES SAAVEDRA, ANA | E53: 300 | H53: =SUM(D53:E53,F53,G53) -> 300 | I53: =IFERROR(VLOOKUP(B53,'DSCTO PRESTAMO'!$C$4:$E$29,3,0),0) -> 0 | J53: marzo a noviembre
A54: 52 | B54: 45824659 | C54: GONZALES TORRES, JANE | F54: 150 | H54: 150 | I54: =IFERROR(VLOOKUP(B54,'DSCTO PRESTAMO'!$C$4:$E$29,3,0),0) -> 0
A55: 53 | B55: 48710214 | C55: GUEVARA MONTENEGRO, LEYDI ENITH | F55: 200 | H55: 200 | I55: =IFERROR(VLOOKUP(B55,'DSCTO PRESTAMO'!$C$4:$E$29,3,0),0) -> 0
A56: 54 | B56: 72317983 | C56: MESIA GARCIA, CHRISTIAN ERICK | E56: 703 | H56: =SUM(D56:E56,F56,G56) -> 703 | I56: =IFERROR(VLOOKUP(B56,'DSCTO PRESTAMO'!$C$4:$E$29,3,0),0) -> 0 | J56: JUNIO A SETIEMBRE | K56: S/, 703 | L56: PERO EN JUNIO SOLO DESCONTARON 370
A57: 55 | B57: 71469639 | C57: MOZOMBITE SALAZAR, CINDAY J. | F57: 100 | H57: 100 | I57: =IFERROR(VLOOKUP(B57,'DSCTO PRESTAMO'!$C$4:$E$29,3,0),0) -> 0
A58: 56 | B58: 10276387 | C58: PAREDES AGUILAR, MARITA CAROLA | E58: 400 | H58: =SUM(D58:E58,F58,G58) -> 400 | I58: =IFERROR(VLOOKUP(B58,'DSCTO PRESTAMO'!$C$4:$E$29,3,0),0) -> 2750 | J58: enero a noviembre S/400
A59: 57 | B59: 46733025 | C59: PINEDO TAFUR, ABIGAIL | F59: 200 | H59: 200 | I59: =IFERROR(VLOOKUP(B59,'DSCTO PRESTAMO'!$C$4:$E$29,3,0),0) -> 0
A60: 58 | B60: 41632815 | C60: QUINTANA ZUMAETA, JAIRO | F60: 200 | H60: =SUM(D60:E60,F60,G60) -> 200 | I60: =IFERROR(VLOOKUP(B60,'DSCTO PRESTAMO'!$C$4:$E$29,3,0),0) -> 0
A61: 59 | B61: 44055448 | C61: REATEGUI TELLO LIZ JEANE | E61: 330 | H61: =SUM(D61:E61,F61,G61) -> 330 | I61: =IFERROR(VLOOKUP(B61,'DSCTO PRESTAMO'!$C$4:$E$29,3,0),0) -> -5 | J61: MARZO A JULIO S/,330
A62: 60 | B62: 815786 | C62: RENGIFO TUESTA, MERIDA | E62: 321 | H62: =SUM(D62:E62,F62,G62) -> 321 | I62: =IFERROR(VLOOKUP(B62,'DSCTO PRESTAMO'!$C$4:$E$29,3,0),0) -> 0 | J62: ABRIL A NOVIEMBRE
A63: 61 | B63: 46082213 | C63: RIOS PAREDES, MARIA DEL CARMEN | F63: 150 | H63: =SUM(D63,E63,F63,G63) -> 150 | I63: =IFERROR(VLOOKUP(B63,'DSCTO PRESTAMO'!$C$4:$E$29,3,0),0) -> 0
A64: 62 | B64: 9616546 | C64: ROJAS CHALCO, ANNIE JACKELIN | F64: 100 | H64: 100 | I64: =IFERROR(VLOOKUP(B64,'DSCTO PRESTAMO'!$C$4:$E$29,3,0),0) -> 0
A65: 63 | B65: 72178867 | C65: RUIZ DEL AGUILA, CINTHYA MELISSA | F65: 200 | H65: 200 | I65: =IFERROR(VLOOKUP(B65,'DSCTO PRESTAMO'!$C$4:$E$29,3,0),0) -> 0
A66: 64 | B66: 860667 | C66: TORRES REATEGUI, MARIANELA | E66: 550 | H66: =SUM(D66:E66,F66,G66) -> 550 | I66: =IFERROR(VLOOKUP(B66,'DSCTO PRESTAMO'!$C$4:$E$29,3,0),0) -> 2750 | J66: Mayo hasta Agosto S/ 550
A67: 65 | B67: 1027724 | C67: VENEGAS MENDOZA, MARTHA | E67: 252 | H67: =SUM(D67:E67,F67,G67) -> 252 | I67: =IFERROR(VLOOKUP(B67,'DSCTO PRESTAMO'!$C$4:$E$29,3,0),0) -> 0 | J67: MARZO A SEPTIEMBRE(hasta Julio S/ 252 y agosto y setiembre S/ 250)
A68: 66 | B68: 16704655 | C68: VILCHEZ SECLEN, MILCKA | E68: 330 | H68: =SUM(D68:E68,F68,G68) -> 330 | I68: =IFERROR(VLOOKUP(B68,'DSCTO PRESTAMO'!$C$4:$E$29,3,0),0) -> 2750 | J68: febrero a noviembre S/330 mensual
A69: 67 | B69: 44932569 | C69: VILLACORTA MARINA, VICTOR ALBERTO | F69: 200 | H69: 200 | I69: =IFERROR(VLOOKUP(B69,'DSCTO PRESTAMO'!$C$4:$E$29,3,0),0) -> 0
A70: TOTAL S/. | D70: =SUM(D3:D69) -> 440 | E70: =SUM(E3:E69) -> 7552 | F70: =SUM(F3:F69) -> 3810 | G70: =SUM(G3:G69) -> 0 | H70: =SUM(H3:H69) -> 11802
A72: RELACION DE TAPS. CONTRATADOS BAJO LA MODALIDAD CAS, QUE REALIZAN LABOR ADMINISTRATIVA QUE APORTAN VOLUNTARIAMENTE EN FORMA MENSUAL PARA CANASTA NAVIDEÑA AL SITRASS-BM Y DEVOLUCION DE PRESTAMOS Y OTROS, CORRESPONDIENTE AL MES DE JULIO - 2024 | J72: esta en rojo porque lo revise
A73: Nº | B73: Nº DNI | C73: APELLIDOS Y NOMBRES | D73: CUOTA | E73: PRESTAMO | F73: CANASTA | G73: OTROS | H73: TOTAL | I73: saldo
A74: 1 | B74: 40291265 | C74: AHUANARI ZUMBA, RICARDO | E74: 155 | H74: =SUM(D74,E74,F74,G74) -> 155 | I74: =IFERROR(VLOOKUP(B74,'DSCTO PRESTAMO'!$C$36:$E$62,3,0),0) -> 0 | J74: descto es 155 hasta noviembre
A75: 2 | B75: 40958386 | C75: APAESTEGUI HUANCA, LIZ HERMELINDA | F75: 100 | H75: =SUM(D75,E75,F75,G75) -> 100 | I75: =IFERROR(VLOOKUP(B75,'DSCTO PRESTAMO'!$C$36:$E$62,3,0),0) -> 0
A76: 3 | B76: 40821941 | C76: ASPAJO CHUMBE, VICTOR RAUL | E76: 294 | H76: =SUM(D76,E76,F76,G76) -> 294 | I76: =IFERROR(VLOOKUP(B76,'DSCTO PRESTAMO'!$C$36:$E$62,3,0),0) -> 880 | J76: JUNIO A AGOSTO
A77: 4 | B77: 45541324 | C77: BEJARANO AROSEMENA, AUREA MILAGROS | E77: 79 | H77: =SUM(D77,E77,F77,G77) -> 79 | I77: =IFERROR(VLOOKUP(B77,'DSCTO PRESTAMO'!$C$36:$E$62,3,0),0) -> 0 | J77: MAYO A NOVIEMBRE
A78: 5 | B78: 17838963 | C78: CABALLERO FERNANDEZ, MARIA ELEANA | E78: 100 | H78: 100 | I78: =IFERROR(VLOOKUP(B78,'DSCTO PRESTAMO'!$C$36:$E$62,3,0),0) -> 1650
A79: 6 | B79: 42085984 | C79: CARRION PANAYFO, SUSANA | F79: 50 | H79: 50 | I79: =IFERROR(VLOOKUP(B79,'DSCTO PRESTAMO'!$C$36:$E$62,3,0),0) -> 0
A80: 7 | B80: 41482777 | C80: CASTILLO MARINA, EDDY | E80: 413 | H80: 413 | I80: =IFERROR(VLOOKUP(B80,'DSCTO PRESTAMO'!$C$36:$E$62,3,0),0) -> 3309 | J80: ENERO A AGOSTO
A81: 8 | B81: 833790 | C81: CISNEROS HIDALGO, LOURDES AUGUSTA | D81: 10 | E81: 165 | H81: 175 | I81: =IFERROR(VLOOKUP(B81,'DSCTO PRESTAMO'!$C$36:$E$62,3,0),0) -> 0 | J81: ULTIMO DSCTO en julio
A82: 9 | B82: 45613869 | C82: CUEVA DOMINGUEZ, CESAR | F82: 50 | H82: 50 | I82: =IFERROR(VLOOKUP(B82,'DSCTO PRESTAMO'!$C$36:$E$62,3,0),0) -> 0
A83: 10 | B83: 40517481 | C83: DAHUA SALAZAR, ROGER AUGUSTO | E83: 300 | H83: 300 | I83: =IFERROR(VLOOKUP(B83,'DSCTO PRESTAMO'!$C$36:$E$62,3,0),0) -> 0
A84: 11 | B84: 42838960 | C84: DIAZ GARCIA, OLGA YSABEL | F84: 200 | H84: 200 | I84: =IFERROR(VLOOKUP(B84,'DSCTO PRESTAMO'!$C$36:$E$62,3,0),0) -> 0
A85: 12 | B85: 45634505 | C85: ENRIQUEZ MEDINA, MARITZA | F85: 100 | H85: 100 | I85: =IFERROR(VLOOKUP(B85,'DSCTO PRESTAMO'!$C$36:$E$62,3,0),0) -> 0
A86: 13 | B86: 70293110 | C86: FACUNDO SANCHEZ, DIANA LUZ | F86: 200 | H86: 200 | I86: =IFERROR(VLOOKUP(B86,'DSCTO PRESTAMO'!$C$36:$E$62,3,0),0) -> 0
A87: 14 | B87: 47967611 | C87: GASCO GUERRERO, OLGA LISETH | E87: 271 | H87: 271 | I87: =IFERROR(VLOOKUP(B87,'DSCTO PRESTAMO'!$C$36:$E$62,3,0),0) -> 0
A88: 15 | B88: 46773668 | C88: HOYOS CIEZA, DANY | F88: 180 | H88: 180 | I88: =IFERROR(VLOOKUP(B88,'DSCTO PRESTAMO'!$C$36:$E$62,3,0),0) -> 0
A89: 16 | B89: 43210651 | C89: HOYOS CIEZA, NEIDA | F89: 180 | H89: 180 | I89: =IFERROR(VLOOKUP(B89,'DSCTO PRESTAMO'!$C$36:$E$62,3,0),0) -> 0
A90: 17 | B90: 45433072 | C90: LINARES SANCHEZ, LIYANCI | E90: 250 | H90: 250 | I90: =IFERROR(VLOOKUP(B90,'DSCTO PRESTAMO'!$C$36:$E$62,3,0),0) -> 0
A91: 18 | B91: 71592738 | C91: LINAREZ DIAZ, KATHERYN | F91: 100 | H91: 100 | I91: =IFERROR(VLOOKUP(B91,'DSCTO PRESTAMO'!$C$36:$E$62,3,0),0) -> 0
A92: 19 | B92: 70232968 | C92: LOZANO REATEGUI, PEGGY | F92: 500 | H92: 500 | I92: =IFERROR(VLOOKUP(B92,'DSCTO PRESTAMO'!$C$36:$E$62,3,0),0) -> 0
A93: 20 | B93: 45546499 | C93: MARINA QUINTANA, JHINSS JACKSSON | E93: 422 | H93: 422 | I93: =IFERROR(VLOOKUP(B93,'DSCTO PRESTAMO'!$C$36:$E$62,3,0),0) -> 508.34
A94: 21 | B94: 41697516 | C94: MEJIA BABILONIA, SUSAN | F94: 120 | H94: 120 | I94: =IFERROR(VLOOKUP(B94,'DSCTO PRESTAMO'!$C$36:$E$62,3,0),0) -> 0
A95: 22 | B95: 45349774 | C95: MENDOZA BOCANEGRA, ROYLER | E95: 352 | H95: =SUM(D95,E95,F95,G95) -> 352 | I95: =IFERROR(VLOOKUP(B95,'DSCTO PRESTAMO'!$C$36:$E$62,3,0),0) -> 0
A96: 23 | B96: 41960601 | C96: MORALES ROJAS, WALTER | F96: 150 | H96: 150 | I96: =IFERROR(VLOOKUP(B96,'DSCTO PRESTAMO'!$C$36:$E$62,3,0),0) -> 0
A97: 24 | B97: 76734780 | C97: OCHOA RAMIREZ, JAIRO | F97: 200 | H97: 200 | I97: =IFERROR(VLOOKUP(B97,'DSCTO PRESTAMO'!$C$36:$E$62,3,0),0) -> 0
A98: 25 | B98: 40709980 | C98: PICHI ROBALINO, MARLLORI | E98: 220 | F98: 200 | H98: 420 | I98: =IFERROR(VLOOKUP(B98,'DSCTO PRESTAMO'!$C$36:$E$62,3,0),0) -> 0
A99: 26 | B99: 43186542 | C99: PINEDO BENZAQUEN, MARLY | E99: 137.5 | H99: =SUM(D99,E99,F99,G99) -> 137.5 | I99: =IFERROR(VLOOKUP(B99,'DSCTO PRESTAMO'!$C$36:$E$62,3,0),0) -> 0 | O99: =1100/8 -> 137.5
A100: 27 | B100: 70814205 | C100: PISCO CACHIQUE, LENNIN | F100: 200 | H100: 200 | I100: =IFERROR(VLOOKUP(B100,'DSCTO PRESTAMO'!$C$36:$E$62,3,0),0) -> 0
A101: 28 | B101: 42553620 | C101: QUIJANDRIA ARTEAGA, PEDRO JHONATAN | E101: 300 | H101: 300 | I101: =IFERROR(VLOOKUP(B101,'DSCTO PRESTAMO'!$C$36:$E$62,3,0),0) -> 0
A102: 29 | B102: 45820446 | C102: QUINTANA SANCHEZ, BELINDA | F102: 100 | H102: =SUM(D102:E102,F102,G102) -> 100 | I102: =IFERROR(VLOOKUP(B102,'DSCTO PRESTAMO'!$C$36:$E$62,3,0),0) -> 0
A103: 30 | B103: 44731355 | C103: REQUEJO SALDAÑA, ALBERTO IRRAEL | D103: 10 | F103: 100 | H103: =SUM(D103:E103,F103,G103) -> 110 | I103: =IFERROR(VLOOKUP(B103,'DSCTO PRESTAMO'!$C$36:$E$62,3,0),0) -> 0
A104: 31 | B104: 43244448 | C104: ROJAS LINARES, LENNIN | E104: 138 | H104: =SUM(D104,E104,F104,G104) -> 138 | I104: =IFERROR(VLOOKUP(B104,'DSCTO PRESTAMO'!$C$36:$E$62,3,0),0) -> 0 | J104: ABRIL A NOVIEMBRE
A105: 32 | B105: 46708679 | C105: RUIZ INUMA, KAREM PAOLA | E105: 550 | F105: 100 | H105: 650 | I105: =IFERROR(VLOOKUP(B105,'DSCTO PRESTAMO'!$C$36:$E$62,3,0),0) -> 0 | J105: dscto desde junio a noviembre S/ 550
A106: 33 | B106: 71241493 | C106: RUIZ PANDURO, KAREN LIZETTE | E106: 206 | H106: 206 | I106: =IFERROR(VLOOKUP(B106,'DSCTO PRESTAMO'!$C$36:$E$62,3,0),0) -> 0 | J106: ABRIL A NOVIEMBRE
A107: 34 | B107: 43338868 | C107: RUIZ PEREZ, EMERSON | E107: 279 | H107: 279 | I107: =IFERROR(VLOOKUP(B107,'DSCTO PRESTAMO'!$C$36:$E$62,3,0),0) -> 0 | J107: MAYO A NOVIEMBRE S/ 279
A108: 35 | B108: 41182987 | C108: RUIZ VASQUEZ, KATTY | F108: 100 | H108: 100 | I108: =IFERROR(VLOOKUP(B108,'DSCTO PRESTAMO'!$C$36:$E$62,3,0),0) -> 0
A109: 36 | B109: 47432982 | C109: SALAZAR SARANGO, YANELY | F109: 200 | H109: =SUM(D109:E109,F109,G109) -> 200 | I109: =IFERROR(VLOOKUP(B109,'DSCTO PRESTAMO'!$C$36:$E$62,3,0),0) -> 0
A110: 37 | B110: 44835307 | C110: SAYAVERDE ROSALES, ENLY LADWIN | E110: 137.5 | H110: =SUM(D110:E110,F110,G110) -> 137.5 | I110: =IFERROR(VLOOKUP(B110,'DSCTO PRESTAMO'!$C$36:$E$62,3,0),0) -> 0 | J110: de abril a noviembre S/ 137,5
A111: 38 | B111: 41822300 | C111: TANGOA SABOYA, JANMER BILLY | F111: 50 | H111: =SUM(D111,E111,F111,G111) -> 50 | I111: =IFERROR(VLOOKUP(B111,'DSCTO PRESTAMO'!$C$36:$E$62,3,0),0) -> 0
A112: 39 | B112: 72745501 | C112: TORRES GALLARDO, KATHERIN PAOLA | F112: 50 | H112: 50 | I112: =IFERROR(VLOOKUP(B112,'DSCTO PRESTAMO'!$C$36:$E$62,3,0),0) -> 0
A113: 40 | B113: 41224954 | C113: VARGAS ZUBIATE, WILMER | F113: 100 | H113: 100 | I113: =IFERROR(VLOOKUP(B113,'DSCTO PRESTAMO'!$C$36:$E$62,3,0),0) -> 0
A114: 41 | B114: 43032207 | C114: VASQUEZ RODRIGUEZ, JORGE MIGUEL | E114: 250 | H114: 250 | I114: =IFERROR(VLOOKUP(B114,'DSCTO PRESTAMO'!$C$36:$E$62,3,0),0) -> 2200 | J114: enero a noviembre S/ 250
A115: 42 | B115: 831310 | C115: VELA CASILLAS, MERLITH | E115: 179 | F115: 100 | H115: 279 | I115: =IFERROR(VLOOKUP(B115,'DSCTO PRESTAMO'!$C$36:$E$62,3,0),0) -> 0 | J115: enero a octubre S/, 154 | K115: solo en julio va ir 179 para regularizar de junio | L115: =154-129 -> 25 | M115: 129 | P115: 154 | Q115: =P115+L115 -> 179 | R115: 100 | S115: 279
A116: 43 | B116: 821756 | C116: YNGA CASIQUE, GEOMAR | E116: 250 | H116: 250 | I116: =IFERROR(VLOOKUP(B116,'DSCTO PRESTAMO'!$C$36:$E$62,3,0),0) -> 0 | J116: enero a noviembre S/ 250
A117: TOTAL S/. | D117: =SUM(D79:D116) -> 20 | E117: =SUM(E79:E116) -> 4820 | F117: =SUM(F79:F116) -> 3330 | G117: =SUM(G79:G116) -> 0 | H117: =SUM(H75:H116) -> 8743
H119: DEUDA ACTUAL 06/11/2024
A120: DEBEN | H120: DEBEN
A121: 1 | B121: CORDOVA ENCALADA, ROLANDO | D121: 1375 | H121: 1 | I121: CORDOVA ENCALADA, ROLANDO | K121: 1375
A122: 2 | B122: GONZALES SIMARRA, JHON HENRY | D122: 3300 | F122: fin de julio | H122: 2 | I122: GONZALES SIMARRA, JHON HENRY | K122: 3300 | M122: fin de julio
A123: 3 | B123: MAFALDO MACEDO, ABRAHAM | D123: 960 | E123: 954802517 | H123: 3 | I123: MAFALDO MACEDO, ABRAHAM | K123: 960 | L123: 954802517
A124: 4 | B124: PANDURO NUÑEZ, PETER | D124: 2204.82 | E124: 995053018 | H124: 4 | I124: PANDURO NUÑEZ, PETER | K124: 2204.82 | L124: 995053018
A125: 5 | B125: REATEGUI AREVALO, DANTE LUIS | D125: 1650 | H125: 5 | I125: SEPULVEDA VELA, SERGIO ANTONIO | K125: 1990.04
A126: 6 | B126: ROJAS BECERRA, LUCIA | D126: 755.59 | H126: 6 | I126: URBINA ARAUJO, MARIO ISMAEL | K126: 2194.5
A127: 7 | B127: SEPULVEDA VELA, SERGIO ANTONIO | D127: 2730 | H127: 7 | I127: REATEGUI AREVALO, DANTE LUIS | K127: 1650
A128: 8 | B128: URBINA ARAUJO, MARIO ISMAEL | D128: 2194.5
A129: TOTAL S/. | D129: =SUM(D121:D128) -> 15169.91 | H129: TOTAL S/. | K129: =SUM(K121:K128) -> 13674.36

Sheet Hoja1
A5: DEUDAS ANTERIORES
A6: 1 | B6: CORDOVA ENCALADA, ROLANDO | C6: 1375
A7: 2 | B7: GONZALES SIMARRA, JHON HENRY | C7: 3300
A8: 3 | B8: MAFALDO MACEDO, ABRAHAM | C8: 960 | D8: =C8/3 -> 320
A9: 4 | B9: PANDURO NUÑEZ, PETER | C9: 2204.82
A10: 5 | B10: URBINA ARAUJO, MARIO ISMAEL | C10: 2194.5
A11: 6 | B11: CORTEZ SALDAÑA, ROGER UBEDELINDO | C11: 1200 | D11: 1200
A12: 7 | B12: REATEGUI AREVALO, DANTE LUIS | C12: 1650 | G12: 1 | H12: CORDOVA ENCALADA, ROLANDO | J12: 1375 | N12: 1 | O12: CORDOVA ENCALADA, ROLANDO | Q12: 1375
A13: 8 | B13: BEJARANO AGUILAR, MAGALY ROCIO | C13: ='DSCTO PRESTAMO'!E38 -> 2200 | G13: 2 | H13: GONZALES SIMARRA, JHON HENRY | J13: 3300 | L13: fin de julio | N13: 2 | O13: GONZALES SIMARRA, JHON HENRY | Q13: 3300
A14: TOTAL S/. | C14: =SUM(C6:C13) -> 15084.32 | G14: 3 | H14: MAFALDO MACEDO, ABRAHAM | J14: 960 | K14: 954802517 | N14: 3 | O14: MAFALDO MACEDO, ABRAHAM | Q14: 960
G15: 4 | H15: PANDURO NUÑEZ, PETER | J15: 2204.82 | K15: 995053018 | N15: 4 | O15: PANDURO NUÑEZ, PETER | Q15: 2204.82
G16: 5 | H16: REATEGUI AREVALO, DANTE LUIS | J16: 1650 | N16: 5 | O16: SEPULVEDA VELA, SERGIO ANTONIO | Q16: 1990.04
G17: 6 | N17: 6 | O17: URBINA ARAUJO, MARIO ISMAEL | Q17: 2194.5
G18: 7 | N18: 7 | O18: REATEGUI AREVALO, DANTE LUIS | Q18: 1650
B19: PRESTAMOS OTORGADOS 2024 | C19: ='PRESTAMOS OTORGADOS'!T59 -> 150700 | G19: 8 | H19: URBINA ARAUJO, MARIO ISMAEL | J19: 2194.5
B20: INTERES 10% | C20: ='PRESTAMOS OTORGADOS'!U59 -> 15070 | G20: TOTAL S/. | J20: =SUM(J12:J19) -> 11684.32 | N20: TOTAL S/. | Q20: =SUM(Q12:Q19) -> 13674.36
B24: CANASTAS CAS POR DEVOLVER | C24: ='DEV CANASTA Y CUOTA'!BE104 -> 12760
B25: APORTE 276 POR DEVOLVER | C25: ='DEV CANASTA Y CUOTA'!AZ104+'DEV CANASTA Y CUOTA'!AZ59 -> 4999.9
B26: CANASTAS 276 POR DEVOLVER | C26: ='DEV CANASTA Y CUOTA'!BE59 -> 15829.9
C27: =SUM(C24:C26) -> 33589.8
B30: PRESTAMOS 276 POR COBRAR | C30: ='DSCTO PRESTAMO'!AS30 -> 21523.04
B31: PRESTAMOS CAS POR COBRAR | C31: ='DSCTO PRESTAMO'!AS63 -> 10470.34
C32: =SUM(C30:C31) -> 31993.38

Sheet LISTA NEGRA (hidden)
B12: BEJARANO | C12: EVALUAR CON EL COMITÉ
B13: SERGIO
B14: JHON SIMARRA
B15: CLIDER

Sheet LIBRO_AUXILIAR
A1: SINDICATO DE TRABAJADORES ADMINISTRATIVOS DEL SECTOR SALUD - BASE MOYOBAMBA
A2: ENERO - 2024
A3: Nº ORDEN | B3: FECHA | C3: DOC. | D3: Nº DOC. | E3: CONCEPTO | F3: INGRESO | G3: EGRESO | I3: SALDO
E4: SALDO INICIAL S/. | I4: 58496.48
A5: 01 | D5: 40291265 | E5: PRESTAMO: AHUANARI ZUMBA, RICARDO | F5: 0 | G5: 1000 | H5: =F5-G5 -> -1000 | I5: =I4+H5 -> 57496.48
A6: 02 | D6: 00819657 | E6: PRESTAMO: BARDALEZ ALVA, ANITA MERCEDES | F6: 0 | G6: 3000 | H6: -3000 | I6: 54496.48
A7: 03 | D7: 43180463 | E7: PRESTAMO: BEJARANO AGUILAR, MAGALY ROCIO | F7: 0 | G7: 3000 | H7: -3000 | I7: 51496.48
A8: 04 | D8: 17838963 | E8: PRESTAMO: CABALLERO FERNANDEZ, MARIA ELEANA | F8: 0 | G8: 1000 | H8: -1000 | I8: 50496.48
A9: 05 | D9: 41482777 | E9: PRESTAMO: CASTILLO MARINA, EDDY | F9: 0 | G9: 3000 | H9: -3000 | I9: 47496.48
A10: 06 | D10: 41109969 | E10: PRESTAMO: CORTEZ SALDAÑA, ROGER UBEDELINDO | F10: 0 | G10: 3000 | H10: -3000 | I10: 44496.48
A11: 07 | D11: 40517481 | E11: PRESTAMO: DAHUA SALAZAR, ROGER AUGUSTO | F11: 0 | G11: 3000 | H11: -3000 | I11: 41496.48
A12: 08 | D12: 00860936 | E12: PRESTAMO: FARRIS ARCENTALES, CARLOS ALBERTO | F12: 0 | G12: 3000 | H12: -3000 | I12: 38496.48
A13: 09 | D13: 47967611 | E13: PRESTAMO: GASCO GUERRERO, OLGA LISETH | F13: 0 | G13: 1000 | H13: -1000 | I13: 37496.48
A14: 10 | D14: 42179278 | E14: PRESTAMO: GONZALES SIMARRA, JHON HENRY | F14: 0 | G14: 3000 | H14: -3000 | I14: 34496.48
A15: 11 | D15: 45433072 | E15: PRESTAMO: LINARES SANCHEZ, LIYANCI | F15: 0 | G15: 2500 | H15: -2500 | I15: 31996.48
A16: 12 | D16: 00803522 | E16: PRESTAMO: LLAJA DIAZ, ALPINO | F16: 0 | G16: 4000 | H16: -4000 | I16: 27996.48
A17: 13 | D17: 45546499 | E17: PRESTAMO: MARINA QUINTANA, JHINS JACKSSON | F17: 0 | G17: 3000 | H17: =F17-G17 -> -3000 | I17: 24996.48
A18: 14 | D18: 72461720 | E18: PRESTAMO: MARTINEZ BENAVIDES, RODRIGO | F18: 0 | G18: 2000 | H18: -2000 | I18: 22996.48
A19: 15 | D19: 10276387 | E19: PRESTAMO: PAREDES AGUILAR, MARITA CAROLA | F19: 0 | G19: 4000 | H19: -4000 | I19: 18996.48
A20: 16 | D20: 43338868 | E20: PRESTAMO: QUIJANDRIA ARTEAGA, PEDRO JHONATAN | F20: 0 | G20: 3000 | H20: -3000 | I20: 15996.48
A21: 17 | D21: 43338868 | E21: PRESTAMO: RUIZ PEREZ, EMERSON | F21: 0 | G21: 2000 | H21: -2000 | I21: 13996.48
A22: 18 | D22: 00821066 | E22: PRESTAMO: SEPULVEDA VELA, SERGIO ANTONIO | F22: 0 | G22: 1152.5 | H22: -1152.5 | I22: 12843.98
A23: 19 | D23: 00802127 | E23: PRESTAMO: TORRES BARDALEZ, JAVIER | F23: 0 | G23: 2000 | H23: -2000 | I23: 10843.98
A24: 20 | D24: 43032207 | E24: PRESTAMO: VASQUEZ RODRIGUEZ, JORGE MIGUEL | F24: 0 | G24: 2500 | H24: -2500 | I24: 8343.98
A25: 21 | D25: 00821756 | E25: PRESTAMO: YNGA CASIQUE, GEOMAR | F25: 0 | G25: 2500 | H25: -2500 | I25: 5843.98
A26: 22 | E26: APORTE PARA CANASTA NAVIDEÑA - DEL CASTILLO GARCIA, JIMMY GERSON | F26: 100 | G26: 0 | H26: 100 | I26: 5943.98
A27: 23 | E27: DEVOLUCION DE PRESTAMO: TORRES ADRIAN, BANONI ELIASIB | F27: 465 | G27: 0 | H27: 465 | I27: 6408.98
E28: MOVIMIENTO DEL MES S/. | F28: =SUM(F4:F27) -> 565 | G28: =SUM(G5:G27) -> 52652.5 | I28: 6408.98
E29: SALDO INICIAL AL 01 DE ENERO 2024 | F29: =I4 -> 58496.48 | G29: 0 | I29: 6408.98
E30: SALDO FINAL AL 31 ENERO 2024 | F30: =SUM(F28:F29) -> 59061.48 | G30: =SUM(G28:G29) -> 52652.5 | I30: =I29+H30 -> 6408.98
A31: FEBRERO - 2024
A32: Nº ORDEN | B32: FECHA | C32: DOC. | D32: Nº DOC. | E32: CONCEPTO | F32: INGRESO | G32: EGRESO | I32: SALDO
E33: SALDO INICIAL S/. | I33: =I30 -> 6408.98
A34: 1 | E34: PRESTAMO: MENDOZA BOCANEGRA, ROYLER | F34: 0 | G34: 3200 | H34: =F34-G34 -> -3200 | I34: =I33+H34 -> 3208.98
A35: 2 | E35: PRESTAMO: ASPAJO CHUMBE, VICTOR RAUL | F35: 0 | G35: 200 | H35: -200 | I35: 3008.98
A36: 3 | E36: PRESTAMO: MUNDACA FLORES, KELVIN | F36: 0 | G36: 600 | H36: -600 | I36: 2408.98
A37: 4 | E37: PRESTAMO: AHUANARI ZUMBA, RICARDO | G37: 500 | H37: -500 | I37: 1908.98
A38: 5 | B38: 06/02 Y 26/01/2024 | D38: C/P 68 Y 6 | E38: CUOTA SINDICAL, APORTES, DEV. PRESTAMO Y OTROS - 276 - ENERO | F38: =394.68+5520.72 -> 5915.4 | H38: 5915.4 | I38: 7824.38
A39: 6 | B39: 2024-02-01 | D39: C/P 37 | E39: APORTES, DEV. PRESTAMO Y OTROS -CAS - ENERO | F39: 7213 | G39: 0 | H39: 7213 | I39: 15037.38
A40: 7 | E40: PRESTAMO: VILCHEZ SECLEN, MILKA | F40: 0 | G40: 3000 | H40: -3000 | I40: 12037.38
A41: 8 | E41: PRESTAMO: PICHI ROBALINO, MARLLORI | F41: 0 | G41: 2000 | H41: -2000 | I41: 10037.38
A42: 9 | E42: PRESTAMO: CALAMPA MAS, ELVIA JOSEFINA | F42: 0 | G42: 3000 | H42: -3000 | I42: 7037.38
A43: 10 | E43: PRESTAMO: MESIA GARCIA, CHRISTIAN ERICK | F43: 0 | G43: 1500 | H43: -1500 | I43: 5537.38
A44: 11 | E44: PRESTAMO: REATEGUI TELLO, LIZ JEANE | F44: 0 | G44: 800 | H44: -800 | I44: 4737.38
A45: 12 | E45: PRESTAMO: VASQUEZ HIDALGO, CUSTODIO | F45: 0 | G45: 300 | H45: -300 | I45: 4437.38
A46: 13 | E46: PRESTAMO: GONZALES SAAVEDRA, ANA | F46: 0 | G46: 2500 | H46: -2500 | I46: 1937.38
A47: 14 | E47: DEV. PRESTAMO: REATEGUI TELLO, LIZ JEANE | F47: 590 | G47: 0 | H47: 590 | I47: 2527.38
A48: 15 | E48: DEV. PRESTAMO: MESIA GARCIA, CHRISTIAN ERICK | F48: 1650 | G48: 0 | H48: 1650 | I48: 4177.38
A49: 16 | E49: PRESTAMO: REATEGUI TELLO, LIZ JEANE | F49: 0 | G49: 1500 | H49: -1500 | I49: 2677.38
A50: 17 | E50: PRESTAMO: PINEDO BENZAQUEN, MARLY | F50: 0 | G50: 1000 | H50: -1000 | I50: 1677.38
A51: 18 | E51: DEV. PRESTAMO: MARTINEZ BENAVIDES, RODRIGO | F51: 1800 | G51: 0 | H51: 1800 | I51: 3477.38
A52: 19 | E52: DEV. PRESTAMO: ASPAJO CHUMBE, VICTOR RAUL | F52: 220 | G52: 0 | H52: 220 | I52: 3697.38
A53: 20 | B53: 29/02 Y 26/02/2024 | D53: C/P 138 Y 5 | E53: CUOTA SINDICAL, APORTES, DEV. PRESTAMO Y OTROS - 276 - FEBRERO | F53: =6596.33+646.75 -> 7243.08 | G53: 0 | H53: 7243.08 | I53: 10940.46
A54: 21 | E54: PRESTAMO: MESIA GARCIA, CHRISTIAN ERICK | F54: 0 | G54: 1000 | H54: -1000 | I54: 9940.46
A55: 22 | E55: PRESTAMO: ASPAJO CHUMBE, VICTOR RAUL | F55: 0 | G55: 800 | H55: -800 | I55: 9140.46
A56: 23 | E56: PRESTAMO: CULQUI HERRERA, MARILU | F56: 0 | G56: 3000 | H56: -3000 | I56: 6140.46
A57: 24 | E57: PASAJES Y VIATICOS (TARAPOTO) - SERGIO Y WALTER | F57: 0 | G57: 360 | H57: -360 | I57: 5780.46
A58: 25 | E58: PRESTAMO: GUERRERO GARCIA, TEOBALDO | F58: 0 | G58: 1500 | H58: -1500 | I58: 4280.46
A59: 26 | E59: PRESTAMO: CAMPOS AVALOS, MOISES RAMIRO | F59: 0 | G59: 3000 | H59: -3000 | I59: 1280.46
A60: 27 | B60: 2024-03-01 | D60: C/P 182 | E60: APORTES, DEV. PRESTAMO Y OTROS - CAS - FEBRERO | F60: 8399.67 | G60: 0 | H60: 8399.67 | I60: 9680.13
A61: 28 | E61: PRESTAMO: VENEGAS MENDOZA, MARTHA | F61: 0 | G61: 1600 | H61: -1600 | I61: 8080.13
A62: 29 | E62: PRESTAMO: CORDOVA CAMPOS, CLARA | F62: 0 | G62: 1000 | H62: -1000 | I62: 7080.13
A63: 30 | F63: 0 | G63: 0 | H63: 0 | I63: 7080.13
A64: 31 | F64: 0 | G64: 0 | H64: 0 | I64: 7080.13
A65: 32 | F65: 0 | G65: 0 | H65: 0 | I65: 7080.13
A66: 33 | F66: 0 | G66: 0 | H66: 0 | I66: 7080.13
A67: 34 | F67: 0 | G67: 0 | H67: 0 | I67: 7080.13
A68: 35 | F68: 0 | G68: 0 | H68: 0 | I68: 7080.13
A69: 36 | F69: 0 | G69: 0 | H69: 0 | I69: =I68+H69 -> 7080.13
A70: 37 | F70: 0 | G70: 0 | H70: 0 | I70: 7080.13
A71: 38 | F71: 0 | G71: 0 | H71: 0 | I71: 7080.13
A72: 39 | F72: 0 | G72: 0 | H72: 0 | I72: 7080.13
A73: 40 | F73: 0 | G73: 0 | H73: 0 | I73: 7080.13
A74: 41 | F74: 0 | G74: 0 | H74: 0 | I74: 7080.13
A75: 42 | F75: 0 | G75: 0 | H75: 0 | I75: 7080.13
A76: 43 | F76: 0 | G76: 0 | H76: 0 | I76: 7080.13
F77: 0 | G77: 0 | H77: 0 | I77: 7080.13
E78: MOVIMIENTO DEL MES S/. | F78: =SUM(F33:F77) -> 33031.15 | G78: =SUM(G34:G77) -> 32360 | I78: =I77+H78 -> 7080.13
E79: SALDO INICIAL AL 01 DE FEBRERO 2024 | F79: =I33 -> 6408.98 | G79: 0 | I79: 7080.13
E80: SALDO FINAL AL 28 DE FEBRERO 2024 | F80: =SUM(F78:F79) -> 39440.13 | G80: =SUM(G78:G79) -> 32360 | I80: =F80-G80 -> 7080.13
A81: MARZO - 2024
A82: Nº ORDEN | B82: FECHA | C82: DOC. | D82: Nº DOC. | E82: CONCEPTO | F82: INGRESO | G82: EGRESO | I82: SALDO
E83: SALDO INICIAL S/. | I83: =I80 -> 7080.13
A84: 01 | E84: PRESTAMO: MARINA QUINTANA, JHINS JACKSSON | F84: 0 | G84: 1000 | H84: =F84-G84 -> -1000 | I84: =I83+H84 -> 6080.13
A85: 02 | E85: DEVOLUCION DE PRESTAMO DE COBRO INDEVIDO: MARTINEZ BENAVIDES, RODRIGO | F85: 0 | G85: 200 | H85: =F85-G85 -> -200 | I85: 5880.13
A86: 03 | E86: DEVOLUCION DE PRESTAMO DE COBRO INDEVIDO: YNGA CASIQUE, GEOMAR | F86: 0 | G86: 242.5 | H86: =F86-G86 -> -242.5 | I86: 5637.63
A87: 04 | E87: DEVOLUCION DE PRESTAMO DE COBRO INDEVIDO: MESIA GARCIA, CHRISTIAN | F87: 0 | G87: 592.5 | H87: =F87-G87 -> -592.5 | I87: 5045.13
A88: 05 | F88: 0 | G88: 0 | H88: 0 | I88: 5045.13
A89: 06 | F89: 0 | G89: 0 | H89: 0 | I89: 5045.13
A90: 07 | F90: 0 | G90: 0 | H90: 0 | I90: 5045.13
A91: 08 | F91: 0 | G91: 0 | H91: 0 | I91: 5045.13
A92: 09 | F92: 0 | G92: 0 | H92: 0 | I92: 5045.13
A93: 10 | F93: 0 | G93: 0 | H93: 0 | I93: 5045.13
A94: 11 | F94: 0 | G94: 0 | H94: 0 | I94: 5045.13
A95: 12 | F95: 0 | G95: 0 | H95: 0 | I95: 5045.13
A96: 13 | F96: 0 | G96: 0 | H96: 0 | I96: 5045.13
A97: 14 | F97: 0 | G97: 0 | H97: 0 | I97: 5045.13
A98: 15 | F98: 0 | G98: 0 | H98: 0 | I98: 5045.13
A99: 16 | F99: 0 | G99: 0 | H99: 0 | I99: 5045.13
A100: 17 | F100: 0 | G100: 0 | H100: 0 | I100: 5045.13
A101: 18 | F101: 0 | G101: 0 | H101: 0 | I101: 5045.13
A102: 19 | F102: 0 | G102: 0 | H102: 0 | I102: 5045.13
A103: 20 | F103: 0 | G103: 0 | H103: 0 | I103: 5045.13
A104: 21 | F104: 0 | G104: 0 | H104: 0 | I104: 5045.13
A105: 22 | F105: 0 | G105: 0 | H105: 0 | I105: 5045.13
A106: 23 | F106: 0 | G106: 0 | H106: 0 | I106: 5045.13
A107: 24 | F107: 0 | G107: 0 | H107: 0 | I107: 5045.13
A108: 25 | F108: 0 | G108: 0 | H108: 0 | I108: 5045.13
A109: 26 | F109: 0 | G109: 0 | H109: 0 | I109: 5045.13
A110: 27 | F110: 0 | G110: 0 | H110: 0 | I110: 5045.13
A111: 28 | F111: 0 | G111: 0 | H111: 0 | I111: 5045.13
A112: 29 | F112: 0 | G112: 0 | H112: 0 | I112: 5045.13
A113: 30 | F113: 0 | G113: 0 | H113: 0 | I113: 5045.13
A114: 31 | F114: 0 | G114: 0 | H114: 0 | I114: 5045.13
A115: 32 | F115: 0 | G115: 0 | H115: 0 | I115: 5045.13
A116: 33 | F116: 0 | G116: 0 | H116: 0 | I116: 5045.13
A117: 34 | F117: 0 | G117: 0 | H117: 0 | I117: 5045.13
A118: 35 | F118: 0 | G118: 0 | H118: 0 | I118: 5045.13
A119: 36 | F119: 0 | G119: 0 | H119: 0 | I119: 5045.13
A120: 37 | F120: 0 | G120: 0 | H120: 0 | I120: 5045.13
A121: 38 | F121: 0 | G121: 0 | H121: 0 | I121: 5045.13
A122: 39 | F122: 0 | G122: 0 | H122: 0 | I122: 5045.13
A123: 40 | F123: 0 | G123: 0 | H123: 0 | I123: 5045.13
A124: 41 | F124: 0 | G124: 0 | H124: 0 | I124: 5045.13
A125: 42 | F125: 0 | G125: 0 | H125: 0 | I125: 5045.13
A126: 43 | F126: 0 | G126: 0 | H126: 0 | I126: 5045.13
A127: 44 | F127: 0 | G127: 0 | H127: 0 | I127: 5045.13
A128: 45 | F128: 0 | G128: 0 | H128: 0 | I128: 5045.13
A129: 46 | F129: 0 | G129: 0 | H129: 0 | I129: 5045.13
A130: 47 | F130: 0 | G130: 0 | H130: 0 | I130: 5045.13
A131: 48 | F131: 0 | G131: 0 | H131: 0 | I131: 5045.13
A132: 49 | F132: 0 | G132: 0 | H132: 0 | I132: 5045.13
A133: 50 | F133: 0 | G133: 0 | H133: 0 | I133: 5045.13
A134: 51 | F134: 0 | G134: 0 | H134: 0 | I134: 5045.13
A135: 52 | F135: 0 | G135: 0 | H135: 0 | I135: 5045.13
A136: 53 | F136: 0 | G136: 0 | H136: 0 | I136: 5045.13
A137: 54 | F137: 0 | G137: 0 | H137: 0 | I137: 5045.13
A138: 55 | F138: 0 | G138: 0 | H138: 0 | I138: 5045.13
A139: 56 | F139: 0 | G139: 0 | H139: 0 | I139: 5045.13
A140: 57 | F140: 0 | G140: 0 | H140: 0 | I140: 5045.13
A141: 58 | F141: 0 | G141: 0 | H141: 0 | I141: 5045.13
A142: 59 | F142: 0 | G142: 0 | H142: 0 | I142: 5045.13
A143: 60 | F143: 0 | G143: 0 | H143: 0 | I143: 5045.13
A144: 61 | F144: 0 | G144: 0 | H144: 0 | I144: 5045.13
A145: 62 | F145: 0 | G145: 0 | H145: 0 | I145: 5045.13
A146: 63 | F146: 0 | G146: 0 | H146: 0 | I146: 5045.13
A147: 64 | F147: 0 | G147: 0 | H147: 0 | I147: 5045.13
E148: MOVIMIENTO DEL MES S/. | F148: =SUM(F83:F147) -> 0 | G148: =SUM(G83:G147) -> 2035 | I148: =I147+H148 -> 5045.13
E149: SALDO INICIAL AL 01 DE MARZO 2024 | F149: =I83 -> 7080.13 | G149: 0 | I149: 5045.13
E150: SALDO FINAL AL 31 DE MARZO 2024 | F150: =SUM(F148:F149) -> 7080.13 | G150: =SUM(G148:G149) -> 2035 | I150: =F150-G150 -> 5045.13
A151: ABRIL - 2024
A152: Nº ORDEN | B152: FECHA | C152: DOC. | D152: Nº DOC. | E152: CONCEPTO | F152: INGRESO | G152: EGRESO | I152: SALDO
E153: SALDO INICIAL S/. | I153: =I150 -> 5045.13
A154: 01 | E154: PRESTAMO: RENGIFO TUESTA, MERIDA | F154: 0 | G154: 1000 | H154: =F154-G154 -> -1000 | I154: =I153+H154 -> 4045.13
A155: 02 | E155: PRESTAMO: ROJAS LINARES, LENIN | F155: 0 | G155: 1000 | H155: -1000 | I155: 3045.13
A156: 03 | E156: PRESTAMO: RUIZ PANDURO, KAREN | F156: 0 | G156: 1500 | H156: -1500 | I156: 1545.13
A157: 04 | B157: 2024-04-02 | D157: C/P 255 | E157: CUOTA SINDICAL, APORTES, DEV. PRESTAMO Y OTROS - 276 - MARZO | F157: =10650.98 -> 10650.98 | G157: 0 | H157: 10650.98 | I157: =I156+H157 -> 12196.11
A158: 05 | B158: 2024-04-09 | D158: C/P 229 | E158: CUOTA SINDICAL, APORTES, DEV. PRESTAMO Y OTROS - CAS - MARZO | F158: =8404 -> 8404 | G158: 0 | H158: =F158-G158 -> 8404 | I158: =I157+H158 -> 20600.11
A159: 06 | E159: PRESTAMO: BEJARANO AGUILAR, MAGALY ROCIO | F159: 0 | G159: 3000 | H159: =F159-G159 -> -3000 | I159: =I158+H159 -> 17600.11
A160: 07 | B160: 2024-04-09 | D160: C/P 45 | E160: CUOTA SINDICAL, APORTES, DEV. PRESTAMO Y OTROS - 276 - MARZO | F160: 562.07 | G160: 0 | H160: =F160-G160 -> 562.07 | I160: 18162.18
A161: 09 | E161: PRESTAMO: MESIA GARCIA, CHRISTIAN ERICK | F161: 0 | G161: 1000 | H161: -1000 | I161: 17162.18
A162: 10 | E162: PRESTAMO: VASQUEZ HIDALGO, CUSTODIO | G162: 250 | H162: -250 | I162: 16912.18
A163: 11 | E163: PAGO EFECTIVO DR. CORTES (CUOTA SE PUSO EN EL RESUMEN EN MARZO (PAGO ENERO) | F163: 300 | G163: 0 | H163: =F163-G163 -> 300 | I163: 17212.18
A164: 12 | E164: PRESTAMO: SAYAVERDE ROSALES, ENLY | F164: 0 | G164: 1000 | H164: -1000 | I164: 16212.18
A165: 13 | E165: PRESTAMO: PISCO CACHIQUE, LENIN | F165: 0 | G165: 600 | H165: -600 | I165: 15612.18
A166: 14 | E166: PAGO DE CUOTA: FERTRASPUSAM | F166: 0 | G166: 600 | H166: -600 | I166: 15012.18
A167: 08 | B167: 2024-04-09 | D167: C/P 42 | E167: CUOTA SINDICAL, APORTES, DEV. PRESTAMO Y OTROS - CAS - MARZO (dahua) | F167: 300 | G167: 0 | H167: =F167-G167 -> 300 | I167: 15312.18
A168: 15 | E168: PRESTAMO: BEJARANO AROSEMENA, AUREA MILAGROS | F168: 0 | G168: 500 | H168: -500 | I168: 14812.18
A169: 16 | E169: PRESTAMO: TORRES REATEGUI, MARIANELA | F169: 0 | G169: 2000 | H169: -2000 | I169: 12812.18
A170: 17 | E170: PRESTAMO: GASCO GUERRERO, OLGA LISETH | F170: 0 | G170: 1000 | H170: -1000 | I170: 11812.18
A171: 18 | E171: PRESTAMO: NARVA QUISPE, MARIANO JOSE | F171: 0 | G171: 400 | H171: -400 | I171: 11412.18 | J171: HASTA AQUÍ REVISADO
A172: 19 | E172: PRESTAMO: RUIZ PEREZ, EMERSON | F172: 0 | G172: 500 | H172: -500 | I172: 10912.18
A173: 20 | E173: DEVOLUCION DE APORTE PARA CANASTA NAVIDEÑA: MEJIA BABILONIA, SUSAN | F173: 0 | G173: 400 | H173: -400 | I173: 10512.18
A174: 21 | E174: DEVOLUCION DE APORTE PARA CANASTA NAVIDEÑA: RAMIREZ VASQUEZ, LITA | F174: 0 | G174: 2400 | H174: -2400 | I174: 8112.18
A175: 22 | E175: DEVOLUCION DE APORTE PARA CANASTA NAVIDEÑA: VARGAS ZUBIATE, WILMER | F175: 0 | G175: 300 | H175: -300 | I175: 7812.18
A176: 23 | E176: PRESTAMO: VASQUEZ HIDALGO, CUSTODIO | F176: 0 | G176: 500 | H176: -500 | I176: 7312.18
A177: 24 | F177: 0 | G177: 0 | H177: 0 | I177: 7312.18
A178: 25 | F178: 0 | G178: 0 | H178: 0 | I178: 7312.18
A179: 26 | F179: 0 | G179: 0 | H179: 0 | I179: 7312.18
E180: MOVIMIENTO DEL MES S/. | F180: =SUM(F154:F179) -> 20217.05 | G180: =SUM(G154:G179) -> 17950 | I180: 7312.18
E181: SALDO INICIAL AL 01 DE ABRIL 2024 | F181: =I153 -> 5045.13 | G181: 0 | I181: 7312.18
E182: SALDO FINAL AL 30 DE ABRIL 2024 | F182: =SUM(F180:F181) -> 25262.18 | G182: =SUM(G180:G181) -> 17950 | I182: =F182-G182 -> 7312.18
A183: MAYO - 2024
A184: Nº ORDEN | B184: FECHA | C184: DOC. | D184: Nº DOC. | E184: CONCEPTO | F184: INGRESO | G184: EGRESO | I184: SALDO
E185: SALDO INICIAL S/. | I185: =I182 -> 7312.18
A186: 01 | B186: 2024-04-29 | D186: C/P 50 | E186: CUOTA SINDICAL, APORTES, DEV. PRESTAMO Y OTROS - 276 - ABRIL | F186: 9639.86 | G186: 0 | H186: =F186-G186 -> 9639.86 | I186: =I185+H186 -> 16952.04
A187: 02 | B187: 2024-04-29 | D187: C/P 51 | E187: CUOTA SINDICAL, APORTES, DEV. PRESTAMO Y OTROS - CAS - ABRIL | F187: 8526 | G187: 0 | H187: =F187-G187 -> 8526 | I187: =I186+H187 -> 25478.04
A188: 03 | B188: 2024-04-23 | D188: C/P 74 | E188: CUOTA SINDICAL, APORTES, DEV. PRESTAMO Y OTROS - 276 - ABRIL (kelvin) | F188: 340.59 | G188: 0 | H188: =F188-G188 -> 340.59 | I188: =I187+H188 -> 25818.63
A189: 04 | E189: DEVOLUCION DE APORTACION PARA CANASTA NAVIDEÑA: SALDAÑA LUNA, ROCIO DEL PILAR | F189: 0 | G189: 400 | H189: -400 | I189: =I188+H189 -> 25418.63
A190: 05 | E190: PAGO EFECTIVO DR. CORTES (CUOTA SE PUSO EN EL RESUMEN EN ABRIL) (PAGO DE FEBRERO) | F190: 300 | G190: 0 | H190: =F190-G190 -> 300 | I190: 25718.63
E191: PAGO EFECTIVO DR. CORTES (CUOTA SE PUSO EN EL RESUMEN EN MAYO) (PAGO DE MARZO) | F191: 300 | G191: 0 | H191: =F191-G191 -> 300 | I191: 26018.63
A192: 06 | E192: DEVOLUCION DE APORTACION PARA CANASTA NAVIDEÑA:PICHI ROBALINO, MARLLORI | F192: 0 | G192: 500 | H192: -500 | I192: =I191+H192 -> 25518.63 | K192: OJO FALTA VER DE DON SERGIO
A193: 07 | E193: PRESTAMO: RUIZ INUMA, KAREM PAOLA | F193: 0 | G193: 3000 | H193: -3000 | I193: 22518.63
A194: 08 | E194: DEVOLUCION DE APORTACION PARA CANASTA NAVIDEÑA:VELA CASILLAS, MERLITH | F194: 0 | G194: 500 | H194: -500 | I194: 22018.63
A195: 09 | E195: DEVOLUCION DE APORTACION PARA CANASTA NAVIDEÑA:PEZO PEZO, ARNALDO | F195: 0 | G195: 500 | H195: -500 | I195: 21518.63
A196: 10 | E196: PRESTAMO: MESIA GARCIA, CHRISTIAN ERICK | F196: 0 | G196: 2000 | H196: -2000 | I196: 19518.63
A197: 11 | E197: PRESTAMO: RENGIFO TUESTA, MERIDA | F197: 0 | G197: 2000 | H197: -2000 | I197: 17518.63
A198: 12 | E198: PRESTAMO: VELA CASILLAS, MERLITH | F198: 0 | G198: 1000 | H198: -1000 | I198: 16518.63
A199: 13 | E199: DEVOLUCION DE PRESTAMO EN EFECTIVO (ASPAJO CHUMBE, VICTOR) PARA PODER DAR PRESTAMO | F199: 292 | G199: 0 | H199: =F199-G199 -> 292 | I199: 16810.63
A200: 14 | E200: PRESTAMO: ASPAJO CHUMBE, VICTOR RAUL | F200: 0 | G200: 800 | H200: -800 | I200: 16010.63
... 259 more rows

Sheet RESUMEN KR
A1: DESCUENTO PRESTAMOS
A2: Nº | B2: APELLIDOS Y NOMBRES | D2: ENERO | I2: FEBRERO | N2: MARZO | S2: ABRIL | X2: MAYO | AC2: JUNIO | AH2: JULIO | AM2: AGOSTO | AR2: SEPTIEMBRE | AW2: OCTUBRE | BB2: NOVIEMBRE | BG2: DICIEMBRE | BL2: TOTAL
C3: DNI | D3: CUOTA | E3: PREST. | F3: CANASTA | G3: OTROS | H3: TOTAL | I3: CUOTA | J3: PREST. | K3: CANASTA | L3: OTROS | M3: TOTAL | N3: CUOTA | O3: PREST. | P3: CANASTA | Q3: OTROS | R3: TOTAL | S3: CUOTA | T3: PREST. | U3: CANASTA | V3: OTROS | W3: TOTAL | X3: CUOTA | Y3: PREST. | Z3: CANASTA | AA3: OTROS | AB3: TOTAL | AC3: CUOTA | AD3: PREST. | AE3: CANASTA | AF3: OTROS | AG3: TOTAL | AH3: CUOTA | AI3: PREST. | AJ3: CANASTA | AK3: OTROS | AL3: TOTAL | AM3: CUOTA | AN3: PREST. | AO3: CANASTA | AP3: OTROS | AQ3: TOTAL | AR3: CUOTA | AS3: PREST. | AT3: CANASTA | AU3: OTROS | AV3: TOTAL | AW3: CUOTA | AX3: PREST. | AY3: CANASTA | AZ3: OTROS | BA3: TOTAL | BB3: CUOTA | BC3: PREST. | BD3: CANASTA | BE3: OTROS | BF3: TOTAL | BG3: CUOTA | BH3: PREST. | BI3: CANASTA | BJ3: OTROS | BK3: TOTAL | BL3: CUOTA | BM3: PREST. | BN3: CANASTA | BO3: OTROS | BP3: TOTAL
A4: 1 | B4: ARIAS NORIEGA, CECILIA | C4: 804505 | D4: 10 | E4: 0 | F4: 0 | G4: 0 | H4: =SUM(D4,E4,F4,G4) -> 10 | I4: 10 | J4: 0 | K4: 0 | L4: 0 | M4: =SUM(I4,J4,K4,L4) -> 10 | N4: 10 | O4: 0 | P4: 0 | Q4: 0 | R4: =SUM(N4,O4,P4,Q4) -> 10 | S4: 10 | T4: 0 | U4: 0 | V4: 0 | W4: =SUM(S4,T4,U4,V4) -> 10 | X4: 10 | Y4: 0 | Z4: 0 | AA4: 0 | AB4: =SUM(X4,Y4,Z4,AA4) -> 10 | AC4: 10 | AD4: 0 | AE4: 0 | AF4: 0 | AG4: =SUM(AC4,AD4,AE4,AF4) -> 10 | AH4: 10 | AI4: 0 | AJ4: 0 | AK4: 0 | AL4: =SUM(AH4,AI4,AJ4,AK4) -> 10 | AM4: 10 | AN4: 0 | AO4: 0 | AP4: 0 | AQ4: =SUM(AM4,AN4,AO4,AP4) -> 10 | AR4: 10 | AS4: 0 | AT4: 0 | AU4: 0 | AV4: =SUM(AR4,AS4,AT4,AU4) -> 10 | AW4: 10 | AX4: 0 | AY4: 0 | AZ4: 0 | BA4: =SUM(AW4,AX4,AY4,AZ4) -> 10 | BB4: 10 | BC4: 0 | BD4: 0 | BE4: 0 | BF4: =SUM(BB4,BC4,BD4,BE4) -> 10 | BG4: 0 | BH4: 0 | BI4: 0 | BJ4: 0 | BK4: =SUM(BG4,BH4,BI4,BJ4) -> 0 | BL4: =SUM(D4,I4,N4,S4,X4,AC4,AH4,AM4,AR4,AW4,BB4,BG4) -> 110 | BM4: 0 | BN4: 0 | BO4: =SUM(G4,L4,Q4,V4,AA4,AF4,AK4,AP4,AU4,AZ4,BE4,BR4,BJ4) -> 0 | BP4: =SUM(H4,M4,R4,W4,AB4,AG4,AL4,AQ4,AV4,BA4,BF4,BK4) -> 110
A5: 2 | B5: BARDALEZ ALVA, ANITA MERCEDES | C5: 819657 | D5: 10 | E5: 300 | F5: 0 | G5: 0 | H5: =SUM(D5,E5,F5,G5) -> 310 | I5: 10 | J5: 300 | K5: 0 | L5: 0 | M5: =SUM(I5,J5,K5,L5) -> 310 | N5: 10 | O5: 300 | P5: 0 | Q5: 0 | R5: =SUM(N5,O5,P5,Q5) -> 310 | S5: 10 | T5: 300 | V5: 0 | W5: =SUM(S5,T5,U5,V5) -> 310 | X5: 10 | Y5: 300 | Z5: 0 | AA5: 0 | AB5: =SUM(X5,Y5,Z5,AA5) -> 310 | AC5: 10 | AD5: 300 | AE5: 0 | AF5: 0 | AG5: =SUM(AC5,AD5,AE5,AF5) -> 310 | AH5: 10 | AI5: 300 | AJ5: 0 | AK5: 0 | AL5: =SUM(AH5,AI5,AJ5,AK5) -> 310 | AM5: 10 | AN5: 300 | AO5: 0 | AP5: 0 | AQ5: =SUM(AM5,AN5,AO5,AP5) -> 310 | AR5: 10 | AS5: 300 | AT5: 0 | AU5: 0 | AV5: =SUM(AR5,AS5,AT5,AU5) -> 310 | AW5: 10 | AX5: 300 | AY5: 0 | AZ5: 0 | BA5: 310 | BB5: 10 | BC5: 300 | BD5: 0 | BE5: 0 | BF5: 310 | BG5: 0 | BH5: 0 | BI5: 0 | BJ5: 0 | BK5: 0 | BL5: 110 | BM5: =SUM(E5,J5,O5,T5,Y5,AD5,AI5,AN5,AS5,AX5,BC5,BH5) -> 3300 | BN5: 0 | BO5: 0 | BP5: 3410
A6: 3 | B6: BAZAN VELA, SAMUEL | C6: 807060 | D6: 10 | E6: 0 | F6: 100 | G6: 0 | H6: 110 | I6: 10 | J6: 0 | K6: 100 | L6: 0 | M6: 110 | N6: 10 | O6: 0 | P6: 100 | Q6: 0 | R6: 110 | S6: 10 | T6: 0 | U6: 100 | V6: 0 | W6: 110 | X6: 10 | Y6: 0 | Z6: 100 | AA6: 0 | AB6: 110 | AC6: 10 | AD6: 0 | AE6: 100 | AF6: 0 | AG6: 110 | AH6: 10 | AI6: 0 | AJ6: 100 | AK6: 0 | AL6: =SUM(AH6,AI6,AJ6,AK6) -> 110 | AM6: 10 | AN6: 0 | AO6: 100 | AP6: 0 | AQ6: 110 | AR6: 0 | AS6: 0 | AT6: 0 | AU6: 0 | AV6: 0 | AW6: 0 | AX6: 0 | AY6: 0 | AZ6: 0 | BA6: 0 | BB6: 0 | BC6: 0 | BD6: 0 | BE6: 0 | BF6: 0 | BG6: 0 | BH6: 0 | BI6: 0 | BJ6: 0 | BK6: 0 | BL6: 80 | BM6: 0 | BN6: 800 | BO6: 0 | BP6: 880
A7: 4 | B7: BAZAN VARGAS, KIEFFER SEGUNDO | C7: 6796264 | AH7: 0 | AI7: 550 | AJ7: 0 | AK7: 0 | AL7: 550 | AN7: 550 | AQ7: 550 | AS7: 550 | AV7: 550 | AW7: 0 | AX7: 550 | AY7: 0 | AZ7: 0 | BA7: 550 | BB7: 0 | BC7: 550 | BD7: 0 | BE7: 0 | BF7: 550 | BG7: 0 | BH7: 0 | BI7: 0 | BJ7: 0 | BK7: 0 | BL7: =SUM(D7,I7,N7,S7,X7,AC7,AH7,AM7,AR7,AW7,BB7,BG7) -> 0 | BM7: =SUM(E7,J7,O7,T7,Y7,AD7,AI7,AN7,AS7,AX7,BC7,BH7) -> 2750 | BN7: =SUM(F7,K7,P7,U7,Z7,AE7,AJ7,AO7,AT7,AY7,BD7,BI7) -> 0 | BO7: =SUM(G7,L7,Q7,V7,AA7,AF7,AK7,AP7,AU7,AZ7,BE7,BR7,BJ7) -> 0 | BP7: =SUM(H7,M7,R7,W7,AB7,AG7,AL7,AQ7,AV7,BA7,BF7,BK7) -> 2750
A8: 5 | B8: CENTURION TAPIA, BEATRIZ | C8: 830793 | D8: 10 | E8: 0 | F8: 0 | G8: 0 | H8: 10 | I8: 10 | J8: 0 | K8: 0 | L8: 0 | M8: 10 | N8: 10 | O8: 0 | P8: 0 | Q8: 0 | R8: 10 | S8: 10 | T8: 0 | U8: 0 | V8: 0 | W8: 10 | X8: 10 | Y8: 0 | Z8: 0 | AA8: 0 | AB8: 10 | AC8: 10 | AD8: 0 | AE8: 0 | AF8: 0 | AG8: 10 | AH8: 10 | AI8: 0 | AJ8: 0 | AK8: 0 | AL8: 10 | AM8: 10 | AN8: 0 | AO8: 0 | AP8: 0 | AQ8: 10 | AR8: 10 | AS8: 0 | AT8: 0 | AU8: 0 | AV8: 10 | AW8: 10 | AX8: 0 | AY8: 0 | AZ8: 0 | BA8: 10 | BB8: 10 | BC8: 0 | BD8: 0 | BE8: 0 | BF8: 10 | BG8: 0 | BH8: 0 | BI8: 0 | BJ8: 0 | BK8: 0 | BL8: 110 | BM8: 0 | BN8: 0 | BO8: 0 | BP8: 110
A9: 6 | B9: CHACON DEL AGUILA, GLADYS | C9: 1045926 | D9: 10 | E9: 0 | F9: 0 | G9: 0 | H9: 10 | I9: 10 | J9: 0 | K9: 0 | L9: 0 | M9: 10 | N9: 10 | O9: 0 | P9: 0 | Q9: 0 | R9: 10 | S9: 10 | T9: 0 | U9: 0 | V9: 0 | W9: 10 | X9: 10 | Y9: 0 | Z9: 0 | AA9: 0 | AB9: 10 | AC9: 10 | AD9: 0 | AE9: 0 | AF9: 0 | AG9: 10 | AH9: 10 | AI9: 0 | AJ9: 0 | AK9: 0 | AL9: 10 | AM9: 10 | AN9: 0 | AO9: 0 | AP9: 0 | AQ9: 10 | AR9: 10 | AS9: 0 | AT9: 0 | AU9: 0 | AV9: 10 | AW9: 10 | AX9: 0 | AY9: 0 | AZ9: 0 | BA9: 10 | BB9: 10 | BC9: 0 | BD9: 0 | BE9: 0 | BF9: 10 | BG9: 0 | BH9: 0 | BI9: 0 | BJ9: 0 | BK9: =SUM(BG9,BH9,BI9,BJ9) -> 0 | BL9: 110 | BM9: 0 | BN9: 0 | BO9: 0 | BP9: 110
A10: 7 | B10: CORDOVA CAMPOS, CLARA | C10: 860881 | D10: 10 | E10: 0 | F10: 0 | G10: 0 | H10: 10 | I10: 0 | J10: 0 | K10: 0 | L10: 0 | M10: 0 | N10: 20 | O10: 123 | P10: 0 | Q10: 0 | R10: 143 | S10: 10 | T10: 123 | U10: 0 | V10: 0 | W10: 133 | X10: 10 | Y10: 123 | Z10: 0 | AA10: 0 | AB10: 133 | AC10: 10 | AD10: 123 | AE10: 0 | AF10: 0 | AG10: 133 | AH10: 10 | AI10: 122 | AJ10: 0 | AK10: 0 | AL10: 132 | AM10: 10 | AN10: =122+365 -> 487 | AO10: 0 | AP10: 0 | AQ10: 497 | AR10: 0 | AS10: 0 | AT10: 0 | AU10: 0 | AV10: 0 | AW10: 10 | AX10: 0 | AY10: 0 | AZ10: 0 | BA10: 10 | BB10: 10 | BC10: 0 | BD10: 0 | BE10: 0 | BF10: 10 | BG10: 0 | BH10: 0 | BI10: 0 | BJ10: 0 | BK10: =SUM(BG10,BH10,BI10,BJ10) -> 0 | BL10: 100 | BM10: 1101 | BN10: 0 | BO10: 0 | BP10: 1201
A11: 8 | B11: CORONEL BARDALES, MIKE | C11: 43143883 | D11: 10 | E11: 0 | F11: 100 | G11: 0 | H11: 110 | I11: 10 | J11: 0 | K11: 100 | L11: 0 | M11: 110 | N11: 10 | O11: 0 | P11: 100 | Q11: 0 | R11: 110 | S11: 10 | T11: 0 | U11: 100 | V11: 0 | W11: 110 | X11: 10 | Y11: 0 | Z11: 100 | AA11: 0 | AB11: 110 | AC11: 10 | AD11: 0 | AE11: 100 | AF11: 0 | AG11: 110 | AH11: 10 | AI11: 0 | AJ11: 100 | AK11: 0 | AL11: 110 | AM11: 10 | AN11: 0 | AO11: 100 | AP11: 0 | AQ11: 110 | AR11: 10 | AS11: 0 | AT11: 100 | AU11: 0 | AV11: 110 | AW11: 10 | AX11: 0 | AY11: 100 | AZ11: 0 | BA11: 110 | BB11: 10 | BC11: 0 | BD11: 100 | BE11: 0 | BF11: 110 | BG11: 0 | BH11: 0 | BI11: 0 | BJ11: 0 | BK11: =SUM(BG11,BH11,BI11,BJ11) -> 0 | BL11: 110 | BM11: 0 | BN11: 1100 | BO11: 0 | BP11: 1210
A12: 9 | B12: CORONEL BARDALES, TANIA | C12: 44405357 | D12: 10 | E12: 0 | F12: 200 | G12: 0 | H12: =SUM(D12,E12,F12,G12) -> 210 | I12: 10 | J12: 0 | K12: 200 | L12: 0 | M12: =SUM(I12,J12,K12,L12) -> 210 | N12: 10 | O12: 0 | P12: 200 | Q12: 0 | R12: =SUM(N12,O12,P12,Q12) -> 210 | S12: 10 | T12: 0 | U12: 200 | V12: 0 | W12: =SUM(S12,T12,U12,V12) -> 210 | X12: 10 | Y12: 0 | Z12: 200 | AA12: 0 | AB12: =SUM(X12,Y12,Z12,AA12) -> 210 | AC12: 10 | AD12: 0 | AE12: 200 | AF12: 0 | AG12: =SUM(AC12,AD12,AE12,AF12) -> 210 | AH12: 10 | AI12: 0 | AJ12: 200 | AK12: 0 | AL12: =SUM(AH12,AI12,AJ12,AK12) -> 210 | AM12: 10 | AN12: 0 | AO12: 200 | AP12: 0 | AQ12: =SUM(AM12,AN12,AO12,AP12) -> 210 | AR12: 10 | AS12: 0 | AT12: 200 | AU12: 0 | AV12: =SUM(AR12,AS12,AT12,AU12) -> 210 | AW12: 10 | AX12: 0 | AY12: 200 | AZ12: 0 | BA12: =SUM(AW12,AX12,AY12,AZ12) -> 210 | BB12: 10 | BC12: 0 | BD12: 200 | BE12: 0 | BF12: =SUM(BB12,BC12,BD12,BE12) -> 210 | BG12: 0 | BH12: 0 | BI12: 0 | BJ12: 0 | BK12: =SUM(BG12,BH12,BI12,BJ12) -> 0 | BL12: =SUM(D12,I12,N12,S12,X12,AC12,AH12,AM12,AR12,AW12,BB12,BG12) -> 110 | BM12: 0 | BN12: 2200 | BO12: 0 | BP12: 2310
A13: 10 | B13: CALAMPA MAS, ELVIA JOSEFINA | C13: 7018656 | D13: 0 | E13: 0 | F13: 0 | G13: 0 | H13: =SUM(D13,E13,F13,G13) -> 0 | I13: 0 | J13: 0 | K13: 0 | L13: 0 | M13: =SUM(I13,J13,K13,L13) -> 0 | N13: 0 | O13: 367 | P13: 0 | Q13: 0 | R13: =SUM(N13,O13,P13,Q13) -> 367 | S13: 0 | T13: 367 | U13: 0 | V13: 0 | W13: =SUM(S13,T13,U13,V13) -> 367 | X13: 0 | Y13: 367 | Z13: 0 | AA13: 0 | AB13: =SUM(X13,Y13,Z13,AA13) -> 367 | AC13: 0 | AD13: 367 | AE13: 0 | AF13: 0 | AG13: =SUM(AC13,AD13,AE13,AF13) -> 367 | AH13: 0 | AI13: 367 | AJ13: 0 | AK13: 0 | AL13: =SUM(AH13,AI13,AJ13,AK13) -> 367 | AM13: 0 | AN13: 367 | AO13: 0 | AP13: 0 | AQ13: =SUM(AM13,AN13,AO13,AP13) -> 367 | AR13: 0 | AS13: 367 | AT13: 0 | AU13: 0 | AV13: 367 | AW13: 0 | AX13: =365.5+367 -> 732.5 | AY13: 0 | AZ13: 0 | BA13: 732.5 | BB13: 0 | BC13: 0 | BD13: 0 | BE13: 0 | BF13: 0 | BG13: 0 | BH13: 0 | BI13: 0 | BJ13: 0 | BK13: 0 | BL13: 0 | BM13: 3301.5 | BN13: =SUM(F13,K13,P13,U13,Z13,AE13,AJ13,AO13,AT13,AY13,BD13,BI13) -> 0 | BO13: =SUM(G13,L13,Q13,V13,AA13,AF13,AK13,AP13,AU13,AZ13,BE13,BR13,BJ13) -> 0 | BP13: =SUM(H13,M13,R13,W13,AB13,AG13,AL13,AQ13,AV13,BA13,BF13,BK13) -> 3301.5
A14: 11 | B14: CAMPOS AVALOS, MOISES RAMIRO | C14: 18169707 | D14: 0 | E14: 0 | F14: 0 | G14: 0 | H14: =SUM(D14,E14,F14,G14) -> 0 | I14: 0 | J14: 0 | K14: 0 | L14: 0 | M14: =SUM(I14,J14,K14,L14) -> 0 | N14: 0 | O14: 550 | P14: 0 | Q14: 0 | R14: =SUM(N14,O14,P14,Q14) -> 550 | S14: 0 | T14: 0 | U14: 0 | V14: 0 | W14: =SUM(S14,T14,U14,V14) -> 0 | X14: 0 | Y14: 0 | Z14: 0 | AA14: 0 | AB14: =SUM(X14,Y14,Z14,AA14) -> 0 | AC14: 0 | AD14: 550 | AE14: 0 | AF14: 0 | AG14: =SUM(AC14,AD14,AE14,AF14) -> 550 | AH14: 0 | AI14: 550 | AJ14: 0 | AK14: 0 | AL14: =SUM(AH14,AI14,AJ14,AK14) -> 550 | AM14: 0 | AN14: 550 | AO14: 0 | AP14: 0 | AQ14: =SUM(AM14,AN14,AO14,AP14) -> 550 | AR14: 0 | AS14: 550 | AT14: 0 | AU14: 0 | AV14: 550 | AW14: 0 | AX14: 550 | AY14: 0 | AZ14: 0 | BA14: 550 | BB14: 0 | BC14: 0 | BD14: 0 | BE14: 0 | BF14: 0 | BG14: 0 | BH14: 0 | BI14: 0 | BJ14: 0 | BK14: 0 | BL14: 0 | BM14: 3300 | BN14: =SUM(F14,K14,P14,U14,Z14,AE14,AJ14,AO14,AT14,AY14,BD14,BI14) -> 0 | BO14: 0 | BP14: 3300
A15: 12 | B15: CASIQUE BOCANEGRA, PAWEL | C15: 42118509 | D15: 0 | E15: 0 | F15: 100 | G15: 0 | H15: =SUM(D15,E15,F15,G15) -> 100 | I15: 0 | J15: 0 | K15: 100 | L15: 0 | M15: =SUM(I15,J15,K15,L15) -> 100 | N15: 0 | O15: 0 | P15: 100 | Q15: 0 | R15: =SUM(N15,O15,P15,Q15) -> 100 | S15: 0 | T15: 0 | U15: 100 | V15: 0 | W15: =SUM(S15,T15,U15,V15) -> 100 | X15: 0 | Y15: 0 | Z15: 100 | AA15: 0 | AB15: =SUM(X15,Y15,Z15,AA15) -> 100 | AC15: 0 | AD15: 0 | AE15: 100 | AF15: 0 | AG15: =SUM(AC15,AD15,AE15,AF15) -> 100 | AH15: 0 | AI15: 0 | AJ15: 100 | AK15: 0 | AL15: =SUM(AH15,AI15,AJ15,AK15) -> 100 | AM15: 0 | AN15: 0 | AO15: 100 | AP15: 0 | AQ15: =SUM(AM15,AN15,AO15,AP15) -> 100 | AR15: 0 | AS15: 0 | AT15: 100 | AU15: 0 | AV15: 100 | AW15: 0 | AX15: 0 | AY15: 100 | AZ15: 0 | BA15: 100 | BB15: 0 | BC15: 0 | BD15: 100 | BE15: 0 | BF15: 100 | BG15: 0 | BH15: 0 | BI15: 0 | BJ15: 0 | BK15: 0 | BL15: 0 | BM15: 0 | BN15: =SUM(F15,K15,P15,U15,Z15,AE15,AJ15,AO15,AT15,AY15,BD15,BI15) -> 1100 | BO15: 0 | BP15: 1100
A16: 13 | B16: COLLAZOS SANTILLAN, ELVIA OLINDA | C16: 834319 | D16: 0 | E16: 0 | F16: 0 | G16: 0 | H16: =SUM(D16,E16,F16,G16) -> 0 | I16: 0 | J16: 0 | K16: 0 | L16: 0 | M16: =SUM(I16,J16,K16,L16) -> 0 | N16: 0 | O16: 0 | P16: 220 | Q16: 0 | R16: =SUM(N16,O16,P16,Q16) -> 220 | S16: 0 | T16: 0 | U16: 110 | V16: 0 | W16: =SUM(S16,T16,U16,V16) -> 110 | X16: 0 | Y16: 0 | Z16: 110 | AA16: 0 | AB16: =SUM(X16,Y16,Z16,AA16) -> 110 | AC16: 0 | AD16: 0 | AE16: 110 | AF16: 0 | AG16: =SUM(AC16,AD16,AE16,AF16) -> 110 | AH16: 0 | AI16: 0 | AJ16: 110 | AK16: 0 | AL16: =SUM(AH16,AI16,AJ16,AK16) -> 110 | AM16: 0 | AN16: 0 | AO16: 110 | AP16: 0 | AQ16: =SUM(AM16,AN16,AO16,AP16) -> 110 | AR16: 0 | AS16: 0 | AT16: 110 | AU16: 0 | AV16: 110 | AW16: 0 | AX16: 0 | AY16: 0 | AZ16: 0 | BA16: 0 | BB16: 0 | BC16: 0 | BD16: 0 | BE16: 0 | BF16: 0 | BG16: 0 | BH16: 0 | BI16: 0 | BJ16: 0 | BK16: 0 | BL16: 0 | BM16: 0 | BN16: =SUM(F16,K16,P16,U16,Z16,AE16,AJ16,AO16,AT16,AY16,BD16,BI16) -> 880 | BO16: 0 | BP16: 880
A17: 14 | B17: CONTRERAS ASPAJO MIKY PAOLA | C17: 43562698 | AN17: 550 | AQ17: =SUM(AM17,AN17,AO17,AP17) -> 550 | AS17: 550 | AV17: 550 | AW17: 0 | AX17: 550 | AY17: 0 | AZ17: 0 | BA17: 550 | BB17: 0 | BC17: 550 | BD17: 0 | BE17: 0 | BF17: 550 | BG17: 0 | BH17: 0 | BI17: 0 | BJ17: 0 | BK17: 0 | BL17: =SUM(D17,I17,N17,S17,X17,AC17,AH17,AM17,AR17,AW17,BB17,BG17) -> 0 | BM17: =SUM(E17,J17,O17,T17,Y17,AD17,AI17,AN17,AS17,AX17,BC17,BH17) -> 2200 | BN17: =SUM(F17,K17,P17,U17,Z17,AE17,AJ17,AO17,AT17,AY17,BD17,BI17) -> 0 | BO17: 0 | BP17: 2200
A18: 15 | B18: CORTEZ SALDAÑA, ROGER UBEDELINDO | C18: 45433072 | D18: 0 | E18: 0 | F18: 0 | G18: 0 | H18: =SUM(D18,E18,F18,G18) -> 0 | I18: 0 | J18: 0 | K18: 0 | L18: 0 | M18: =SUM(I18,J18,K18,L18) -> 0 | N18: 0 | O18: 300 | P18: 0 | Q18: 0 | R18: =SUM(N18,O18,P18,Q18) -> 300 | S18: 0 | T18: 300 | U18: 0 | V18: 0 | W18: =SUM(S18,T18,U18,V18) -> 300 | X18: 0 | Y18: 900 | Z18: 0 | AA18: 0 | AB18: =SUM(X18,Y18,Z18,AA18) -> 900 | AC18: 0 | AD18: 0 | AE18: 0 | AF18: 0 | AG18: =SUM(AC18,AD18,AE18,AF18) -> 0 | AH18: 0 | AI18: 0 | AJ18: 0 | AK18: 0 | AL18: =SUM(AH18,AI18,AJ18,AK18) -> 0 | AM18: 0 | AN18: 0 | AO18: 0 | AP18: 0 | AQ18: 0 | AR18: 0 | AS18: 300 | AT18: 0 | AU18: 0 | AV18: 300 | AW18: 0 | AX18: 300 | AY18: 0 | AZ18: 0 | BA18: 300 | BB18: 0 | BC18: 300 | BD18: 0 | BE18: 0 | BF18: 300 | BG18: 0 | BH18: 0 | BI18: 0 | BJ18: 0 | BK18: 0 | BL18: =SUM(D18,I18,N18,S18,X18,AC18,AH18,AM18,AR18,AW18,BB18,BG18) -> 0 | BM18: 2400 | BN18: 0 | BO18: 0 | BP18: 2400
A19: 16 | B19: CULQUI HERRERA, MARILU | C19: 838453 | D19: 0 | E19: 0 | F19: 0 | G19: 0 | H19: =SUM(D19,E19,F19,G19) -> 0 | I19: 0 | J19: 0 | K19: 0 | L19: 0 | M19: =SUM(I19,J19,K19,L19) -> 0 | N19: 0 | O19: 367 | P19: 0 | Q19: 0 | R19: =SUM(N19,O19,P19,Q19) -> 367 | S19: 0 | T19: 367 | U19: 0 | V19: 0 | W19: =SUM(S19,T19,U19,V19) -> 367 | X19: 0 | Y19: 367 | Z19: 0 | AA19: 0 | AB19: =SUM(X19,Y19,Z19,AA19) -> 367 | AC19: 0 | AD19: 367 | AE19: 0 | AF19: 0 | AG19: =SUM(AC19,AD19,AE19,AF19) -> 367 | AH19: 0 | AI19: 1832 | AJ19: 0 | AK19: 0 | AL19: =SUM(AH19,AI19,AJ19,AK19) -> 1832 | AM19: 0 | AN19: 0 | AO19: 0 | AP19: 0 | AQ19: =SUM(AM19,AN19,AO19,AP19) -> 0 | AR19: 0 | AS19: 0 | AT19: 0 | AU19: 0 | AV19: 0 | AW19: 0 | AX19: 0 | AY19: 0 | AZ19: 0 | BA19: 0 | BB19: 0 | BC19: 0 | BD19: 0 | BE19: 0 | BF19: 0 | BG19: 0 | BH19: 0 | BI19: 0 | BJ19: 0 | BK19: 0 | BL19: 0 | BM19: 3300 | BN19: 0 | BO19: 0 | BP19: 3300
A20: 17 | B20: DAVILA RENGIFO, DALILA | C20: 16733999 | D20: 10 | E20: 0 | F20: 40 | G20: 0 | H20: 50 | I20: 10 | J20: 0 | K20: 40 | L20: 0 | M20: 50 | N20: 10 | O20: 0 | P20: 40 | Q20: 0 | R20: 50 | S20: 10 | T20: 0 | U20: 40 | V20: 0 | W20: 50 | X20: 10 | Y20: 0 | Z20: 40 | AA20: 0 | AB20: 50 | AC20: 10 | AD20: 0 | AE20: 40 | AF20: 0 | AG20: 50 | AH20: 10 | AI20: 0 | AJ20: 40 | AK20: 0 | AL20: 50 | AM20: 10 | AN20: 0 | AO20: 40 | AP20: 0 | AQ20: 50 | AR20: 10 | AS20: 0 | AT20: 40 | AU20: 0 | AV20: 50 | AW20: 10 | AX20: 0 | AY20: 40 | AZ20: 0 | BA20: 50 | BB20: 10 | BC20: 0 | BD20: 40 | BE20: 0 | BF20: 50 | BG20: 0 | BH20: 0 | BI20: 0 | BJ20: 0 | BK20: 0 | BL20: 110 | BM20: 0 | BN20: 440 | BO20: 0 | BP20: 550
A21: 18 | B21: DEL CASTILLO GARCIA, JIMMY GERSON | C21: 42245490 | D21: 10 | E21: 0 | F21: 100 | G21: 0 | H21: 110 | I21: 10 | J21: 0 | K21: 100 | L21: 0 | M21: 110 | N21: 10 | O21: 0 | P21: 100 | Q21: 0 | R21: 110 | S21: 10 | T21: 0 | U21: 100 | V21: 0 | W21: 110 | X21: 10 | Y21: 0 | Z21: 100 | AA21: 0 | AB21: 110 | AC21: 10 | AD21: 0 | AE21: 100 | AF21: 0 | AG21: 110 | AH21: 10 | AI21: 0 | AJ21: 100 | AK21: 0 | AL21: 110 | AM21: 10 | AN21: 0 | AO21: 100 | AP21: 0 | AQ21: 110 | AR21: 10 | AS21: 0 | AT21: 100 | AU21: 0 | AV21: 110 | AW21: 10 | AX21: 0 | AY21: 100 | AZ21: 0 | BA21: 110 | BB21: 10 | BC21: 0 | BD21: 100 | BE21: 0 | BF21: 110 | BG21: 0 | BH21: 0 | BI21: 0 | BJ21: 0 | BK21: 0 | BL21: 110 | BM21: 0 | BN21: 1100 | BO21: 0 | BP21: 1210
A22: 19 | B22: DIAZ BUSTAMANTE, WILSON | C22: 43238538 | D22: 10 | E22: 0 | F22: 100 | G22: 0 | H22: 110 | I22: 10 | J22: 0 | K22: 100 | L22: 0 | M22: 110 | N22: 10 | O22: 0 | P22: 100 | Q22: 0 | R22: 110 | S22: 10 | T22: 0 | U22: 100 | V22: 0 | W22: 110 | X22: 10 | Y22: 0 | Z22: 100 | AA22: 0 | AB22: 110 | AC22: 10 | AD22: 0 | AE22: 100 | AF22: 0 | AG22: 110 | AH22: 10 | AI22: 0 | AJ22: 100 | AK22: 0 | AL22: 110 | AM22: 10 | AN22: 0 | AO22: 100 | AP22: 0 | AQ22: 110 | AR22: 10 | AS22: 0 | AT22: 100 | AU22: 0 | AV22: 110 | AW22: 10 | AX22: 0 | AY22: 100 | AZ22: 0 | BA22: 110 | BB22: 10 | BC22: 0 | BD22: 100 | BE22: 0 | BF22: 110 | BG22: 0 | BH22: 0 | BI22: 0 | BJ22: 0 | BK22: 0 | BL22: 110 | BM22: 0 | BN22: 1100 | BO22: 0 | BP22: 1210
A23: 20 | B23: DIAZ DIAZ, CLIDER | C23: 40536257 | D23: 10 | E23: 0 | F23: 0 | G23: 0 | H23: 10 | I23: 10 | J23: 0 | K23: 0 | L23: 0 | M23: 10 | N23: 10 | O23: 0 | P23: 0 | Q23: 0 | R23: 10 | S23: 10 | T23: 0 | U23: 0 | V23: 0 | W23: 10 | X23: 10 | Y23: 0 | Z23: 0 | AA23: 0 | AB23: 10 | AC23: 10 | AD23: 0 | AE23: 0 | AF23: 0 | AG23: 10 | AH23: 10 | AI23: 0 | AJ23: 0 | AK23: 0 | AL23: 10 | AM23: 10 | AN23: 0 | AO23: 0 | AP23: 0 | AQ23: 10 | AR23: 10 | AS23: 0 | AT23: 0 | AU23: 0 | AV23: 10 | AW23: 10 | AX23: 0 | AY23: 0 | AZ23: 0 | BA23: 10 | BB23: 10 | BC23: 0 | BD23: 0 | BE23: 0 | BF23: 10 | BG23: 0 | BH23: 0 | BI23: 0 | BJ23: 0 | BK23: 0 | BL23: 110 | BM23: =SUM(E23,J23,O23,T23,Y23,AD23,AI23,AN23,AS23,AX23,BC23,BH23) -> 0 | BN23: 0 | BO23: 0 | BP23: 110
A24: 21 | B24: FARRIS ARCENTALES, CARLOS ALBERTO | C24: 860936 | D24: 10 | E24: =235.32+64.68 -> 300 | F24: 20 | G24: 0 | H24: 330 | I24: 10 | J24: =235.32+64.68 -> 300 | K24: 20 | L24: 0 | M24: 330 | N24: 10 | O24: 300 | P24: 20 | Q24: 0 | R24: 330 | S24: 10 | T24: =222.04+77.96 -> 300 | U24: 20 | V24: 0 | W24: 330 | X24: 10 | Y24: 300 | Z24: 20 | AA24: 0 | AB24: 330 | AC24: 10 | AD24: 300 | AE24: 20 | AF24: 0 | AG24: 330 | AH24: 10 | AI24: 300 | AJ24: 20 | AK24: 0 | AL24: 330 | AM24: 10 | AN24: 300 | AO24: 20 | AP24: 0 | AQ24: 330 | AR24: 10 | AS24: 300 | AT24: 20 | AU24: 0 | AV24: 330 | AW24: 10 | AX24: 300 | AY24: 20 | AZ24: 0 | BA24: 330 | BB24: 10 | BC24: 300 | BD24: 20 | BE24: 0 | BF24: 330 | BG24: 0 | BH24: 0 | BI24: 0 | BJ24: 0 | BK24: 0 | BL24: 110 | BM24: 3300 | BN24: 220 | BO24: 0 | BP24: 3630
A25: 22 | B25: FERNANDEZ CHAVEZ, JUAN MANUEL | C25: 860048 | D25: 10 | E25: 0 | F25: 40 | G25: 0 | H25: 50 | I25: 10 | J25: 0 | K25: 40 | L25: 0 | M25: 50 | N25: 10 | O25: 0 | P25: 40 | Q25: 0 | R25: 50 | S25: 10 | T25: 0 | U25: 40 | V25: 0 | W25: 50 | X25: 10 | Y25: 0 | Z25: 40 | AA25: 0 | AB25: 50 | AC25: 10 | AD25: 0 | AE25: 40 | AF25: 0 | AG25: 50 | AH25: 10 | AI25: 0 | AJ25: 40 | AK25: 0 | AL25: 50 | AM25: 10 | AN25: 0 | AO25: 40 | AP25: 0 | AQ25: 50 | AR25: 10 | AS25: 0 | AT25: 40 | AU25: 0 | AV25: 50 | AW25: 10 | AX25: 0 | AY25: 40 | AZ25: 0 | BA25: 50 | BB25: 10 | BC25: 0 | BD25: 40 | BE25: 0 | BF25: 50 | BG25: 0 | BH25: 0 | BI25: 0 | BJ25: 0 | BK25: 0 | BL25: 110 | BM25: 0 | BN25: 440 | BO25: 0 | BP25: 550
A26: 23 | B26: GONZALES SIMARRA, JHON HENRY | C26: 42179278 | D26: 0 | E26: 0 | F26: 0 | G26: 0 | H26: 0 | I26: 13.08 | J26: 0 | K26: 0 | L26: 0 | M26: 13.08 | N26: 13.55 | O26: 0 | P26: 0 | Q26: 0 | R26: 13.55 | S26: 13.55 | T26: 0 | U26: 0 | V26: 0 | W26: 13.55 | X26: 13.55 | Y26: 0 | Z26: 0 | AA26: 0 | AB26: 13.55 | AC26: 11.74 | AD26: 0 | AE26: 0 | AF26: 0 | AG26: 11.74 | AH26: 0 | AI26: 0 | AJ26: 0 | AK26: 0 | AL26: 0 | AM26: 7.43 | AN26: 0 | AO26: 0 | AP26: 0 | AQ26: 7.43 | AR26: 0 | AS26: 0 | AT26: 0 | AU26: 0 | AV26: 0 | AW26: 0 | AX26: 0 | AY26: 0 | AZ26: 0 | BA26: 0 | BB26: 11.3 | BC26: 0 | BD26: 0 | BE26: 0 | BF26: 11.3 | BG26: 0 | BH26: 0 | BI26: 0 | BJ26: 0 | BK26: 0 | BL26: 84.2 | BM26: 0 | BN26: 0 | BO26: 0 | BP26: 84.2
A27: 24 | B27: GONZALES TORRES, DALILA | C27: 832485 | D27: 10 | E27: 0 | F27: 0 | G27: 0 | H27: 10 | I27: 10 | J27: 0 | K27: 0 | L27: 0 | M27: 10 | N27: 10 | O27: 0 | P27: 0 | Q27: 0 | R27: 10 | S27: 10 | T27: 0 | U27: 0 | V27: 0 | W27: 10 | X27: 10 | Y27: 0 | Z27: 0 | AA27: 0 | AB27: 10 | AC27: 10 | AD27: 0 | AE27: 0 | AF27: 0 | AG27: 10 | AH27: 10 | AI27: 0 | AJ27: 0 | AK27: 0 | AL27: 10 | AM27: 10 | AN27: 0 | AO27: 0 | AP27: 0 | AQ27: 10 | AR27: 10 | AS27: 0 | AT27: 0 | AU27: 0 | AV27: 10 | AW27: 10 | AX27: 0 | AY27: 0 | AZ27: 0 | BA27: 10 | BB27: 10 | BC27: 0 | BD27: 0 | BE27: 0 | BF27: 10 | BG27: 0 | BH27: 0 | BI27: 0 | BJ27: 0 | BK27: =SUM(BG27,BH27,BI27,BJ27) -> 0 | BL27: 110 | BM27: 0 | BN27: 0 | BO27: 0 | BP27: 110
A28: 25 | B28: GUERRERO GARCIA, TEOBALDO | C28: 831944 | D28: 0 | E28: 0 | F28: 0 | G28: 0 | H28: 0 | I28: 20 | J28: 0 | K28: 0 | L28: 0 | M28: 20 | N28: 20 | O28: 184 | P28: 0 | Q28: 0 | R28: 204 | S28: 10 | T28: 184 | U28: 0 | V28: 0 | W28: 194 | X28: 10 | Y28: 184 | Z28: 0 | AA28: 0 | AB28: 194 | AC28: 10 | AD28: 184 | AE28: 0 | AF28: 0 | AG28: 194 | AH28: 10 | AI28: 184 | AJ28: 0 | AK28: 0 | AL28: 194 | AM28: 10 | AN28: 184 | AO28: 0 | AP28: 0 | AQ28: 194 | AR28: 10 | AS28: 184 | AT28: 0 | AU28: 0 | AV28: 194 | AW28: 10 | AX28: 184 | AY28: 0 | AZ28: 0 | BA28: 194 | BB28: 10 | BC28: 178 | BD28: 0 | BE28: 0 | BF28: 188 | BG28: 0 | BH28: 0 | BI28: 0 | BJ28: 0 | BK28: =SUM(BG28,BH28,BI28,BJ28) -> 0 | BL28: =SUM(D28,I28,N28,S28,X28,AC28,AH28,AM28,AR28,AW28,BB28,BG28) -> 120 | BM28: 1650 | BN28: 0 | BO28: 0 | BP28: 1770
A29: 26 | B29: GONZALES SAAVEDRA, ANA | C29: 16680144 | D29: 0 | E29: 0 | F29: 0 | G29: 0 | H29: =SUM(D29,E29,F29,G29) -> 0 | I29: 0 | J29: 0 | K29: 0 | L29: 0 | M29: =SUM(I29,J29,K29,L29) -> 0 | N29: 0 | O29: 367 | P29: 0 | Q29: 0 | R29: =SUM(N29,O29,P29,Q29) -> 367 | S29: 0 | T29: 298 | U29: 0 | V29: 0 | W29: =SUM(S29,T29,U29,V29) -> 298 | X29: 0 | Y29: 298 | Z29: 0 | AA29: 0 | AB29: =SUM(X29,Y29,Z29,AA29) -> 298 | AC29: 0 | AD29: 300 | AE29: 0 | AF29: 0 | AG29: =SUM(AC29,AD29,AE29,AF29) -> 300 | AH29: 0 | AI29: 300 | AJ29: 0 | AK29: 0 | AL29: =SUM(AH29,AI29,AJ29,AK29) -> 300 | AM29: 0 | AN29: 300 | AO29: 0 | AP29: 0 | AQ29: =SUM(AM29,AN29,AO29,AP29) -> 300 | AR29: 0 | AS29: 300 | AT29: 0 | AU29: 0 | AV29: =SUM(AR29,AS29,AT29,AU29) -> 300 | AW29: 0 | AX29: 300 | AY29: 0 | AZ29: 0 | BA29: =SUM(AW29,AX29,AY29,AZ29) -> 300 | BB29: 0 | BC29: 287 | BD29: 0 | BE29: 0 | BF29: =SUM(BB29,BC29,BD29,BE29) -> 287 | BG29: 0 | BH29: 0 | BI29: 0 | BJ29: 0 | BK29: =SUM(BG29,BH29,BI29,BJ29) -> 0 | BL29: =SUM(D29,I29,N29,S29,X29,AC29,AH29,AM29,AR29,AW29,BB29,BG29) -> 0 | BM29: 2750 | BN29: 0 | BO29: =SUM(G29,L29,Q29,V29,AA29,AF29,AK29,AP29,AU29,AZ29,BE29,BR29,BJ29) -> 0 | BP29: =SUM(H29,M29,R29,W29,AB29,AG29,AL29,AQ29,AV29,BA29,BF29,BK29) -> 2750
A30: 27 | B30: GONZALES TORRES, JANE | C30: 45824659 | D30: 0 | E30: 0 | F30: 150 | G30: 0 | H30: =SUM(D30,E30,F30,G30) -> 150 | I30: 0 | J30: 0 | K30: 150 | L30: 0 | M30: =SUM(I30,J30,K30,L30) -> 150 | N30: 0 | O30: 0 | P30: 150 | Q30: 0 | R30: =SUM(N30,O30,P30,Q30) -> 150 | S30: 0 | T30: 0 | U30: 150 | V30: 0 | W30: =SUM(S30,T30,U30,V30) -> 150 | X30: 0 | Y30: 0 | Z30: 150 | AA30: 0 | AB30: =SUM(X30,Y30,Z30,AA30) -> 150 | AC30: 0 | AD30: 0 | AE30: 150 | AF30: 0 | AG30: =SUM(AC30,AD30,AE30,AF30) -> 150 | AH30: 0 | AI30: 0 | AJ30: 150 | AK30: 0 | AL30: =SUM(AH30,AI30,AJ30,AK30) -> 150 | AM30: 0 | AN30: 0 | AO30: 150 | AP30: 0 | AQ30: =SUM(AM30,AN30,AO30,AP30) -> 150 | AR30: 0 | AS30: 0 | AT30: 150 | AU30: 0 | AV30: =SUM(AR30,AS30,AT30,AU30) -> 150 | AW30: 0 | AX30: 0 | AY30: 150 | AZ30: 0 | BA30: =SUM(AW30,AX30,AY30,AZ30) -> 150 | BB30: 0 | BC30: 0 | BD30: 150 | BE30: 0 | BF30: =SUM(BB30,BC30,BD30,BE30) -> 150 | BG30: 0 | BH30: 0 | BI30: 0 | BJ30: 0 | BK30: =SUM(BG30,BH30,BI30,BJ30) -> 0 | BL30: 0 | BM30: 0 | BN30: 1650 | BO30: =SUM(G30,L30,Q30,V30,AA30,AF30,AK30,AP30,AU30,AZ30,BE30,BR30,BJ30) -> 0 | BP30: =SUM(H30,M30,R30,W30,AB30,AG30,AL30,AQ30,AV30,BA30,BF30,BK30) -> 1650
A31: 28 | B31: GUEVARA MONTENEGRO, LEYDI ENITH | C31: 48710214 | D31: 0 | E31: 0 | F31: 200 | G31: 0 | H31: =SUM(D31,E31,F31,G31) -> 200 | I31: 0 | J31: 0 | K31: 200 | L31: 0 | M31: =SUM(I31,J31,K31,L31) -> 200 | N31: 0 | O31: 0 | P31: 200 | Q31: 0 | R31: =SUM(N31,O31,P31,Q31) -> 200 | S31: 0 | T31: 0 | U31: 200 | V31: 0 | W31: =SUM(S31,T31,U31,V31) -> 200 | X31: 0 | Y31: 0 | Z31: 200 | AA31: 0 | AB31: =SUM(X31,Y31,Z31,AA31) -> 200 | AC31: 0 | AD31: 0 | AE31: 200 | AF31: 0 | AG31: =SUM(AC31,AD31,AE31,AF31) -> 200 | AH31: 0 | AI31: 0 | AJ31: 200 | AK31: 0 | AL31: =SUM(AH31,AI31,AJ31,AK31) -> 200 | AM31: 0 | AN31: 0 | AO31: 200 | AP31: 0 | AQ31: =SUM(AM31,AN31,AO31,AP31) -> 200 | AR31: 0 | AS31: 0 | AT31: 200 | AU31: 0 | AV31: =SUM(AR31,AS31,AT31,AU31) -> 200 | AW31: 0 | AX31: 0 | AY31: 0 | AZ31: 0 | BA31: =SUM(AW31,AX31,AY31,AZ31) -> 0 | BB31: 0 | BC31: 0 | BD31: 0 | BE31: 0 | BF31: =SUM(BB31,BC31,BD31,BE31) -> 0 | BG31: 0 | BH31: 0 | BI31: 0 | BJ31: 0 | BK31: =SUM(BG31,BH31,BI31,BJ31) -> 0 | BL31: 0 | BM31: 0 | BN31: 1800 | BO31: =SUM(G31,L31,Q31,V31,AA31,AF31,AK31,AP31,AU31,AZ31,BE31,BR31,BJ31) -> 0 | BP31: =SUM(H31,M31,R31,W31,AB31,AG31,AL31,AQ31,AV31,BA31,BF31,BK31) -> 1800
A32: 29 | B32: HUAMAN RODRIGUEZ, PRESILA | C32: 41519956 | D32: 10 | E32: 0 | F32: 0 | G32: 0 | H32: 10 | I32: 10 | J32: 0 | K32: 0 | L32: 0 | M32: 10 | N32: 10 | O32: 0 | P32: 0 | Q32: 0 | R32: 10 | S32: 10 | T32: 0 | U32: 0 | V32: 0 | W32: 10 | X32: 10 | Y32: 0 | Z32: 0 | AA32: 0 | AB32: 10 | AC32: 10 | AD32: 0 | AE32: 0 | AF32: 0 | AG32: 10 | AH32: 10 | AI32: 0 | AJ32: 0 | AK32: 0 | AL32: 10 | AM32: 10 | AN32: 0 | AO32: 0 | AP32: 0 | AQ32: 10 | AR32: 10 | AS32: 0 | AT32: 0 | AU32: 0 | AV32: 10 | AW32: 10 | AX32: 0 | AY32: 0 | AZ32: 0 | BA32: 10 | BB32: 10 | BC32: 0 | BD32: 0 | BE32: 0 | BF32: 10 | BG32: 0 | BH32: 0 | BI32: 0 | BJ32: 0 | BK32: 0 | BL32: 110 | BM32: 0 | BN32: 0 | BO32: 0 | BP32: 110
A33: 30 | B33: JIMENEZ, PADILLA, IVETH | C33: 46916242 | D33: 10 | E33: 0 | F33: 150 | G33: 0 | H33: 160 | I33: 10 | J33: 0 | K33: 150 | L33: 0 | M33: 160 | N33: 10 | O33: 0 | P33: 150 | Q33: 0 | R33: 160 | S33: 10 | T33: 0 | U33: 150 | V33: 0 | W33: 160 | X33: 10 | Y33: 0 | Z33: 150 | AA33: 0 | AB33: 160 | AC33: 10 | AD33: 0 | AE33: 150 | AF33: 0 | AG33: 160 | AH33: 10 | AI33: 0 | AJ33: 150 | AK33: 0 | AL33: =SUM(AH33,AI33,AJ33,AK33) -> 160 | AM33: 10 | AN33: 0 | AO33: 150 | AP33: 0 | AQ33: 160 | AR33: 10 | AS33: 0 | AT33: 150 | AU33: 0 | AV33: 160 | AW33: 10 | AX33: 0 | AY33: 150 | AZ33: 0 | BA33: 160 | BB33: 10 | BC33: 0 | BD33: 150 | BE33: 0 | BF33: 160 | BG33: 0 | BH33: 0 | BI33: 0 | BJ33: 0 | BK33: 0 | BL33: =SUM(D33,I33,N33,S33,X33,AC33,AH33,AM33,AR33,AW33,BB33,BG33) -> 110 | BM33: 0 | BN33: 1650 | BO33: 0 | BP33: 1760
A34: 31 | B34: LLAJA DIAZ, ALPINO | C34: 803522 | D34: 10 | E34: 400 | F34: 0 | G34: 0 | H34: 410 | I34: 10 | J34: 400 | K34: 0 | L34: 0 | M34: 410 | N34: 10 | O34: 400 | P34: 0 | Q34: 0 | R34: 410 | S34: 10 | T34: 400 | U34: 0 | V34: 0 | W34: 410 | X34: 10 | Y34: 400 | Z34: 0 | AA34: 0 | AB34: 410 | AC34: 10 | AD34: 400 | AE34: 0 | AF34: 0 | AG34: 410 | AH34: 10 | AI34: 400 | AJ34: 0 | AK34: 0 | AL34: 410 | AM34: 10 | AN34: 400 | AO34: 0 | AP34: 0 | AQ34: 410 | AR34: 10 | AS34: 400 | AT34: 0 | AU34: 0 | AV34: 410 | AW34: 10 | AX34: 400 | AY34: 0 | AZ34: 0 | BA34: 410 | BB34: 10 | BC34: 400 | BD34: 0 | BE34: 0 | BF34: 410 | BG34: 0 | BH34: 0 | BI34: 0 | BJ34: 0 | BK34: 0 | BL34: =SUM(D34,I34,N34,S34,X34,AC34,AH34,AM34,AR34,AW34,BB34,BG34) -> 110 | BM34: =SUM(E34,J34,O34,T34,Y34,AD34,AI34,AN34,AS34,AX34,BC34,BH34) -> 4400 | BN34: 0 | BO34: 0 | BP34: 4510
A35: 32 | B35: LLAJA DIAZ, SEGUNDO MIGUEL | C35: 801714 | D35: 10 | E35: 0 | F35: 0 | G35: 0 | H35: 10 | I35: 10 | J35: 0 | K35: 0 | L35: 0 | M35: 10 | N35: 10 | O35: 0 | P35: 0 | Q35: 0 | R35: 10 | S35: 10 | T35: 0 | U35: 0 | V35: 0 | W35: 10 | X35: 10 | Y35: 0 | Z35: 0 | AA35: 0 | AB35: 10 | AC35: 10 | AD35: 0 | AE35: 0 | AF35: 0 | AG35: 10 | AH35: 10 | AI35: 0 | AJ35: 0 | AK35: 0 | AL35: 10 | AM35: 10 | AN35: 0 | AO35: 0 | AP35: 0 | AQ35: 10 | AR35: 10 | AS35: 0 | AT35: 0 | AU35: 0 | AV35: 10 | AW35: 10 | AX35: 0 | AY35: 0 | AZ35: 0 | BA35: 10 | BB35: 10 | BC35: 0 | BD35: 0 | BE35: 0 | BF35: 10 | BG35: 0 | BH35: 0 | BI35: 0 | BJ35: 0 | BK35: 0 | BL35: 110 | BM35: 0 | BN35: 0 | BO35: 0 | BP35: 110
A36: 33 | B36: LOPEZ MIRANO, EDITH | C36: 811938 | D36: 10 | E36: 0 | F36: 50 | G36: 0 | H36: 60 | I36: 10 | J36: 0 | K36: 50 | L36: 0 | M36: 60 | N36: 10 | O36: 0 | P36: 50 | Q36: 0 | R36: 60 | S36: 10 | T36: 0 | U36: 50 | V36: 0 | W36: 60 | X36: 10 | Y36: 0 | Z36: 50 | AA36: 0 | AB36: 60 | AC36: 10 | AD36: 0 | AE36: 50 | AF36: 0 | AG36: 60 | AH36: 10 | AI36: 0 | AJ36: 50 | AK36: 0 | AL36: 60 | AM36: 10 | AN36: 0 | AO36: 50 | AP36: 0 | AQ36: 60 | AR36: 10 | AS36: 0 | AT36: 50 | AU36: 0 | AV36: 60 | AW36: 10 | AX36: 0 | AY36: 50 | AZ36: 0 | BA36: 60 | BB36: 10 | BC36: 0 | BD36: 50 | BE36: 0 | BF36: 60 | BG36: 0 | BH36: 0 | BI36: 0 | BJ36: 0 | BK36: 0 | BL36: 110 | BM36: 0 | BN36: 550 | BO36: 0 | BP36: 660
A37: 34 | B37: LOPEZ PEREZ, MONICA | C37: 6792607 | D37: 10 | E37: 0 | F37: 40 | G37: 0 | H37: 50 | I37: 10 | J37: 0 | K37: 40 | L37: 0 | M37: 50 | N37: 10 | O37: 0 | P37: 40 | Q37: 0 | R37: 50 | S37: 10 | T37: 0 | U37: 40 | V37: 0 | W37: 50 | X37: 10 | Y37: 0 | Z37: 40 | AA37: 0 | AB37: 50 | AC37: 10 | AD37: 0 | AE37: 40 | AF37: 0 | AG37: 50 | AH37: 10 | AI37: 0 | AJ37: 40 | AK37: 0 | AL37: 50 | AM37: 10 | AN37: 0 | AO37: 40 | AP37: 0 | AQ37: 50 | AR37: 10 | AS37: 0 | AT37: 40 | AU37: 0 | AV37: 50 | AW37: 10 | AX37: 0 | AY37: 40 | AZ37: 0 | BA37: 50 | BB37: 10 | BC37: 0 | BD37: 40 | BE37: 0 | BF37: 50 | BG37: 0 | BH37: 0 | BI37: 0 | BJ37: 0 | BK37: 0 | BL37: 110 | BM37: 0 | BN37: 440 | BO37: 0 | BP37: 550
A38: 35 | B38: MOZOMBITE CABRERA, DAVID | C38: 803189 | D38: 10 | E38: 0 | F38: 100 | G38: 0 | H38: 110 | I38: 10 | J38: 0 | K38: 100 | L38: 0 | M38: 110 | N38: 10 | O38: 0 | P38: 100 | Q38: 0 | R38: 110 | S38: 10 | T38: 0 | U38: 100 | V38: 0 | W38: 110 | X38: 10 | Y38: 0 | Z38: 100 | AA38: 0 | AB38: 110 | AC38: 10 | AD38: 0 | AE38: 100 | AF38: 0 | AG38: 110 | AH38: 10 | AI38: 0 | AJ38: 100 | AK38: 0 | AL38: 110 | AM38: 10 | AN38: 0 | AO38: 100 | AP38: 0 | AQ38: 110 | AR38: 10 | AS38: 0 | AT38: 100 | AU38: 0 | AV38: 110 | AW38: 10 | AX38: 0 | AY38: 100 | AZ38: 0 | BA38: 110 | BB38: 10 | BC38: 0 | BD38: 100 | BE38: 0 | BF38: 110 | BG38: 0 | BH38: 0 | BI38: 0 | BJ38: 0 | BK38: 0 | BL38: 110 | BM38: 0 | BN38: 1100 | BO38: 0 | BP38: 1210
A39: 36 | B39: MUNDACA FLORES, KELVIN | C39: 43437357 | D39: 10 | E39: 0 | F39: 200 | G39: 0 | H39: 210 | I39: 10 | J39: =66.03+263.97 -> 330 | K39: 200 | L39: 0 | M39: 540 | N39: 10 | O39: =266.03+63.97 -> 330 | P39: 200 | Q39: 0 | R39: 540 | S39: 10 | T39: =267.37+62.63 -> 330 | U39: 200 | V39: 0 | W39: 540 | X39: 10 | Y39: =265.74+64.26 -> 330 | Z39: 200 | AA39: 0 | AB39: 540 | AC39: 10 | AD39: 0 | AE39: 200 | AF39: 0 | AG39: 210 | AH39: 10 | AI39: 0 | AJ39: 200 | AK39: 0 | AL39: 210 | AM39: 10 | AN39: 0 | AO39: 200 | AP39: 0 | AQ39: 210 | AR39: 10 | AS39: 0 | AT39: 200 | AU39: 0 | AV39: 210 | AW39: 10 | AX39: 0 | AY39: 200 | AZ39: 0 | BA39: 210 | BB39: 10 | BC39: 0 | BD39: 200 | BE39: 0 | BF39: 210 | BG39: 0 | BH39: 0 | BI39: 0 | BJ39: 0 | BK39: 0 | BL39: 110 | BM39: 1320 | BN39: 2200 | BO39: 0 | BP39: 3630
A40: 37 | B40: MESIA GARCIA, CHRISTIAN ERICK | C40: 72317983 | D40: 0 | E40: 0 | F40: 0 | G40: 0 | H40: =SUM(D40,E40,F40,G40) -> 0 | I40: 0 | J40: 1650 | K40: 0 | L40: 0 | M40: =SUM(I40,J40,K40,L40) -> 1650 | N40: 0 | O40: 959.5 | P40: 0 | Q40: 0 | R40: =SUM(N40,O40,P40,Q40) -> 959.5 | S40: 0 | T40: 611 | U40: 0 | V40: 0 | W40: =SUM(S40,T40,U40,V40) -> 611 | X40: 0 | Y40: 611 | Z40: 0 | AA40: 0 | AB40: =SUM(X40,Y40,Z40,AA40) -> 611 | AC40: 0 | AD40: 370 | AE40: 0 | AF40: 0 | AG40: =SUM(AC40,AD40,AE40,AF40) -> 370 | AH40: 0 | AI40: 703 | AJ40: 0 | AK40: 0 | AL40: =SUM(AH40,AI40,AJ40,AK40) -> 703 | AM40: 0 | AN40: 703 | AO40: 0 | AP40: 0 | AQ40: =SUM(AM40,AN40,AO40,AP40) -> 703 | AR40: 0 | AS40: 703 | AT40: 0 | AU40: 0 | AV40: =SUM(AR40,AS40,AT40,AU40) -> 703 | AW40: 0 | AX40: 332 | AY40: 0 | AZ40: 0 | BA40: =SUM(AW40,AX40,AY40,AZ40) -> 332 | BB40: 0 | BC40: 0 | BD40: 0 | BE40: 0 | BF40: =SUM(BB40,BC40,BD40,BE40) -> 0 | BG40: 0 | BH40: 0 | BI40: 0 | BJ40: 0 | BK40: =SUM(BG40,BH40,BI40,BJ40) -> 0 | BL40: =SUM(D40,I40,N40,S40,X40,AC40,AH40,AM40,AR40,AW40,BB40,BG40) -> 0 | BM40: 6642.5 | BN40: 0 | BO40: =SUM(G40,L40,Q40,V40,AA40,AF40,AK40,AP40,AU40,AZ40,BE40,BR40,BJ40) -> 0 | BP40: =SUM(H40,M40,R40,W40,AB40,AG40,AL40,AQ40,AV40,BA40,BF40,BK40) -> 6642.5
A41: 38 | B41: MOZOMBITE SALAZAR, DE TUNJAR CINDAY JURNETH | C41: 71469639 | D41: 0 | E41: 0 | F41: 100 | G41: 0 | H41: =SUM(D41,E41,F41,G41) -> 100 | I41: 0 | J41: 0 | K41: 100 | L41: 0 | M41: =SUM(I41,J41,K41,L41) -> 100 | N41: 0 | O41: 0 | P41: 100 | Q41: 0 | R41: =SUM(N41,O41,P41,Q41) -> 100 | S41: 0 | T41: 0 | U41: 100 | V41: 0 | W41: =SUM(S41,T41,U41,V41) -> 100 | X41: 0 | Y41: 0 | Z41: 100 | AA41: 0 | AB41: =SUM(X41,Y41,Z41,AA41) -> 100 | AC41: 0 | AD41: 0 | AE41: 100 | AF41: 0 | AG41: =SUM(AC41,AD41,AE41,AF41) -> 100 | AH41: 0 | AI41: 0 | AJ41: 100 | AK41: 0 | AL41: =SUM(AH41,AI41,AJ41,AK41) -> 100 | AM41: 0 | AN41: 0 | AO41: 100 | AP41: 0 | AQ41: =SUM(AM41,AN41,AO41,AP41) -> 100 | AR41: 0 | AS41: 0 | AT41: 100 | AU41: 0 | AV41: =SUM(AR41,AS41,AT41,AU41) -> 100 | AW41: 0 | AX41: 0 | AY41: 0 | AZ41: 0 | BA41: =SUM(AW41,AX41,AY41,AZ41) -> 0 | BB41: 0 | BC41: 0 | BD41: 0 | BE41: 0 | BF41: =SUM(BB41,BC41,BD41,BE41) -> 0 | BG41: 0 | BH41: 0 | BI41: 0 | BJ41: 0 | BK41: =SUM(BG41,BH41,BI41,BJ41) -> 0 | BL41: 0 | BM41: 0 | BN41: 900 | BO41: =SUM(G41,L41,Q41,V41,AA41,AF41,AK41,AP41,AU41,AZ41,BE41,BR41,BJ41) -> 0 | BP41: =SUM(H41,M41,R41,W41,AB41,AG41,AL41,AQ41,AV41,BA41,BF41,BK41) -> 900
A42: 39 | B42: NARVA QUISPE, MARIANO JOSE | C42: 815508 | D42: 10 | E42: 0 | F42: 0 | G42: 0 | H42: 10 | I42: 10 | J42: 0 | K42: 0 | L42: 0 | M42: 10 | N42: 10 | O42: 0 | P42: 0 | Q42: 0 | R42: 10 | S42: 10 | T42: 0 | U42: 0 | V42: 0 | W42: 10 | X42: 10 | Y42: 0 | Z42: 0 | AA42: 0 | AB42: 10 | AC42: 10 | AD42: 74 | AE42: 0 | AF42: 0 | AG42: 84 | AH42: 10 | AI42: 110 | AJ42: 0 | AK42: 0 | AL42: 120 | AM42: 10 | AN42: 110 | AO42: 0 | AP42: 0 | AQ42: 120 | AR42: 10 | AS42: 110 | AT42: 0 | AU42: 0 | AV42: 120 | AW42: 10 | AX42: 36 | AY42: 0 | AZ42: 0 | BA42: 46 | BB42: 10 | BC42: 0 | BD42: 0 | BE42: 0 | BF42: 10 | BG42: 0 | BH42: 0 | BI42: 0 | BJ42: 0 | BK42: 0 | BL42: 110 | BM42: 440 | BN42: 0 | BO42: 0 | BP42: 550
A43: 40 | B43: PEZO PEZO, ARNALDO | C43: 800974 | D43: 10 | E43: 0 | F43: 110 | G43: 0 | H43: 120 | I43: 10 | J43: 0 | K43: 110 | L43: 0 | M43: 120 | N43: 10 | O43: 0 | P43: 110 | Q43: 0 | R43: 120 | S43: 10 | T43: 0 | U43: 110 | V43: 0 | W43: 120 | X43: 10 | Y43: 0 | Z43: 110 | AA43: 0 | AB43: 120 | AC43: 10 | AD43: 0 | AE43: 110 | AF43: 0 | AG43: 120 | AH43: 10 | AI43: 0 | AJ43: 110 | AK43: 0 | AL43: 120 | AM43: 10 | AN43: 0 | AO43: 110 | AP43: 0 | AQ43: 120 | AR43: 10 | AS43: 0 | AT43: 110 | AU43: 0 | AV43: 120 | AW43: 10 | AX43: 0 | AY43: 110 | AZ43: 0 | BA43: 120 | BB43: 10 | BC43: 0 | BD43: 110 | BE43: 0 | BF43: 120 | BG43: 0 | BH43: 0 | BI43: 0 | BJ43: 0 | BK43: 0 | BL43: 110 | BM43: 0 | BN43: 1210 | BO43: 0 | BP43: 1320 | BQ43: 500 ADLENATO DE CANASTA
A44: 41 | B44: PAREDES AGUILAR, MARITA CAROLA | C44: 10276387 | D44: 0 | E44: 400 | F44: 0 | G44: 0 | H44: =SUM(D44,E44,F44,G44) -> 400 | I44: 0 | J44: 400 | K44: 0 | L44: 0 | M44: =SUM(I44,J44,K44,L44) -> 400 | N44: 0 | O44: 400 | P44: 0 | Q44: 0 | R44: =SUM(N44,O44,P44,Q44) -> 400 | S44: 0 | T44: 400 | U44: 0 | V44: 0 | W44: =SUM(S44,T44,U44,V44) -> 400 | X44: 0 | Y44: 400 | Z44: 0 | AA44: 0 | AB44: =SUM(X44,Y44,Z44,AA44) -> 400 | AC44: 0 | AD44: 400 | AE44: 0 | AF44: 0 | AG44: =SUM(AC44,AD44,AE44,AF44) -> 400 | AH44: 0 | AI44: 400 | AJ44: 0 | AK44: 0 | AL44: =SUM(AH44,AI44,AJ44,AK44) -> 400 | AM44: 0 | AN44: 400 | AO44: 0 | AP44: 0 | AQ44: =SUM(AM44,AN44,AO44,AP44) -> 400 | AR44: 0 | AS44: 400 | AT44: 0 | AU44: 0 | AV44: =SUM(AR44,AS44,AT44,AU44) -> 400 | AW44: 0 | AX44: 400 | AY44: 0 | AZ44: 0 | BA44: =SUM(AW44,AX44,AY44,AZ44) -> 400 | BB44: 0 | BC44: 400 | BD44: 0 | BE44: 0 | BF44: =SUM(BB44,BC44,BD44,BE44) -> 400 | BG44: 0 | BH44: 0 | BI44: 0 | BJ44: 0 | BK44: =SUM(BG44,BH44,BI44,BJ44) -> 0 | BL44: =SUM(D44,I44,N44,S44,X44,AC44,AH44,AM44,AR44,AW44,BB44,BG44) -> 0 | BM44: 4400 | BN44: 0 | BO44: =SUM(G44,L44,Q44,V44,AA44,AF44,AK44,AP44,AU44,AZ44,BE44,BR44,BJ44) -> 0 | BP44: =SUM(H44,M44,R44,W44,AB44,AG44,AL44,AQ44,AV44,BA44,BF44,BK44) -> 4400
A45: 42 | B45: PINEDO TAFUR, ABIGAIL | C45: 46733025 | D45: 0 | E45: 0 | F45: 200 | G45: 0 | H45: =SUM(D45,E45,F45,G45) -> 200 | I45: 0 | J45: 0 | K45: 200 | L45: 0 | M45: =SUM(I45,J45,K45,L45) -> 200 | N45: 0 | O45: 0 | P45: 200 | Q45: 0 | R45: =SUM(N45,O45,P45,Q45) -> 200 | S45: 0 | T45: 0 | U45: 200 | V45: 0 | W45: =SUM(S45,T45,U45,V45) -> 200 | X45: 0 | Y45: 0 | Z45: 200 | AA45: 0 | AB45: =SUM(X45,Y45,Z45,AA45) -> 200 | AC45: 0 | AD45: 0 | AE45: 200 | AF45: 0 | AG45: =SUM(AC45,AD45,AE45,AF45) -> 200 | AH45: 0 | AI45: 0 | AJ45: 200 | AK45: 0 | AL45: =SUM(AH45,AI45,AJ45,AK45) -> 200 | AM45: 0 | AN45: 0 | AO45: 200 | AP45: 0 | AQ45: =SUM(AM45,AN45,AO45,AP45) -> 200 | AR45: 0 | AS45: 0 | AT45: 200 | AU45: 0 | AV45: =SUM(AR45,AS45,AT45,AU45) -> 200 | AW45: 0 | AX45: 0 | AY45: 200 | AZ45: 0 | BA45: =SUM(AW45,AX45,AY45,AZ45) -> 200 | BB45: 0 | BC45: 0 | BD45: 200 | BE45: 0 | BF45: =SUM(BB45,BC45,BD45,BE45) -> 200 | BG45: 0 | BH45: 0 | BI45: 0 | BJ45: 0 | BK45: =SUM(BG45,BH45,BI45,BJ45) -> 0 | BL45: 0 | BM45: 0 | BN45: 2200 | BO45: =SUM(G45,L45,Q45,V45,AA45,AF45,AK45,AP45,AU45,AZ45,BE45,BR45,BJ45) -> 0 | BP45: =SUM(H45,M45,R45,W45,AB45,AG45,AL45,AQ45,AV45,BA45,BF45,BK45) -> 2200
A46: 43 | B46: QUINTANA ZUMAETA, JAIRO | C46: 41632815 | D46: 0 | E46: 0 | F46: 200 | G46: 0 | H46: =SUM(D46,E46,F46,G46) -> 200 | I46: 0 | J46: 0 | K46: 200 | L46: 0 | M46: =SUM(I46,J46,K46,L46) -> 200 | N46: 0 | O46: 0 | P46: 200 | Q46: 0 | R46: =SUM(N46,O46,P46,Q46) -> 200 | S46: 0 | T46: 0 | U46: 200 | V46: 0 | W46: =SUM(S46,T46,U46,V46) -> 200 | X46: 0 | Y46: 0 | Z46: 200 | AA46: 0 | AB46: =SUM(X46,Y46,Z46,AA46) -> 200 | AC46: 0 | AD46: 0 | AE46: 200 | AF46: 0 | AG46: =SUM(AC46,AD46,AE46,AF46) -> 200 | AH46: 0 | AI46: 0 | AJ46: 200 | AK46: 0 | AL46: =SUM(AH46,AI46,AJ46,AK46) -> 200 | AM46: 0 | AN46: 0 | AO46: 200 | AP46: 0 | AQ46: =SUM(AM46,AN46,AO46,AP46) -> 200 | AR46: 0 | AS46: 0 | AT46: 200 | AU46: 0 | AV46: =SUM(AR46,AS46,AT46,AU46) -> 200 | AW46: 0 | AX46: 0 | AY46: 200 | AZ46: 0 | BA46: =SUM(AW46,AX46,AY46,AZ46) -> 200 | BB46: 0 | BC46: 0 | BD46: 200 | BE46: 0 | BF46: =SUM(BB46,BC46,BD46,BE46) -> 200 | BG46: 0 | BH46: 0 | BI46: 0 | BJ46: 0 | BK46: =SUM(BG46,BH46,BI46,BJ46) -> 0 | BL46: 0 | BM46: 0 | BN46: 2200 | BO46: =SUM(G46,L46,Q46,V46,AA46,AF46,AK46,AP46,AU46,AZ46,BE46,BR46,BJ46) -> 0 | BP46: =SUM(H46,M46,R46,W46,AB46,AG46,AL46,AQ46,AV46,BA46,BF46,BK46) -> 2200
A47: 44 | B47: RAMIREZ VASQUEZ, LITA | C47: 821392 | D47: 10 | E47: 0 | F47: 200 | G47: 0 | H47: 210 | I47: 10 | J47: 0 | K47: 200 | L47: 0 | M47: 210 | N47: 10 | O47: 0 | P47: 200 | Q47: 0 | R47: 210 | S47: 10 | T47: 0 | U47: 200 | V47: 0 | W47: 210 | X47: 10 | Y47: 0 | Z47: 200 | AA47: 0 | AB47: 210 | AC47: 10 | AD47: 0 | AE47: 200 | AF47: 0 | AG47: 210 | AH47: 10 | AI47: 0 | AJ47: 200 | AK47: 0 | AL47: 210 | AM47: 10 | AN47: 0 | AO47: 200 | AP47: 0 | AQ47: 210 | AR47: 10 | AS47: 0 | AT47: 200 | AU47: 0 | AV47: 210 | AW47: 10 | AX47: 0 | AY47: 200 | AZ47: 0 | BA47: 210 | BB47: 10 | BC47: 0 | BD47: 200 | BE47: 0 | BF47: 210 | BG47: 0 | BH47: 0 | BI47: 0 | BJ47: 0 | BK47: 0 | BL47: 110 | BM47: 0 | BN47: 2200 | BO47: 0 | BP47: 2310 | BQ47: 2400 CANCELADO AL 100% CANAS | BV47: ESTA DEVUELTO AL 100% HASTA DICIEMBRE
A48: 45 | B48: REATEGUI TUESTA, ALBERTO | C48: 804403 | D48: 10 | E48: 0 | F48: 0 | G48: 0 | H48: 10 | I48: 10 | J48: 0 | K48: 0 | L48: 0 | M48: 10 | N48: 10 | O48: 0 | P48: 0 | Q48: 0 | R48: 10 | S48: 10 | T48: 0 | U48: 0 | V48: 0 | W48: 10 | X48: 10 | Y48: 0 | Z48: 0 | AA48: 0 | AB48: 10 | AC48: 10 | AD48: 0 | AE48: 0 | AF48: 0 | AG48: 10 | AH48: 10 | AI48: 0 | AJ48: 0 | AK48: 0 | AL48: 10 | AM48: 10 | AN48: 0 | AO48: 0 | AP48: 0 | AQ48: 10 | AR48: 10 | AS48: 0 | AT48: 0 | AU48: 0 | AV48: 10 | AW48: 10 | AX48: 0 | AY48: 0 | AZ48: 0 | BA48: 10 | BB48: 10 | BC48: 0 | BD48: 0 | BE48: 0 | BF48: 10 | BG48: 0 | BH48: 0 | BI48: 0 | BJ48: 0 | BK48: 0 | BL48: 110 | BM48: 0 | BN48: 0 | BO48: 0 | BP48: 110
A49: 46 | B49: RENGIFO REATEGUI, WALTER | C49: 800866 | D49: 10 | E49: 0 | F49: 0 | G49: 0 | H49: 10 | I49: 10 | J49: 0 | K49: 0 | L49: 0 | M49: 10 | N49: 10 | O49: 0 | P49: 0 | Q49: 0 | R49: 10 | S49: 10 | T49: 0 | U49: 0 | V49: 0 | W49: 10 | X49: 10 | Y49: 0 | Z49: 0 | AA49: 0 | AB49: 10 | AC49: 10 | AD49: 0 | AE49: 0 | AF49: 0 | AG49: 10 | AH49: 0 | AI49: 0 | AJ49: 0 | AK49: 0 | AL49: 0 | AM49: 0 | AN49: 0 | AO49: 0 | AP49: 0 | AQ49: 0 | AR49: 0 | AS49: 0 | AT49: 0 | AU49: 0 | AV49: 0 | AW49: 0 | AX49: 0 | AY49: 0 | AZ49: 0 | BA49: 0 | BB49: 0 | BC49: 0 | BD49: 0 | BE49: 0 | BF49: 0 | BG49: 0 | BH49: 0 | BI49: 0 | BJ49: 0 | BK49: 0 | BL49: 60 | BM49: 0 | BN49: 0 | BO49: 0 | BP49: 60
A50: 47 | B50: RENGIFO RUIZ, RIDER | C50: 907880 | D50: 10 | E50: 0 | F50: 0 | G50: 0 | H50: 10 | I50: 10 | J50: 0 | K50: 0 | L50: 0 | M50: 10 | N50: 10 | O50: 0 | P50: 0 | Q50: 0 | R50: 10 | S50: 10 | T50: 0 | U50: 0 | V50: 0 | W50: 10 | X50: 10 | Y50: 0 | Z50: 0 | AA50: 0 | AB50: 10 | AC50: 10 | AD50: 0 | AE50: 0 | AF50: 0 | AG50: 10 | AH50: 10 | AI50: 0 | AJ50: 0 | AK50: 0 | AL50: 10 | AM50: 10 | AN50: 0 | AO50: 0 | AP50: 0 | AQ50: 10 | AR50: 10 | AS50: 0 | AT50: 0 | AU50: 0 | AV50: 10 | AW50: 10 | AX50: 0 | AY50: 0 | AZ50: 0 | BA50: 10 | BB50: 10 | BC50: 0 | BD50: 0 | BE50: 0 | BF50: 10 | BG50: 0 | BH50: 0 | BI50: 0 | BJ50: 0 | BK50: 0 | BL50: 110 | BM50: 0 | BN50: 0 | BO50: 0 | BP50: 110
A51: 48 | B51: RETAMOZO VARGAS, JENNY MARIBEL | C51: 40175985 | D51: 10 | E51: 0 | F51: 300 | G51: 0 | H51: 310 | I51: 10 | J51: 0 | K51: 300 | L51: 0 | M51: 310 | N51: 20 | O51: 0 | P51: 300 | Q51: 0 | R51: 320 | S51: 10 | T51: 0 | U51: 300 | V51: 0 | W51: 310 | X51: 10 | Y51: 0 | Z51: 300 | AA51: 0 | AB51: 310 | AC51: 10 | AD51: 0 | AE51: 300 | AF51: 0 | AG51: 310 | AH51: 10 | AI51: 0 | AJ51: 300 | AK51: 0 | AL51: 310 | AM51: 10 | AN51: 0 | AO51: 300 | AP51: 0 | AQ51: 310 | AR51: 10 | AS51: 0 | AT51: 300 | AU51: 0 | AV51: 310 | AW51: 10 | AX51: 0 | AY51: 300 | AZ51: 0 | BA51: 310 | BB51: 10 | BC51: 0 | BD51: 300 | BE51: 0 | BF51: 310 | BG51: 0 | BH51: 0 | BI51: 0 | BJ51: 0 | BK51: 0 | BL51: 120 | BM51: 0 | BN51: 3300 | BO51: 0 | BP51: 3420
A52: 49 | B52: RODRIGUEZ ROJAS, GLADYS KARINA | C52: 40252218 | D52: 10 | E52: 0 | F52: 0 | G52: 0 | H52: 10 | I52: 10 | J52: 0 | K52: 0 | L52: 0 | M52: 10 | N52: 10 | O52: 0 | P52: 0 | Q52: 0 | R52: 10 | S52: 10 | T52: 0 | U52: 0 | V52: 0 | W52: 10 | X52: 10 | Y52: 0 | Z52: 0 | AA52: 0 | AB52: 10 | AC52: 10 | AD52: 0 | AE52: 0 | AF52: 0 | AG52: 10 | AH52: 10 | AI52: 0 | AJ52: 0 | AK52: 0 | AL52: 10 | AM52: 10 | AN52: 0 | AO52: 0 | AP52: 0 | AQ52: 10 | AR52: 10 | AS52: 0 | AT52: 0 | AU52: 0 | AV52: 10 | AW52: 10 | AX52: 0 | AY52: 0 | AZ52: 0 | BA52: 10 | BB52: 10 | BC52: 0 | BD52: 0 | BE52: 0 | BF52: 10 | BG52: 0 | BH52: 0 | BI52: 0 | BJ52: 0 | BK52: 0 | BL52: 110 | BM52: =SUM(E52,J52,O52,T52,Y52,AD52,AI52,AN52,AS52,AX52,BC52,BH52) -> 0 | BN52: =SUM(F52,K52,P52,U52,Z52,AE52,AJ52,AO52,AT52,AY52,BD52,BI52) -> 0 | BO52: 0 | BP52: 110
A53: 50 | B53: RODRIGUEZ TORRES, WILDER | C53: 42750620 | D53: 10 | E53: 0 | F53: 0 | G53: 0 | H53: 10 | I53: 10 | J53: 0 | K53: 0 | L53: 0 | M53: 10 | N53: 10 | O53: 0 | P53: 0 | Q53: 0 | R53: 10 | S53: 10 | T53: 0 | U53: 0 | V53: 0 | W53: 10 | X53: 10 | Y53: 0 | Z53: 0 | AA53: 0 | AB53: 10 | AC53: 10 | AD53: 0 | AE53: 0 | AF53: 0 | AG53: 10 | AH53: 10 | AI53: 0 | AJ53: 0 | AK53: 0 | AL53: 10 | AM53: 10 | AN53: 0 | AO53: 0 | AP53: 0 | AQ53: 10 | AR53: 10 | AS53: 0 | AT53: 0 | AU53: 0 | AV53: 10 | AW53: 10 | AX53: 0 | AY53: 0 | AZ53: 0 | BA53: 10 | BB53: 10 | BC53: 0 | BD53: 0 | BE53: 0 | BF53: 10 | BG53: 0 | BH53: 0 | BI53: 0 | BJ53: 0 | BK53: 0 | BL53: 110 | BM53: 0 | BN53: 0 | BO53: 0 | BP53: 110
A54: 51 | B54: ROJAS BECERRA, LUCIA | C54: 838472 | D54: 10 | E54: 90 | F54: 100 | G54: 0 | H54: 200 | I54: 10 | J54: 90 | K54: 100 | L54: 0 | M54: 200 | N54: 10 | O54: 90 | P54: 100 | Q54: 0 | R54: 200 | S54: 10 | T54: 90 | U54: 100 | V54: 0 | W54: 200 | X54: 10 | Y54: 90 | Z54: 100 | AA54: 0 | AB54: 200 | AC54: 10 | AD54: 90 | AE54: 100 | AF54: 0 | AG54: 200 | AH54: 10 | AI54: 90 | AJ54: 100 | AK54: 0 | AL54: 200 | AM54: 10 | AN54: 90 | AO54: 100 | AP54: 0 | AQ54: 200 | AR54: 10 | AS54: 35.59 | AT54: 100 | AU54: 0 | AV54: 145.59 | AW54: 10 | AX54: 110 | AY54: 100 | AZ54: 0 | BA54: 220 | BB54: 10 | BC54: 110 | BD54: 100 | BE54: 0 | BF54: 220 | BG54: 0 | BH54: 0 | BI54: 0 | BJ54: 0 | BK54: 0 | BL54: 110 | BM54: 975.59 | BN54: 1100 | BO54: 0 | BP54: 2185.59 | BQ54: 755.6
A55: 52 | B55: ROJAS CARRION, AMERICO | C55: 806018 | D55: 10 | E55: 0 | F55: 0 | G55: 0 | H55: 10 | I55: 10 | J55: 0 | K55: 0 | L55: 0 | M55: 10 | N55: 10 | O55: 0 | P55: 0 | Q55: 0 | R55: 10 | S55: 10 | T55: 0 | U55: 0 | V55: 0 | W55: 10 | X55: 10 | Y55: 0 | Z55: 0 | AA55: 0 | AB55: 10 | AC55: 10 | AD55: 0 | AE55: 0 | AF55: 0 | AG55: 10 | AH55: 10 | AI55: 0 | AJ55: 0 | AK55: 0 | AL55: 10 | AM55: 10 | AN55: 0 | AO55: 0 | AP55: 0 | AQ55: 10 | AR55: 10 | AS55: 0 | AT55: 0 | AU55: 0 | AV55: 10 | AW55: 10 | AX55: 0 | AY55: 0 | AZ55: 0 | BA55: 10 | BB55: 10 | BC55: 0 | BD55: 0 | BE55: 0 | BF55: 10 | BG55: 0 | BH55: 0 | BI55: 0 | BJ55: 0 | BK55: 0 | BL55: 110 | BM55: 0 | BN55: 0 | BO55: 0 | BP55: 110
A56: 53 | B56: ROJAS PISCO, MAURO | C56: 837974 | D56: 10 | E56: 0 | F56: 100 | G56: 0 | H56: 110 | I56: 10 | J56: 0 | K56: 100 | L56: 0 | M56: 110 | N56: 10 | O56: 0 | P56: 100 | Q56: 0 | R56: 110 | S56: 10 | T56: 0 | U56: 100 | V56: 0 | W56: 110 | X56: 10 | Y56: 0 | Z56: 100 | AA56: 0 | AB56: 110 | AC56: 10 | AD56: 0 | AE56: 100 | AF56: 0 | AG56: 110 | AH56: 10 | AI56: 0 | AJ56: 100 | AK56: 0 | AL56: 110 | AM56: 10 | AN56: 0 | AO56: 100 | AP56: 0 | AQ56: 110 | AR56: 10 | AS56: 0 | AT56: 100 | AU56: 0 | AV56: 110 | AW56: 10 | AX56: 0 | AY56: 100 | AZ56: 0 | BA56: 110 | BB56: 10 | BC56: 0 | BD56: 100 | BE56: 0 | BF56: 110 | BG56: 0 | BH56: 0 | BI56: 0 | BJ56: 0 | BK56: 0 | BL56: 110 | BM56: 0 | BN56: 1100 | BO56: 0 | BP56: 1210
A57: 54 | B57: ROJAS SIFUENTES, EDGARDO | C57: 805434 | D57: 10 | E57: 0 | F57: 0 | G57: 0 | H57: 10 | I57: 10 | J57: 0 | K57: 0 | L57: 0 | M57: 10 | N57: 10 | O57: 0 | P57: 0 | Q57: 0 | R57: 10 | S57: 10 | T57: 0 | U57: 0 | V57: 0 | W57: 10 | X57: 10 | Y57: 0 | Z57: 0 | AA57: 0 | AB57: 10 | AC57: 10 | AD57: 0 | AE57: 0 | AF57: 0 | AG57: 10 | AH57: 10 | AI57: 0 | AJ57: 0 | AK57: 0 | AL57: 10 | AM57: 10 | AN57: 0 | AO57: 0 | AP57: 0 | AQ57: 10 | AR57: 10 | AS57: 0 | AT57: 0 | AU57: 0 | AV57: 10 | AW57: 10 | AX57: 0 | AY57: 0 | AZ57: 0 | BA57: 10 | BB57: 10 | BC57: 0 | BD57: 0 | BE57: 0 | BF57: 10 | BG57: 0 | BH57: 0 | BI57: 0 | BJ57: 0 | BK57: 0 | BL57: 110 | BM57: 0 | BN57: 0 | BO57: 0 | BP57: 110
A58: 55 | B58: RUBIO ARAUJO, KEVIN YASEK | C58: 45252971 | D58: 30 | E58: 0 | F58: 0 | G58: 0 | H58: 30 | I58: 0 | J58: 0 | K58: 0 | L58: 0 | M58: 0 | N58: 0 | O58: 0 | P58: 0 | Q58: 0 | R58: 0 | S58: 10 | T58: 0 | U58: 0 | V58: 0 | W58: 10 | X58: 10 | Y58: 0 | Z58: 0 | AA58: 0 | AB58: 10 | AC58: 10 | AD58: 0 | AE58: 0 | AF58: 0 | AG58: 10 | AH58: 10 | AI58: 0 | AJ58: 0 | AK58: 0 | AL58: 10 | AM58: 10 | AN58: 0 | AO58: 0 | AP58: 0 | AQ58: 10 | AR58: 10 | AS58: 0 | AT58: 0 | AU58: 0 | AV58: 10 | AW58: 10 | AX58: 0 | AY58: 0 | AZ58: 0 | BA58: 10 | BB58: 10 | BC58: 0 | BD58: 0 | BE58: 0 | BF58: 10 | BG58: 0 | BH58: 0 | BI58: 0 | BJ58: 0 | BK58: 0 | BL58: 110 | BM58: 0 | BN58: 0 | BO58: 0 | BP58: 110
A59: 56 | B59: REATEGUI TELLO, LIZ JEANE | C59: 44055448 | D59: 0 | E59: 0 | F59: 0 | G59: 0 | H59: =SUM(D59,E59,F59,G59) -> 0 | I59: 0 | J59: =295+590 -> 885 | K59: 0 | L59: 0 | M59: =SUM(I59,J59,K59,L59) -> 885 | N59: 0 | O59: 330 | P59: 0 | Q59: 0 | R59: =SUM(N59,O59,P59,Q59) -> 330 | S59: 0 | T59: 330 | U59: 0 | V59: 0 | W59: =SUM(S59,T59,U59,V59) -> 330 | X59: 0 | Y59: 330 | Z59: 0 | AA59: 0 | AB59: =SUM(X59,Y59,Z59,AA59) -> 330 | AC59: 0 | AD59: 330 | AE59: 0 | AF59: 0 | AG59: =SUM(AC59,AD59,AE59,AF59) -> 330 | AH59: 0 | AI59: 330 | AJ59: 0 | AK59: 0 | AL59: =SUM(AH59,AI59,AJ59,AK59) -> 330 | AM59: 0 | AN59: 0 | AO59: 0 | AP59: 0 | AQ59: =SUM(AM59,AN59,AO59,AP59) -> 0 | AR59: 0 | AS59: 0 | AT59: 0 | AU59: 0 | AV59: =SUM(AR59,AS59,AT59,AU59) -> 0 | AW59: 0 | AX59: 0 | AY59: 0 | AZ59: 0 | BA59: =SUM(AW59,AX59,AY59,AZ59) -> 0 | BB59: 0 | BC59: 0 | BD59: 0 | BE59: 0 | BF59: =SUM(BB59,BC59,BD59,BE59) -> 0 | BG59: 0 | BH59: 0 | BI59: 0 | BJ59: 0 | BK59: =SUM(BG59,BH59,BI59,BJ59) -> 0 | BL59: =SUM(D59,I59,N59,S59,X59,AC59,AH59,AM59,AR59,AW59,BB59,BG59) -> 0 | BM59: 2535 | BN59: 0 | BO59: =SUM(G59,L59,Q59,V59,AA59,AF59,AK59,AP59,AU59,AZ59,BE59,BR59,BJ59) -> 0 | BP59: =SUM(H59,M59,R59,W59,AB59,AG59,AL59,AQ59,AV59,BA59,BF59,BK59) -> 2535
A60: 57 | B60: RENGIFO TUESTA, MERIDA | C60: 815786 | D60: 0 | E60: 0 | F60: 0 | G60: 0 | H60: =SUM(D60,E60,F60,G60) -> 0 | I60: 0 | J60: 0 | K60: 0 | L60: 0 | M60: =SUM(I60,J60,K60,L60) -> 0 | N60: 0 | O60: 0 | P60: 0 | Q60: 0 | R60: =SUM(N60,O60,P60,Q60) -> 0 | S60: 0 | T60: 138 | U60: 0 | V60: 0 | W60: =SUM(S60,T60,U60,V60) -> 138 | X60: 0 | Y60: 138 | Z60: 0 | AA60: 0 | AB60: =SUM(X60,Y60,Z60,AA60) -> 138 | AC60: 0 | AD60: 321 | AE60: 0 | AF60: 0 | AG60: =SUM(AC60,AD60,AE60,AF60) -> 321 | AH60: 0 | AI60: 321 | AJ60: 0 | AK60: 0 | AL60: =SUM(AH60,AI60,AJ60,AK60) -> 321 | AM60: 0 | AN60: 321 | AO60: 0 | AP60: 0 | AQ60: =SUM(AM60,AN60,AO60,AP60) -> 321 | AR60: 0 | AS60: 321 | AT60: 0 | AU60: 0 | AV60: =SUM(AR60,AS60,AT60,AU60) -> 321 | AW60: 0 | AX60: 321 | AY60: 0 | AZ60: 0 | BA60: =SUM(AW60,AX60,AY60,AZ60) -> 321 | BB60: 0 | BC60: 319 | BD60: 0 | BE60: 0 | BF60: =SUM(BB60,BC60,BD60,BE60) -> 319 | BG60: 0 | BH60: 0 | BI60: 0 | BJ60: 0 | BK60: =SUM(BG60,BH60,BI60,BJ60) -> 0 | BL60: 0 | BM60: 2200 | BN60: 0 | BO60: =SUM(G60,L60,Q60,V60,AA60,AF60,AK60,AP60,AU60,AZ60,BE60,BR60,BJ60) -> 0 | BP60: =SUM(H60,M60,R60,W60,AB60,AG60,AL60,AQ60,AV60,BA60,BF60,BK60) -> 2200
A61: 58 | B61: RIOS PAREDES, MARIA DEL CARMEN | C61: 46082213 | D61: 0 | E61: 0 | F61: 0 | G61: 0 | H61: =SUM(D61,E61,F61,G61) -> 0 | I61: 0 | J61: 0 | K61: 150 | L61: 0 | M61: =SUM(I61,J61,K61,L61) -> 150 | N61: 0 | O61: 0 | P61: 150 | Q61: 0 | R61: =SUM(N61,O61,P61,Q61) -> 150 | S61: 0 | T61: 0 | U61: 150 | V61: 0 | W61: =SUM(S61,T61,U61,V61) -> 150 | X61: 0 | Y61: 0 | Z61: 150 | AA61: 0 | AB61: =SUM(X61,Y61,Z61,AA61) -> 150 | AC61: 0 | AD61: 0 | AE61: 150 | AF61: 0 | AG61: =SUM(AC61,AD61,AE61,AF61) -> 150 | AH61: 0 | AI61: 0 | AJ61: 150 | AK61: 0 | AL61: =SUM(AH61,AI61,AJ61,AK61) -> 150 | AM61: 0 | AN61: 0 | AO61: 150 | AP61: 0 | AQ61: =SUM(AM61,AN61,AO61,AP61) -> 150 | AR61: 0 | AS61: 0 | AT61: 150 | AU61: 0 | AV61: =SUM(AR61,AS61,AT61,AU61) -> 150 | AW61: 0 | AX61: 0 | AY61: 150 | AZ61: 0 | BA61: =SUM(AW61,AX61,AY61,AZ61) -> 150 | BB61: 0 | BC61: 0 | BD61: 150 | BE61: 0 | BF61: =SUM(BB61,BC61,BD61,BE61) -> 150 | BG61: 0 | BH61: 0 | BI61: 0 | BJ61: 0 | BK61: =SUM(BG61,BH61,BI61,BJ61) -> 0 | BL61: 0 | BM61: 0 | BN61: 1500 | BO61: =SUM(G61,L61,Q61,V61,AA61,AF61,AK61,AP61,AU61,AZ61,BE61,BR61,BJ61) -> 0 | BP61: =SUM(H61,M61,R61,W61,AB61,AG61,AL61,AQ61,AV61,BA61,BF61,BK61) -> 1500
A62: 59 | B62: ROJAS CHALCO, ANNIE JACQUELINE | C62: 9616546 | D62: 0 | E62: 0 | F62: 100 | G62: 0 | H62: =SUM(D62,E62,F62,G62) -> 100 | I62: 0 | J62: 0 | K62: 100 | L62: 0 | M62: =SUM(I62,J62,K62,L62) -> 100 | N62: 0 | O62: 0 | P62: 100 | Q62: 0 | R62: =SUM(N62,O62,P62,Q62) -> 100 | S62: 0 | T62: 0 | U62: 100 | V62: 0 | W62: =SUM(S62,T62,U62,V62) -> 100 | X62: 0 | Y62: 0 | Z62: 100 | AA62: 0 | AB62: =SUM(X62,Y62,Z62,AA62) -> 100 | AC62: 0 | AD62: 0 | AE62: 100 | AF62: 0 | AG62: =SUM(AC62,AD62,AE62,AF62) -> 100 | AH62: 0 | AI62: 0 | AJ62: 100 | AK62: 0 | AL62: =SUM(AH62,AI62,AJ62,AK62) -> 100 | AM62: 0 | AN62: 0 | AO62: 100 | AP62: 0 | AQ62: =SUM(AM62,AN62,AO62,AP62) -> 100 | AR62: 0 | AS62: 0 | AT62: 100 | AU62: 0 | AV62: =SUM(AR62,AS62,AT62,AU62) -> 100 | AW62: 0 | AX62: 0 | AY62: 100 | AZ62: 0 | BA62: =SUM(AW62,AX62,AY62,AZ62) -> 100 | BB62: 0 | BC62: 0 | BD62: 100 | BE62: 0 | BF62: =SUM(BB62,BC62,BD62,BE62) -> 100 | BG62: 0 | BH62: 0 | BI62: 0 | BJ62: 0 | BK62: =SUM(BG62,BH62,BI62,BJ62) -> 0 | BL62: 0 | BM62: 0 | BN62: 1100 | BO62: =SUM(G62,L62,Q62,V62,AA62,AF62,AK62,AP62,AU62,AZ62,BE62,BR62,BJ62) -> 0 | BP62: =SUM(H62,M62,R62,W62,AB62,AG62,AL62,AQ62,AV62,BA62,BF62,BK62) -> 1100
A63: 60 | B63: RUIZ DEL AGUILA, CINTHYA MELISSA | C63: 72178867 | D63: 0 | E63: 0 | F63: 200 | G63: 0 | H63: =SUM(D63,E63,F63,G63) -> 200 | I63: 0 | J63: 0 | K63: 200 | L63: 0 | M63: =SUM(I63,J63,K63,L63) -> 200 | N63: 0 | O63: 0 | P63: 200 | Q63: 0 | R63: =SUM(N63,O63,P63,Q63) -> 200 | S63: 0 | T63: 0 | U63: 200 | V63: 0 | W63: =SUM(S63,T63,U63,V63) -> 200 | X63: 0 | Y63: 0 | Z63: 200 | AA63: 0 | AB63: =SUM(X63,Y63,Z63,AA63) -> 200 | AC63: 0 | AD63: 0 | AE63: 200 | AF63: 0 | AG63: =SUM(AC63,AD63,AE63,AF63) -> 200 | AH63: 0 | AI63: 0 | AJ63: 200 | AK63: 0 | AL63: =SUM(AH63,AI63,AJ63,AK63) -> 200 | AM63: 0 | AN63: 0 | AO63: 200 | AP63: 0 | AQ63: =SUM(AM63,AN63,AO63,AP63) -> 200 | AR63: 0 | AS63: 0 | AT63: 200 | AU63: 0 | AV63: =SUM(AR63,AS63,AT63,AU63) -> 200 | AW63: 0 | AX63: 0 | AY63: 200 | AZ63: 0 | BA63: =SUM(AW63,AX63,AY63,AZ63) -> 200 | BB63: 0 | BC63: 0 | BD63: 200 | BE63: 0 | BF63: =SUM(BB63,BC63,BD63,BE63) -> 200 | BG63: 0 | BH63: 0 | BI63: 0 | BJ63: 0 | BK63: =SUM(BG63,BH63,BI63,BJ63) -> 0 | BL63: 0 | BM63: 0 | BN63: 2200 | BO63: =SUM(G63,L63,Q63,V63,AA63,AF63,AK63,AP63,AU63,AZ63,BE63,BR63,BJ63) -> 0 | BP63: =SUM(H63,M63,R63,W63,AB63,AG63,AL63,AQ63,AV63,BA63,BF63,BK63) -> 2200
A64: 61 | B64: SEPULVEDA VELA, SERGIO ANTONIO | C64: 821066 | D64: 10 | E64: 300 | F64: 0 | G64: 0 | H64: 310 | I64: 10 | J64: =1.9+298.1 -> 300 | K64: 0 | L64: 0 | M64: 310 | N64: 10 | O64: =1.9+298.1 -> 300 | P64: 0 | Q64: 0 | R64: 310 | S64: 11.9 | T64: 0 | U64: 0 | V64: 0 | W64: 11.9 | X64: 11.9 | Y64: 0 | Z64: 0 | AA64: 0 | AB64: 11.9 | AC64: 11.9 | AD64: 0 | AE64: 0 | AF64: 0 | AG64: 11.9 | AH64: 0 | AI64: 0 | AJ64: 0 | AK64: 0 | AL64: 0 | AM64: 0 | AN64: 0 | AO64: 0 | AP64: 0 | AQ64: 0 | AR64: 0 | AS64: 0 | AT64: 0 | AU64: 0 | AV64: 0 | AW64: 0 | AX64: =164.71+245.25 -> 409.96 | AY64: 0 | AZ64: 0 | BA64: 409.96 | BB64: 0 | BC64: =164.71+245.29 -> 410 | BD64: 0 | BE64: 0 | BF64: 410 | BG64: 0 | BH64: 0 | BI64: 0 | BJ64: 0 | BK64: 0 | BL64: 65.7 | BM64: =SUM(E64,J64,O64,T64,Y64,AD64,AI64,AN64,AS64,AX64,BC64,BH64) -> 1719.96 | BN64: 0 | BO64: 0 | BP64: 1785.66
A65: 62 | B65: TORRES BARDALEZ, JAVIER | C65: 802127 | D65: 10 | E65: 200 | F65: 0 | G65: 0 | H65: 210 | I65: 10 | J65: 200 | K65: 0 | L65: 0 | M65: 210 | N65: 10 | O65: 200 | P65: 0 | Q65: 0 | R65: 210 | S65: 10 | T65: 200 | U65: 0 | V65: 0 | W65: 210 | X65: 10 | Y65: 200 | Z65: 0 | AA65: 0 | AB65: 210 | AC65: 10 | AD65: 200 | AE65: 0 | AF65: 0 | AG65: 210 | AH65: 10 | AI65: 200 | AJ65: 0 | AK65: 0 | AL65: 210 | AM65: 10 | AN65: 200 | AO65: 0 | AP65: 0 | AQ65: 210 | AR65: 10 | AS65: 200 | AT65: 0 | AU65: 0 | AV65: 210 | AW65: 10 | AX65: 200 | AY65: 0 | AZ65: 0 | BA65: 210 | BB65: 10 | BC65: 200 | BD65: 0 | BE65: 0 | BF65: 210 | BG65: 0 | BH65: 0 | BI65: 0 | BJ65: 0 | BK65: 0 | BL65: 110 | BM65: 2200 | BN65: 0 | BO65: 0 | BP65: 2310
A66: 63 | B66: TORRES DIAZ, OSCAR | C66: 821102 | D66: 10 | E66: 0 | F66: 50 | G66: 0 | H66: 60 | I66: 10 | J66: 0 | K66: 50 | L66: 0 | M66: 60 | N66: 10 | O66: 0 | P66: 50 | Q66: 0 | R66: 60 | S66: 10 | T66: 0 | U66: 50 | V66: 0 | W66: 60 | X66: 10 | Y66: 0 | Z66: 50 | AA66: 0 | AB66: 60 | AC66: 10 | AD66: 0 | AE66: 50 | AF66: 0 | AG66: 60 | AH66: 10 | AI66: 0 | AJ66: 50 | AK66: 0 | AL66: 60 | AM66: 10 | AN66: 0 | AO66: 50 | AP66: 0 | AQ66: 60 | AR66: 10 | AS66: 0 | AT66: 50 | AU66: 0 | AV66: 60 | AW66: 10 | AX66: 0 | AY66: 50 | AZ66: 0 | BA66: 60 | BB66: 10 | BC66: 0 | BD66: 50 | BE66: 0 | BF66: 60 | BG66: 0 | BH66: 0 | BI66: 0 | BJ66: 0 | BK66: 0 | BL66: 110 | BM66: 0 | BN66: 550 | BO66: 0 | BP66: 660
A67: 64 | B67: TORRES REATEGUI, MARIANELA | C67: 860667 | D67: 0 | E67: 0 | F67: 0 | G67: 0 | H67: =SUM(D67,E67,F67,G67) -> 0 | I67: 0 | J67: 0 | K67: 0 | L67: 0 | M67: =SUM(I67,J67,K67,L67) -> 0 | N67: 0 | O67: 550 | P67: 0 | Q67: 0 | R67: =SUM(N67,O67,P67,Q67) -> 550 | S67: 0 | T67: 550 | U67: 0 | V67: 0 | W67: =SUM(S67,T67,U67,V67) -> 550 | X67: 0 | Y67: 550 | Z67: 0 | AA67: 0 | AB67: =SUM(X67,Y67,Z67,AA67) -> 550 | AC67: 0 | AD67: 550 | AE67: 0 | AF67: 0 | AG67: =SUM(AC67,AD67,AE67,AF67) -> 550 | AH67: 0 | AI67: 550 | AJ67: 0 | AK67: 0 | AL67: =SUM(AH67,AI67,AJ67,AK67) -> 550 | AM67: 0 | AN67: 550 | AO67: 0 | AP67: 0 | AQ67: =SUM(AM67,AN67,AO67,AP67) -> 550 | AR67: 0 | AS67: 550 | AT67: 0 | AU67: 0 | AV67: =SUM(AR67,AS67,AT67,AU67) -> 550 | AW67: 0 | AX67: 550 | AY67: 0 | AZ67: 0 | BA67: =SUM(AW67,AX67,AY67,AZ67) -> 550 | BB67: 0 | BC67: 550 | BD67: 0 | BE67: 0 | BF67: =SUM(BB67,BC67,BD67,BE67) -> 550 | BG67: 0 | BH67: 0 | BI67: 0 | BJ67: 0 | BK67: =SUM(BG67,BH67,BI67,BJ67) -> 0 | BL67: =SUM(D67,I67,N67,S67,X67,AC67,AH67,AM67,AR67,AW67,BB67,BG67) -> 0 | BM67: =SUM(E67,J67,O67,T67,Y67,AD67,AI67,AN67,AS67,AX67,BC67,BH67) -> 4950 | BN67: =SUM(F67,K67,P67,U67,Z67,AE67,AJ67,AO67,AT67,AY67,BD67,BI67) -> 0 | BO67: =SUM(G67,L67,Q67,V67,AA67,AF67,AK67,AP67,AU67,AZ67,BE67,BR67,BJ67) -> 0 | BP67: =SUM(H67,M67,R67,W67,AB67,AG67,AL67,AQ67,AV67,BA67,BF67,BK67) -> 4950
A68: 65 | B68: VASQUEZ HIDALGO, CUSTODIO | C68: 806058 | D68: 10 | E68: 35.4 | F68: 0 | G68: 0 | H68: 45.4 | I68: 10 | J68: 165 | K68: 0 | L68: 0 | M68: 175 | N68: 10 | O68: 130 | P68: 0 | Q68: 0 | R68: 140 | S68: 10 | T68: 155 | U68: 0 | V68: 0 | W68: 165 | X68: 10 | Y68: 176 | Z68: 0 | AA68: 0 | AB68: 186 | AC68: 10 | AD68: 88 | AE68: 0 | AF68: 0 | AG68: 98 | AH68: 10 | AI68: 176 | AJ68: 0 | AK68: 0 | AL68: 186 | AM68: 10 | AN68: 176 | AO68: 0 | AP68: 0 | AQ68: 186 | AR68: 10 | AS68: 353 | AT68: 0 | AU68: 0 | AV68: 363 | AW68: 10 | AX68: 353 | AY68: 0 | AZ68: 0 | BA68: 363 | BB68: 10 | BC68: 353 | BD68: 0 | BE68: 0 | BF68: 363 | BG68: 0 | BH68: 0 | BI68: 0 | BJ68: 0 | BK68: 0 | BL68: 110 | BM68: 2160.4 | BN68: 0 | BO68: 0 | BP68: 2270.4
A69: 66 | B69: VELA CASIQUE, PERCY | C69: 42614497 | D69: 10 | E69: 0 | F69: 0 | G69: 0 | H69: 10 | I69: 10 | J69: 0 | K69: 0 | L69: 0 | M69: 10 | N69: 10 | O69: 0 | P69: 0 | Q69: 0 | R69: 10 | S69: 10 | T69: 0 | U69: 0 | V69: 0 | W69: 10 | X69: 10 | Y69: 0 | Z69: 0 | AA69: 0 | AB69: 10 | AC69: 10 | AD69: 0 | AE69: 0 | AF69: 0 | AG69: 10 | AH69: 10 | AI69: 0 | AJ69: 0 | AK69: 0 | AL69: 10 | AM69: 10 | AN69: 0 | AO69: 0 | AP69: 0 | AQ69: 10 | AR69: 10 | AS69: 0 | AT69: 0 | AU69: 0 | AV69: 10 | AW69: 10 | AX69: 0 | AY69: 0 | AZ69: 0 | BA69: 10 | BB69: 10 | BC69: 0 | BD69: 0 | BE69: 0 | BF69: 10 | BG69: 0 | BH69: 0 | BI69: 0 | BJ69: 0 | BK69: 0 | BL69: 110 | BM69: 0 | BN69: 0 | BO69: 0 | BP69: 110
A70: 67 | B70: VENEGAS MENDOZA, MARTHA | C70: 1027724 | D70: 0 | E70: 0 | F70: 0 | G70: 0 | H70: 0 | I70: 0 | J70: 0 | K70: 0 | L70: 0 | M70: 0 | N70: 0 | O70: 252 | P70: 0 | Q70: 0 | R70: 252 | S70: 0 | T70: 252 | U70: 0 | V70: 0 | W70: 252 | X70: 0 | Y70: 252 | Z70: 0 | AA70: 0 | AB70: 252 | AC70: 0 | AD70: 252 | AE70: 0 | AF70: 0 | AG70: 252 | AH70: 0 | AI70: 252 | AJ70: 0 | AK70: 0 | AL70: 252 | AM70: 0 | AN70: =252+248 -> 500 | AO70: 0 | AP70: 0 | AQ70: 500 | AR70: 0 | AS70: 0 | AT70: 0 | AU70: 0 | AV70: 0 | AW70: 0 | AX70: 0 | AY70: 0 | AZ70: 0 | BA70: =SUM(AW70,AX70,AY70,AZ70) -> 0 | BB70: 0 | BC70: 0 | BD70: 0 | BE70: 0 | BF70: =SUM(BB70,BC70,BD70,BE70) -> 0 | BG70: 0 | BH70: 0 | BI70: 0 | BJ70: 0 | BK70: =SUM(BG70,BH70,BI70,BJ70) -> 0 | BL70: =SUM(D70,I70,N70,S70,X70,AC70,AH70,AM70,AR70,AW70,BB70,BG70) -> 0 | BM70: 1760 | BN70: 0 | BO70: 0 | BP70: =SUM(H70,M70,R70,W70,AB70,AG70,AL70,AQ70,AV70,BA70,BF70,BK70) -> 1760
A71: 68 | B71: VILCHEZ SECLEN, MILKA | C71: 16704655 | D71: 0 | E71: 0 | F71: 0 | G71: 0 | H71: 0 | I71: 0 | J71: 330 | K71: 0 | L71: 0 | M71: 330 | N71: 0 | O71: 330 | P71: 0 | Q71: 0 | R71: 330 | S71: 0 | T71: 330 | U71: 0 | V71: 0 | W71: 330 | X71: 0 | Y71: 330 | Z71: 0 | AA71: 0 | AB71: 330 | AC71: 0 | AD71: 330 | AE71: 0 | AF71: 0 | AG71: 330 | AH71: 0 | AI71: 330 | AJ71: 0 | AK71: 0 | AL71: 330 | AM71: 0 | AN71: 330 | AO71: 0 | AP71: 0 | AQ71: 330 | AR71: 0 | AS71: 330 | AT71: 0 | AU71: 0 | AV71: 330 | AW71: 0 | AX71: 330 | AY71: 0 | AZ71: 0 | BA71: 330 | BB71: 0 | BC71: 330 | BD71: 0 | BE71: 0 | BF71: 330 | BG71: 0 | BH71: 0 | BI71: 0 | BJ71: 0 | BK71: 0 | BL71: 0 | BM71: 3300 | BN71: 0 | BO71: 0 | BP71: 3300
A72: 69 | B72: VILLACORTA MARINA, VICTOR ALBERTO | C72: 44932569 | D72: 0 | E72: 0 | F72: 200 | G72: 0 | H72: 200 | I72: 0 | J72: 0 | K72: 200 | L72: 0 | M72: 200 | N72: 0 | O72: 0 | P72: 200 | Q72: 0 | R72: 200 | S72: 0 | T72: 0 | U72: 200 | V72: 0 | W72: 200 | X72: 0 | Y72: 0 | Z72: 200 | AA72: 0 | AB72: 200 | AC72: 0 | AD72: 0 | AE72: 200 | AF72: 0 | AG72: 200 | AH72: 0 | AI72: 0 | AJ72: 200 | AK72: 0 | AL72: 200 | AM72: 0 | AN72: 0 | AO72: 200 | AP72: 0 | AQ72: 200 | AR72: 0 | AS72: 0 | AT72: 200 | AU72: 0 | AV72: 200 | AW72: 0 | AX72: 0 | AY72: 200 | AZ72: 0 | BA72: 200 | BB72: 0 | BC72: 0 | BD72: 200 | BE72: 0 | BF72: 200 | BG72: 0 | BH72: 0 | BI72: 0 | BJ72: 0 | BK72: 0 | BL72: 0 | BM72: 0 | BN72: 2200 | BO72: 0 | BP72: 2200
A73: TOTAL | D73: =SUM(E4:E72) -> 2025.4 | E73: =SUM(E4:E72) -> 2025.4 | F73: 3550 | G73: 0 | H73: 6015.4 | I73: 433.08 | J73: 5350 | K73: 3700 | L73: 0 | M73: 9483.08 | N73: 463.55 | O73: 7129.5 | P73: 3920 | Q73: 0 | R73: 11513.05 | S73: 445.45 | T73: 6025 | U73: 3810 | V73: 0 | W73: 10280.45 | X73: 445.45 | Y73: 6646 | Z73: 3810 | AA73: 0 | AB73: 10901.45 | AC73: 443.64 | AD73: 5896 | AE73: 3810 | AF73: 0 | AG73: 10149.64 | AH73: 410 | AI73: 8367 | AJ73: 3810 | AK73: =SUM(AK4:AK72) -> 0 | AL73: 12587 | AM73: 417.43 | AN73: 7368 | AO73: 3810 | AP73: 0 | AQ73: 11595.43 | AR73: 390 | AS73: 6803.59 | AT73: 3710 | AU73: 0 | AV73: 10903.59 | AW73: 400 | AX73: 7208.46 | AY73: 3300 | AZ73: 0 | BA73: 10908.46 | BB73: =SUM(BB4:BB72) -> 411.3 | BC73: 5537 | BD73: 3300 | BE73: 0 | BF73: 9248.3 | BG73: 0 | BH73: 0 | BI73: 0 | BJ73: 0 | BK73: 0 | BL73: 4699.9 | BM73: 68355.95 | BN73: 40530 | BO73: 0 | BP73: 113585.85
C74: CHEQUE | H74: =5520.72+394.68 -> 5915.4 | M74: =6596.33+646.75 -> 7243.08 | R74: =10650.98+562.07 -> 11213.05 | W74: =340.59+9639.86 -> 9980.45 | AB74: =264.26+9737.19 -> 10001.45 | AL74: 10755 | AQ74: =10796.43+186 -> 10982.43 | AV74: =AV73-AS75 -> 10303.59 | BA74: =9697.71+245.25 -> 9942.96 | BC74: =608.29+8340.01 -> 8948.3
C75: efectivo | J75: =590+1650 -> 2240 | O75: 300 | T75: =300 -> 300 | Y75: 600 | AE75: . | AI75: 1832 | AN75: =248+365 -> 613 | AS75: 600 | BA75: =300+300+365.5 -> 965.5 | BC75: 300
A76: DEVOLUCION DE PRESTAMOS Y APORTACIONES PARA CANASTA NAVIDEÑA - 2022
A77: Nº | B77: APELLIDOS Y NOMBRES | D77: ENERO | I77: FEBRERO | N77: MARZO | S77: ABRIL | X77: MAYO | AC77: JUNIO | AH77: JULIO | AM77: AGOSTO | AR77: SEPTIEMBRE | AW77: OCTUBRE | BB77: NOVIEMBRE | BG77: DICIEMBRE | BL77: TOTAL
D78: CUOTA | E78: PREST. | F78: CANASTA | G78: OTROS | H78: TOTAL | I78: CUOTA | J78: PREST. | K78: CANASTA | L78: OTROS | M78: TOTAL | N78: CUOTA | O78: PREST. | P78: CANASTA | Q78: OTROS | R78: TOTAL | S78: CUOTA | T78: PREST. | U78: CANASTA | V78: OTROS | W78: TOTAL | X78: CUOTA | Y78: PREST. | Z78: CANASTA | AA78: OTROS | AB78: TOTAL | AC78: CUOTA | AD78: PREST. | AE78: CANASTA | AF78: OTROS | AG78: TOTAL | AH78: CUOTA | AI78: PREST. | AJ78: CANASTA | AK78: OTROS | AL78: TOTAL | AM78: CUOTA | AN78: PREST. | AO78: CANASTA | AP78: OTROS | AQ78: TOTAL | AR78: CUOTA | AS78: PREST. | AT78: CANASTA | AU78: OTROS | AV78: TOTAL | AW78: CUOTA | AX78: PREST. | AY78: CANASTA | AZ78: OTROS | BA78: TOTAL | BB78: CUOTA | BC78: PREST. | BD78: CANASTA | BE78: OTROS | BF78: TOTAL | BG78: CUOTA | BH78: PREST. | BI78: CANASTA | BJ78: OTROS | BK78: TOTAL | BL78: CUOTA | BM78: PREST. | BN78: CANASTA | BO78: OTROS | BP78: TOTAL | BQ78: DEVOLUCION CANASTA
A79: 1 | B79: AHUANARI ZUMBA, RICARDO | C79: 40291265 | D79: 0 | E79: 100 | F79: 0 | G79: 0 | H79: =SUM(D79,E79,F79,G79) -> 100 | I79: 0 | J79: 187.67 | K79: 0 | L79: 0 | M79: =SUM(I79,J79,K79,L79) -> 187.67 | N79: 0 | O79: 152 | P79: 0 | Q79: 0 | R79: =SUM(N79,O79,P79,Q79) -> 152 | S79: 0 | T79: 152 | U79: 0 | V79: 0 | W79: =SUM(S79,T79,U79,V79) -> 152 | X79: 0 | Y79: 152 | Z79: 0 | AA79: 0 | AB79: =SUM(X79,Y79,Z79,AA79) -> 152 | AC79: 0 | AD79: 152 | AE79: 0 | AF79: 0 | AG79: =SUM(AC79,AD79,AE79,AF79) -> 152 | AH79: 0 | AI79: 155 | AJ79: 0 | AK79: 0 | AL79: =SUM(AH79,AI79,AJ79,AK79) -> 155 | AM79: 0 | AN79: 155 | AO79: 0 | AP79: 0 | AQ79: =SUM(AM79,AN79,AO79,AP79) -> 155 | AR79: 0 | AS79: 155 | AT79: 0 | AU79: 0 | AV79: =SUM(AR79,AS79,AT79,AU79) -> 155 | AW79: 0 | AX79: 155 | AY79: 0 | AZ79: 0 | BA79: =SUM(AW79,AX79,AY79,AZ79) -> 155 | BB79: 0 | BC79: 134.33 | BD79: 0 | BE79: 0 | BF79: =SUM(BB79,BC79,BD79,BE79) -> 134.33 | BG79: 0 | BH79: 0 | BI79: 0 | BJ79: 0 | BK79: =SUM(BG79,BH79,BI79,BJ79) -> 0 | BL79: =SUM(D79,I79,N79,S79,X79,AC79,AH79,AM79,AR79,AW79,BB79,BG79) -> 0 | BM79: 1650 | BN79: 0 | BO79: =SUM(G79,L79,Q79,V79,AA79,AF79,AK79,AP79,AU79,AZ79,BE79,BR79,BJ79) -> 0 | BP79: =SUM(H79,M79,R79,W79,AB79,AG79,AL79,AQ79,AV79,BA79,BF79,BK79) -> 1650
A80: 2 | B80: APAESTEGUI HUANCA, LIZ HERMELINDA | C80: 40958386 | D80: 0 | E80: 0 | F80: 100 | G80: 0 | H80: 100 | I80: 0 | J80: 0 | K80: 100 | L80: 0 | M80: 100 | N80: 0 | O80: 0 | P80: 100 | Q80: 0 | R80: 100 | S80: 0 | T80: 0 | U80: 100 | V80: 0 | W80: 100 | X80: 0 | Y80: 0 | Z80: 100 | AA80: 0 | AB80: 100 | AC80: 0 | AD80: 0 | AE80: 100 | AF80: 0 | AG80: 100 | AH80: 0 | AI80: 0 | AJ80: 100 | AK80: 0 | AL80: 100 | AM80: 0 | AN80: 0 | AO80: 100 | AP80: 0 | AQ80: 100 | AR80: 0 | AS80: 0 | AT80: 100 | AU80: 0 | AV80: 100 | AW80: 0 | AX80: 0 | AY80: 100 | AZ80: 0 | BA80: 100 | BB80: 0 | BC80: 0 | BD80: 100 | BE80: 0 | BF80: 100 | BG80: 0 | BH80: 0 | BI80: 0 | BJ80: 0 | BK80: 0 | BL80: 0 | BM80: 0 | BN80: 1100 | BO80: 0 | BP80: 1100
A81: 3 | B81: ASPAJO CHUMBE, VICTOR RAUL | C81: 40821941 | D81: 0 | E81: 0 | F81: 0 | G81: 0 | H81: 0 | I81: 0 | J81: 220 | K81: 0 | L81: 0 | M81: 220 | N81: 0 | O81: 294 | P81: 0 | Q81: 0 | R81: 294 | S81: 0 | T81: 292 | U81: 0 | V81: 0 | W81: 292 | X81: 0 | Y81: 294 | Z81: 0 | AA81: 0 | AB81: 294 | AC81: 0 | AD81: 294 | AE81: 0 | AF81: 0 | AG81: 294 | AH81: 0 | AI81: 294 | AJ81: 0 | AK81: 0 | AL81: 294 | AM81: 0 | AN81: =292+440 -> 732 | AO81: 0 | AP81: 0 | AQ81: 732 | AR81: 0 | AS81: 440 | AT81: 0 | AU81: 0 | AV81: 440 | AW81: 0 | AX81: 0 | AY81: 0 | AZ81: 0 | BA81: 0 | BB81: 0 | BC81: 0 | BD81: 0 | BE81: 0 | BF81: 0 | BG81: 0 | BH81: 0 | BI81: 0 | BJ81: 0 | BK81: 0 | BL81: 0 | BM81: 2860 | BN81: 0 | BO81: 0 | BP81: 2860
A82: 4 | B82: BEJARANO AGUILAR, MAGALY ROCIO | C82: 43180463 | D82: 0 | E82: 1100 | F82: 0 | G82: 0 | H82: 1100 | I82: 0 | J82: 1100 | K82: 0 | L82: 0 | M82: 1100 | N82: 0 | O82: 1100 | P82: 0 | Q82: 0 | R82: 1100 | S82: 0 | T82: 1100 | U82: 0 | V82: 0 | W82: 1100 | X82: 0 | Y82: 1100 | Z82: 0 | AA82: 0 | AB82: 1100 | AC82: 0 | AD82: 1100 | AE82: 0 | AF82: 0 | AG82: 1100 | AH82: 0 | AI82: 0 | AJ82: 0 | AK82: 0 | AL82: 0 | AM82: 0 | AN82: 0 | AO82: 0 | AP82: 0 | AQ82: 0 | AR82: 0 | AS82: 0 | AT82: 0 | AU82: 0 | AV82: 0 | AW82: 0 | AX82: 0 | AY82: 0 | AZ82: 0 | BA82: 0 | BB82: 0 | BC82: 0 | BD82: 0 | BE82: 0 | BF82: 0 | BG82: 0 | BH82: 0 | BI82: 0 | BJ82: 0 | BK82: 0 | BL82: 0 | BM82: 6600 | BN82: 0 | BO82: 0 | BP82: 6600
A83: 5 | B83: BEJARANO AROSEMENA, AUREA MILAGROS | C83: 45541324 | D83: 0 | E83: 0 | F83: 0 | G83: 0 | H83: 0 | I83: 0 | J83: 0 | K83: 0 | L83: 0 | M83: 0 | N83: 0 | O83: 0 | P83: 0 | Q83: 0 | R83: 0 | S83: 0 | T83: 0 | U83: 0 | V83: 0 | W83: 0 | X83: 0 | Y83: 79 | Z83: 0 | AA83: 0 | AB83: 79 | AC83: 0 | AD83: 79 | AE83: 0 | AF83: 0 | AG83: 79 | AH83: 0 | AI83: 79 | AJ83: 0 | AK83: 0 | AL83: 79 | AM83: 0 | AN83: 79 | AO83: 0 | AP83: 0 | AQ83: 79 | AR83: 0 | AS83: 79 | AT83: 0 | AU83: 0 | AV83: 79 | AW83: 0 | AX83: 79 | AY83: 0 | AZ83: 0 | BA83: 79 | BB83: 0 | BC83: 76 | BD83: 0 | BE83: 0 | BF83: 76 | BG83: 0 | BH83: 0 | BI83: 0 | BJ83: 0 | BK83: 0 | BL83: 0 | BM83: 550 | BN83: 0 | BO83: 0 | BP83: 550
A84: 6 | B84: CABALLERO FERNANDEZ, MARIA ELEANA | C84: 17838963 | D84: 0 | E84: 100 | F84: 0 | G84: 0 | H84: 100 | I84: 0 | J84: 100 | K84: 0 | L84: 0 | M84: 100 | N84: 0 | O84: 100 | P84: 0 | Q84: 0 | R84: 100 | S84: 0 | T84: 100 | U84: 0 | V84: 0 | W84: 100 | X84: 0 | Y84: 100 | Z84: 0 | AA84: 0 | AB84: 100 | AC84: 0 | AD84: 100 | AE84: 0 | AF84: 0 | AG84: 100 | AH84: 0 | AI84: 100 | AJ84: 0 | AK84: 0 | AL84: 100 | AM84: 0 | AN84: 100 | AO84: 0 | AP84: 0 | AQ84: 100 | AR84: 0 | AS84: 100 | AT84: 0 | AU84: 0 | AV84: 100 | AW84: 0 | AX84: 100 | AY84: 0 | AZ84: 0 | BA84: 100 | BB84: 0 | BC84: 100 | BD84: 0 | BE84: 0 | BF84: 100 | BG84: 0 | BH84: 0 | BI84: 0 | BJ84: 0 | BK84: 0 | BL84: 0 | BM84: 1100 | BN84: 0 | BO84: 0 | BP84: 1100
A85: 7 | B85: CARRION PANAYFO, SUSANA | C85: 42085984 | D85: 0 | E85: 0 | F85: 50 | G85: 0 | H85: 50 | I85: 0 | J85: 0 | K85: 50 | L85: 0 | M85: 50 | N85: 0 | O85: 0 | P85: 50 | Q85: 0 | R85: 50 | S85: 0 | T85: 0 | U85: 50 | V85: 0 | W85: 50 | X85: 0 | Y85: 0 | Z85: 50 | AA85: 0 | AB85: 50 | AC85: 0 | AD85: 0 | AE85: 50 | AF85: 0 | AG85: 50 | AH85: 0 | AI85: 0 | AJ85: 50 | AK85: 0 | AL85: 50 | AM85: 0 | AN85: 0 | AO85: 50 | AP85: 0 | AQ85: 50 | AR85: 0 | AS85: 0 | AT85: 50 | AU85: 0 | AV85: 50 | AW85: 0 | AX85: 0 | AY85: 50 | AZ85: 0 | BA85: 50 | BB85: 0 | BC85: 0 | BD85: 50 | BE85: 0 | BF85: 50 | BG85: 0 | BH85: 0 | BI85: 0 | BJ85: 0 | BK85: 0 | BL85: 0 | BM85: 0 | BN85: 550 | BO85: 0 | BP85: 550
A86: 8 | B86: CASTILLO MARINA, EDDY | C86: 41482777 | D86: 0 | E86: 413 | F86: 0 | G86: 0 | H86: 413 | I86: 0 | J86: 413 | K86: 0 | L86: 0 | M86: 413 | N86: 0 | O86: 413 | P86: 0 | Q86: 0 | R86: 413 | S86: 0 | T86: 413 | U86: 0 | V86: 0 | W86: 413 | X86: 0 | Y86: 413 | Z86: 0 | AA86: 0 | AB86: 413 | AC86: 0 | AD86: 413 | AE86: 0 | AF86: 0 | AG86: 413 | AH86: 0 | AI86: 413 | AJ86: 0 | AK86: 0 | AL86: 413 | AM86: 0 | AN86: 515 | AO86: 0 | AP86: 0 | AQ86: 515 | AR86: 0 | AS86: 515 | AT86: 0 | AU86: 0 | AV86: 515 | AW86: 0 | AX86: 515 | AY86: 0 | AZ86: 0 | BA86: 515 | BB86: 0 | BC86: 560 | BD86: 0 | BE86: 0 | BF86: 560 | BG86: 0 | BH86: 0 | BI86: 0 | BJ86: 0 | BK86: 0 | BL86: 0 | BM86: 4996 | BN86: 0 | BO86: 0 | BP86: 4996
A87: 9 | B87: CHUQUI LOPEZ, HILDA MILDRED | C87: 43139450 | D87: 0 | E87: 0 | F87: 100 | G87: 0 | H87: 100 | I87: 0 | J87: 0 | K87: 0 | L87: 0 | M87: 0 | N87: 0 | O87: 0 | P87: 0 | Q87: 0 | R87: 0 | S87: 0 | T87: 0 | U87: 0 | V87: 0 | W87: 0 | X87: 0 | Y87: 0 | Z87: 0 | AA87: 0 | AB87: 0 | AC87: 0 | AD87: 0 | AE87: 0 | AF87: 0 | AG87: 0 | AH87: 0 | AI87: 0 | AJ87: 0 | AK87: 0 | AL87: 0 | AM87: 0 | AN87: 0 | AO87: 0 | AP87: 0 | AQ87: 0 | AR87: 0 | AS87: 0 | AT87: 0 | AU87: 0 | AV87: 0 | AW87: 0 | AX87: 0 | AY87: 0 | AZ87: 0 | BA87: 0 | BB87: 0 | BC87: 0 | BD87: 0 | BE87: 0 | BF87: 0 | BG87: 0 | BH87: 0 | BI87: 0 | BJ87: 0 | BK87: 0 | BL87: 0 | BM87: 0 | BN87: 100 | BO87: 0 | BP87: 100
A88: 10 | B88: CISNEROS HIDALGO, LOURDES AUGUSTA | C88: 833790 | D88: 10 | E88: 0 | F88: 0 | G88: 0 | H88: 10 | I88: 10 | J88: 0 | K88: 0 | L88: 0 | M88: 10 | N88: 10 | O88: 0 | P88: 0 | Q88: 0 | R88: 10 | S88: 10 | T88: 0 | U88: 0 | V88: 0 | W88: 10 | X88: 10 | Y88: 0 | Z88: 0 | AA88: 0 | AB88: 10 | AC88: 10 | AD88: 165 | AE88: 0 | AF88: 0 | AG88: 175 | AH88: 10 | AI88: 165 | AJ88: 0 | AK88: 0 | AL88: 175 | AM88: 0 | AN88: 0 | AO88: 0 | AP88: 0 | AQ88: 0 | AR88: 10 | AS88: 0 | AT88: 0 | AU88: 0 | AV88: 10 | AW88: 0 | AX88: 0 | AY88: 0 | AZ88: 0 | BA88: 0 | BB88: 0 | BC88: 0 | BD88: 0 | BE88: 0 | BF88: 0 | BG88: 0 | BH88: 0 | BI88: 0 | BJ88: 0 | BK88: 0 | BL88: 80 | BM88: 330 | BN88: 0 | BO88: 0 | BP88: 410
A89: 11 | B89: CUEVA DOMINGUEZ, CESAR | C89: 45613869 | D89: 0 | E89: 0 | F89: 0 | G89: 0 | H89: 0 | I89: 0 | J89: 0 | K89: 50 | L89: 0 | M89: 50 | N89: 0 | O89: 0 | P89: 50 | Q89: 0 | R89: 50 | S89: 0 | T89: 0 | U89: 50 | V89: 0 | W89: 50 | X89: 0 | Y89: 0 | Z89: 50 | AA89: 0 | AB89: 50 | AC89: 0 | AD89: 0 | AE89: 50 | AF89: 0 | AG89: 50 | AH89: 0 | AI89: 0 | AJ89: 50 | AK89: 0 | AL89: 50 | AM89: 0 | AN89: 0 | AO89: 50 | AP89: 0 | AQ89: 50 | AR89: 0 | AS89: 0 | AT89: 50 | AU89: 0 | AV89: 50 | AW89: 0 | AX89: 0 | AY89: 50 | AZ89: 0 | BA89: 50 | BB89: 0 | BC89: 0 | BD89: 50 | BE89: 0 | BF89: 50 | BG89: 0 | BH89: 0 | BI89: 0 | BJ89: 0 | BK89: 0 | BL89: 0 | BM89: 0 | BN89: 500 | BO89: 0 | BP89: 500
A90: 12 | B90: DAHUA SALAZAR. ROGER AUGUSTO | C90: 40517481 | D90: 0 | E90: 300 | F90: 0 | G90: 0 | H90: 300 | I90: 0 | J90: 300 | K90: 0 | L90: 0 | M90: 300 | N90: 0 | O90: 300 | P90: 0 | Q90: 0 | R90: 300 | S90: 0 | T90: 300 | U90: 0 | V90: 0 | W90: 300 | X90: 0 | Y90: 300 | Z90: 0 | AA90: 0 | AB90: 300 | AC90: 0 | AD90: 300 | AE90: 0 | AF90: 0 | AG90: 300 | AH90: 0 | AI90: 300 | AJ90: 0 | AK90: 0 | AL90: 300 | AM90: 0 | AN90: 300 | AO90: 0 | AP90: 0 | AQ90: 300 | AR90: 0 | AS90: 300 | AT90: 0 | AU90: 0 | AV90: 300 | AW90: 0 | AX90: 300 | AY90: 0 | AZ90: 0 | BA90: 300 | BB90: 0 | BC90: 300 | BD90: 0 | BE90: 0 | BF90: 300 | BG90: 0 | BH90: 0 | BI90: 0 | BJ90: 0 | BK90: 0 | BL90: 0 | BM90: 3300 | BN90: 0 | BO90: 0 | BP90: 3300
A91: 13 | B91: DIAZ GARCIA, OLGA YSABEL | C91: 42838960 | D91: 0 | E91: 0 | F91: 200 | G91: 0 | H91: 200 | I91: 0 | J91: 0 | K91: 200 | L91: 0 | M91: 200 | N91: 0 | O91: 0 | P91: 200 | Q91: 0 | R91: 200 | S91: 0 | T91: 0 | U91: 200 | V91: 0 | W91: 200 | X91: 0 | Y91: 0 | Z91: 200 | AA91: 0 | AB91: 200 | AC91: 0 | AD91: 0 | AE91: 200 | AF91: 0 | AG91: 200 | AH91: 0 | AI91: 0 | AJ91: 200 | AK91: 0 | AL91: 200 | AM91: 0 | AN91: 0 | AO91: 200 | AP91: 0 | AQ91: 200 | AR91: 0 | AS91: 0 | AT91: 200 | AU91: 0 | AV91: 200 | AW91: 0 | AX91: 0 | AY91: 200 | AZ91: 0 | BA91: 200 | BB91: 0 | BC91: 0 | BD91: 200 | BE91: 0 | BF91: 200 | BG91: 0 | BH91: 0 | BI91: 0 | BJ91: 0 | BK91: 0 | BL91: 0 | BM91: 0 | BN91: 2200 | BO91: 0 | BP91: 2200
A92: 14 | B92: ENRIQUEZ MEDINA, MARITZA | C92: 45634505 | D92: 0 | E92: 0 | F92: 100 | G92: 0 | H92: 100 | I92: 0 | J92: 0 | K92: 100 | L92: 0 | M92: 100 | N92: 0 | O92: 0 | P92: 100 | Q92: 0 | R92: 100 | S92: 0 | T92: 0 | U92: 100 | V92: 0 | W92: 100 | X92: 0 | Y92: 0 | Z92: 100 | AA92: 0 | AB92: 100 | AC92: 0 | AD92: 0 | AE92: 100 | AF92: 0 | AG92: 100 | AH92: 0 | AI92: 0 | AJ92: 100 | AK92: 0 | AL92: 100 | AM92: 0 | AN92: 0 | AO92: 100 | AP92: 0 | AQ92: 100 | AR92: 0 | AS92: 0 | AT92: 100 | AU92: 0 | AV92: 100 | AW92: 0 | AX92: 0 | AY92: 100 | AZ92: 0 | BA92: 100 | BB92: 0 | BC92: 0 | BD92: 100 | BE92: 0 | BF92: 100 | BG92: 0 | BH92: 0 | BI92: 0 | BJ92: 0 | BK92: 0 | BL92: 0 | BM92: 0 | BN92: 1100 | BO92: 0 | BP92: 1100
A93: 15 | B93: FACUNDO SANCHEZ, DIANA LUZ | C93: 70293110 | D93: 0 | E93: 0 | F93: 200 | G93: 0 | H93: 200 | I93: 0 | J93: 0 | K93: 200 | L93: 0 | M93: 200 | N93: 0 | O93: 0 | P93: 200 | Q93: 0 | R93: 200 | S93: 0 | T93: 0 | U93: 200 | V93: 0 | W93: 200 | X93: 0 | Y93: 0 | Z93: 200 | AA93: 0 | AB93: 200 | AC93: 0 | AD93: 0 | AE93: 200 | AF93: 0 | AG93: 200 | AH93: 0 | AI93: 0 | AJ93: 200 | AK93: 0 | AL93: 200 | AM93: 0 | AN93: 0 | AO93: 200 | AP93: 0 | AQ93: 200 | AR93: 0 | AS93: 0 | AT93: 200 | AU93: 0 | AV93: 200 | AW93: 0 | AX93: 0 | AY93: 200 | AZ93: 0 | BA93: 200 | BB93: 0 | BC93: 0 | BD93: 200 | BE93: 0 | BF93: 200 | BG93: 0 | BH93: 0 | BI93: 0 | BJ93: 0 | BK93: 0 | BL93: 0 | BM93: 0 | BN93: 2200 | BO93: 0 | BP93: 2200
A94: 16 | B94: GASCO GUERRERO, OLGA LICETH | C94: 47967611 | D94: 0 | E94: 100 | F94: 0 | G94: 0 | H94: 100 | I94: 0 | J94: 100 | K94: 0 | L94: 0 | M94: 100 | N94: 0 | O94: 100 | P94: 0 | Q94: 0 | R94: 100 | S94: 0 | T94: 100 | U94: 0 | V94: 0 | W94: 100 | X94: 0 | Y94: 271 | Z94: 0 | AA94: 0 | AB94: 271 | AC94: 0 | AD94: 271 | AE94: 0 | AF94: 0 | AG94: 271 | AH94: 0 | AI94: 271 | AJ94: 0 | AK94: 0 | AL94: 271 | AM94: 0 | AN94: 271 | AO94: 0 | AP94: 0 | AQ94: 271 | AR94: 0 | AS94: 271 | AT94: 0 | AU94: 0 | AV94: 271 | AW94: 0 | AX94: 271 | AY94: 0 | AZ94: 0 | BA94: 271 | BB94: 0 | BC94: 174 | BD94: 0 | BE94: 0 | BF94: 174 | BG94: 0 | BH94: 0 | BI94: 0 | BJ94: 0 | BK94: 0 | BL94: 0 | BM94: 2200 | BN94: 0 | BO94: 0 | BP94: 2200
A95: 17 | B95: HOYOS CIEZA, DANI | C95: 46773668 | D95: 0 | E95: 0 | F95: 180 | G95: 0 | H95: 180 | I95: 0 | J95: 0 | K95: 180 | L95: 0 | M95: 180 | N95: 0 | O95: 0 | P95: 180 | Q95: 0 | R95: 180 | S95: 0 | T95: 0 | U95: 180 | V95: 0 | W95: 180 | X95: 0 | Y95: 0 | Z95: 180 | AA95: 0 | AB95: 180 | AC95: 0 | AD95: 0 | AE95: 180 | AF95: 0 | AG95: 180 | AH95: 0 | AI95: 0 | AJ95: 180 | AK95: 0 | AL95: 180 | AM95: 0 | AN95: 0 | AO95: 180 | AP95: 0 | AQ95: 180 | AR95: 0 | AS95: 0 | AT95: 180 | AU95: 0 | AV95: 180 | AW95: 0 | AX95: 0 | AY95: 180 | AZ95: 0 | BA95: 180 | BB95: 0 | BC95: 0 | BD95: 180 | BE95: 0 | BF95: 180 | BG95: 0 | BH95: 0 | BI95: 0 | BJ95: 0 | BK95: 0 | BL95: 0 | BM95: 0 | BN95: 1980 | BO95: 0 | BP95: 1980
A96: 18 | B96: HOYOS CIEZA, NEYDA | C96: 43210651 | D96: 0 | E96: 0 | F96: 180 | G96: 0 | H96: 180 | I96: 0 | J96: 0 | K96: 180 | L96: 0 | M96: 180 | N96: 0 | O96: 0 | P96: 180 | Q96: 0 | R96: 180 | S96: 0 | T96: 0 | U96: 180 | V96: 0 | W96: 180 | X96: 0 | Y96: 0 | Z96: 180 | AA96: 0 | AB96: 180 | AC96: 0 | AD96: 0 | AE96: 180 | AF96: 0 | AG96: 180 | AH96: 0 | AI96: 0 | AJ96: 180 | AK96: 0 | AL96: 180 | AM96: 0 | AN96: 0 | AO96: 180 | AP96: 0 | AQ96: 180 | AR96: 0 | AS96: 0 | AT96: 180 | AU96: 0 | AV96: 180 | AW96: 0 | AX96: 0 | AY96: 180 | AZ96: 0 | BA96: 180 | BB96: 0 | BC96: 0 | BD96: 180 | BE96: 0 | BF96: 180 | BG96: 0 | BH96: 0 | BI96: 0 | BJ96: 0 | BK96: 0 | BL96: =SUM(D96,I96,N96,S96,X96,AC96,AH96,AM96,AR96,AW96,BB96,BG96) -> 0 | BM96: 0 | BN96: 1980 | BO96: 0 | BP96: 1980
A97: 19 | B97: LINAREZ DIAZ, KATHERYN | C97: 71592738 | D97: 0 | E97: 0 | F97: 0 | G97: 0 | H97: 0 | I97: 0 | J97: 0 | K97: 100 | L97: 0 | M97: 100 | N97: 0 | O97: 0 | P97: 100 | Q97: 0 | R97: 100 | S97: 0 | T97: 0 | U97: 100 | V97: 0 | W97: 100 | X97: 0 | Y97: 0 | Z97: 100 | AA97: 0 | AB97: 100 | AC97: 0 | AD97: 0 | AE97: 100 | AF97: 0 | AG97: 100 | AH97: 0 | AI97: 0 | AJ97: 100 | AK97: 0 | AL97: 100 | AM97: 0 | AN97: 0 | AO97: 100 | AP97: 0 | AQ97: 100 | AR97: 0 | AS97: 0 | AT97: 100 | AU97: 0 | AV97: 100 | AW97: 0 | AX97: 0 | AY97: 100 | AZ97: 0 | BA97: 100 | BB97: 0 | BC97: 0 | BD97: 100 | BE97: 0 | BF97: 100 | BG97: 0 | BH97: 0 | BI97: 0 | BJ97: 0 | BK97: 0 | BL97: 0 | BM97: 0 | BN97: 1000 | BO97: 0 | BP97: 1000
A98: 20 | B98: LINARES SANCHEZ, LIYANCI | C98: 45433072 | D98: 0 | E98: 250 | F98: 0 | G98: 0 | H98: 250 | I98: 0 | J98: 250 | K98: 0 | L98: 0 | M98: 250 | N98: 0 | O98: 250 | P98: 0 | Q98: 0 | R98: 250 | S98: 0 | T98: 250 | U98: 0 | V98: 0 | W98: 250 | X98: 0 | Y98: 250 | Z98: 0 | AA98: 0 | AB98: 250 | AC98: 0 | AD98: 250 | AE98: 0 | AF98: 0 | AG98: 250 | AH98: 0 | AI98: 250 | AJ98: 0 | AK98: 0 | AL98: 250 | AM98: 0 | AN98: 250 | AO98: 0 | AP98: 0 | AQ98: 250 | AR98: 0 | AS98: 250 | AT98: 0 | AU98: 0 | AV98: 250 | AW98: 0 | AX98: 250 | AY98: 0 | AZ98: 0 | BA98: 250 | BB98: 0 | BC98: 250 | BD98: 0 | BE98: 0 | BF98: 250 | BG98: 0 | BH98: 0 | BI98: 0 | BJ98: 0 | BK98: 0 | BL98: 0 | BM98: 2750 | BN98: 0 | BO98: 0 | BP98: 2750
A99: 21 | B99: LOZANO REATEGUI, PEGGY | C99: 70232968 | D99: 0 | E99: 0 | F99: 500 | G99: 0 | H99: 500 | I99: 0 | J99: 0 | K99: 500 | L99: 0 | M99: 500 | N99: 0 | O99: 0 | P99: 500 | Q99: 0 | R99: 500 | S99: 0 | T99: 0 | U99: 500 | V99: 0 | W99: 500 | X99: 0 | Y99: 0 | Z99: 500 | AA99: 0 | AB99: 500 | AC99: 0 | AD99: 0 | AE99: 500 | AF99: 0 | AG99: 500 | AH99: 0 | AI99: 0 | AJ99: 500 | AK99: 0 | AL99: 500 | AM99: 0 | AN99: 0 | AO99: 500 | AP99: 0 | AQ99: 500 | AR99: 0 | AS99: 0 | AT99: 500 | AU99: 0 | AV99: 500 | AW99: 0 | AX99: 0 | AY99: 0 | AZ99: 0 | BA99: 0 | BB99: 0 | BC99: 0 | BD99: 0 | BE99: 0 | BF99: 0 | BG99: 0 | BH99: 0 | BI99: 0 | BJ99: 0 | BK99: 0 | BL99: 0 | BM99: 0 | BN99: 4500 | BO99: 0 | BP99: 4500
A100: 22 | B100: MARINA QUINTANA, JHINS JAKSSON | C100: 45546499 | D100: 0 | E100: 300 | F100: 0 | G100: 0 | H100: 300 | I100: 0 | J100: 300 | K100: 0 | L100: 0 | M100: 300 | N100: 0 | O100: 423 | P100: 0 | Q100: 0 | R100: 423 | S100: 0 | T100: 300 | U100: 0 | V100: 0 | W100: 300 | X100: 0 | Y100: 300 | Z100: 0 | AA100: 0 | AB100: 300 | AC100: 0 | AD100: 300 | AE100: 0 | AF100: 0 | AG100: 300 | AH100: 0 | AI100: 400.95 | AJ100: 0 | AK100: 0 | AL100: 400.95 | AM100: 0 | AN100: 300 | AO100: 0 | AP100: 0 | AQ100: 300 | AR100: 0 | AS100: 400 | AT100: 0 | AU100: 0 | AV100: 400 | AW100: 0 | AX100: =17.71+400 -> 417.71 | AY100: 0 | AZ100: 0 | BA100: 417.71 | BB100: 0 | BC100: 450 | BD100: 0 | BE100: 0 | BF100: 450 | BG100: 0 | BH100: 0 | BI100: 0 | BJ100: 0 | BK100: 0 | BL100: 0 | BM100: 3891.66 | BN100: 0 | BO100: 0 | BP100: 3891.66
A101: 23 | B101: MARTINEZ BENAVIDES, RODRIGO | C101: 72461720 | D101: 0 | E101: 200 | F101: 0 | G101: 0 | H101: 200 | I101: 0 | J101: 200 | K101: 0 | L101: 0 | M101: 200 | N101: 0 | O101: =1800+200 -> 2000 | P101: 0 | Q101: 0 | R101: 2000 | S101: 0 | T101: 0 | U101: 0 | V101: 0 | W101: 0 | X101: 0 | Y101: 0 | Z101: 0 | AA101: 0 | AB101: 0 | AC101: 0 | AD101: 0 | AE101: 0 | AF101: 0 | AG101: 0 | AH101: 0 | AI101: 0 | AJ101: 0 | AK101: 0 | AL101: 0 | AM101: 0 | AN101: 0 | AO101: 0 | AP101: 0 | AQ101: 0 | AR101: 0 | AS101: 0 | AT101: 0 | AU101: 0 | AV101: 0 | AW101: 0 | AX101: 0 | AY101: 0 | AZ101: 0 | BA101: 0 | BB101: 0 | BC101: 0 | BD101: 0 | BE101: 0 | BF101: 0 | BG101: 0 | BH101: 0 | BI101: 0 | BJ101: 0 | BK101: 0 | BL101: 0 | BM101: 2400 | BN101: 0 | BO101: 0 | BP101: 2400
A102: 24 | B102: MEJIA BABILONIA, SUSAN | C102: 41697516 | D102: 0 | E102: 0 | F102: 120 | G102: 0 | H102: 120 | I102: 0 | J102: 0 | K102: 120 | L102: 0 | M102: 120 | N102: 0 | O102: 0 | P102: 120 | Q102: 0 | R102: 120 | S102: 0 | T102: 0 | U102: 120 | V102: 0 | W102: 120 | X102: 0 | Y102: 0 | Z102: 120 | AA102: 0 | AB102: 120 | AC102: 0 | AD102: 0 | AE102: 120 | AF102: 0 | AG102: 120 | AH102: 0 | AI102: 0 | AJ102: 120 | AK102: 0 | AL102: 120 | AM102: 0 | AN102: 0 | AO102: 120 | AP102: 0 | AQ102: 120 | AR102: 0 | AS102: 0 | AT102: 120 | AU102: 0 | AV102: 120 | AW102: 0 | AX102: 275 | AY102: 120 | AZ102: 0 | BA102: 395 | BB102: 0 | BC102: 275 | BD102: 120 | BE102: 0 | BF102: 395 | BG102: 0 | BH102: 0 | BI102: 0 | BJ102: 0 | BK102: 0 | BL102: 0 | BM102: 550 | BN102: 1320 | BO102: 0 | BP102: 1870 | BQ102: 400
A103: 25 | B103: MENDOZA BOCANEGRA, ROYLER | C103: 45349774 | D103: 0 | E103: 0 | F103: 0 | G103: 0 | H103: 0 | I103: 0 | J103: 352 | K103: 0 | L103: 0 | M103: 352 | N103: 0 | O103: 352 | P103: 0 | Q103: 0 | R103: 352 | S103: 0 | T103: 352 | U103: 0 | V103: 0 | W103: 352 | X103: 0 | Y103: 352 | Z103: 0 | AA103: 0 | AB103: 352 | AC103: 0 | AD103: 352 | AE103: 0 | AF103: 0 | AG103: 352 | AH103: 0 | AI103: 352 | AJ103: 0 | AK103: 0 | AL103: 352 | AM103: 0 | AN103: 352 | AO103: 0 | AP103: 0 | AQ103: 352 | AR103: 0 | AS103: 352 | AT103: 0 | AU103: 0 | AV103: 352 | AW103: 0 | AX103: 352 | AY103: 0 | AZ103: 0 | BA103: 352 | BB103: 0 | BC103: 352 | BD103: 0 | BE103: 0 | BF103: 352 | BG103: 0 | BH103: 0 | BI103: 0 | BJ103: 0 | BK103: 0 | BL103: 0 | BM103: 3520 | BN103: 0 | BO103: 0 | BP103: 3520
A104: 26 | B104: MORALES ROJAS, WALTER | C104: 41960601 | D104: 0 | E104: 0 | F104: 150 | G104: 0 | H104: 150 | I104: 0 | J104: 0 | K104: 150 | L104: 0 | M104: 150 | N104: 0 | O104: 0 | P104: 150 | Q104: 0 | R104: 150 | S104: 0 | T104: 0 | U104: 150 | V104: 0 | W104: 150 | X104: 0 | Y104: 0 | Z104: 150 | AA104: 0 | AB104: 150 | AC104: 0 | AD104: 0 | AE104: 150 | AF104: 0 | AG104: 150 | AH104: 0 | AI104: 0 | AJ104: 150 | AK104: 0 | AL104: 150 | AM104: 0 | AN104: 0 | AO104: 150 | AP104: 0 | AQ104: 150 | AR104: 0 | AS104: 0 | AT104: 150 | AU104: 0 | AV104: 150 | AW104: 0 | AX104: 0 | AY104: 150 | AZ104: 0 | BA104: 150 | BB104: 0 | BC104: 0 | BD104: 150 | BE104: 0 | BF104: 150 | BG104: 0 | BH104: 0 | BI104: 0 | BJ104: 0 | BK104: 0 | BL104: 0 | BM104: 0 | BN104: 1650 | BO104: 0 | BP104: 1650
A105: 27 | B105: OCHOA RAMIREZ, JAIRO | C105: 76734780 | D105: 0 | E105: 0 | F105: 200 | G105: 0 | H105: 200 | I105: 0 | J105: 0 | K105: 200 | L105: 0 | M105: 200 | N105: 0 | O105: 0 | P105: 200 | Q105: 0 | R105: 200 | S105: 0 | T105: 0 | U105: 200 | V105: 0 | W105: 200 | X105: 0 | Y105: 0 | Z105: 200 | AA105: 0 | AB105: 200 | AC105: 0 | AD105: 0 | AE105: 200 | AF105: 0 | AG105: 200 | AH105: 0 | AI105: 0 | AJ105: 200 | AK105: 0 | AL105: 200 | AM105: 0 | AN105: 0 | AO105: 200 | AP105: 0 | AQ105: 200 | AR105: 0 | AS105: 0 | AT105: 200 | AU105: 0 | AV105: 200 | AW105: 0 | AX105: 0 | AY105: 200 | AZ105: 0 | BA105: 200 | BB105: 0 | BC105: 0 | BD105: 200 | BE105: 0 | BF105: 200 | BG105: 0 | BH105: 0 | BI105: 0 | BJ105: 0 | BK105: 0 | BL105: 0 | BM105: 0 | BN105: 2200 | BO105: 0 | BP105: 2200 | BQ105: 1000
A106: 28 | B106: PICHI ROBALINO, MARLLORI | C106: 40709980 | D106: 0 | E106: 0 | F106: 100 | G106: 0 | H106: 100 | I106: 0 | J106: 220 | K106: 100 | L106: 0 | M106: 320 | N106: 0 | O106: 220 | P106: 100 | Q106: 0 | R106: 320 | S106: 0 | T106: 220 | U106: 100 | V106: 0 | W106: 320 | X106: 0 | Y106: 220 | Z106: 100 | AA106: 0 | AB106: 320 | AC106: 0 | AD106: 220 | AE106: 200 | AF106: 0 | AG106: 420 | AH106: 0 | AI106: 220 | AJ106: 200 | AK106: 0 | AL106: 420 | AM106: 0 | AN106: 220 | AO106: 200 | AP106: 0 | AQ106: 420 | AR106: 0 | AS106: 220 | AT106: 200 | AU106: 0 | AV106: 420 | AW106: 0 | AX106: 220 | AY106: 200 | AZ106: 0 | BA106: 420 | BB106: 0 | BC106: 220 | BD106: 200 | BE106: 0 | BF106: 420 | BG106: 0 | BH106: 0 | BI106: 0 | BJ106: 0 | BK106: 0 | BL106: 0 | BM106: 2200 | BN106: 1700 | BO106: 0 | BP106: 3900 | BQ106: 500 | BR106: EN MAYO | BS106: MAS 400 EN JULIO
A107: 29 | B107: PINEDO BENZAQUEN. MARLY | C107: 43186542 | D107: 0 | E107: 0 | F107: 0 | G107: 0 | H107: 0 | I107: 0 | J107: 0 | K107: 0 | L107: 0 | M107: 0 | N107: 0 | O107: 0 | P107: 0 | Q107: 0 | R107: 0 | S107: 0 | T107: 137.5 | V107: 0 | W107: 137.5 | X107: 0 | Y107: 137.5 | Z107: 0 | AA107: 0 | AB107: 137.5 | AC107: 0 | AD107: 137.5 | AE107: 0 | AF107: 0 | AG107: 137.5 | AH107: 0 | AI107: 137.5 | AJ107: 0 | AK107: 0 | AL107: 137.5 | AM107: 0 | AN107: 137.5 | AO107: 0 | AP107: 0 | AQ107: 137.5 | AR107: 0 | AS107: 137.5 | AT107: 0 | AU107: 0 | AV107: 137.5 | AW107: 0 | AX107: 137.5 | AY107: 0 | AZ107: 0 | BA107: 137.5 | BB107: 0 | BC107: 137.5 | BD107: 0 | BE107: 0 | BF107: 137.5 | BG107: 0 | BH107: 0 | BI107: 0 | BJ107: 0 | BK107: 0 | BL107: 0 | BM107: 1100 | BN107: 0 | BO107: 0 | BP107: 1100
A108: 30 | B108: PISCO CACHIQUE, LENNIN | C108: 70814205 | D108: 0 | E108: 0 | F108: 200 | G108: 0 | H108: 200 | I108: 0 | J108: 0 | K108: 200 | L108: 0 | M108: 200 | N108: 0 | O108: 0 | P108: 200 | Q108: 0 | R108: 200 | S108: 0 | T108: 220 | U108: 200 | V108: 0 | W108: 420 | X108: 0 | Y108: 220 | Z108: 200 | AA108: 0 | AB108: 420 | AC108: 0 | AD108: 220 | AE108: 200 | AF108: 0 | AG108: 420 | AH108: 0 | AI108: 0 | AJ108: 200 | AK108: 0 | AL108: 200 | AM108: 0 | AN108: 0 | AO108: 200 | AP108: 0 | AQ108: 200 | AR108: 0 | AS108: 0 | AT108: 200 | AU108: 0 | AV108: 200 | AW108: 0 | AX108: 0 | AY108: 200 | AZ108: 0 | BA108: 200 | BB108: 0 | BC108: 0 | BD108: 200 | BE108: 0 | BF108: 200 | BG108: 0 | BH108: 0 | BI108: 0 | BJ108: 0 | BK108: 0 | BL108: 0 | BM108: 660 | BN108: 2200 | BO108: 0 | BP108: 2860
A109: 31 | B109: QUIJANDRIA ARTEAGA, PEDRO JONATHAN | C109: 42553620 | D109: 0 | E109: 300 | F109: 0 | G109: 0 | H109: 300 | I109: 0 | J109: 300 | K109: 0 | L109: 0 | M109: 300 | N109: 0 | O109: 300 | P109: 0 | Q109: 0 | R109: 300 | S109: 0 | T109: 300 | U109: 0 | V109: 0 | W109: 300 | X109: 0 | Y109: 300 | Z109: 0 | AA109: 0 | AB109: 300 | AC109: 0 | AD109: 300 | AE109: 0 | AF109: 0 | AG109: 300 | AH109: 0 | AI109: 300 | AJ109: 0 | AK109: 0 | AL109: 300 | AM109: 0 | AN109: 300 | AO109: 0 | AP109: 0 | AQ109: 300 | AR109: 0 | AS109: 300 | AT109: 0 | AU109: 0 | AV109: 300 | AW109: 0 | AX109: 300 | AY109: 0 | AZ109: 0 | BA109: 300 | BB109: 0 | BC109: 300 | BD109: 0 | BE109: 0 | BF109: 300 | BG109: 0 | BH109: 0 | BI109: 0 | BJ109: 0 | BK109: 0 | BL109: 0 | BM109: 3300 | BN109: 0 | BO109: 0 | BP109: 3300
A110: 32 | B110: QUINTANA SANCHEZ, BELINDA | C110: 45820446 | D110: 0 | E110: 0 | F110: 100 | G110: 0 | H110: 100 | I110: 0 | J110: 0 | K110: 100 | L110: 0 | M110: 100 | N110: 0 | O110: 0 | P110: 100 | Q110: 0 | R110: 100 | S110: 0 | T110: 0 | U110: 100 | V110: 0 | W110: 100 | X110: 0 | Y110: 0 | Z110: 100 | AA110: 0 | AB110: 100 | AC110: 0 | AD110: 0 | AE110: 100 | AF110: 0 | AG110: 100 | AH110: 0 | AI110: 0 | AJ110: 100 | AK110: 0 | AL110: 100 | AM110: 0 | AN110: 0 | AO110: 100 | AP110: 0 | AQ110: 100 | AR110: 0 | AS110: 0 | AT110: 100 | AU110: 0 | AV110: 100 | AW110: 0 | AX110: 0 | AY110: 100 | AZ110: 0 | BA110: 100 | BB110: 0 | BC110: 0 | BD110: 100 | BE110: 0 | BF110: 100 | BG110: 0 | BH110: 0 | BI110: 0 | BJ110: 0 | BK110: 0 | BL110: 0 | BM110: 0 | BN110: 1100 | BO110: 0 | BP110: 1100
A111: 33 | B111: REQUEJO SALDAÑA, ALBERTO IRRAEL | C111: 44731355 | D111: 10 | E111: 0 | F111: 50 | G111: 0 | H111: 60 | I111: 10 | J111: 0 | K111: 50 | L111: 0 | M111: 60 | N111: 10 | O111: 0 | P111: 50 | Q111: 0 | R111: 60 | S111: 10 | T111: 0 | U111: 50 | V111: 0 | W111: 60 | X111: 10 | Y111: 0 | Z111: 50 | AA111: 0 | AB111: 60 | AC111: 10 | AD111: 0 | AE111: 0 | AF111: 0 | AG111: 10 | AH111: 10 | AI111: 0 | AJ111: 100 | AK111: 0 | AL111: 110 | AM111: 10 | AN111: 0 | AO111: 100 | AP111: 0 | AQ111: 110 | AR111: 10 | AS111: 0 | AT111: 100 | AU111: 0 | AV111: 110 | AW111: 10 | AX111: 0 | AY111: 100 | AZ111: 0 | BA111: 110 | BB111: 10 | BC111: 0 | BD111: 100 | BE111: 0 | BF111: 110 | BG111: 0 | BH111: 0 | BI111: 0 | BJ111: 0 | BK111: 0 | BL111: 110 | BM111: 0 | BN111: 750 | BO111: 0 | BP111: 860
A112: 34 | B112: ROJAS LINARES, LENIN | C112: 43244448 | D112: 0 | E112: 0 | F112: 0 | G112: 0 | H112: 0 | I112: 0 | J112: 0 | K112: 0 | L112: 0 | M112: 0 | N112: 0 | O112: 0 | P112: 0 | Q112: 0 | R112: 0 | S112: 0 | T112: 138 | U112: 0 | V112: 0 | W112: 138 | X112: 0 | Y112: 138 | Z112: 0 | AA112: 0 | AB112: 138 | AC112: 0 | AD112: 138 | AE112: 0 | AF112: 0 | AG112: 138 | AH112: 0 | AI112: 138 | AJ112: 0 | AK112: 0 | AL112: 138 | AM112: 0 | AN112: 138 | AO112: 0 | AP112: 0 | AQ112: 138 | AR112: 0 | AS112: 138 | AT112: 0 | AU112: 0 | AV112: 138 | AW112: 0 | AX112: 138 | AY112: 0 | AZ112: 0 | BA112: 138 | BB112: 0 | BC112: 134 | BD112: 0 | BE112: 0 | BF112: 134 | BG112: 0 | BH112: 0 | BI112: 0 | BJ112: 0 | BK112: 0 | BL112: 0 | BM112: 1100 | BN112: 0 | BO112: 0 | BP112: 1100
A113: 35 | B113: RUIZ INUMA, KAREM PAOLA | C113: 46708679 | D113: 0 | E113: 0 | F113: 100 | G113: 0 | H113: 100 | I113: 0 | J113: 0 | K113: 100 | L113: 0 | M113: 100 | N113: 0 | O113: 0 | P113: 100 | Q113: 0 | R113: 100 | S113: 0 | T113: 0 | U113: 100 | V113: 0 | W113: 100 | X113: 0 | Y113: 0 | Z113: 100 | AA113: 0 | AB113: 100 | AC113: 0 | AD113: 550 | AE113: 100 | AF113: 0 | AG113: 650 | AH113: 0 | AI113: 550 | AJ113: 100 | AK113: 0 | AL113: 650 | AM113: 0 | AN113: 550 | AO113: 100 | AP113: 0 | AQ113: 650 | AR113: 0 | AS113: 550 | AT113: 100 | AU113: 0 | AV113: 650 | AW113: 0 | AX113: 550 | AY113: 100 | AZ113: 0 | BA113: 650 | BB113: 0 | BC113: 550 | BD113: 100 | BE113: 0 | BF113: 650 | BG113: 0 | BH113: 0 | BI113: 0 | BJ113: 0 | BK113: 0 | BL113: 0 | BM113: 3300 | BN113: 1100 | BO113: 0 | BP113: 4400
A114: 36 | B114: RUIZ PANDURO, KAREN LIZETTE | C114: 71241493 | D114: 0 | E114: 0 | F114: 0 | G114: 0 | H114: 0 | I114: 0 | J114: 0 | K114: 0 | L114: 0 | M114: 0 | N114: 0 | O114: 0 | P114: 0 | Q114: 0 | R114: 0 | S114: 0 | T114: 206 | U114: 0 | V114: 0 | W114: 206 | X114: 0 | Y114: 206 | Z114: 0 | AA114: 0 | AB114: 206 | AC114: 0 | AD114: 206 | AE114: 0 | AF114: 0 | AG114: 206 | AH114: 0 | AI114: 206 | AJ114: 0 | AK114: 0 | AL114: 206 | AM114: 0 | AN114: 206 | AO114: 0 | AP114: 0 | AQ114: 206 | AR114: 0 | AS114: 206 | AT114: 0 | AU114: 0 | AV114: 206 | AW114: 0 | AX114: 206 | AY114: 0 | AZ114: 0 | BA114: 206 | BB114: 0 | BC114: 208 | BD114: 0 | BE114: 0 | BF114: 208 | BG114: 0 | BH114: 0 | BI114: 0 | BJ114: 0 | BK114: 0 | BL114: 0 | BM114: 1650 | BN114: 0 | BO114: 0 | BP114: 1650
A115: 37 | B115: RUIZ PEREZ, EMERSON | C115: 43338868 | D115: 0 | E115: 200 | F115: 0 | G115: 0 | H115: 200 | I115: 0 | J115: 200 | K115: 0 | L115: 0 | M115: 200 | N115: 0 | O115: 200 | P115: 0 | Q115: 0 | R115: 200 | S115: 0 | T115: 200 | U115: 0 | V115: 0 | W115: 200 | X115: 0 | Y115: 279 | Z115: 0 | AA115: 0 | AB115: 279 | AC115: 0 | AD115: 279 | AE115: 0 | AF115: 0 | AG115: 279 | AH115: 0 | AI115: 279 | AJ115: 0 | AK115: 0 | AL115: 279 | AM115: 0 | AN115: 279 | AO115: 0 | AP115: 0 | AQ115: 279 | AR115: 0 | AS115: 279 | AT115: 0 | AU115: 0 | AV115: 279 | AW115: 0 | AX115: 279 | AY115: 0 | AZ115: 0 | BA115: 279 | BB115: 0 | BC115: 276 | BD115: 0 | BE115: 0 | BF115: 276 | BG115: 0 | BH115: 0 | BI115: 0 | BJ115: 0 | BK115: 0 | BL115: 0 | BM115: 2750 | BN115: 0 | BO115: 0 | BP115: 2750
A116: 38 | B116: RUIZ RODRIGUEZ, HENRY | C116: 41754352 | D116: 0 | E116: 0 | F116: 0 | G116: 0 | H116: 0 | I116: 0 | J116: 0 | K116: 400 | L116: 0 | M116: 400 | N116: 0 | O116: 0 | P116: 400 | Q116: 0 | R116: 400 | S116: 0 | T116: 0 | U116: 0 | V116: 0 | W116: 0 | X116: 0 | Y116: 0 | Z116: 0 | AA116: 0 | AB116: 0 | AC116: 0 | AD116: 0 | AE116: 400 | AF116: 0 | AG116: 400 | AH116: 0 | AI116: 0 | AJ116: 0 | AK116: 0 | AL116: 0 | AM116: 0 | AN116: 0 | AO116: 0 | AP116: 0 | AQ116: 0 | AR116: 0 | AS116: 0 | AT116: 0 | AU116: 0 | AV116: 0 | AW116: 0 | AX116: 0 | AY116: 0 | AZ116: 0 | BA116: 0 | BB116: 0 | BC116: 0 | BD116: 0 | BE116: 0 | BF116: 0 | BG116: 0 | BH116: 0 | BI116: 0 | BJ116: 0 | BK116: 0 | BL116: 0 | BM116: 0 | BN116: 1200 | BO116: 0 | BP116: 1200 | BQ116: 1200 | BR116: DEVUELTO 18/07/2024 CON R/E
A117: 39 | B117: RUIZ VASQUEZ, KATTY | C117: 41182987 | D117: 0 | E117: 0 | F117: 100 | G117: 0 | H117: 100 | I117: 0 | J117: 0 | K117: 100 | L117: 0 | M117: 100 | N117: 0 | O117: 0 | P117: 100 | Q117: 0 | R117: 100 | S117: 0 | T117: 0 | U117: 100 | V117: 0 | W117: 100 | X117: 0 | Y117: 0 | Z117: 100 | AA117: 0 | AB117: 100 | AC117: 0 | AD117: 0 | AE117: 100 | AF117: 0 | AG117: 100 | AH117: 0 | AI117: 0 | AJ117: 100 | AK117: 0 | AL117: 100 | AM117: 0 | AN117: 0 | AO117: 100 | AP117: 0 | AQ117: 100 | AR117: 0 | AS117: 0 | AT117: 100 | AU117: 0 | AV117: 100 | AW117: 0 | AX117: 0 | AY117: 100 | AZ117: 0 | BA117: 100 | BB117: 0 | BC117: 0 | BD117: 100 | BE117: 0 | BF117: 100 | BG117: 0 | BH117: 0 | BI117: 0 | BJ117: 0 | BK117: 0 | BL117: 0 | BM117: 0 | BN117: 1100 | BO117: 0 | BP117: 1100
A118: 40 | B118: SALAZAR SARANGO, YANILY | C118: 47432982 | D118: 0 | E118: 0 | F118: 200 | G118: 0 | H118: 200 | I118: 0 | J118: 0 | K118: 200 | L118: 0 | M118: 200 | N118: 0 | O118: 0 | P118: 200 | Q118: 0 | R118: 200 | S118: 0 | T118: 0 | U118: 200 | V118: 0 | W118: 200 | X118: 0 | Y118: 0 | Z118: 200 | AA118: 0 | AB118: 200 | AC118: 0 | AD118: 0 | AE118: 200 | AF118: 0 | AG118: 200 | AH118: 0 | AI118: 0 | AJ118: 200 | AK118: 0 | AL118: 200 | AM118: 0 | AN118: 0 | AO118: 200 | AP118: 0 | AQ118: 200 | AR118: 0 | AS118: 0 | AT118: 200 | AU118: 0 | AV118: 200 | AW118: 0 | AX118: 0 | AY118: 200 | AZ118: 0 | BA118: 200 | BB118: 0 | BC118: 0 | BD118: 200 | BE118: 0 | BF118: 200 | BG118: 0 | BH118: 0 | BI118: 0 | BJ118: 0 | BK118: 0 | BL118: 0 | BM118: 0 | BN118: 2200 | BO118: 0 | BP118: 2200
A119: 41 | B119: SALDAÑA LUNA, ROCIO DEL PILAR | C119: 72638807 | D119: 0 | E119: 0 | F119: 100 | G119: 0 | H119: 100 | I119: 0 | J119: 0 | K119: 100 | L119: 0 | M119: 100 | N119: 0 | O119: 0 | P119: 100 | Q119: 0 | R119: 100 | S119: 0 | T119: 0 | U119: 100 | V119: 0 | W119: 100 | X119: 0 | Y119: 0 | Z119: 100 | AA119: 0 | AB119: 100 | AC119: 0 | AD119: 0 | AE119: 0 | AF119: 0 | AG119: 0 | AH119: 0 | AI119: 0 | AJ119: 0 | AK119: 0 | AL119: 0 | AM119: 0 | AN119: 0 | AO119: 0 | AP119: 0 | AQ119: 0 | AR119: 0 | AS119: 0 | AT119: 0 | AU119: 0 | AV119: 0 | AW119: 0 | AX119: 0 | AY119: 0 | AZ119: 0 | BA119: 0 | BB119: 0 | BC119: 0 | BD119: 0 | BE119: 0 | BF119: 0 | BG119: 0 | BH119: 0 | BI119: 0 | BJ119: 0 | BK119: 0 | BL119: 0 | BM119: 0 | BN119: 500 | BO119: 0 | BP119: 500 | BQ119: 400
A120: 42 | B120: SAYAVERDE ROSALES, ENLY LADWIN | C120: 44835307 | D120: 0 | E120: 0 | F120: 0 | G120: 0 | H120: 0 | I120: 0 | J120: 0 | K120: 0 | L120: 0 | M120: 0 | N120: 0 | O120: 0 | P120: 0 | Q120: 0 | R120: 0 | S120: 0 | T120: 137.5 | U120: 0 | V120: 0 | W120: 137.5 | X120: 0 | Y120: 137.5 | Z120: 0 | AA120: 0 | AB120: 137.5 | AC120: 0 | AD120: 137.5 | AE120: 0 | AF120: 0 | AG120: 137.5 | AH120: 0 | AI120: 137.5 | AJ120: 0 | AK120: 0 | AL120: 137.5 | AM120: 0 | AN120: 137.5 | AO120: 0 | AP120: 0 | AQ120: 137.5 | AR120: 0 | AS120: 137.5 | AT120: 0 | AU120: 0 | AV120: 137.5 | AW120: 0 | AX120: 137.5 | AY120: 0 | AZ120: 0 | BA120: 137.5 | BB120: 0 | BC120: 137.5 | BD120: 0 | BE120: 0 | BF120: 137.5 | BG120: 0 | BH120: 0 | BI120: 0 | BJ120: 0 | BK120: 0 | BL120: 0 | BM120: 1100 | BN120: 0 | BO120: 0 | BP120: 1100
A121: 43 | B121: TANGOA SABOYA, JANMER BILLY | C121: 41822300 | D121: 0 | E121: 0 | F121: 50 | G121: 0 | H121: 50 | I121: 0 | J121: 0 | K121: 50 | L121: 0 | M121: 50 | N121: 0 | O121: 0 | P121: 50 | Q121: 0 | R121: 50 | S121: 0 | T121: 0 | U121: 50 | V121: 0 | W121: 50 | X121: 0 | Y121: 0 | Z121: 50 | AA121: 0 | AB121: 50 | AC121: 0 | AD121: 0 | AE121: 50 | AF121: 0 | AG121: 50 | AH121: 0 | AI121: 0 | AJ121: 50 | AK121: 0 | AL121: 50 | AM121: 0 | AN121: 0 | AO121: 50 | AP121: 0 | AQ121: 50 | AR121: 0 | AS121: 0 | AT121: 50 | AU121: 0 | AV121: 50 | AW121: 0 | AX121: 0 | AY121: 50 | AZ121: 0 | BA121: 50 | BB121: 0 | BC121: 0 | BD121: 50 | BE121: 0 | BF121: 50 | BG121: 0 | BH121: 0 | BI121: 0 | BJ121: 0 | BK121: =SUM(BG121,BH121,BI121,BJ121) -> 0 | BL121: 0 | BM121: 0 | BN121: 550 | BO121: =SUM(G121,L121,Q121,V121,AA121,AF121,AK121,AP121,AU121,AZ121,BE121,BR121,BJ121) -> 0 | BP121: 550 | BQ121: 200
A122: 44 | B122: TEJADA BAOZ, MARGARITA | C122: 45675637 | D122: 0 | E122: 0 | F122: 0 | G122: 0 | H122: 0 | I122: 0 | J122: 77 | K122: 0 | L122: 0 | M122: 77 | N122: 0 | O122: 0 | P122: 0 | Q122: 0 | R122: 0 | S122: 0 | T122: 0 | U122: 0 | V122: 0 | W122: 0 | X122: 0 | Y122: 0 | Z122: 0 | AA122: 0 | AB122: 0 | AC122: 0 | AD122: 0 | AE122: 0 | AF122: 0 | AG122: 0 | AH122: 0 | AI122: 0 | AJ122: 0 | AK122: 0 | AL122: 0 | AM122: 0 | AN122: 0 | AO122: 0 | AP122: 0 | AQ122: 0 | AR122: 0 | AS122: 0 | AT122: 0 | AU122: 0 | AV122: 0 | AW122: 0 | AX122: 0 | AY122: 0 | AZ122: 0 | BA122: 0 | BB122: 0 | BC122: 0 | BD122: 0 | BE122: 0 | BF122: 0 | BG122: 0 | BH122: 0 | BI122: 0 | BJ122: 0 | BK122: 0 | BL122: 0 | BM122: 77 | BN122: 0 | BO122: 0 | BP122: 77
A123: 45 | B123: TORRES GALLARDO, KATHERIN PAOLA | C123: 72745501 | D123: 0 | E123: 0 | F123: 50 | G123: 0 | H123: 50 | I123: 0 | J123: 0 | K123: 50 | L123: 0 | M123: 50 | N123: 0 | O123: 0 | P123: 50 | Q123: 0 | R123: 50 | S123: 0 | T123: 0 | U123: 50 | V123: 0 | W123: 50 | X123: 0 | Y123: 0 | Z123: 50 | AA123: 0 | AB123: 50 | AC123: 0 | AD123: 0 | AE123: 50 | AF123: 0 | AG123: 50 | AH123: 0 | AI123: 0 | AJ123: 50 | AK123: 0 | AL123: 50 | AM123: 0 | AN123: 0 | AO123: 50 | AP123: 0 | AQ123: 50 | AR123: 0 | AS123: 0 | AT123: 50 | AU123: 0 | AV123: 50 | AW123: 0 | AX123: 0 | AY123: 50 | AZ123: 0 | BA123: 50 | BB123: 0 | BC123: 0 | BD123: 50 | BE123: 0 | BF123: 50 | BG123: 0 | BH123: 0 | BI123: 0 | BJ123: 0 | BK123: 0 | BL123: 0 | BM123: 0 | BN123: 550 | BO123: 0 | BP123: 550
A124: 46 | B124: VARGAS ZUBIATE, WILMER | C124: 41224954 | D124: 0 | E124: 0 | F124: 100 | G124: 0 | H124: 100 | I124: 0 | J124: 0 | K124: 100 | L124: 0 | M124: 100 | N124: 0 | O124: 0 | P124: 100 | Q124: 0 | R124: 100 | S124: 0 | T124: 0 | U124: 100 | V124: 0 | W124: 100 | X124: 0 | Y124: 0 | Z124: 100 | AA124: 0 | AB124: 100 | AC124: 0 | AD124: 0 | AE124: 100 | AF124: 0 | AG124: 100 | AH124: 0 | AI124: 0 | AJ124: 100 | AK124: 0 | AL124: 100 | AM124: 0 | AN124: 0 | AO124: 100 | AP124: 0 | AQ124: 100 | AR124: 0 | AS124: 0 | AT124: 100 | AU124: 0 | AV124: 100 | AW124: 0 | AX124: 0 | AY124: 100 | AZ124: 0 | BA124: 100 | BB124: 0 | BC124: 0 | BD124: 100 | BE124: 0 | BF124: 100 | BG124: 0 | BH124: 0 | BI124: 0 | BJ124: 0 | BK124: 0 | BL124: 0 | BM124: 0 | BN124: 1100 | BO124: 0 | BP124: 1100 | BQ124: =200+300 -> 500
A125: 47 | B125: VASQUEZ RODRIGUEZ, JORGE MIGUEL | C125: 43032207 | D125: 0 | E125: 250 | F125: 0 | G125: 0 | H125: 250 | I125: 0 | J125: 250 | K125: 0 | L125: 0 | M125: 250 | N125: 0 | O125: 250 | P125: 0 | Q125: 0 | R125: 250 | S125: 0 | T125: 250 | U125: 0 | V125: 0 | W125: 250 | X125: 0 | Y125: 250 | Z125: 0 | AA125: 0 | AB125: 250 | AC125: 0 | AD125: 250 | AE125: 0 | AF125: 0 | AG125: 250 | AH125: 0 | AI125: 250 | AJ125: 0 | AK125: 0 | AL125: 250 | AM125: 0 | AN125: 250 | AO125: 0 | AP125: 0 | AQ125: 250 | AR125: 0 | AS125: 250 | AT125: 0 | AU125: 0 | AV125: 250 | AW125: 0 | AX125: 250 | AY125: 0 | AZ125: 0 | BA125: 250 | BB125: 0 | BC125: 250 | BD125: 0 | BE125: 0 | BF125: 250 | BG125: 0 | BH125: 0 | BI125: 0 | BJ125: 0 | BK125: 0 | BL125: 0 | BM125: 2750 | BN125: 0 | BO125: 0 | BP125: 2750
A126: 48 | B126: VELA CASILLA, MERLITH | C126: 831310 | D126: 0 | E126: 0 | F126: 100 | G126: 0 | H126: 100 | I126: 0 | J126: 0 | K126: 100 | L126: 0 | M126: 100 | N126: 0 | O126: 0 | P126: 100 | Q126: 0 | R126: 100 | S126: 0 | T126: 0 | U126: 100 | V126: 0 | W126: 100 | X126: 0 | Y126: 0 | Z126: 100 | AA126: 0 | AB126: 100 | AC126: 0 | AD126: 129 | AE126: 100 | AF126: 0 | AG126: 229 | AH126: 0 | AI126: 179 | AJ126: 100 | AK126: 0 | AL126: 279 | AM126: 0 | AN126: 154 | AO126: 100 | AP126: 0 | AQ126: 254 | AR126: 0 | AS126: 154 | AT126: 100 | AU126: 0 | AV126: 254 | AW126: 0 | AX126: 154 | AY126: 0 | AZ126: 0 | BA126: 154 | BB126: 0 | BC126: 0 | BD126: 0 | BE126: 0 | BF126: 0 | BG126: 0 | BH126: 0 | BI126: 0 | BJ126: 0 | BK126: 0 | BL126: 0 | BM126: 770 | BN126: 900 | BO126: 0 | BP126: 1670 | BQ126: 500
A127: 49 | B127: YNGA CASIQUE, GEOMAR ALEXANDER | C127: 821756 | D127: 0 | E127: 250 | F127: 0 | G127: 0 | H127: 250 | I127: 0 | J127: 250 | K127: 0 | L127: 0 | M127: 250 | N127: 0 | O127: 250 | P127: 0 | Q127: 0 | R127: 250 | S127: 0 | T127: 250 | U127: 0 | V127: 0 | W127: 250 | X127: 0 | Y127: 250 | Z127: 0 | AA127: 0 | AB127: 250 | AC127: 0 | AD127: 250 | AE127: 0 | AF127: 0 | AG127: 250 | AH127: 0 | AI127: =198.63+51.37 -> 250 | AJ127: 0 | AK127: 0 | AL127: 250 | AM127: 0 | AN127: 250 | AO127: 0 | AP127: 0 | AQ127: 250 | AR127: 0 | AS127: 250 | AT127: 0 | AU127: 0 | AV127: 250 | AW127: 0 | AX127: 250 | AY127: 0 | AZ127: 0 | BA127: 250 | BB127: 0 | BC127: 250 | BD127: 0 | BE127: 0 | BF127: 250 | BG127: 0 | BH127: 0 | BI127: 0 | BJ127: 0 | BK127: 0 | BL127: 0 | BM127: 2750 | BN127: 0 | BO127: 0 | BP127: 2750
A128: 44 | D128: 0 | E128: 0 | F128: 0 | G128: 0 | H128: 0 | I128: 0 | J128: 0 | K128: 0 | L128: 0 | M128: 0 | N128: 0 | O128: 0 | P128: 0 | Q128: 0 | R128: 0 | S128: 0 | T128: 0 | U128: 0 | V128: 0 | W128: 0 | X128: 0 | Y128: 0 | Z128: 0 | AA128: 0 | AB128: 0 | AC128: 0 | AD128: 0 | AE128: 0 | AF128: 0 | AG128: 0 | AH128: 0 | AI128: 0 | AJ128: 0 | AK128: 0 | AL128: 0 | AM128: 0 | AN128: 0 | AO128: 0 | AP128: 0 | AQ128: 0 | AR128: 0 | AS128: 0 | AT128: 0 | AU128: 0 | AV128: 0 | AW128: 0 | AX128: 0 | AY128: 0 | AZ128: 0 | BA128: 0 | BB128: 0 | BC128: 0 | BD128: 0 | BE128: 0 | BF128: 0 | BG128: 0 | BH128: 0 | BI128: 0 | BJ128: 0 | BK128: 0 | BL128: 0 | BM128: 0 | BN128: 0 | BO128: 0 | BP128: 0
A129: 45 | D129: 0 | E129: 0 | F129: 0 | G129: 0 | H129: 0 | I129: 0 | J129: 0 | K129: 0 | L129: 0 | M129: 0 | N129: 0 | O129: 0 | P129: 0 | Q129: 0 | R129: 0 | S129: 0 | T129: 0 | U129: 0 | V129: 0 | W129: 0 | X129: 0 | Y129: 0 | Z129: 0 | AA129: 0 | AB129: 0 | AC129: 0 | AD129: 0 | AE129: 0 | AF129: 0 | AG129: 0 | AH129: 0 | AI129: 0 | AJ129: 0 | AK129: 0 | AL129: 0 | AM129: 0 | AN129: 0 | AO129: 0 | AP129: 0 | AQ129: 0 | AR129: 0 | AS129: 0 | AT129: 0 | AU129: 0 | AV129: 0 | AW129: 0 | AX129: 0 | AY129: 0 | AZ129: 0 | BA129: 0 | BB129: 0 | BC129: 0 | BD129: 0 | BE129: 0 | BF129: 0 | BG129: 0 | BH129: 0 | BI129: 0 | BJ129: 0 | BK129: 0 | BL129: 0 | BM129: 0 | BN129: 0 | BO129: 0 | BP129: 0
A130: 46 | D130: 0 | E130: 0 | F130: 0 | G130: 0 | H130: 0 | I130: 0 | J130: 0 | K130: 0 | L130: 0 | M130: 0 | N130: 0 | O130: 0 | P130: 0 | Q130: 0 | R130: 0 | S130: 0 | T130: 0 | U130: 0 | V130: 0 | W130: 0 | X130: 0 | Y130: 0 | Z130: 0 | AA130: 0 | AB130: 0 | AC130: 0 | AD130: 0 | AE130: 0 | AF130: 0 | AG130: 0 | AH130: 0 | AI130: 0 | AJ130: 0 | AK130: 0 | AL130: 0 | AM130: 0 | AN130: 0 | AO130: 0 | AP130: 0 | AQ130: 0 | AR130: 0 | AS130: 0 | AT130: 0 | AU130: 0 | AV130: 0 | AW130: 0 | AX130: 0 | AY130: 0 | AZ130: 0 | BA130: 0 | BB130: 0 | BC130: 0 | BD130: 0 | BE130: 0 | BF130: 0 | BG130: 0 | BH130: 0 | BI130: 0 | BJ130: 0 | BK130: 0 | BL130: 0 | BM130: 0 | BN130: 0 | BO130: 0 | BP130: 0
A131: 47 | D131: 0 | E131: 0 | F131: 0 | G131: 0 | H131: 0 | I131: 0 | J131: 0 | K131: 0 | L131: 0 | M131: 0 | N131: 0 | O131: 0 | P131: 0 | Q131: 0 | R131: 0 | S131: 0 | T131: 0 | U131: 0 | V131: 0 | W131: 0 | X131: 0 | Y131: 0 | Z131: 0 | AA131: 0 | AB131: 0 | AC131: 0 | AD131: 0 | AE131: 0 | AF131: 0 | AG131: 0 | AH131: 0 | AI131: 0 | AJ131: 0 | AK131: 0 | AL131: 0 | AM131: 0 | AN131: 0 | AO131: 0 | AP131: 0 | AQ131: 0 | AR131: 0 | AS131: 0 | AT131: 0 | AU131: 0 | AV131: 0 | AW131: 0 | AX131: 0 | AY131: 0 | AZ131: 0 | BA131: 0 | BB131: 0 | BC131: 0 | BD131: 0 | BE131: 0 | BF131: 0 | BG131: 0 | BH131: 0 | BI131: 0 | BJ131: 0 | BK131: 0 | BL131: 0 | BM131: 0 | BN131: 0 | BO131: 0 | BP131: 0
A132: 48 | D132: 0 | E132: 0 | F132: 0 | G132: 0 | H132: 0 | I132: 0 | J132: 0 | K132: 0 | L132: 0 | M132: 0 | N132: 0 | O132: 0 | P132: 0 | Q132: 0 | R132: 0 | S132: 0 | T132: 0 | U132: 0 | V132: 0 | W132: 0 | X132: 0 | Y132: 0 | Z132: 0 | AA132: 0 | AB132: 0 | AC132: 0 | AD132: 0 | AE132: 0 | AF132: 0 | AG132: 0 | AH132: 0 | AI132: 0 | AJ132: 0 | AK132: 0 | AL132: 0 | AM132: 0 | AN132: 0 | AO132: 0 | AP132: 0 | AQ132: 0 | AR132: 0 | AS132: 0 | AT132: 0 | AU132: 0 | AV132: 0 | AW132: 0 | AX132: 0 | AY132: 0 | AZ132: 0 | BA132: 0 | BB132: 0 | BC132: 0 | BD132: 0 | BE132: 0 | BF132: 0 | BG132: 0 | BH132: 0 | BI132: 0 | BJ132: 0 | BK132: 0 | BL132: 0 | BM132: 0 | BN132: 0 | BO132: 0 | BP132: 0
A133: 49 | D133: 0 | E133: 0 | F133: 0 | G133: 0 | H133: 0 | I133: 0 | J133: 0 | K133: 0 | L133: 0 | M133: 0 | N133: 0 | O133: 0 | P133: 0 | Q133: 0 | R133: 0 | S133: 0 | T133: 0 | U133: 0 | V133: 0 | W133: 0 | X133: 0 | Y133: 0 | Z133: 0 | AA133: 0 | AB133: 0 | AC133: 0 | AD133: 0 | AE133: 0 | AF133: 0 | AG133: 0 | AH133: 0 | AI133: 0 | AJ133: 0 | AK133: 0 | AL133: 0 | AM133: 0 | AN133: 0 | AO133: 0 | AP133: 0 | AQ133: 0 | AR133: 0 | AS133: 0 | AT133: 0 | AU133: 0 | AV133: 0 | AW133: 0 | AX133: 0 | AY133: 0 | AZ133: 0 | BA133: 0 | BB133: 0 | BC133: 0 | BD133: 0 | BE133: 0 | BF133: 0 | BG133: 0 | BH133: 0 | BI133: 0 | BJ133: 0 | BK133: 0 | BL133: 0 | BM133: 0 | BN133: 0 | BO133: 0 | BP133: 0
A134: 50 | D134: 0 | E134: 0 | F134: 0 | G134: 0 | H134: 0 | I134: 0 | J134: 0 | K134: 0 | L134: 0 | M134: 0 | N134: 0 | O134: 0 | P134: 0 | Q134: 0 | R134: 0 | S134: 0 | T134: 0 | U134: 0 | V134: 0 | W134: 0 | X134: 0 | Y134: 0 | Z134: 0 | AA134: 0 | AB134: 0 | AC134: 0 | AD134: 0 | AE134: 0 | AF134: 0 | AG134: 0 | AH134: 0 | AI134: 0 | AJ134: 0 | AK134: 0 | AL134: 0 | AM134: 0 | AN134: 0 | AO134: 0 | AP134: 0 | AQ134: 0 | AR134: 0 | AS134: 0 | AT134: 0 | AU134: 0 | AV134: 0 | AW134: 0 | AX134: 0 | AY134: 0 | AZ134: 0 | BA134: 0 | BB134: 0 | BC134: 0 | BD134: 0 | BE134: 0 | BF134: 0 | BG134: 0 | BH134: 0 | BI134: 0 | BJ134: 0 | BK134: 0 | BL134: 0 | BM134: 0 | BN134: 0 | BO134: 0 | BP134: 0
A135: 51 | D135: 0 | E135: 0 | F135: 0 | G135: 0 | H135: 0 | I135: 0 | J135: 0 | K135: 0 | L135: 0 | M135: 0 | N135: 0 | O135: 0 | P135: 0 | Q135: 0 | R135: 0 | S135: 0 | T135: 0 | U135: 0 | V135: 0 | W135: 0 | X135: 0 | Y135: 0 | Z135: 0 | AA135: 0 | AB135: 0 | AC135: 0 | AD135: 0 | AE135: 0 | AF135: 0 | AG135: 0 | AH135: 0 | AI135: 0 | AJ135: 0 | AK135: 0 | AL135: 0 | AM135: 0 | AN135: 0 | AO135: 0 | AP135: 0 | AQ135: 0 | AR135: 0 | AS135: 0 | AT135: 0 | AU135: 0 | AV135: 0 | AW135: 0 | AX135: 0 | AY135: 0 | AZ135: 0 | BA135: 0 | BB135: 0 | BC135: 0 | BD135: 0 | BE135: 0 | BF135: 0 | BG135: 0 | BH135: 0 | BI135: 0 | BJ135: 0 | BK135: 0 | BL135: 0 | BM135: 0 | BN135: 0 | BO135: 0 | BP135: 0
A136: 52 | D136: 0 | E136: 0 | F136: 0 | G136: 0 | H136: 0 | I136: 0 | J136: 0 | K136: 0 | L136: 0 | M136: 0 | N136: 0 | O136: 0 | P136: 0 | Q136: 0 | R136: 0 | S136: 0 | T136: 0 | U136: 0 | V136: 0 | W136: 0 | X136: 0 | Y136: 0 | Z136: 0 | AA136: 0 | AB136: 0 | AC136: 0 | AD136: 0 | AE136: 0 | AF136: 0 | AG136: 0 | AH136: 0 | AI136: 0 | AJ136: 0 | AK136: 0 | AL136: 0 | AM136: 0 | AN136: 0 | AO136: 0 | AP136: 0 | AQ136: 0 | AR136: 0 | AS136: 0 | AT136: 0 | AU136: 0 | AV136: 0 | AW136: 0 | AX136: 0 | AY136: 0 | AZ136: 0 | BA136: 0 | BB136: 0 | BC136: 0 | BD136: 0 | BE136: 0 | BF136: 0 | BG136: 0 | BH136: 0 | BI136: 0 | BJ136: 0 | BK136: 0 | BL136: 0 | BM136: 0 | BN136: =SUM(F136,K136,P136,U136,Z136,AE136,AJ136,AO136,AT136,AY136,BD136,BI136) -> 0 | BO136: 0 | BP136: 0
A137: 53 | D137: 0 | E137: 0 | F137: 0 | G137: 0 | H137: 0 | I137: 0 | J137: 0 | K137: 0 | L137: 0 | M137: 0 | N137: 0 | O137: 0 | P137: 0 | Q137: 0 | R137: 0 | S137: 0 | T137: 0 | U137: 0 | V137: 0 | W137: 0 | X137: 0 | Y137: 0 | Z137: 0 | AA137: 0 | AB137: 0 | AC137: 0 | AD137: 0 | AE137: 0 | AF137: 0 | AG137: 0 | AH137: 0 | AI137: 0 | AJ137: 0 | AK137: 0 | AL137: 0 | AM137: 0 | AN137: 0 | AO137: 0 | AP137: 0 | AQ137: 0 | AR137: 0 | AS137: 0 | AT137: 0 | AU137: 0 | AV137: 0 | AW137: 0 | AX137: 0 | AY137: 0 | AZ137: 0 | BA137: 0 | BB137: 0 | BC137: 0 | BD137: 0 | BE137: 0 | BF137: 0 | BG137: 0 | BH137: 0 | BI137: 0 | BJ137: 0 | BK137: 0 | BL137: 0 | BM137: 0 | BN137: 0 | BO137: 0 | BP137: 0
A138: 54 | D138: 0 | E138: 0 | F138: 0 | G138: 0 | H138: 0 | I138: 0 | J138: 0 | K138: 0 | L138: 0 | M138: 0 | N138: 0 | O138: 0 | P138: 0 | Q138: 0 | R138: 0 | S138: 0 | T138: 0 | U138: 0 | V138: 0 | W138: 0 | X138: 0 | Y138: 0 | Z138: 0 | AA138: 0 | AB138: 0 | AC138: 0 | AD138: 0 | AE138: 0 | AF138: 0 | AG138: 0 | AH138: 0 | AI138: 0 | AJ138: 0 | AK138: 0 | AL138: 0 | AM138: 0 | AN138: 0 | AO138: 0 | AP138: 0 | AQ138: 0 | AR138: 0 | AS138: 0 | AT138: 0 | AU138: 0 | AV138: 0 | AW138: 0 | AX138: 0 | AY138: 0 | AZ138: 0 | BA138: 0 | BB138: 0 | BC138: 0 | BD138: 0 | BE138: 0 | BF138: 0 | BG138: 0 | BH138: 0 | BI138: 0 | BJ138: 0 | BK138: 0 | BL138: 0 | BM138: 0 | BN138: 0 | BO138: 0 | BP138: 0
A139: TOTAL | D139: =SUM(D79:D138) -> 20 | E139: 3863 | F139: 3330 | G139: 0 | H139: 7213 | I139: 20 | J139: 4819.67 | K139: 3780 | L139: 0 | M139: 8619.67 | N139: 20 | O139: 6704 | P139: 3780 | Q139: 0 | R139: 10504 | S139: 20 | T139: 5418 | U139: 3380 | V139: 0 | W139: 8818 | X139: 20 | Y139: 5749 | Z139: 3380 | AA139: 0 | AB139: 9149 | AC139: 20 | AD139: 6593 | AE139: 3730 | AF139: 0 | AG139: 10343 | AH139: 20 | AI139: 5426.95 | AJ139: 3430 | AK139: 0 | AL139: 8876.95 | AM139: 10 | AN139: 5676 | AO139: 3430 | AP139: 0 | AQ139: 9116 | AR139: 20 | AS139: 5484 | AT139: 3430 | AU139: 0 | AV139: 8934 | AW139: 10 | AX139: 5336.71 | AY139: 2830 | AZ139: 0 | BA139: 8176.71 | BB139: 10 | BC139: =SUM(BC79:BC138) -> 5134.33 | BD139: 2830 | BE139: 0 | BF139: 7974.33 | BG139: 0 | BH139: 0 | BI139: 0 | BJ139: 0 | BK139: 0 | BL139: 190 | BM139: 60204.66 | BN139: 37330 | BO139: 0 | BP139: =SUM(BP79:BP138) -> 97724.66
C140: CHEQUE | H140: 7213 | M140: 8399.67 | R140: =8404+300 -> 8704 | W140: 8526 | AB140: 9149 | AL140: OK | AQ140: 8274 | BA140: =7222.71+50 -> 7272.71
C141: efectivo | J141: 220 | O141: 1800 | T141: 292 | AN141: 292 | BA141: =100+250 -> 350 | BC141: 100

Sheet DSCTO PRESTAMO
A1: DESCUENTO PRESTAMOS
A2: Nº | B2: APELLIDOS Y NOMBRES | D2: PRESTAMO OTORGADO | E2: SALDO | F2: ENERO | I2: FEBRERO | L2: MARZO | O2: ABRIL | R2: MAYO | U2: JUNIO | X2: JULIO | AA2: AGOSTO | AD2: SETIEMBRE | AG2: OCTUBRE | AJ2: NOVIEMBRE | AM2: DICIEMBRE | AP2: ACUMULADO
C3: DNI | F3: PREST. | G3: OTROS | H3: TOTAL | I3: PREST. | J3: OTROS | K3: TOTAL | L3: PREST. | M3: OTROS | N3: TOTAL | O3: PREST. | P3: OTROS | Q3: TOTAL | R3: PREST. | S3: OTROS | T3: TOTAL | U3: PREST. | V3: OTROS | W3: TOTAL | X3: PREST. | Y3: OTROS | Z3: TOTAL | AA3: PREST. | AB3: OTROS | AC3: TOTAL | AD3: PREST. | AE3: OTROS | AF3: TOTAL | AG3: PREST. | AH3: OTROS | AI3: TOTAL | AJ3: PREST. | AK3: OTROS | AL3: TOTAL | AM3: PREST. | AN3: OTROS | AO3: TOTAL | AP3: PREST. | AQ3: OTROS | AR3: TOTAL | AS3: SALDO
A4: 1 | B4: BARDALEZ ALVA, ANITA MERCEDES | C4: 819657 | D4: ='PRESTAMOS OTORGADOS'!V5 -> 3300 | E4: =D4-AR4 -> 0 | F4: 300 | G4: 0 | H4: =F4+G4 -> 300 | I4: 300 | J4: 0 | K4: =I4+J4 -> 300 | L4: 300 | M4: 0 | N4: =L4+M4 -> 300 | O4: 300 | P4: 0 | Q4: =O4+P4 -> 300 | R4: 300 | S4: 0 | T4: =R4+S4 -> 300 | U4: 300 | V4: 0 | W4: =U4+V4 -> 300 | X4: 300 | Y4: 0 | Z4: =X4+Y4 -> 300 | AA4: 300 | AB4: 0 | AC4: =AA4+AB4 -> 300 | AD4: 300 | AE4: 0 | AF4: =AD4+AE4 -> 300 | AG4: 300 | AH4: 0 | AI4: =AG4+AH4 -> 300 | AJ4: 300 | AK4: 0 | AL4: =AJ4+AK4 -> 300 | AM4: 0 | AN4: 0 | AO4: =AM4+AN4 -> 0 | AP4: =SUM(F4,I4,L4,O4,R4,U4,X4,AA4,AD4,AG4,AJ4,AM4) -> 3300 | AQ4: =SUM(G4,J4,M4,P4,S4,V4,Y4,AB4,AE4,AH4,AK4,AT4,AN4) -> 0 | AR4: =SUM(H4,K4,N4,Q4,T4,W4,Z4,AC4,AF4,AI4,AL4,AO4) -> 3300 | AS4: =D4-AR4 -> 0
A5: 2 | B5: BAZAN VARGAS, KIEFFER SEGUNDO | C5: 6796264 | D5: ='PRESTAMOS OTORGADOS'!V8 -> 2750 | E5: =D5-AR5 -> 0 | X5: 550 | Z5: 550 | AA5: 550 | AC5: 550 | AD5: 550 | AF5: 550 | AG5: 550 | AI5: 550 | AJ5: 550 | AL5: 550 | AP5: 2750 | AR5: =SUM(H5,K5,N5,Q5,T5,W5,Z5,AC5,AF5,AI5,AL5,AO5) -> 2750 | AS5: =D5-AR5 -> 0
A6: 3 | B6: CORDOVA CAMPOS, CLARA | C6: 860881 | D6: ='PRESTAMOS OTORGADOS'!V14 -> 1100 | E6: =D6-AR6 -> -1 | F6: 0 | G6: 0 | H6: 0 | I6: 0 | J6: 0 | K6: 0 | L6: 123 | M6: 0 | N6: 123 | O6: 123 | P6: 0 | Q6: 123 | R6: 123 | S6: 0 | T6: 123 | U6: 123 | V6: 0 | W6: 123 | X6: 122 | Y6: 0 | Z6: 122 | AA6: =122+365 -> 487 | AB6: 0 | AC6: 487 | AD6: 0 | AE6: 0 | AF6: 0 | AG6: 0 | AH6: 0 | AI6: 0 | AJ6: 0 | AK6: 0 | AL6: 0 | AM6: 0 | AN6: 0 | AO6: 0 | AP6: 1101 | AQ6: 0 | AR6: =SUM(H6,K6,N6,Q6,T6,W6,Z6,AC6,AF6,AI6,AL6,AO6) -> 1101 | AS6: =D6-AR6 -> -1
A7: 4 | B7: CALAMPA MAS, ELVIA JOSEFINA | C7: 7018656 | D7: ='PRESTAMOS OTORGADOS'!V10 -> 3300 | E7: =D7-AR7 -> -1.5 | F7: 0 | G7: 0 | H7: =F7+G7 -> 0 | I7: 0 | J7: 0 | K7: =I7+J7 -> 0 | L7: 367 | M7: 0 | N7: =L7+M7 -> 367 | O7: 367 | P7: 0 | Q7: =O7+P7 -> 367 | R7: 367 | S7: 0 | T7: =R7+S7 -> 367 | U7: 367 | V7: 0 | W7: =U7+V7 -> 367 | X7: 367 | Y7: 0 | Z7: =X7+Y7 -> 367 | AA7: 367 | AB7: 0 | AC7: =AA7+AB7 -> 367 | AD7: 367 | AE7: 0 | AF7: =AD7+AE7 -> 367 | AG7: =365.5+367 -> 732.5 | AH7: 0 | AI7: =AG7+AH7 -> 732.5 | AJ7: 0 | AK7: 0 | AL7: =AJ7+AK7 -> 0 | AM7: 0 | AN7: 0 | AO7: =AM7+AN7 -> 0 | AP7: =SUM(F7,I7,L7,O7,R7,U7,X7,AA7,AD7,AG7,AJ7,AM7) -> 3301.5 | AQ7: =SUM(G7,J7,M7,P7,S7,V7,Y7,AB7,AE7,AH7,AK7,AT7,AN7) -> 0 | AR7: =SUM(H7,K7,N7,Q7,T7,W7,Z7,AC7,AF7,AI7,AL7,AO7) -> 3301.5 | AS7: =D7-AR7 -> -1.5
A8: 5 | B8: CAMPOS AVALOS, MOISES RAMIRO | C8: 18169707 | D8: ='PRESTAMOS OTORGADOS'!V11 -> 3300 | E8: =D8-AR8 -> 0 | F8: 0 | G8: 0 | H8: =F8+G8 -> 0 | I8: 0 | J8: 0 | K8: =I8+J8 -> 0 | L8: 550 | M8: 0 | N8: =L8+M8 -> 550 | O8: 0 | P8: 0 | Q8: =O8+P8 -> 0 | R8: 0 | S8: 0 | T8: =R8+S8 -> 0 | U8: 550 | V8: 0 | W8: =U8+V8 -> 550 | X8: 550 | Y8: 0 | Z8: =X8+Y8 -> 550 | AA8: 550 | AB8: 0 | AC8: =AA8+AB8 -> 550 | AD8: 550 | AE8: 0 | AF8: =AD8+AE8 -> 550 | AG8: 550 | AH8: 0 | AI8: =AG8+AH8 -> 550 | AJ8: 0 | AK8: 0 | AL8: =AJ8+AK8 -> 0 | AM8: 0 | AN8: 0 | AO8: =AM8+AN8 -> 0 | AP8: =SUM(F8,I8,L8,O8,R8,U8,X8,AA8,AD8,AG8,AJ8,AM8) -> 3300 | AQ8: =SUM(G8,J8,M8,P8,S8,V8,Y8,AB8,AE8,AH8,AK8,AT8,AN8) -> 0 | AR8: =SUM(H8,K8,N8,Q8,T8,W8,Z8,AC8,AF8,AI8,AL8,AO8) -> 3300 | AS8: =D8-AR8 -> 0
A9: 6 | B9: CORTEZ SALDAÑA, ROGER UBEDELINDO | C9: 41109969 | D9: ='PRESTAMOS OTORGADOS'!V15 -> 3300 | E9: =D9-AR9 -> 900 | F9: 0 | G9: 0 | H9: =F9+G9 -> 0 | I9: 0 | J9: 0 | K9: =I9+J9 -> 0 | L9: 300 | M9: 0 | N9: =L9+M9 -> 300 | O9: 300 | P9: 0 | Q9: =O9+P9 -> 300 | R9: 900 | S9: 0 | T9: =R9+S9 -> 900 | U9: 0 | V9: 0 | W9: =U9+V9 -> 0 | X9: 0 | Y9: 0 | Z9: =X9+Y9 -> 0 | AA9: 0 | AB9: 0 | AC9: =AA9+AB9 -> 0 | AD9: 300 | AE9: 0 | AF9: =AD9+AE9 -> 300 | AG9: 300 | AH9: 0 | AI9: =AG9+AH9 -> 300 | AJ9: 300 | AK9: 0 | AL9: =AJ9+AK9 -> 300 | AM9: 0 | AN9: 0 | AO9: =AM9+AN9 -> 0 | AP9: =SUM(F9,I9,L9,O9,R9,U9,X9,AA9,AD9,AG9,AJ9,AM9) -> 2400 | AQ9: =SUM(G9,J9,M9,P9,S9,V9,Y9,AB9,AE9,AH9,AK9,AT9,AN9) -> 0 | AR9: =SUM(H9,K9,N9,Q9,T9,W9,Z9,AC9,AF9,AI9,AL9,AO9) -> 2400 | AS9: =D9-AR9 -> 900 | AU9: AQUÍ DEBE AGOSTO, SETIEMBRE, OCTUBRE Y NOVIEMBRE
A10: 7 | B10: CULQUI HERRERA, MARILU | C10: 838453 | D10: ='PRESTAMOS OTORGADOS'!V16 -> 3300 | E10: =D10-AR10 -> 0 | F10: 0 | G10: 0 | H10: =F10+G10 -> 0 | I10: 0 | J10: 0 | K10: =I10+J10 -> 0 | L10: 367 | M10: 0 | N10: =L10+M10 -> 367 | O10: 367 | P10: 0 | Q10: =O10+P10 -> 367 | R10: 367 | S10: 0 | T10: =R10+S10 -> 367 | U10: 367 | V10: 0 | W10: =U10+V10 -> 367 | X10: 1832 | Y10: 0 | Z10: =X10+Y10 -> 1832 | AA10: 0 | AB10: 0 | AC10: =AA10+AB10 -> 0 | AD10: 0 | AE10: 0 | AF10: =AD10+AE10 -> 0 | AG10: 0 | AH10: 0 | AI10: =AG10+AH10 -> 0 | AJ10: 0 | AK10: 0 | AL10: =AJ10+AK10 -> 0 | AM10: 0 | AN10: 0 | AO10: =AM10+AN10 -> 0 | AP10: =SUM(F10,I10,L10,O10,R10,U10,X10,AA10,AD10,AG10,AJ10,AM10) -> 3300 | AQ10: =SUM(G10,J10,M10,P10,S10,V10,Y10,AB10,AE10,AH10,AK10,AT10,AN10) -> 0 | AR10: =SUM(H10,K10,N10,Q10,T10,W10,Z10,AC10,AF10,AI10,AL10,AO10) -> 3300 | AS10: =D10-AR10 -> 0
A11: 8 | B11: CONTRERAS ASPAJO MIKY PAOLA | C11: 43562698 | D11: ='PRESTAMOS OTORGADOS'!V17 -> 2200 | E11: =D11-AR11 -> 0 | AA11: 550 | AC11: =AA11+AB11 -> 550 | AD11: 550 | AF11: =AD11+AE11 -> 550 | AG11: 550 | AI11: 550 | AJ11: 550 | AL11: 550 | AP11: =SUM(F11,I11,L11,O11,R11,U11,X11,AA11,AD11,AG11,AJ11,AM11) -> 2200 | AR11: =SUM(H11,K11,N11,Q11,T11,W11,Z11,AC11,AF11,AI11,AL11,AO11) -> 2200 | AS11: 0
A12: 9 | B12: FARRIS ARCENTALES, CARLOS ALBERTO | C12: 860936 | D12: ='PRESTAMOS OTORGADOS'!V20 -> 6050 | E12: 2750 | F12: =235.32+64.68 -> 300 | G12: 0 | H12: 300 | I12: =235.32+64.68 -> 300 | J12: 0 | K12: 300 | L12: 300 | M12: 0 | N12: 300 | O12: =222.04+77.96 -> 300 | P12: 0 | Q12: 300 | R12: 300 | S12: 0 | T12: 300 | U12: 300 | V12: 0 | W12: 300 | X12: 300 | Y12: 0 | Z12: 300 | AA12: 300 | AB12: 0 | AC12: 300 | AD12: 300 | AE12: 0 | AF12: 300 | AG12: 300 | AH12: 0 | AI12: 300 | AJ12: 300 | AK12: 0 | AL12: 300 | AM12: 0 | AN12: 0 | AO12: 0 | AP12: 3300 | AQ12: 0 | AR12: 3300 | AS12: 2750
A13: 10 | B13: GUERRERO GARCIA, TEOBALDO | C13: 831944 | D13: ='PRESTAMOS OTORGADOS'!V24 -> 1650 | E13: 0 | F13: 0 | G13: 0 | H13: 0 | I13: 0 | J13: 0 | K13: 0 | L13: 184 | M13: 0 | N13: 184 | O13: 184 | P13: 0 | Q13: 184 | R13: 184 | S13: 0 | T13: 184 | U13: 184 | V13: 0 | W13: 184 | X13: 184 | Y13: 0 | Z13: 184 | AA13: 184 | AB13: 0 | AC13: 184 | AD13: 184 | AE13: 0 | AF13: 184 | AG13: 184 | AH13: 0 | AI13: 184 | AJ13: 178 | AK13: 0 | AL13: 178 | AM13: 0 | AN13: 0 | AO13: 0 | AP13: 1650 | AQ13: 0 | AR13: 1650 | AS13: 0
A14: 11 | B14: GONZALES SIMARRA, JHON HENRY | C14: 42179278 | D14: ='PRESTAMOS OTORGADOS'!V23 -> 3300 | E14: =D14-AR14 -> 3300 | F14: 0 | G14: 0 | H14: =F14+G14 -> 0 | I14: 0 | J14: 0 | K14: =I14+J14 -> 0 | L14: 0 | M14: 0 | N14: =L14+M14 -> 0 | O14: 0 | P14: 0 | Q14: =O14+P14 -> 0 | R14: 0 | S14: 0 | T14: =R14+S14 -> 0 | U14: 0 | V14: 0 | W14: =U14+V14 -> 0 | X14: 0 | Y14: 0 | Z14: =X14+Y14 -> 0 | AA14: 0 | AB14: 0 | AC14: =AA14+AB14 -> 0 | AD14: 0 | AE14: 0 | AF14: =AD14+AE14 -> 0 | AG14: 0 | AH14: 0 | AI14: =AG14+AH14 -> 0 | AJ14: 0 | AK14: 0 | AL14: =AJ14+AK14 -> 0 | AM14: 0 | AN14: 0 | AO14: =AM14+AN14 -> 0 | AP14: =SUM(F14,I14,L14,O14,R14,U14,X14,AA14,AD14,AG14,AJ14,AM14) -> 0 | AQ14: =SUM(G14,J14,M14,P14,S14,V14,Y14,AB14,AE14,AH14,AK14,AT14,AN14) -> 0 | AR14: =SUM(H14,K14,N14,Q14,T14,W14,Z14,AC14,AF14,AI14,AL14,AO14) -> 0 | AS14: =D14-AR14 -> 3300
A15: 12 | B15: GONZALES SAAVEDRA, ANA | C15: 16680144 | D15: ='PRESTAMOS OTORGADOS'!V22 -> 2750 | E15: =D15-AR15 -> 0 | F15: 0 | G15: 0 | H15: =F15+G15 -> 0 | I15: 0 | J15: 0 | K15: =I15+J15 -> 0 | L15: 367 | M15: 0 | N15: =L15+M15 -> 367 | O15: 298 | P15: 0 | Q15: =O15+P15 -> 298 | R15: 298 | S15: 0 | T15: =R15+S15 -> 298 | U15: 300 | V15: 0 | W15: =U15+V15 -> 300 | X15: 300 | Y15: 0 | Z15: =X15+Y15 -> 300 | AA15: 300 | AB15: 0 | AC15: =AA15+AB15 -> 300 | AD15: 300 | AE15: 0 | AF15: =AD15+AE15 -> 300 | AG15: 300 | AH15: 0 | AI15: =AG15+AH15 -> 300 | AJ15: 287 | AK15: 0 | AL15: =AJ15+AK15 -> 287 | AM15: 0 | AN15: 0 | AO15: =AM15+AN15 -> 0 | AP15: =SUM(F15,I15,L15,O15,R15,U15,X15,AA15,AD15,AG15,AJ15,AM15) -> 2750 | AQ15: =SUM(G15,J15,M15,P15,S15,V15,Y15,AB15,AE15,AH15,AK15,AT15,AN15) -> 0 | AR15: =SUM(H15,K15,N15,Q15,T15,W15,Z15,AC15,AF15,AI15,AL15,AO15) -> 2750 | AS15: =D15-AR15 -> 0
A16: 13 | B16: LLAJA DIAZ, ALPINO | C16: 803522 | D16: ='PRESTAMOS OTORGADOS'!V26 -> 7150 | E16: 2750 | F16: 400 | G16: 0 | H16: 400 | I16: 400 | J16: 0 | K16: 400 | L16: 400 | M16: 0 | N16: 400 | O16: 400 | P16: 0 | Q16: 400 | R16: 400 | S16: 0 | T16: 400 | U16: 400 | V16: 0 | W16: 400 | X16: 400 | Y16: 0 | Z16: 400 | AA16: 400 | AB16: 0 | AC16: 400 | AD16: 400 | AE16: 0 | AF16: 400 | AG16: 400 | AH16: 0 | AI16: 400 | AJ16: 400 | AK16: 0 | AL16: 400 | AM16: 0 | AN16: 0 | AO16: 0 | AP16: 4400 | AQ16: 0 | AR16: 4400 | AS16: 2750
A17: 14 | B17: MUNDACA FLORES, KELVIN | C17: 43437357 | D17: ='PRESTAMOS OTORGADOS'!V31 -> 660 | E17: -660 | F17: 0 | G17: 0 | H17: 0 | I17: =66.03+263.97 -> 330 | J17: 0 | K17: 330 | L17: =266.03+63.97 -> 330 | M17: 0 | N17: 330 | O17: =267.37+62.63 -> 330 | P17: 0 | Q17: 330 | R17: =265.74+64.26 -> 330 | S17: 0 | T17: 330 | U17: 0 | V17: 0 | W17: 0 | X17: 0 | Y17: 0 | Z17: 0 | AA17: 0 | AB17: 0 | AC17: 0 | AD17: 0 | AE17: 0 | AF17: 0 | AG17: 0 | AH17: 0 | AI17: 0 | AJ17: 0 | AK17: 0 | AL17: 0 | AM17: 0 | AN17: 0 | AO17: 0 | AP17: 1320 | AQ17: 0 | AR17: 1320 | AS17: -660
A18: 15 | B18: MESIA GARCIA, CHRISTIAN ERICK | C18: 72317983 | D18: ='PRESTAMOS OTORGADOS'!V30 -> 6050 | E18: =D18-AR18 -> 0 | F18: 0 | G18: 0 | H18: =F18+G18 -> 0 | I18: 1650 | J18: 0 | K18: =I18+J18 -> 1650 | L18: 959.5 | M18: 0 | N18: =L18-592.5 -> 367 | O18: 611 | P18: 0 | Q18: =O18+P18 -> 611 | R18: 611 | S18: 0 | T18: =R18+S18 -> 611 | U18: 370 | V18: 0 | W18: =U18+V18 -> 370 | X18: 703 | Y18: 0 | Z18: =X18+Y18 -> 703 | AA18: 703 | AB18: 0 | AC18: =AA18+AB18 -> 703 | AD18: 703 | AE18: 0 | AF18: =AD18+AE18 -> 703 | AG18: 332 | AH18: 0 | AI18: =AG18+AH18 -> 332 | AJ18: 0 | AK18: 0 | AL18: =AJ18+AK18 -> 0 | AM18: 0 | AN18: 0 | AO18: =AM18+AN18 -> 0 | AP18: =SUM(F18,I18,L18,O18,R18,U18,X18,AA18,AD18,AG18,AJ18,AM18) -> 6642.5 | AQ18: =SUM(G18,J18,M18,P18,S18,V18,Y18,AB18,AE18,AH18,AK18,AT18,AN18) -> 0 | AR18: =SUM(H18,K18,N18,Q18,T18,W18,Z18,AC18,AF18,AI18,AL18,AO18) -> 6050 | AS18: =D18-AR18 -> 0 | AT18: esto es otro monto | AU18: =2811-370 -> 2441 | AV18: el verdadero saldo
A19: 16 | B19: NARVA QUISPE, MARIANO JOSE | C19: 815508 | D19: ='PRESTAMOS OTORGADOS'!V32 -> 440 | E19: 0 | F19: 0 | G19: 0 | H19: 0 | I19: 0 | J19: 0 | K19: 0 | L19: 0 | M19: 0 | N19: 0 | O19: 0 | P19: 0 | Q19: 0 | R19: 0 | S19: 0 | T19: 0 | U19: 74 | V19: 0 | W19: 74 | X19: 110 | Y19: 0 | Z19: =X19+Y19 -> 110 | AA19: 110 | AB19: 0 | AC19: =AA19+AB19 -> 110 | AD19: 110 | AE19: 0 | AF19: =AD19+AE19 -> 110 | AG19: 36 | AH19: 0 | AI19: =AG19+AH19 -> 36 | AJ19: 0 | AK19: 0 | AL19: =AJ19+AK19 -> 0 | AM19: 0 | AN19: 0 | AO19: =AM19+AN19 -> 0 | AP19: 440 | AQ19: 0 | AR19: 440 | AS19: 0
A20: 17 | B20: PAREDES AGUILAR, MARITA CAROLA | C20: 10276387 | D20: ='PRESTAMOS OTORGADOS'!V33 -> 7150 | E20: =D20-AR20 -> 2750 | F20: 400 | G20: 0 | H20: =F20+G20 -> 400 | I20: 400 | J20: 0 | K20: =I20+J20 -> 400 | L20: 400 | M20: 0 | N20: =L20+M20 -> 400 | O20: 400 | P20: 0 | Q20: =O20+P20 -> 400 | R20: 400 | S20: 0 | T20: =R20+S20 -> 400 | U20: 400 | V20: 0 | W20: =U20+V20 -> 400 | X20: 400 | Y20: 0 | Z20: =X20+Y20 -> 400 | AA20: 400 | AB20: 0 | AC20: =AA20+AB20 -> 400 | AD20: 400 | AE20: 0 | AF20: =AD20+AE20 -> 400 | AG20: 400 | AH20: 0 | AI20: =AG20+AH20 -> 400 | AJ20: 400 | AK20: 0 | AL20: =AJ20+AK20 -> 400 | AM20: 0 | AN20: 0 | AO20: =AM20+AN20 -> 0 | AP20: =SUM(F20,I20,L20,O20,R20,U20,X20,AA20,AD20,AG20,AJ20,AM20) -> 4400 | AQ20: =SUM(G20,J20,M20,P20,S20,V20,Y20,AB20,AE20,AH20,AK20,AT20,AN20) -> 0 | AR20: =SUM(H20,K20,N20,Q20,T20,W20,Z20,AC20,AF20,AI20,AL20,AO20) -> 4400 | AS20: =D20-AR20 -> 2750
A21: 18 | B21: ROJAS BECERRA, LUCIA (755,59 ES DEL 2023) | C21: 838472 | D21: ='PRESTAMOS OTORGADOS'!V41 -> 1085.59 | E21: 110 | F21: 90 | G21: 0 | H21: 90 | I21: 90 | J21: 0 | K21: 90 | L21: 90 | M21: 0 | N21: 90 | O21: 90 | P21: 0 | Q21: 90 | R21: 90 | S21: 0 | T21: 90 | U21: 90 | V21: 0 | W21: 90 | X21: 90 | Y21: 0 | Z21: 90 | AA21: 90 | AB21: 0 | AC21: 90 | AD21: 35.59 | AE21: 0 | AF21: 35.59 | AG21: 110 | AH21: 0 | AI21: 110 | AJ21: 110 | AK21: 0 | AL21: 110 | AM21: 0 | AN21: 0 | AO21: 0 | AP21: 975.59 | AQ21: 0 | AR21: 975.59 | AS21: 110
A22: 19 | B22: REATEGUI TELLO, LIZ JEANE | C22: 44055448 | D22: ='PRESTAMOS OTORGADOS'!V38 -> 2530 | E22: =D22-AR22 -> -5 | F22: 0 | G22: 0 | H22: =F22+G22 -> 0 | I22: =295+590 -> 885 | J22: 0 | K22: =I22+J22 -> 885 | L22: 330 | M22: 0 | N22: =L22+M22 -> 330 | O22: 330 | P22: 0 | Q22: =O22+P22 -> 330 | R22: 330 | S22: 0 | T22: =R22+S22 -> 330 | U22: 330 | V22: 0 | W22: =U22+V22 -> 330 | X22: 330 | Y22: 0 | Z22: =X22+Y22 -> 330 | AA22: 0 | AB22: 0 | AC22: =AA22+AB22 -> 0 | AD22: 0 | AE22: 0 | AF22: =AD22+AE22 -> 0 | AG22: 0 | AH22: 0 | AI22: =AG22+AH22 -> 0 | AJ22: 0 | AK22: 0 | AL22: =AJ22+AK22 -> 0 | AM22: 0 | AN22: 0 | AO22: =AM22+AN22 -> 0 | AP22: =SUM(F22,I22,L22,O22,R22,U22,X22,AA22,AD22,AG22,AJ22,AM22) -> 2535 | AQ22: =SUM(G22,J22,M22,P22,S22,V22,Y22,AB22,AE22,AH22,AK22,AT22,AN22) -> 0 | AR22: =SUM(H22,K22,N22,Q22,T22,W22,Z22,AC22,AF22,AI22,AL22,AO22) -> 2535 | AS22: =D22-AR22 -> -5
A23: 20 | B23: RENGIFO TUESTA, MERIDA | C23: 815786 | D23: ='PRESTAMOS OTORGADOS'!V39 -> 2200 | E23: =D23-AR23 -> 0 | F23: 0 | G23: 0 | H23: =F23+G23 -> 0 | I23: 0 | J23: 0 | K23: =I23+J23 -> 0 | L23: 0 | M23: 0 | N23: =L23+M23 -> 0 | O23: 138 | P23: 0 | Q23: =O23+P23 -> 138 | R23: 138 | S23: 0 | T23: =R23+S23 -> 138 | U23: 321 | V23: 0 | W23: =U23+V23 -> 321 | X23: 321 | Y23: 0 | Z23: =X23+Y23 -> 321 | AA23: 321 | AB23: 0 | AC23: =AA23+AB23 -> 321 | AD23: 321 | AE23: 0 | AF23: =AD23+AE23 -> 321 | AG23: 321 | AH23: 0 | AI23: =AG23+AH23 -> 321 | AJ23: 319 | AK23: 0 | AL23: =AJ23+AK23 -> 319 | AM23: 0 | AN23: 0 | AO23: =AM23+AN23 -> 0 | AP23: =SUM(F23,I23,L23,O23,R23,U23,X23,AA23,AD23,AG23,AJ23,AM23) -> 2200 | AQ23: =SUM(G23,J23,M23,P23,S23,V23,Y23,AB23,AE23,AH23,AK23,AT23,AN23) -> 0 | AR23: =SUM(H23,K23,N23,Q23,T23,W23,Z23,AC23,AF23,AI23,AL23,AO23) -> 2200 | AS23: =D23-AR23 -> 0
A24: 21 | B24: SEPULVEDA VELA, SERGIO ANTONIO | C24: 821066 | D24: ='PRESTAMOS OTORGADOS'!V46 -> 3300 | E24: 1580.04 | F24: 300 | G24: 0 | H24: 300 | I24: =1.9+298.1 -> 300 | J24: 0 | K24: 300 | L24: =1.9+298.1 -> 300 | M24: 0 | N24: 300 | O24: 0 | P24: 0 | Q24: 0 | R24: 0 | S24: 0 | T24: 0 | U24: 0 | V24: 0 | W24: 0 | X24: 0 | Y24: 0 | Z24: 0 | AA24: 0 | AB24: 0 | AC24: 0 | AD24: 0 | AE24: 0 | AF24: 0 | AG24: =164.71+245.25 -> 409.96 | AH24: 0 | AI24: 409.96 | AJ24: =164.71+245.29 -> 410 | AK24: 0 | AL24: 410 | AM24: 0 | AN24: 0 | AO24: 0 | AP24: 1719.96 | AQ24: 0 | AR24: 1719.96 | AS24: 1580.04
A25: 22 | B25: TORRES BARDALEZ, JAVIER | C25: 802127 | D25: ='PRESTAMOS OTORGADOS'!V47 -> 4400 | E25: 2200 | F25: 200 | G25: 0 | H25: 200 | I25: 200 | J25: 0 | K25: 200 | L25: 200 | M25: 0 | N25: 200 | O25: 200 | P25: 0 | Q25: 200 | R25: 200 | S25: 0 | T25: 200 | U25: 200 | V25: 0 | W25: 200 | X25: 200 | Y25: 0 | Z25: 200 | AA25: 200 | AB25: 0 | AC25: 200 | AD25: 200 | AE25: 0 | AF25: 200 | AG25: 200 | AH25: 0 | AI25: 200 | AJ25: 200 | AK25: 0 | AL25: 200 | AM25: 0 | AN25: 0 | AO25: 0 | AP25: 2200 | AQ25: 0 | AR25: 2200 | AS25: 2200
A26: 23 | B26: TORRES REATEGUI, MARIANELA | C26: 860667 | D26: ='PRESTAMOS OTORGADOS'!V48 -> 7700 | E26: =D26-AR26 -> 2750 | F26: 0 | G26: 0 | H26: =F26+G26 -> 0 | I26: 0 | J26: 0 | K26: =I26+J26 -> 0 | L26: 550 | M26: 0 | N26: =L26+M26 -> 550 | O26: 550 | P26: 0 | Q26: =O26+P26 -> 550 | R26: 550 | S26: 0 | T26: =R26+S26 -> 550 | U26: 550 | V26: 0 | W26: =U26+V26 -> 550 | X26: 550 | Y26: 0 | Z26: =X26+Y26 -> 550 | AA26: 550 | AB26: 0 | AC26: =AA26+AB26 -> 550 | AD26: 550 | AE26: 0 | AF26: =AD26+AE26 -> 550 | AG26: 550 | AH26: 0 | AI26: =AG26+AH26 -> 550 | AJ26: 550 | AK26: 0 | AL26: =AJ26+AK26 -> 550 | AM26: 0 | AN26: 0 | AO26: =AM26+AN26 -> 0 | AP26: =SUM(F26,I26,L26,O26,R26,U26,X26,AA26,AD26,AG26,AJ26,AM26) -> 4950 | AQ26: =SUM(G26,J26,M26,P26,S26,V26,Y26,AB26,AE26,AH26,AK26,AT26,AN26) -> 0 | AR26: =SUM(H26,K26,N26,Q26,T26,W26,Z26,AC26,AF26,AI26,AL26,AO26) -> 4950 | AS26: =D26-AR26 -> 2750
A27: 24 | B27: VASQUEZ HIDALGO, CUSTODIO | C27: 806058 | D27: ='PRESTAMOS OTORGADOS'!V49 -> 2510.9 | E27: 350.5 | F27: 35.4 | G27: 0 | H27: 35.4 | I27: 165 | J27: 0 | K27: 165 | L27: 130 | M27: 0 | N27: 130 | O27: 155 | P27: 0 | Q27: 155 | R27: 176 | S27: 0 | T27: 176 | U27: 88 | V27: 0 | W27: 88 | X27: 176 | Y27: 0 | Z27: 176 | AA27: 176 | AB27: 0 | AC27: 176 | AD27: 353 | AE27: 0 | AF27: 353 | AG27: 353 | AH27: 0 | AI27: 353 | AJ27: 353 | AK27: 0 | AL27: 353 | AM27: 0 | AN27: 0 | AO27: 0 | AP27: 2160.4 | AQ27: 0 | AR27: 2160.4 | AS27: 350.5
A28: 25 | B28: VENEGAS MENDOZA, MARTHA | C28: 1027724 | D28: ='PRESTAMOS OTORGADOS'!V52 -> 1760 | E28: 0 | F28: 0 | G28: 0 | H28: 0 | I28: 0 | J28: 0 | K28: 0 | L28: 252 | M28: 0 | N28: 252 | O28: 252 | P28: 0 | Q28: 252 | R28: 252 | S28: 0 | T28: 252 | U28: 252 | V28: 0 | W28: 252 | X28: 252 | Y28: 0 | Z28: 252 | AA28: =252+248 -> 500 | AB28: 0 | AC28: 500 | AD28: 0 | AE28: 0 | AF28: 0 | AG28: 0 | AH28: 0 | AI28: 0 | AJ28: 0 | AK28: 0 | AL28: 0 | AM28: 0 | AN28: 0 | AO28: 0 | AP28: 1760 | AQ28: 0 | AR28: 1760 | AS28: 0 | AU28: POR COBRAR
A29: 26 | B29: VILCHEZ SECLEN, MILKA | C29: 16704655 | D29: ='PRESTAMOS OTORGADOS'!V53 -> 6050 | E29: 2750 | F29: 0 | G29: 0 | H29: =F29+G29 -> 0 | I29: 330 | J29: 0 | K29: =I29+J29 -> 330 | L29: 330 | M29: 0 | N29: =L29+M29 -> 330 | O29: 330 | P29: 0 | Q29: =O29+P29 -> 330 | R29: 330 | S29: 0 | T29: =R29+S29 -> 330 | U29: 330 | V29: 0 | W29: =U29+V29 -> 330 | X29: 330 | Y29: 0 | Z29: =X29+Y29 -> 330 | AA29: 330 | AB29: 0 | AC29: =AA29+AB29 -> 330 | AD29: 330 | AE29: 0 | AF29: =AD29+AE29 -> 330 | AG29: 330 | AH29: 0 | AI29: =AG29+AH29 -> 330 | AJ29: 330 | AK29: 0 | AL29: =AJ29+AK29 -> 330 | AM29: 0 | AN29: 0 | AO29: =AM29+AN29 -> 0 | AP29: 3300 | AQ29: 0 | AR29: 3300 | AS29: 2750
A30: TOTAL | D30: =SUM(D4:D29) -> 89286.49 | F30: =SUM(F4:F29) -> 2025.4 | G30: 0 | H30: 2025.4 | I30: 5350 | J30: 0 | K30: 5350 | L30: 7129.5 | M30: 0 | N30: 6537 | O30: 6025 | P30: 0 | Q30: 6025 | R30: 6646 | S30: 0 | T30: 6646 | U30: 5896 | V30: 0 | W30: 5896 | X30: 8367 | Y30: 0 | Z30: 8367 | AA30: 7368 | AB30: 0 | AC30: 7368 | AD30: 6803.59 | AE30: 0 | AF30: 6803.59 | AG30: 7208.46 | AH30: 0 | AI30: 7208.46 | AJ30: 5537 | AK30: 0 | AL30: 5537 | AM30: 0 | AN30: 0 | AO30: 0 | AP30: 68355.95 | AQ30: 0 | AR30: 67763.45 | AS30: 21523.04 | AU30: =AS30+AS63 -> 31993.38
A33: DEVOLUCION DE PRESTAMOS Y APORTACIONES PARA CANASTA NAVIDEÑA - 2022
A34: Nº | B34: APELLIDOS Y NOMBRES | D34: PRESTAMO OTORGADO | E34: SALDO | F34: ENERO | I34: FEBRERO | L34: MARZO | O34: ABRIL | R34: MAYO | U34: JUNIO | X34: JULIO | AA34: AGOSTO | AD34: SETIEMBRE | AG34: OCTUBRE | AJ34: NOVIEMBRE | AM34: DICIEMBRE | AP34: ACUMULADO
C35: DNI | F35: PREST. | G35: OTROS | H35: TOTAL | I35: PREST. | J35: OTROS | K35: TOTAL | L35: PREST. | M35: OTROS | N35: TOTAL | O35: PREST. | P35: OTROS | Q35: TOTAL | R35: PREST. | S35: OTROS | T35: TOTAL | U35: PREST. | V35: OTROS | W35: TOTAL | X35: PREST. | Y35: OTROS | Z35: TOTAL | AA35: PREST. | AB35: OTROS | AC35: TOTAL | AD35: PREST. | AE35: OTROS | AF35: TOTAL | AG35: PREST. | AH35: OTROS | AI35: TOTAL | AJ35: PREST. | AK35: OTROS | AL35: TOTAL | AM35: PREST. | AN35: OTROS | AO35: TOTAL | AP35: PREST. | AQ35: OTROS | AR35: TOTAL | AS35: SALDO
A36: 1 | B36: AHUANARI ZUMBA, RICARDO | C36: 40291265 | D36: ='PRESTAMOS OTORGADOS'!V3 -> 1650 | E36: =D36-AR36 -> 0 | F36: 100 | G36: 0 | H36: =F36+G36 -> 100 | I36: 187.67 | J36: 0 | K36: =I36+J36 -> 187.67 | L36: 152 | M36: 0 | N36: =L36+M36 -> 152 | O36: 152 | P36: 0 | Q36: =O36+P36 -> 152 | R36: 152 | S36: 0 | T36: =R36+S36 -> 152 | U36: 152 | V36: 0 | W36: =U36+V36 -> 152 | X36: 155 | Y36: 0 | Z36: =X36+Y36 -> 155 | AA36: 155 | AB36: 0 | AC36: =AA36+AB36 -> 155 | AD36: 155 | AE36: 0 | AF36: =AD36+AE36 -> 155 | AG36: 155 | AH36: 0 | AI36: =AG36+AH36 -> 155 | AJ36: 134.33 | AK36: 0 | AL36: =AJ36+AK36 -> 134.33 | AM36: 0 | AN36: 0 | AO36: =AM36+AN36 -> 0 | AP36: =SUM(F36,I36,L36,O36,R36,U36,X36,AA36,AD36,AG36,AJ36,AM36) -> 1650 | AQ36: =SUM(G36,J36,M36,P36,S36,V36,Y36,AB36,AE36,AH36,AK36,AT36,AN36) -> 0 | AR36: =SUM(H36,K36,N36,Q36,T36,W36,Z36,AC36,AF36,AI36,AL36,AO36) -> 1650 | AS36: =D36-AR36 -> 0
A37: 2 | B37: ASPAJO CHUMBE, VICTOR RAUL | C37: 40821941 | D37: ='PRESTAMOS OTORGADOS'!V4 -> 3740 | E37: =D37-AR37 -> 880 | F37: 0 | G37: 0 | H37: =F37+G37 -> 0 | I37: 220 | J37: 0 | K37: =I37+J37 -> 220 | L37: 294 | M37: 0 | N37: =L37+M37 -> 294 | O37: 292 | P37: 0 | Q37: =O37+P37 -> 292 | R37: 294 | S37: 0 | T37: =R37+S37 -> 294 | U37: 294 | V37: 0 | W37: =U37+V37 -> 294 | X37: 294 | Y37: 0 | Z37: =X37+Y37 -> 294 | AA37: =292+440 -> 732 | AB37: 0 | AC37: =AA37+AB37 -> 732 | AD37: 440 | AE37: 0 | AF37: =AD37+AE37 -> 440 | AG37: 0 | AH37: 0 | AI37: =AG37+AH37 -> 0 | AJ37: 0 | AK37: 0 | AL37: =AJ37+AK37 -> 0 | AM37: 0 | AN37: 0 | AO37: =AM37+AN37 -> 0 | AP37: 2860 | AQ37: 0 | AR37: 2860 | AS37: =D37-AR37 -> 880
A38: 3 | B38: BEJARANO AGUILAR, MAGALY ROCIO | C38: 43180463 | D38: ='PRESTAMOS OTORGADOS'!V6 -> 8800 | E38: 2200 | F38: 1100 | G38: 0 | H38: 1100 | I38: 1100 | J38: 0 | K38: 1100 | L38: 1100 | M38: 0 | N38: 1100 | O38: 1100 | P38: 0 | Q38: 1100 | R38: 1100 | S38: 0 | T38: 1100 | U38: 1100 | V38: 0 | W38: 1100 | X38: 0 | Y38: 0 | Z38: 0 | AA38: 0 | AB38: 0 | AC38: 0 | AD38: 0 | AE38: 0 | AF38: 0 | AG38: 0 | AH38: 0 | AI38: 0 | AJ38: 0 | AK38: 0 | AL38: 0 | AM38: 0 | AN38: 0 | AO38: 0 | AP38: 6600 | AQ38: 0 | AR38: 6600 | AS38: 2200
A39: 4 | B39: BEJARANO AROSEMENA, AUREA MILAGROS | C39: 45541324 | D39: ='PRESTAMOS OTORGADOS'!V7 -> 550 | E39: 0 | F39: 0 | G39: 0 | H39: 0 | I39: 0 | J39: 0 | K39: 0 | L39: 0 | M39: 0 | N39: 0 | O39: 0 | P39: 0 | Q39: 0 | R39: 79 | S39: 0 | T39: 79 | U39: 79 | V39: 0 | W39: 79 | X39: 79 | Y39: 0 | Z39: 79 | AA39: 79 | AB39: 0 | AC39: 79 | AD39: 79 | AE39: 0 | AF39: 79 | AG39: 79 | AH39: 0 | AI39: 79 | AJ39: 76 | AK39: 0 | AL39: 76 | AM39: 0 | AN39: 0 | AO39: 0 | AP39: 550 | AQ39: 0 | AR39: 550 | AS39: 0
A40: 5 | B40: CABALLERO FERNANDEZ, MARIA ELEANA | C40: 17838963 | D40: ='PRESTAMOS OTORGADOS'!V9 -> 2750 | E40: 1650 | F40: 100 | G40: 0 | H40: 100 | I40: 100 | J40: 0 | K40: 100 | L40: 100 | M40: 0 | N40: 100 | O40: 100 | P40: 0 | Q40: 100 | R40: 100 | S40: 0 | T40: 100 | U40: 100 | V40: 0 | W40: 100 | X40: 100 | Y40: 0 | Z40: 100 | AA40: 100 | AB40: 0 | AC40: 100 | AD40: 100 | AE40: 0 | AF40: 100 | AG40: 100 | AH40: 0 | AI40: 100 | AJ40: 100 | AK40: 0 | AL40: 100 | AM40: 0 | AN40: 0 | AO40: 0 | AP40: 1100 | AQ40: 0 | AR40: 1100 | AS40: 1650
A41: 6 | B41: CASTILLO MARINA, EDDY | C41: 41482777 | D41: ='PRESTAMOS OTORGADOS'!V12 -> 8305 | E41: 3309 | F41: 413 | G41: 0 | H41: 413 | I41: 413 | J41: 0 | K41: 413 | L41: 413 | M41: 0 | N41: 413 | O41: 413 | P41: 0 | Q41: 413 | R41: 413 | S41: 0 | T41: 413 | U41: 413 | V41: 0 | W41: 413 | X41: 413 | Y41: 0 | Z41: 413 | AA41: 515 | AB41: 0 | AC41: 515 | AD41: 515 | AE41: 0 | AF41: 515 | AG41: 515 | AH41: 0 | AI41: 515 | AJ41: 560 | AK41: 0 | AL41: 560 | AM41: 0 | AN41: 0 | AO41: 0 | AP41: 4996 | AQ41: 0 | AR41: 4996 | AS41: 3309
A42: 7 | B42: CISNEROS HIDALGO, LOURDES AUGUSTA | C42: 833790 | D42: ='PRESTAMOS OTORGADOS'!V13 -> 330 | E42: 0 | F42: 0 | G42: 0 | H42: 0 | I42: 0 | J42: 0 | K42: 0 | L42: 0 | M42: 0 | N42: 0 | O42: 0 | P42: 0 | Q42: 0 | R42: 0 | S42: 0 | T42: 0 | U42: 165 | V42: 0 | W42: 165 | X42: 165 | Y42: 0 | Z42: 165 | AA42: 0 | AB42: 0 | AC42: 0 | AD42: 0 | AE42: 0 | AF42: 0 | AG42: 0 | AH42: 0 | AI42: 0 | AJ42: 0 | AK42: 0 | AL42: 0 | AM42: 0 | AN42: 0 | AO42: 0 | AP42: 330 | AQ42: 0 | AR42: 330 | AS42: 0
A43: 8 | B43: DAHUA SALAZAR. ROGER AUGUSTO | C43: 40517481 | D43: ='PRESTAMOS OTORGADOS'!V19 -> 3300 | E43: 0 | F43: 300 | G43: 0 | H43: 300 | I43: 300 | J43: 0 | K43: 300 | L43: 300 | M43: 0 | N43: 300 | O43: 300 | P43: 0 | Q43: 300 | R43: 300 | S43: 0 | T43: 300 | U43: 300 | V43: 0 | W43: 300 | X43: 300 | Y43: 0 | Z43: 300 | AA43: 300 | AB43: 0 | AC43: 300 | AD43: 300 | AE43: 0 | AF43: 300 | AG43: 300 | AH43: 0 | AI43: 300 | AJ43: 300 | AK43: 0 | AL43: 300 | AM43: 0 | AN43: 0 | AO43: 0 | AP43: 3300 | AQ43: 0 | AR43: 3300 | AS43: 0
A44: 9 | B44: GASCO GUERRERO, OLGA LICETH | C44: 47967611 | D44: ='PRESTAMOS OTORGADOS'!V21 -> 2200 | E44: 0 | F44: 100 | G44: 0 | H44: 100 | I44: 100 | J44: 0 | K44: 100 | L44: 100 | M44: 0 | N44: 100 | O44: 100 | P44: 0 | Q44: 100 | R44: 271 | S44: 0 | T44: 271 | U44: 271 | V44: 0 | W44: 271 | X44: 271 | Y44: 0 | Z44: 271 | AA44: 271 | AB44: 0 | AC44: 271 | AD44: 271 | AE44: 0 | AF44: 271 | AG44: 271 | AH44: 0 | AI44: 271 | AJ44: 174 | AK44: 0 | AL44: 174 | AM44: 0 | AN44: 0 | AO44: 0 | AP44: 2200 | AQ44: 0 | AR44: 2200 | AS44: 0
A45: 10 | B45: LINARES SANCHEZ, LIYANCI | C45: 45433072 | D45: ='PRESTAMOS OTORGADOS'!V25 -> 2750 | E45: 0 | F45: 250 | G45: 0 | H45: 250 | I45: 250 | J45: 0 | K45: 250 | L45: 250 | M45: 0 | N45: 250 | O45: 250 | P45: 0 | Q45: 250 | R45: 250 | S45: 0 | T45: 250 | U45: 250 | V45: 0 | W45: 250 | X45: 250 | Y45: 0 | Z45: 250 | AA45: 250 | AB45: 0 | AC45: 250 | AD45: 250 | AE45: 0 | AF45: 250 | AG45: 250 | AH45: 0 | AI45: 250 | AJ45: 250 | AK45: 0 | AL45: 250 | AM45: 0 | AN45: 0 | AO45: 0 | AP45: 2750 | AQ45: 0 | AR45: 2750 | AS45: 0
A46: 11 | B46: MARINA QUINTANA, JHINS JAKSSON | C46: 45546499 | D46: ='PRESTAMOS OTORGADOS'!V27 -> 4400 | E46: 508.34 | F46: 300 | G46: 0 | H46: 300 | I46: 300 | J46: 0 | K46: 300 | L46: 423 | M46: 0 | N46: 423 | O46: 300 | P46: 0 | Q46: 300 | R46: 300 | S46: 0 | T46: 300 | U46: 300 | V46: 0 | W46: 300 | X46: 400.95 | Y46: 0 | Z46: 400.95 | AA46: 300 | AB46: 0 | AC46: 300 | AD46: 400 | AE46: 0 | AF46: 400 | AG46: =17.71+400 -> 417.71 | AH46: 0 | AI46: 417.71 | AJ46: 450 | AK46: 0 | AL46: 450 | AM46: 0 | AN46: 0 | AO46: 0 | AP46: 3891.66 | AQ46: 0 | AR46: 3891.66 | AS46: 508.34
A47: 12 | B47: MARTINEZ BENAVIDES, RODRIGO | C47: 72461720 | D47: ='PRESTAMOS OTORGADOS'!V28 -> 2200 | E47: -200 | F47: 200 | G47: 0 | H47: 200 | I47: 200 | J47: 0 | K47: 200 | L47: =1800+200 -> 2000 | M47: 0 | N47: 2000 | O47: 0 | P47: 0 | Q47: 0 | R47: 0 | S47: 0 | T47: 0 | U47: 0 | V47: 0 | W47: 0 | X47: 0 | Y47: 0 | Z47: 0 | AA47: 0 | AB47: 0 | AC47: 0 | AD47: 0 | AE47: 0 | AF47: 0 | AG47: 0 | AH47: 0 | AI47: 0 | AJ47: 0 | AK47: 0 | AL47: 0 | AM47: 0 | AN47: 0 | AO47: 0 | AP47: 2400 | AQ47: 0 | AR47: 2400 | AS47: -200
A48: 13 | B48: MENDOZA BOCANEGRA, ROYLER | C48: 45349774 | D48: ='PRESTAMOS OTORGADOS'!V29 -> 3520 | E48: 0 | F48: 0 | G48: 0 | H48: 0 | I48: 352 | J48: 0 | K48: 352 | L48: 352 | M48: 0 | N48: 352 | O48: 352 | P48: 0 | Q48: 352 | R48: 352 | S48: 0 | T48: 352 | U48: 352 | V48: 0 | W48: 352 | X48: 352 | Y48: 0 | Z48: 352 | AA48: 352 | AB48: 0 | AC48: 352 | AD48: 352 | AE48: 0 | AF48: 352 | AG48: 352 | AH48: 0 | AI48: 352 | AJ48: 352 | AK48: 0 | AL48: 352 | AM48: 0 | AN48: 0 | AO48: 0 | AP48: 3520 | AQ48: 0 | AR48: 3520 | AS48: 0
A49: 14 | B49: MEJIA BABILONIA, SUSAN | C49: 41697516 | D49: ='PRESTAMOS OTORGADOS'!V55 -> 550 | E49: 0 | F49: 0 | G49: 0 | H49: =F49+G49 -> 0 | I49: 0 | J49: 0 | K49: =I49+J49 -> 0 | L49: 0 | M49: 0 | N49: =L49+M49 -> 0 | O49: 0 | P49: 0 | Q49: =O49+P49 -> 0 | R49: 0 | S49: 0 | T49: =R49+S49 -> 0 | U49: 0 | V49: 0 | W49: =U49+V49 -> 0 | X49: 0 | Y49: 0 | Z49: =X49+Y49 -> 0 | AA49: 0 | AB49: 0 | AC49: =AA49+AB49 -> 0 | AD49: 0 | AE49: 0 | AF49: =AD49+AE49 -> 0 | AG49: 275 | AH49: 0 | AI49: =AG49+AH49 -> 275 | AJ49: =100+175 -> 275 | AK49: 0 | AL49: =AJ49+AK49 -> 275 | AM49: 0 | AN49: 0 | AO49: =AM49+AN49 -> 0 | AP49: =SUM(F49,I49,L49,O49,R49,U49,X49,AA49,AD49,AG49,AJ49,AM49) -> 550 | AQ49: =SUM(G49,J49,M49,P49,S49,V49,Y49,AB49,AE49,AH49,AK49,AT49,AN49) -> 0 | AR49: =SUM(H49,K49,N49,Q49,T49,W49,Z49,AC49,AF49,AI49,AL49,AO49) -> 550 | AS49: =D49-AR49 -> 0
A50: 15 | B50: PICHI ROBALINO, MARLLORI | C50: 40709980 | D50: ='PRESTAMOS OTORGADOS'!V34 -> 2200 | E50: 0 | F50: 0 | G50: 0 | H50: 0 | I50: 220 | J50: 0 | K50: 220 | L50: 220 | M50: 0 | N50: 220 | O50: 220 | P50: 0 | Q50: 220 | R50: 220 | S50: 0 | T50: 220 | U50: 220 | V50: 0 | W50: 220 | X50: 220 | Y50: 0 | Z50: =X50+Y50 -> 220 | AA50: 220 | AB50: 0 | AC50: =AA50+AB50 -> 220 | AD50: 220 | AE50: 0 | AF50: =AD50+AE50 -> 220 | AG50: 220 | AH50: 0 | AI50: =AG50+AH50 -> 220 | AJ50: 220 | AK50: 0 | AL50: =AJ50+AK50 -> 220 | AM50: 0 | AN50: 0 | AO50: =AM50+AN50 -> 0 | AP50: =SUM(F50,I50,L50,O50,R50,U50,X50,AA50,AD50,AG50,AJ50,AM50) -> 2200 | AQ50: =SUM(G50,J50,M50,P50,S50,V50,Y50,AB50,AE50,AH50,AK50,AT50,AN50) -> 0 | AR50: =SUM(H50,K50,N50,Q50,T50,W50,Z50,AC50,AF50,AI50,AL50,AO50) -> 2200 | AS50: 0
A51: 16 | B51: PINEDO BENZAQUEN. MARLY | C51: 43186542 | D51: ='PRESTAMOS OTORGADOS'!V35 -> 1100 | E51: 0 | F51: 0 | G51: 0 | H51: 0 | I51: 0 | J51: 0 | K51: 0 | L51: 0 | M51: 0 | N51: 0 | O51: 137.5 | P51: 0 | Q51: 137.5 | R51: 137.5 | S51: 0 | T51: 137.5 | U51: 137.5 | V51: 0 | W51: 137.5 | X51: 137.5 | Y51: 0 | Z51: 137.5 | AA51: 137.5 | AB51: 0 | AC51: 137.5 | AD51: 137.5 | AE51: 0 | AF51: 137.5 | AG51: 137.5 | AH51: 0 | AI51: 137.5 | AJ51: 137.5 | AK51: 0 | AL51: 137.5 | AM51: 0 | AN51: 0 | AO51: 0 | AP51: 1100 | AQ51: 0 | AR51: 1100 | AS51: 0
A52: 17 | B52: PISCO CACHIQUE, LENNIN | C52: 70814205 | D52: ='PRESTAMOS OTORGADOS'!V36 -> 660 | E52: 0 | F52: 0 | G52: 0 | H52: 0 | I52: 0 | J52: 0 | K52: 0 | L52: 0 | M52: 0 | N52: 0 | O52: 220 | P52: 0 | Q52: 220 | R52: 220 | S52: 0 | T52: 220 | U52: 220 | V52: 0 | W52: 220 | X52: 0 | Y52: 0 | Z52: 0 | AA52: 0 | AB52: 0 | AC52: 0 | AD52: 0 | AE52: 0 | AF52: 0 | AG52: 0 | AH52: 0 | AI52: 0 | AJ52: 0 | AK52: 0 | AL52: 0 | AM52: 0 | AN52: 0 | AO52: 0 | AP52: 660 | AQ52: 0 | AR52: 660 | AS52: 0
A53: 18 | B53: QUIJANDRIA ARTEAGA, PEDRO JONATHAN | C53: 42553620 | D53: ='PRESTAMOS OTORGADOS'!V37 -> 3300 | E53: 0 | F53: 300 | G53: 0 | H53: 300 | I53: 300 | J53: 0 | K53: 300 | L53: 300 | M53: 0 | N53: 300 | O53: 300 | P53: 0 | Q53: 300 | R53: 300 | S53: 0 | T53: 300 | U53: 300 | V53: 0 | W53: 300 | X53: 300 | Y53: 0 | Z53: 300 | AA53: 300 | AB53: 0 | AC53: 300 | AD53: 300 | AE53: 0 | AF53: 300 | AG53: 300 | AH53: 0 | AI53: 300 | AJ53: 300 | AK53: 0 | AL53: 300 | AM53: 0 | AN53: 0 | AO53: 0 | AP53: 3300 | AQ53: 0 | AR53: 3300 | AS53: 0
A54: 19 | B54: ROJAS LINARES, LENIN | C54: 43244448 | D54: ='PRESTAMOS OTORGADOS'!V40 -> 1100 | E54: 0 | F54: 0 | G54: 0 | H54: 0 | I54: 0 | J54: 0 | K54: 0 | L54: 0 | M54: 0 | N54: 0 | O54: 138 | P54: 0 | Q54: 138 | R54: 138 | S54: 0 | T54: 138 | U54: 138 | V54: 0 | W54: 138 | X54: 138 | Y54: 0 | Z54: 138 | AA54: 138 | AB54: 0 | AC54: 138 | AD54: 138 | AE54: 0 | AF54: 138 | AG54: 138 | AH54: 0 | AI54: 138 | AJ54: 134 | AK54: 0 | AL54: 134 | AM54: 0 | AN54: 0 | AO54: 0 | AP54: 1100 | AQ54: 0 | AR54: 1100 | AS54: 0
A55: 20 | B55: RUIZ INUMA, KAREM PAOLA | C55: 46708679 | D55: ='PRESTAMOS OTORGADOS'!V42 -> 3300 | E55: 0 | F55: 0 | G55: 0 | H55: 0 | I55: 0 | J55: 0 | K55: 0 | L55: 0 | M55: 0 | N55: 0 | O55: 0 | P55: 0 | Q55: 0 | R55: 0 | S55: 0 | T55: 0 | U55: 550 | V55: 0 | W55: 550 | X55: 550 | Y55: 0 | Z55: 550 | AA55: 550 | AB55: 0 | AC55: 550 | AD55: 550 | AE55: 0 | AF55: 550 | AG55: 550 | AH55: 0 | AI55: 550 | AJ55: 550 | AK55: 0 | AL55: 550 | AM55: 0 | AN55: 0 | AO55: 0 | AP55: 3300 | AQ55: 0 | AR55: 3300 | AS55: 0
A56: 21 | B56: RUIZ PANDURO, KAREN LIZETTE | C56: 71241493 | D56: ='PRESTAMOS OTORGADOS'!V43 -> 1650 | E56: 0 | F56: 0 | G56: 0 | H56: 0 | I56: 0 | J56: 0 | K56: 0 | L56: 0 | M56: 0 | N56: 0 | O56: 206 | P56: 0 | Q56: 206 | R56: 206 | S56: 0 | T56: 206 | U56: 206 | V56: 0 | W56: 206 | X56: 206 | Y56: 0 | Z56: 206 | AA56: 206 | AB56: 0 | AC56: 206 | AD56: 206 | AE56: 0 | AF56: 206 | AG56: 206 | AH56: 0 | AI56: 206 | AJ56: 208 | AK56: 0 | AL56: 208 | AM56: 0 | AN56: 0 | AO56: 0 | AP56: 1650 | AQ56: 0 | AR56: 1650 | AS56: 0
A57: 22 | B57: RUIZ PEREZ, EMERSON | C57: 43338868 | D57: ='PRESTAMOS OTORGADOS'!V44 -> 2750 | E57: 0 | F57: 200 | G57: 0 | H57: 200 | I57: 200 | J57: 0 | K57: 200 | L57: 200 | M57: 0 | N57: 200 | O57: 200 | P57: 0 | Q57: 200 | R57: 279 | S57: 0 | T57: 279 | U57: 279 | V57: 0 | W57: 279 | X57: 279 | Y57: 0 | Z57: 279 | AA57: 279 | AB57: 0 | AC57: 279 | AD57: 279 | AE57: 0 | AF57: 279 | AG57: 279 | AH57: 0 | AI57: 279 | AJ57: 276 | AK57: 0 | AL57: 276 | AM57: 0 | AN57: 0 | AO57: 0 | AP57: 2750 | AQ57: 0 | AR57: 2750 | AS57: 0
A58: 23 | B58: SAYAVERDE ROSALES, ENLY LADWIN | C58: 44835307 | D58: ='PRESTAMOS OTORGADOS'!V45 -> 1100 | E58: 0 | F58: 0 | G58: 0 | H58: 0 | I58: 0 | J58: 0 | K58: 0 | L58: 0 | M58: 0 | N58: 0 | O58: 137.5 | P58: 0 | Q58: 137.5 | R58: 137.5 | S58: 0 | T58: 137.5 | U58: 137.5 | V58: 0 | W58: 137.5 | X58: 137.5 | Y58: 0 | Z58: 137.5 | AA58: 137.5 | AB58: 0 | AC58: 137.5 | AD58: 137.5 | AE58: 0 | AF58: 137.5 | AG58: 137.5 | AH58: 0 | AI58: 137.5 | AJ58: 137.5 | AK58: 0 | AL58: 137.5 | AM58: 0 | AN58: 0 | AO58: 0 | AP58: 1100 | AQ58: 0 | AR58: 1100 | AS58: 0
A59: 24 | B59: TEJADA BAOZ, MARGARITA | C59: 45675637 | E59: -77 | F59: 0 | G59: 0 | H59: 0 | I59: 77 | J59: 0 | K59: 77 | L59: 0 | M59: 0 | N59: 0 | O59: 0 | P59: 0 | Q59: 0 | R59: 0 | S59: 0 | T59: 0 | U59: 0 | V59: 0 | W59: 0 | X59: 0 | Y59: 0 | Z59: 0 | AA59: 0 | AB59: 0 | AC59: 0 | AD59: 0 | AE59: 0 | AF59: 0 | AG59: 0 | AH59: 0 | AI59: 0 | AJ59: 0 | AK59: 0 | AL59: 0 | AM59: 0 | AN59: 0 | AO59: 0 | AP59: 77 | AQ59: 0 | AR59: 77 | AS59: -77
A60: 25 | B60: VASQUEZ RODRIGUEZ, JORGE MIGUEL | C60: 43032207 | D60: ='PRESTAMOS OTORGADOS'!V50 -> 4950 | E60: 2200 | F60: 250 | G60: 0 | H60: 250 | I60: 250 | J60: 0 | K60: 250 | L60: 250 | M60: 0 | N60: 250 | O60: 250 | P60: 0 | Q60: 250 | R60: 250 | S60: 0 | T60: 250 | U60: 250 | V60: 0 | W60: 250 | X60: 250 | Y60: 0 | Z60: 250 | AA60: 250 | AB60: 0 | AC60: 250 | AD60: 250 | AE60: 0 | AF60: 250 | AG60: 250 | AH60: 0 | AI60: 250 | AJ60: 250 | AK60: 0 | AL60: 250 | AM60: 0 | AN60: 0 | AO60: 0 | AP60: 2750 | AQ60: 0 | AR60: 2750 | AS60: 2200
A61: 26 | B61: VELA CASILLA, MERLITH | C61: 831310 | D61: ='PRESTAMOS OTORGADOS'!V51 -> 770 | E61: 0 | F61: 0 | G61: 0 | H61: 0 | I61: 0 | J61: 0 | K61: 0 | L61: 0 | M61: 0 | N61: 0 | O61: 0 | P61: 0 | Q61: 0 | R61: 0 | S61: 0 | T61: 0 | U61: 129 | V61: 0 | W61: 129 | X61: 179 | Y61: 0 | Z61: 179 | AA61: 154 | AB61: 0 | AC61: 154 | AD61: 154 | AE61: 0 | AF61: 154 | AG61: 154 | AH61: 0 | AI61: 154 | AJ61: 0 | AK61: 0 | AL61: 0 | AM61: 0 | AN61: 0 | AO61: 0 | AP61: 770 | AQ61: 0 | AR61: 770 | AS61: 0
A62: 27 | B62: YNGA CASIQUE, GEOMAR ALEXANDER | C62: 821756 | D62: ='PRESTAMOS OTORGADOS'!V54 -> 2750 | E62: 0 | F62: 250 | G62: 0 | H62: 250 | I62: 250 | J62: 0 | K62: 250 | L62: 250 | M62: 0 | N62: 250 | O62: 250 | P62: 0 | Q62: 250 | R62: 250 | S62: 0 | T62: 250 | U62: 250 | V62: 0 | W62: 250 | X62: =198.63+51.37 -> 250 | Y62: 0 | Z62: 250 | AA62: 250 | AB62: 0 | AC62: 250 | AD62: 250 | AE62: 0 | AF62: 250 | AG62: 250 | AH62: 0 | AI62: 250 | AJ62: 250 | AK62: 0 | AL62: 250 | AM62: 0 | AN62: 0 | AO62: 0 | AP62: 2750 | AQ62: 0 | AR62: 2750 | AS62: 0
A63: TOTAL | D63: =SUM(D36:D62) -> 70675 | E63: 10470.34 | F63: 3863 | G63: 0 | H63: 3863 | I63: 4819.67 | J63: 0 | K63: 4819.67 | L63: 6704 | M63: 0 | N63: 6704 | O63: 5418 | P63: 0 | Q63: 5418 | R63: 5749 | S63: 0 | T63: 5749 | U63: 6593 | V63: 0 | W63: 6593 | X63: 5426.95 | Y63: 0 | Z63: 5426.95 | AA63: 5676 | AB63: 0 | AC63: 5676 | AD63: 5484 | AE63: 0 | AF63: 5484 | AG63: 5336.71 | AH63: 0 | AI63: 5336.71 | AJ63: 5134.33 | AK63: 0 | AL63: 5134.33 | AM63: 0 | AN63: 0 | AO63: 0 | AP63: 60204.66 | AQ63: 0 | AR63: 60204.66 | AS63: 10470.34
H64: 0
Z65: =2200+250 -> 2450 | AA65: =Z65/9 -> 272.2222222 | AB65: =Z65/10 -> 245

Sheet DEV CANASTA Y CUOTA
A1: DESCUENTO PRESTAMOS
A2: Nº | B2: APELLIDOS Y NOMBRES | D2: ENERO | H2: FEBRERO | L2: MARZO | P2: ABRIL | T2: MAYO | X2: JUNIO | AB2: JULIO | AF2: AGOSTO | AJ2: SEPTIEMBRE | AN2: OCTUBRE | AR2: NOVIEMBRE | AV2: DICIEMBRE | AZ2: TOTAL
C3: DNI | D3: CUOTA | E3: CANASTA | F3: OTROS | G3: TOTAL | H3: CUOTA | I3: CANASTA | J3: OTROS | K3: TOTAL | L3: CUOTA | M3: CANASTA | N3: OTROS | O3: TOTAL | P3: CUOTA | Q3: CANASTA | R3: OTROS | S3: TOTAL | T3: CUOTA | U3: CANASTA | V3: OTROS | W3: TOTAL | X3: CUOTA | Y3: CANASTA | Z3: OTROS | AA3: TOTAL | AB3: CUOTA | AC3: CANASTA | AD3: OTROS | AE3: TOTAL | AF3: CUOTA | AG3: CANASTA | AH3: OTROS | AI3: TOTAL | AJ3: CUOTA | AK3: CANASTA | AL3: OTROS | AM3: TOTAL | AN3: CUOTA | AO3: CANASTA | AP3: OTROS | AQ3: TOTAL | AR3: CUOTA | AS3: CANASTA | AT3: OTROS | AU3: TOTAL | AV3: CUOTA | AW3: CANASTA | AX3: OTROS | AY3: TOTAL | AZ3: CUOTA | BA3: CANASTA | BB3: OTROS | BC3: TOTAL | BD3: DEVOLUCION | BE3: SALDO | BF3: FECHA
A4: 1 | B4: ARIAS NORIEGA, CECILIA | C4: 804505 | D4: 10 | E4: 0 | F4: 0 | G4: =SUM(D4:F4) -> 10 | H4: 10 | I4: 0 | J4: 0 | K4: =SUM(H4:J4) -> 10 | L4: 10 | M4: 0 | N4: 0 | O4: =SUM(L4:N4) -> 10 | P4: 10 | Q4: 0 | R4: 0 | S4: =SUM(P4:R4) -> 10 | T4: 10 | U4: 0 | V4: 0 | W4: =SUM(T4:V4) -> 10 | X4: 10 | Y4: 0 | Z4: 0 | AA4: =SUM(X4:Z4) -> 10 | AB4: 10 | AC4: 0 | AD4: 0 | AE4: =SUM(AB4:AD4) -> 10 | AF4: 10 | AG4: 0 | AH4: 0 | AI4: =SUM(AF4:AH4) -> 10 | AJ4: 10 | AK4: 0 | AL4: 0 | AM4: =SUM(AJ4:AL4) -> 10 | AN4: 10 | AO4: 0 | AP4: 0 | AQ4: =SUM(AN4:AP4) -> 10 | AR4: 10 | AS4: 0 | AT4: 0 | AU4: =SUM(AR4:AT4) -> 10 | AV4: 10 | AW4: 0 | AX4: 0 | AY4: =SUM(AV4:AX4) -> 10 | AZ4: =SUM(D4,H4,L4,P4,T4,X4,AB4,AF4,AJ4,AN4,AR4,AV4) -> 120 | BA4: =SUM(E4,I4,M4,Q4,U4,Y4,AC4,AG4,AK4,AO4,AS4,AW4) -> 0 | BB4: =SUM(F4,J4,N4,R4,V4,Z4,AD4,AH4,AL4,AP4,AT4,AX4) -> 0 | BC4: =SUM(G4,K4,O4,S4,W4,AA4,AE4,AI4,AM4,AQ4,AU4,AY4) -> 120 | BD4: 120 | BE4: =BC4-BD4 -> 0 | BF4: 2024-12-17
A5: 2 | B5: BARDALEZ ALVA, ANITA MERCEDES | C5: 819657 | D5: 10 | E5: 0 | F5: 0 | G5: =SUM(D5:F5) -> 10 | H5: 10 | I5: 0 | J5: 0 | K5: =SUM(H5:J5) -> 10 | L5: 10 | M5: 0 | N5: 0 | O5: =SUM(L5:N5) -> 10 | P5: 10 | R5: 0 | S5: =SUM(P5:R5) -> 10 | T5: 10 | U5: 0 | V5: 0 | W5: =SUM(T5:V5) -> 10 | X5: 10 | Y5: 0 | Z5: 0 | AA5: =SUM(X5:Z5) -> 10 | AB5: 10 | AC5: 0 | AD5: 0 | AE5: =SUM(AB5:AD5) -> 10 | AF5: 10 | AG5: 0 | AH5: 0 | AI5: =SUM(AF5:AH5) -> 10 | AJ5: 10 | AK5: 0 | AL5: 0 | AM5: =SUM(AJ5:AL5) -> 10 | AN5: 10 | AO5: 0 | AP5: 0 | AQ5: =SUM(AN5:AP5) -> 10 | AR5: 10 | AS5: 0 | AT5: 0 | AU5: =SUM(AR5:AT5) -> 10 | AV5: 10 | AW5: 0 | AX5: 0 | AY5: =SUM(AV5:AX5) -> 10 | AZ5: =SUM(D5,H5,L5,P5,T5,X5,AB5,AF5,AJ5,AN5,AR5,AV5) -> 120 | BA5: =SUM(E5,I5,M5,Q5,U5,Y5,AC5,AG5,AK5,AO5,AS5,AW5) -> 0 | BB5: =SUM(F5,J5,N5,R5,V5,Z5,AD5,AH5,AL5,AP5,AT5,AX5) -> 0 | BC5: =SUM(G5,K5,O5,S5,W5,AA5,AE5,AI5,AM5,AQ5,AU5,AY5) -> 120 | BD5: 120 | BE5: =BC5-BD5 -> 0 | BF5: 2024-12-17
A6: 3 | B6: BAZAN VELA, SAMUEL | C6: 807060 | D6: 10 | E6: 100 | F6: 0 | G6: 110 | H6: 10 | I6: 100 | J6: 0 | K6: 110 | L6: 10 | M6: 100 | N6: 0 | O6: 110 | P6: 10 | Q6: 100 | R6: 0 | S6: 110 | T6: 10 | U6: 100 | V6: 0 | W6: 110 | X6: 10 | Y6: 100 | Z6: 0 | AA6: 110 | AB6: 10 | AC6: 100 | AD6: 0 | AE6: 110 | AF6: 10 | AG6: 100 | AH6: 0 | AI6: 110 | AJ6: 0 | AK6: 0 | AL6: 0 | AM6: 0 | AN6: 0 | AO6: 0 | AP6: 0 | AQ6: 0 | AR6: 0 | AS6: 0 | AT6: 0 | AU6: 0 | AV6: 0 | AW6: 0 | AX6: 0 | AY6: 0 | AZ6: 80 | BA6: 800 | BB6: 0 | BC6: 880 | BD6: 880 | BE6: 0 | BF6: 2024-09-03 | BG6: DEVUELTO A SU ESPOSA
A7: 4 | B7: CENTURION TAPIA, BEATRIZ | C7: 830793 | D7: 10 | E7: 0 | F7: 0 | G7: 10 | H7: 10 | I7: 0 | J7: 0 | K7: 10 | L7: 10 | M7: 0 | N7: 0 | O7: 10 | P7: 10 | Q7: 0 | R7: 0 | S7: 10 | T7: 10 | U7: 0 | V7: 0 | W7: 10 | X7: 10 | Y7: 0 | Z7: 0 | AA7: 10 | AB7: 10 | AC7: 0 | AD7: 0 | AE7: 10 | AF7: 10 | AG7: 0 | AH7: 0 | AI7: 10 | AJ7: 10 | AK7: 0 | AL7: 0 | AM7: 10 | AN7: 10 | AO7: 0 | AP7: 0 | AQ7: 10 | AR7: 10 | AS7: 0 | AT7: 0 | AU7: 10 | AV7: 0 | AW7: 0 | AX7: 0 | AY7: 0 | AZ7: 110 | BA7: 0 | BB7: 0 | BC7: 110 | BE7: 110
A8: 5 | B8: CHACON DEL AGUILA, GLADYS | C8: 1045926 | D8: 10 | E8: 0 | F8: 0 | G8: 10 | H8: 10 | I8: 0 | J8: 0 | K8: 10 | L8: 10 | M8: 0 | N8: 0 | O8: 10 | P8: 10 | Q8: 0 | R8: 0 | S8: 10 | T8: 10 | U8: 0 | V8: 0 | W8: 10 | X8: 10 | Y8: 0 | Z8: 0 | AA8: 10 | AB8: 10 | AC8: 0 | AD8: 0 | AE8: 10 | AF8: 10 | AG8: 0 | AH8: 0 | AI8: 10 | AJ8: 10 | AK8: 0 | AL8: 0 | AM8: 10 | AN8: 10 | AO8: 0 | AP8: 0 | AQ8: 10 | AR8: 10 | AS8: 0 | AT8: 0 | AU8: 10 | AV8: 10 | AW8: 0 | AX8: 0 | AY8: 10 | AZ8: 120 | BA8: 0 | BB8: 0 | BC8: 120 | BD8: 120 | BE8: 0 | BF8: 2024-12-17
A9: 6 | B9: CASIQUE BOCANEGRA, PAWEL | C9: 42118509 | D9: 0 | E9: 100 | F9: 0 | G9: =SUM(D9:F9) -> 100 | H9: 0 | I9: 100 | J9: 0 | K9: =SUM(H9:J9) -> 100 | L9: 0 | M9: 100 | N9: 0 | O9: =SUM(L9:N9) -> 100 | P9: 0 | Q9: 100 | R9: 0 | S9: =SUM(P9:R9) -> 100 | T9: 0 | U9: 100 | V9: 0 | W9: =SUM(T9:V9) -> 100 | X9: 0 | Y9: 100 | Z9: 0 | AA9: =SUM(X9:Z9) -> 100 | AB9: 0 | AC9: 100 | AD9: 0 | AE9: =SUM(AB9:AD9) -> 100 | AF9: 0 | AG9: 100 | AH9: 0 | AI9: =SUM(AF9:AH9) -> 100 | AJ9: 0 | AK9: 100 | AL9: 0 | AM9: =SUM(AJ9:AL9) -> 100 | AN9: 0 | AO9: 100 | AP9: 0 | AQ9: =SUM(AN9:AP9) -> 100 | AR9: 0 | AS9: 100 | AT9: 0 | AU9: =SUM(AR9:AT9) -> 100 | AV9: 0 | AW9: 100 | AX9: 0 | AY9: =SUM(AV9:AX9) -> 100 | AZ9: =SUM(D9,H9,L9,P9,T9,X9,AB9,AF9,AJ9,AN9,AR9,AV9) -> 0 | BA9: =SUM(E9,I9,M9,Q9,U9,Y9,AC9,AG9,AK9,AO9,AS9,AW9) -> 1200 | BB9: =SUM(F9,J9,N9,R9,V9,Z9,AD9,AH9,AL9,AP9,AT9,AX9) -> 0 | BC9: =SUM(G9,K9,O9,S9,W9,AA9,AE9,AI9,AM9,AQ9,AU9,AY9) -> 1200 | BD9: 1200 | BE9: =BC9-BD9 -> 0 | BF9: 2024-12-17
A10: 7 | B10: CORDOVA CAMPOS, CLARA | C10: 860881 | D10: 10 | E10: 0 | F10: 0 | G10: 10 | H10: 0 | I10: 0 | J10: 0 | K10: 0 | L10: 20 | M10: 0 | N10: 0 | O10: 20 | P10: 10 | Q10: 0 | R10: 0 | S10: 10 | T10: 10 | U10: 0 | V10: 0 | W10: 10 | X10: 10 | Y10: 0 | Z10: 0 | AA10: 10 | AB10: 10 | AC10: 0 | AD10: 0 | AE10: 10 | AF10: 10 | AG10: 0 | AH10: 0 | AI10: 10 | AJ10: 0 | AK10: 0 | AL10: 0 | AM10: 0 | AN10: 10 | AO10: 0 | AP10: 0 | AQ10: 10 | AR10: 10 | AS10: 0 | AT10: 0 | AU10: 10 | AV10: 0 | AW10: 0 | AX10: 0 | AY10: 0 | AZ10: 100 | BA10: 0 | BB10: 0 | BC10: 100 | BE10: 100
A11: 8 | B11: CORONEL BARDALES, MIKE | C11: 43143883 | D11: 10 | E11: 100 | F11: 0 | G11: 110 | H11: 10 | I11: 100 | J11: 0 | K11: 110 | L11: 10 | M11: 100 | N11: 0 | O11: 110 | P11: 10 | Q11: 100 | R11: 0 | S11: 110 | T11: 10 | U11: 100 | V11: 0 | W11: 110 | X11: 10 | Y11: 100 | Z11: 0 | AA11: 110 | AB11: 10 | AC11: 100 | AD11: 0 | AE11: 110 | AF11: 10 | AG11: 100 | AH11: 0 | AI11: 110 | AJ11: 10 | AK11: 100 | AL11: 0 | AM11: 110 | AN11: 10 | AO11: 100 | AP11: 0 | AQ11: 110 | AR11: 10 | AS11: 100 | AT11: 0 | AU11: 110 | AV11: 0 | AW11: 0 | AX11: 0 | AY11: 0 | AZ11: 110 | BA11: 1100 | BB11: 0 | BC11: 1210 | BE11: 1210
A12: 9 | B12: CORONEL BARDALES, TANIA | C12: 44405357 | D12: 10 | E12: 200 | F12: 0 | G12: 210 | H12: 10 | I12: 200 | J12: 0 | K12: 210 | L12: 10 | M12: 200 | N12: 0 | O12: 210 | P12: 10 | Q12: 200 | R12: 0 | S12: 210 | T12: 10 | U12: 200 | V12: 0 | W12: 210 | X12: 10 | Y12: 200 | Z12: 0 | AA12: 210 | AB12: 10 | AC12: 200 | AD12: 0 | AE12: 210 | AF12: 10 | AG12: 200 | AH12: 0 | AI12: 210 | AJ12: 10 | AK12: 200 | AL12: 0 | AM12: 210 | AN12: 10 | AO12: 200 | AP12: 0 | AQ12: 210 | AR12: 10 | AS12: 200 | AT12: 0 | AU12: 210 | AV12: 0 | AW12: 0 | AX12: 0 | AY12: 0 | AZ12: 110 | BA12: 2200 | BB12: 0 | BC12: 2310 | BE12: 2310
A13: 10 | B13: COLLAZOS SANTILLAN, ELVIA OLINDA | C13: 834319 | D13: 0 | E13: 0 | F13: 0 | G13: =SUM(D13:F13) -> 0 | H13: 0 | I13: 0 | J13: 0 | K13: =SUM(H13:J13) -> 0 | L13: 0 | M13: 220 | N13: 0 | O13: =SUM(L13:N13) -> 220 | P13: 0 | Q13: 110 | R13: 0 | S13: =SUM(P13:R13) -> 110 | T13: 0 | U13: 110 | V13: 0 | W13: =SUM(T13:V13) -> 110 | X13: 0 | Y13: 110 | Z13: 0 | AA13: =SUM(X13:Z13) -> 110 | AB13: 0 | AC13: 110 | AD13: 0 | AE13: =SUM(AB13:AD13) -> 110 | AF13: 0 | AG13: 110 | AH13: 0 | AI13: =SUM(AF13:AH13) -> 110 | AJ13: 0 | AK13: 110 | AL13: 0 | AM13: =SUM(AJ13:AL13) -> 110 | AN13: 0 | AO13: 0 | AP13: 0 | AQ13: =SUM(AN13:AP13) -> 0 | AR13: 0 | AS13: 0 | AT13: 0 | AU13: =SUM(AR13:AT13) -> 0 | AV13: 0 | AW13: 0 | AX13: 0 | AY13: =SUM(AV13:AX13) -> 0 | AZ13: =SUM(D13,H13,L13,P13,T13,X13,AB13,AF13,AJ13,AN13,AR13,AV13) -> 0 | BA13: =SUM(E13,I13,M13,Q13,U13,Y13,AC13,AG13,AK13,AO13,AS13,AW13) -> 880 | BB13: =SUM(F13,J13,N13,R13,V13,Z13,AD13,AH13,AL13,AP13,AT13,AX13) -> 0 | BC13: =SUM(G13,K13,O13,S13,W13,AA13,AE13,AI13,AM13,AQ13,AU13,AY13) -> 880 | BE13: =BC13-BD13 -> 880
A14: 11 | B14: DAVILA RENGIFO, DALILA | C14: 16733999 | D14: 10 | E14: 40 | F14: 0 | G14: 50 | H14: 10 | I14: 40 | J14: 0 | K14: 50 | L14: 10 | M14: 40 | N14: 0 | O14: 50 | P14: 10 | Q14: 40 | R14: 0 | S14: 50 | T14: 10 | U14: 40 | V14: 0 | W14: 50 | X14: 10 | Y14: 40 | Z14: 0 | AA14: 50 | AB14: 10 | AC14: 40 | AD14: 0 | AE14: 50 | AF14: 10 | AG14: 40 | AH14: 0 | AI14: 50 | AJ14: 10 | AK14: 40 | AL14: 0 | AM14: 50 | AN14: 10 | AO14: 40 | AP14: 0 | AQ14: 50 | AR14: 10 | AS14: 40 | AT14: 0 | AU14: 50 | AV14: 0 | AW14: 0 | AX14: 0 | AY14: 0 | AZ14: 110 | BA14: 440 | BB14: 0 | BC14: 550 | BE14: 550
A15: 12 | B15: DEL CASTILLO GARCIA, JIMMY GERSON | C15: 42245490 | D15: 10 | E15: 100 | F15: 0 | G15: 110 | H15: 10 | I15: 100 | J15: 0 | K15: 110 | L15: 10 | M15: 100 | N15: 0 | O15: 110 | P15: 10 | Q15: 100 | R15: 0 | S15: 110 | T15: 10 | U15: 100 | V15: 0 | W15: 110 | X15: 10 | Y15: 100 | Z15: 0 | AA15: 110 | AB15: 10 | AC15: 100 | AD15: 0 | AE15: 110 | AF15: 10 | AG15: 100 | AH15: 0 | AI15: 110 | AJ15: 10 | AK15: 100 | AL15: 0 | AM15: 110 | AN15: 10 | AO15: 100 | AP15: 0 | AQ15: 110 | AR15: 10 | AS15: 100 | AT15: 0 | AU15: 110 | AV15: 10 | AW15: 100 | AX15: 0 | AY15: 110 | AZ15: 120 | BA15: 1200 | BB15: 0 | BC15: 1320 | BE15: 1320
A16: 13 | B16: DIAZ BUSTAMANTE, WILSON | C16: 43238538 | D16: 10 | E16: 100 | F16: 0 | G16: 110 | H16: 10 | I16: 100 | J16: 0 | K16: 110 | L16: 10 | M16: 100 | N16: 0 | O16: 110 | P16: 10 | Q16: 100 | R16: 0 | S16: 110 | T16: 10 | U16: 100 | V16: 0 | W16: 110 | X16: 10 | Y16: 100 | Z16: 0 | AA16: 110 | AB16: 10 | AC16: 100 | AD16: 0 | AE16: 110 | AF16: 10 | AG16: 100 | AH16: 0 | AI16: 110 | AJ16: 10 | AK16: 100 | AL16: 0 | AM16: 110 | AN16: 10 | AO16: 100 | AP16: 0 | AQ16: 110 | AR16: 10 | AS16: 100 | AT16: 0 | AU16: 110 | AV16: 10 | AW16: 100 | AX16: 0 | AY16: 110 | AZ16: 120 | BA16: 1200 | BB16: 0 | BC16: 1320 | BD16: 1320 | BE16: 0 | BF16: 2024-12-17
A17: 14 | B17: DIAZ DIAZ, CLIDER | C17: 40536257 | D17: 10 | E17: 0 | F17: 0 | G17: 10 | H17: 10 | I17: 0 | J17: 0 | K17: 10 | L17: 10 | M17: 0 | N17: 0 | O17: 10 | P17: 10 | Q17: 0 | R17: 0 | S17: 10 | T17: 10 | U17: 0 | V17: 0 | W17: 10 | X17: 10 | Y17: 0 | Z17: 0 | AA17: 10 | AB17: 10 | AC17: 0 | AD17: 0 | AE17: 10 | AF17: 10 | AG17: 0 | AH17: 0 | AI17: 10 | AJ17: 10 | AK17: 0 | AL17: 0 | AM17: 10 | AN17: 10 | AO17: 0 | AP17: 0 | AQ17: 10 | AR17: 10 | AS17: 0 | AT17: 0 | AU17: 10 | AV17: 0 | AW17: 0 | AX17: 0 | AY17: 0 | AZ17: 110 | BA17: 0 | BB17: 0 | BC17: 110 | BE17: 110
A18: 15 | B18: FARRIS ARCENTALES, CARLOS ALBERTO | C18: 860936 | D18: 10 | E18: 20 | F18: 0 | G18: 30 | H18: 10 | I18: 20 | J18: 0 | K18: 30 | L18: 10 | M18: 20 | N18: 0 | O18: 30 | P18: 10 | Q18: 20 | R18: 0 | S18: 30 | T18: 10 | U18: 20 | V18: 0 | W18: 30 | X18: 10 | Y18: 20 | Z18: 0 | AA18: 30 | AB18: 10 | AC18: 20 | AD18: 0 | AE18: 30 | AF18: 10 | AG18: 20 | AH18: 0 | AI18: 30 | AJ18: 10 | AK18: 20 | AL18: 0 | AM18: 30 | AN18: 10 | AO18: 20 | AP18: 0 | AQ18: 30 | AR18: 10 | AS18: 20 | AT18: 0 | AU18: 30 | AV18: 0 | AW18: 0 | AX18: 0 | AY18: 0 | AZ18: 110 | BA18: 220 | BB18: 0 | BC18: 330 | BE18: 330
A19: 16 | B19: FERNANDEZ CHAVEZ, JUAN MANUEL | C19: 860048 | D19: 10 | E19: 40 | F19: 0 | G19: 50 | H19: 10 | I19: 40 | J19: 0 | K19: 50 | L19: 10 | M19: 40 | N19: 0 | O19: 50 | P19: 10 | Q19: 40 | R19: 0 | S19: 50 | T19: 10 | U19: 40 | V19: 0 | W19: 50 | X19: 10 | Y19: 40 | Z19: 0 | AA19: 50 | AB19: 10 | AC19: 40 | AD19: 0 | AE19: 50 | AF19: 10 | AG19: 40 | AH19: 0 | AI19: 50 | AJ19: 10 | AK19: 40 | AL19: 0 | AM19: 50 | AN19: 10 | AO19: 40 | AP19: 0 | AQ19: 50 | AR19: 10 | AS19: 40 | AT19: 0 | AU19: 50 | AV19: 0 | AW19: 0 | AX19: 0 | AY19: 0 | AZ19: 110 | BA19: 440 | BB19: 0 | BC19: 550 | BE19: 550
A20: 17 | B20: GONZALES SIMARRA, JHON HENRY | C20: 42179278 | D20: 0 | E20: 0 | F20: 0 | G20: 0 | H20: 13.08 | I20: 0 | J20: 0 | K20: 13.08 | L20: 13.55 | M20: 0 | N20: 0 | O20: 13.55 | P20: 13.55 | Q20: 0 | R20: 0 | S20: 13.55 | T20: 13.55 | U20: 0 | V20: 0 | W20: 13.55 | X20: 11.74 | Y20: 0 | Z20: 0 | AA20: 11.74 | AB20: 0 | AC20: 0 | AD20: 0 | AE20: 0 | AF20: 7.43 | AG20: 0 | AH20: 0 | AI20: 7.43 | AJ20: 0 | AK20: 0 | AL20: 0 | AM20: 0 | AN20: 0 | AO20: 0 | AP20: 0 | AQ20: 0 | AR20: 11.3 | AS20: 0 | AT20: 0 | AU20: 11.3 | AV20: 0 | AW20: 0 | AX20: 0 | AY20: 0 | AZ20: 84.2 | BA20: 0 | BB20: 0 | BC20: 84.2 | BE20: 84.2
A21: 18 | B21: GONZALES TORRES, DALILA | C21: 832485 | D21: 10 | E21: 0 | F21: 0 | G21: 10 | H21: 10 | I21: 0 | J21: 0 | K21: 10 | L21: 10 | M21: 0 | N21: 0 | O21: 10 | P21: 10 | Q21: 0 | R21: 0 | S21: 10 | T21: 10 | U21: 0 | V21: 0 | W21: 10 | X21: 10 | Y21: 0 | Z21: 0 | AA21: 10 | AB21: 10 | AC21: 0 | AD21: 0 | AE21: 10 | AF21: 10 | AG21: 0 | AH21: 0 | AI21: 10 | AJ21: 10 | AK21: 0 | AL21: 0 | AM21: 10 | AN21: 10 | AO21: 0 | AP21: 0 | AQ21: 10 | AR21: 10 | AS21: 0 | AT21: 0 | AU21: 10 | AV21: 0 | AW21: 0 | AX21: 0 | AY21: 0 | AZ21: 110 | BA21: 0 | BB21: 0 | BC21: 110 | BE21: 110
A22: 19 | B22: GUERRERO GARCIA, TEOBALDO | C22: 831944 | D22: 0 | E22: 0 | F22: 0 | G22: 0 | H22: 20 | I22: 0 | J22: 0 | K22: 20 | L22: 20 | M22: 0 | N22: 0 | O22: 20 | P22: 10 | Q22: 0 | R22: 0 | S22: 10 | T22: 10 | U22: 0 | V22: 0 | W22: 10 | X22: 10 | Y22: 0 | Z22: 0 | AA22: 10 | AB22: 10 | AC22: 0 | AD22: 0 | AE22: 10 | AF22: 10 | AG22: 0 | AH22: 0 | AI22: 10 | AJ22: 10 | AK22: 0 | AL22: 0 | AM22: 10 | AN22: 10 | AO22: 0 | AP22: 0 | AQ22: 10 | AR22: 10 | AS22: 0 | AT22: 0 | AU22: 10 | AV22: 10 | AW22: 0 | AX22: 0 | AY22: 10 | AZ22: 130 | BA22: 0 | BB22: 0 | BC22: 130 | BD22: 130 | BE22: 0 | BF22: 2024-12-17
A23: 20 | B23: GONZALES TORRES, JANE | C23: 45824659 | D23: 0 | E23: 150 | F23: 0 | G23: =SUM(D23:F23) -> 150 | H23: 0 | I23: 150 | J23: 0 | K23: =SUM(H23:J23) -> 150 | L23: 0 | M23: 150 | N23: 0 | O23: =SUM(L23:N23) -> 150 | P23: 0 | Q23: 150 | R23: 0 | S23: =SUM(P23:R23) -> 150 | T23: 0 | U23: 150 | V23: 0 | W23: =SUM(T23:V23) -> 150 | X23: 0 | Y23: 150 | Z23: 0 | AA23: =SUM(X23:Z23) -> 150 | AB23: 0 | AC23: 150 | AD23: 0 | AE23: =SUM(AB23:AD23) -> 150 | AF23: 0 | AG23: 150 | AH23: 0 | AI23: =SUM(AF23:AH23) -> 150 | AJ23: 0 | AK23: 150 | AL23: 0 | AM23: =SUM(AJ23:AL23) -> 150 | AN23: 0 | AO23: 150 | AP23: 0 | AQ23: =SUM(AN23:AP23) -> 150 | AR23: 0 | AS23: 150 | AT23: 0 | AU23: =SUM(AR23:AT23) -> 150 | AV23: 0 | AW23: 150 | AX23: 0 | AY23: =SUM(AV23:AX23) -> 150 | AZ23: =SUM(D23,H23,L23,P23,T23,X23,AB23,AF23,AJ23,AN23,AR23,AV23) -> 0 | BA23: 1800 | BB23: 0 | BC23: 1800 | BD23: 1800 | BE23: =BC23-BD23 -> 0 | BF23: 2024-12-17
A24: 21 | B24: GUEVARA MONTENEGRO, LEYDI ENITH | C24: 48710214 | D24: 0 | E24: 200 | F24: 0 | G24: =SUM(D24:F24) -> 200 | H24: 0 | I24: 200 | J24: 0 | K24: =SUM(H24:J24) -> 200 | L24: 0 | M24: 200 | N24: 0 | O24: =SUM(L24:N24) -> 200 | P24: 0 | Q24: 200 | R24: 0 | S24: =SUM(P24:R24) -> 200 | T24: 0 | U24: 200 | V24: 0 | W24: =SUM(T24:V24) -> 200 | X24: 0 | Y24: 200 | Z24: 0 | AA24: =SUM(X24:Z24) -> 200 | AB24: 0 | AC24: 200 | AD24: 0 | AE24: =SUM(AB24:AD24) -> 200 | AF24: 0 | AG24: 200 | AH24: 0 | AI24: =SUM(AF24:AH24) -> 200 | AJ24: 0 | AK24: 200 | AL24: 0 | AM24: =SUM(AJ24:AL24) -> 200 | AN24: 0 | AO24: 0 | AP24: 0 | AQ24: =SUM(AN24:AP24) -> 0 | AR24: 0 | AS24: 0 | AT24: 0 | AU24: =SUM(AR24:AT24) -> 0 | AV24: 0 | AW24: 0 | AX24: 0 | AY24: =SUM(AV24:AX24) -> 0 | AZ24: 0 | BA24: 1800 | BB24: 0 | BC24: 1800 | BD24: 1600 | BE24: =BC24-BD24 -> 200 | BF24: 2024-09-09
A25: 22 | B25: HUAMAN RODRIGUEZ, PRESILA | C25: 41519956 | D25: 10 | E25: 0 | F25: 0 | G25: 10 | H25: 10 | I25: 0 | J25: 0 | K25: 10 | L25: 10 | M25: 0 | N25: 0 | O25: 10 | P25: 10 | Q25: 0 | R25: 0 | S25: 10 | T25: 10 | U25: 0 | V25: 0 | W25: 10 | X25: 10 | Y25: 0 | Z25: 0 | AA25: 10 | AB25: 10 | AC25: 0 | AD25: 0 | AE25: 10 | AF25: 10 | AG25: 0 | AH25: 0 | AI25: 10 | AJ25: 10 | AK25: 0 | AL25: 0 | AM25: 10 | AN25: 10 | AO25: 0 | AP25: 0 | AQ25: 10 | AR25: 10 | AS25: 0 | AT25: 0 | AU25: 10 | AV25: 10 | AW25: 0 | AX25: 0 | AY25: 10 | AZ25: 120 | BA25: 0 | BB25: 0 | BC25: 120 | BD25: 120 | BE25: 0 | BF25: 2024-12-17
A26: 23 | B26: JIMENEZ, PADILLA, IVETH | C26: 46916242 | D26: 10 | E26: 150 | F26: 0 | G26: 160 | H26: 10 | I26: 150 | J26: 0 | K26: 160 | L26: 10 | M26: 150 | N26: 0 | O26: 160 | P26: 10 | Q26: 150 | R26: 0 | S26: 160 | T26: 10 | U26: 150 | V26: 0 | W26: 160 | X26: 10 | Y26: 150 | Z26: 0 | AA26: 160 | AB26: 10 | AC26: 150 | AD26: 0 | AE26: 160 | AF26: 10 | AG26: 150 | AH26: 0 | AI26: 160 | AJ26: 10 | AK26: 150 | AL26: 0 | AM26: 160 | AN26: 10 | AO26: 150 | AP26: 0 | AQ26: 160 | AR26: 10 | AS26: 150 | AT26: 0 | AU26: 160 | AV26: 10 | AW26: 150 | AX26: 0 | AY26: 160 | AZ26: 120 | BA26: 1800 | BB26: 0 | BC26: 1920 | BD26: =1200+720 -> 1920 | BE26: 0 | BF26: 2024-12-17 | BG26: 2024-09-17
A27: 24 | B27: LLAJA DIAZ, ALPINO | C27: 803522 | D27: 10 | E27: 0 | F27: 0 | G27: 10 | H27: 10 | I27: 0 | J27: 0 | K27: 10 | L27: 10 | M27: 0 | N27: 0 | O27: 10 | P27: 10 | Q27: 0 | R27: 0 | S27: 10 | T27: 10 | U27: 0 | V27: 0 | W27: 10 | X27: 10 | Y27: 0 | Z27: 0 | AA27: 10 | AB27: 10 | AC27: 0 | AD27: 0 | AE27: 10 | AF27: 10 | AG27: 0 | AH27: 0 | AI27: 10 | AJ27: 10 | AK27: 0 | AL27: 0 | AM27: 10 | AN27: 10 | AO27: 0 | AP27: 0 | AQ27: 10 | AR27: 10 | AS27: 0 | AT27: 0 | AU27: 10 | AV27: 0 | AW27: 0 | AX27: 0 | AY27: 0 | AZ27: 110 | BA27: 0 | BB27: 0 | BC27: 110 | BE27: 110
A28: 25 | B28: LLAJA DIAZ, SEGUNDO MIGUEL | C28: 801714 | D28: 10 | E28: 0 | F28: 0 | G28: 10 | H28: 10 | I28: 0 | J28: 0 | K28: 10 | L28: 10 | M28: 0 | N28: 0 | O28: 10 | P28: 10 | Q28: 0 | R28: 0 | S28: 10 | T28: 10 | U28: 0 | V28: 0 | W28: 10 | X28: 10 | Y28: 0 | Z28: 0 | AA28: 10 | AB28: 10 | AC28: 0 | AD28: 0 | AE28: 10 | AF28: 10 | AG28: 0 | AH28: 0 | AI28: 10 | AJ28: 10 | AK28: 0 | AL28: 0 | AM28: 10 | AN28: 10 | AO28: 0 | AP28: 0 | AQ28: 10 | AR28: 10 | AS28: 0 | AT28: 0 | AU28: 10 | AV28: 0 | AW28: 0 | AX28: 0 | AY28: 0 | AZ28: 110 | BA28: 0 | BB28: 0 | BC28: 110 | BE28: 110
A29: 26 | B29: LOPEZ MIRANO, EDITH | C29: 811938 | D29: 10 | E29: 50 | F29: 0 | G29: 60 | H29: 10 | I29: 50 | J29: 0 | K29: 60 | L29: 10 | M29: 50 | N29: 0 | O29: 60 | P29: 10 | Q29: 50 | R29: 0 | S29: 60 | T29: 10 | U29: 50 | V29: 0 | W29: 60 | X29: 10 | Y29: 50 | Z29: 0 | AA29: 60 | AB29: 10 | AC29: 50 | AD29: 0 | AE29: 60 | AF29: 10 | AG29: 50 | AH29: 0 | AI29: 60 | AJ29: 10 | AK29: 50 | AL29: 0 | AM29: 60 | AN29: 10 | AO29: 50 | AP29: 0 | AQ29: 60 | AR29: 10 | AS29: 50 | AT29: 0 | AU29: 60 | AV29: 0 | AW29: 0 | AX29: 0 | AY29: 0 | AZ29: 110 | BA29: 550 | BB29: 0 | BC29: 660 | BE29: 660
A30: 27 | B30: LOPEZ PEREZ, MONICA | C30: 6792607 | D30: 10 | E30: 40 | F30: 0 | G30: 50 | H30: 10 | I30: 40 | J30: 0 | K30: 50 | L30: 10 | M30: 40 | N30: 0 | O30: 50 | P30: 10 | Q30: 40 | R30: 0 | S30: 50 | T30: 10 | U30: 40 | V30: 0 | W30: 50 | X30: 10 | Y30: 40 | Z30: 0 | AA30: 50 | AB30: 10 | AC30: 40 | AD30: 0 | AE30: 50 | AF30: 10 | AG30: 40 | AH30: 0 | AI30: 50 | AJ30: 10 | AK30: 40 | AL30: 0 | AM30: 50 | AN30: 10 | AO30: 40 | AP30: 0 | AQ30: 50 | AR30: 10 | AS30: 40 | AT30: 0 | AU30: 50 | AV30: 0 | AW30: 0 | AX30: 0 | AY30: 0 | AZ30: 110 | BA30: 440 | BB30: 0 | BC30: 550 | BE30: 550
A31: 28 | B31: MOZOMBITE CABRERA, DAVID | C31: 803189 | D31: 10 | E31: 100 | F31: 0 | G31: 110 | H31: 10 | I31: 100 | J31: 0 | K31: 110 | L31: 10 | M31: 100 | N31: 0 | O31: 110 | P31: 10 | Q31: 100 | R31: 0 | S31: 110 | T31: 10 | U31: 100 | V31: 0 | W31: 110 | X31: 10 | Y31: 100 | Z31: 0 | AA31: 110 | AB31: 10 | AC31: 100 | AD31: 0 | AE31: 110 | AF31: 10 | AG31: 100 | AH31: 0 | AI31: 110 | AJ31: 10 | AK31: 100 | AL31: 0 | AM31: 110 | AN31: 10 | AO31: 100 | AP31: 0 | AQ31: 110 | AR31: 10 | AS31: 100 | AT31: 0 | AU31: 110 | AV31: 10 | AW31: 100 | AX31: 0 | AY31: 110 | AZ31: 120 | BA31: 1200 | BB31: 0 | BC31: 1320 | BD31: 1320 | BE31: 0 | BF31: 2024-12-17
A32: 29 | B32: MUNDACA FLORES, KELVIN | C32: 43437357 | D32: 10 | E32: 200 | F32: 0 | G32: 210 | H32: 10 | I32: 200 | J32: 0 | K32: 210 | L32: 10 | M32: 200 | N32: 0 | O32: 210 | P32: 10 | Q32: 200 | R32: 0 | S32: 210 | T32: 10 | U32: 200 | V32: 0 | W32: 210 | X32: 10 | Y32: 200 | Z32: 0 | AA32: 210 | AB32: 10 | AC32: 200 | AD32: 0 | AE32: 210 | AF32: 10 | AG32: 200 | AH32: 0 | AI32: 210 | AJ32: 10 | AK32: 200 | AL32: 0 | AM32: 210 | AN32: 10 | AO32: 200 | AP32: 0 | AQ32: 210 | AR32: 10 | AS32: 200 | AT32: 0 | AU32: 210 | AV32: 10 | AW32: 200 | AX32: 0 | AY32: 210 | AZ32: 120 | BA32: 2400 | BB32: 0 | BC32: 2520 | BD32: =400+400+1720 -> 2520 | BE32: 0 | BF32: 2024-12-17 | BG32: YAPE 05/12/2024
A33: 30 | B33: MOZOMBITE SALAZAR, DE TUNJAR CINDAY JURNETH | C33: 71469639 | D33: 0 | E33: 100 | F33: 0 | G33: =SUM(D33:F33) -> 100 | H33: 0 | I33: 100 | J33: 0 | K33: =SUM(H33:J33) -> 100 | L33: 0 | M33: 100 | N33: 0 | O33: =SUM(L33:N33) -> 100 | P33: 0 | Q33: 100 | R33: 0 | S33: =SUM(P33:R33) -> 100 | T33: 0 | U33: 100 | V33: 0 | W33: =SUM(T33:V33) -> 100 | X33: 0 | Y33: 100 | Z33: 0 | AA33: =SUM(X33:Z33) -> 100 | AB33: 0 | AC33: 100 | AD33: 0 | AE33: =SUM(AB33:AD33) -> 100 | AF33: 0 | AG33: 100 | AH33: 0 | AI33: =SUM(AF33:AH33) -> 100 | AJ33: 0 | AK33: 100 | AL33: 0 | AM33: =SUM(AJ33:AL33) -> 100 | AN33: 0 | AO33: 0 | AP33: 0 | AQ33: =SUM(AN33:AP33) -> 0 | AR33: 0 | AS33: 0 | AT33: 0 | AU33: =SUM(AR33:AT33) -> 0 | AV33: 0 | AW33: 0 | AX33: 0 | AY33: =SUM(AV33:AX33) -> 0 | AZ33: =SUM(D33,H33,L33,P33,T33,X33,AB33,AF33,AJ33,AN33,AR33,AV33) -> 0 | BA33: 900 | BB33: 0 | BC33: 900 | BD33: 800 | BE33: =BC33-BD33 -> 100 | BF33: 2024-09-17
A34: 31 | B34: NARVA QUISPE, MARIANO JOSE | C34: 815508 | D34: 10 | E34: 0 | F34: 0 | G34: 10 | H34: 10 | I34: 0 | J34: 0 | K34: 10 | L34: 10 | M34: 0 | N34: 0 | O34: 10 | P34: 10 | Q34: 0 | R34: 0 | S34: 10 | T34: 10 | U34: 0 | V34: 0 | W34: 10 | X34: 10 | Y34: 0 | Z34: 0 | AA34: 10 | AB34: 10 | AC34: 0 | AD34: 0 | AE34: 10 | AF34: 10 | AG34: 0 | AH34: 0 | AI34: 10 | AJ34: 10 | AK34: 0 | AL34: 0 | AM34: 10 | AN34: 10 | AO34: 0 | AP34: 0 | AQ34: 10 | AR34: 10 | AS34: 0 | AT34: 0 | AU34: 10 | AV34: 0 | AW34: 0 | AX34: 0 | AY34: 0 | AZ34: 110 | BA34: 0 | BB34: 0 | BC34: 110 | BE34: 110
A35: 32 | B35: PEZO PEZO, ARNALDO | C35: 800974 | D35: 10 | E35: 110 | F35: 0 | G35: 120 | H35: 10 | I35: 110 | J35: 0 | K35: 120 | L35: 10 | M35: 110 | N35: 0 | O35: 120 | P35: 10 | Q35: 110 | R35: 0 | S35: 120 | T35: 10 | U35: 110 | V35: 0 | W35: 120 | X35: 10 | Y35: 110 | Z35: 0 | AA35: 120 | AB35: 10 | AC35: 110 | AD35: 0 | AE35: 120 | AF35: 10 | AG35: 110 | AH35: 0 | AI35: 120 | AJ35: 10 | AK35: 110 | AL35: 0 | AM35: 120 | AN35: 10 | AO35: 110 | AP35: 0 | AQ35: 120 | AR35: 10 | AS35: 110 | AT35: 0 | AU35: 120 | AV35: 0 | AW35: 0 | AX35: 0 | AY35: 0 | AZ35: 110 | BA35: 1210 | BB35: 0 | BC35: 1320 | BD35: 500 | BE35: 820
A36: 33 | B36: PINEDO TAFUR, ABIGAIL | C36: 46733025 | D36: 0 | E36: 200 | F36: 0 | G36: =SUM(D36:F36) -> 200 | H36: 0 | I36: 200 | J36: 0 | K36: =SUM(H36:J36) -> 200 | L36: 0 | M36: 200 | N36: 0 | O36: =SUM(L36:N36) -> 200 | P36: 0 | Q36: 200 | R36: 0 | S36: =SUM(P36:R36) -> 200 | T36: 0 | U36: 200 | V36: 0 | W36: =SUM(T36:V36) -> 200 | X36: 0 | Y36: 200 | Z36: 0 | AA36: =SUM(X36:Z36) -> 200 | AB36: 0 | AC36: 200 | AD36: 0 | AE36: =SUM(AB36:AD36) -> 200 | AF36: 0 | AG36: 200 | AH36: 0 | AI36: =SUM(AF36:AH36) -> 200 | AJ36: 0 | AK36: 200 | AL36: 0 | AM36: =SUM(AJ36:AL36) -> 200 | AN36: 0 | AO36: 200 | AP36: 0 | AQ36: =SUM(AN36:AP36) -> 200 | AR36: 0 | AS36: 200 | AT36: 0 | AU36: =SUM(AR36:AT36) -> 200 | AV36: 0 | AW36: 200 | AX36: 0 | AY36: =SUM(AV36:AX36) -> 200 | AZ36: =SUM(D36,H36,L36,P36,T36,X36,AB36,AF36,AJ36,AN36,AR36,AV36) -> 0 | BA36: 2400 | BB36: 0 | BC36: 2400 | BD36: 2400 | BE36: =BC36-BD36 -> 0 | BF36: 2024-12-17
A37: 34 | B37: QUINTANA ZUMAETA, JAIRO | C37: 41632815 | D37: 0 | E37: 200 | F37: 0 | G37: =SUM(D37:F37) -> 200 | H37: 0 | I37: 200 | J37: 0 | K37: =SUM(H37:J37) -> 200 | L37: 0 | M37: 200 | N37: 0 | O37: =SUM(L37:N37) -> 200 | P37: 0 | Q37: 200 | R37: 0 | S37: =SUM(P37:R37) -> 200 | T37: 0 | U37: 200 | V37: 0 | W37: =SUM(T37:V37) -> 200 | X37: 0 | Y37: 200 | Z37: 0 | AA37: =SUM(X37:Z37) -> 200 | AB37: 0 | AC37: 200 | AD37: 0 | AE37: =SUM(AB37:AD37) -> 200 | AF37: 0 | AG37: 200 | AH37: 0 | AI37: =SUM(AF37:AH37) -> 200 | AJ37: 0 | AK37: 200 | AL37: 0 | AM37: =SUM(AJ37:AL37) -> 200 | AN37: 0 | AO37: 200 | AP37: 0 | AQ37: =SUM(AN37:AP37) -> 200 | AR37: 0 | AS37: 200 | AT37: 0 | AU37: =SUM(AR37:AT37) -> 200 | AV37: 0 | AW37: 0 | AX37: 0 | AY37: =SUM(AV37:AX37) -> 0 | AZ37: 0 | BA37: 2200 | BB37: 0 | BC37: 2200 | BE37: =BC37-BD37 -> 2200
A38: 35 | B38: RAMIREZ VASQUEZ, LITA | C38: 821392 | D38: 10 | E38: 200 | F38: 0 | G38: 210 | H38: 10 | I38: 200 | J38: 0 | K38: 210 | L38: 10 | M38: 200 | N38: 0 | O38: 210 | P38: 10 | Q38: 200 | R38: 0 | S38: 210 | T38: 10 | U38: 200 | V38: 0 | W38: 210 | X38: 10 | Y38: 200 | Z38: 0 | AA38: 210 | AB38: 10 | AC38: 200 | AD38: 0 | AE38: 210 | AF38: 10 | AG38: 200 | AH38: 0 | AI38: 210 | AJ38: 10 | AK38: 200 | AL38: 0 | AM38: 210 | AN38: 10 | AO38: 200 | AP38: 0 | AQ38: 210 | AR38: 10 | AS38: 200 | AT38: 0 | AU38: 210 | AV38: 0 | AW38: 0 | AX38: 0 | AY38: 0 | AZ38: 110 | BA38: 2200 | BB38: 0 | BC38: 2310 | BD38: 2400 | BE38: -90 | BI38: ESTA DEVUELTO AL 100% HASTA DICIEMBRE
A39: 36 | B39: REATEGUI TUESTA, ALBERTO | C39: 804403 | D39: 10 | E39: 0 | F39: 0 | G39: 10 | H39: 10 | I39: 0 | J39: 0 | K39: 10 | L39: 10 | M39: 0 | N39: 0 | O39: 10 | P39: 10 | Q39: 0 | R39: 0 | S39: 10 | T39: 10 | U39: 0 | V39: 0 | W39: 10 | X39: 10 | Y39: 0 | Z39: 0 | AA39: 10 | AB39: 10 | AC39: 0 | AD39: 0 | AE39: 10 | AF39: 10 | AG39: 0 | AH39: 0 | AI39: 10 | AJ39: 10 | AK39: 0 | AL39: 0 | AM39: 10 | AN39: 10 | AO39: 0 | AP39: 0 | AQ39: 10 | AR39: 10 | AS39: 0 | AT39: 0 | AU39: 10 | AV39: 0 | AW39: 0 | AX39: 0 | AY39: 0 | AZ39: 110 | BA39: 0 | BB39: 0 | BC39: 110 | BE39: 110
A40: 37 | B40: RENGIFO REATEGUI, WALTER | C40: 800866 | D40: 10 | E40: 0 | F40: 0 | G40: 10 | H40: 10 | I40: 0 | J40: 0 | K40: 10 | L40: 10 | M40: 0 | N40: 0 | O40: 10 | P40: 10 | Q40: 0 | R40: 0 | S40: 10 | T40: 10 | U40: 0 | V40: 0 | W40: 10 | X40: 10 | Y40: 0 | Z40: 0 | AA40: 10 | AB40: 0 | AC40: 0 | AD40: 0 | AE40: 0 | AF40: 0 | AG40: 0 | AH40: 0 | AI40: 0 | AJ40: 0 | AK40: 0 | AL40: 0 | AM40: 0 | AN40: 0 | AO40: 0 | AP40: 0 | AQ40: 0 | AR40: 0 | AS40: 0 | AT40: 0 | AU40: 0 | AV40: 0 | AW40: 0 | AX40: 0 | AY40: 0 | AZ40: 60 | BA40: 0 | BB40: 0 | BC40: 60 | BE40: 60
A41: 38 | B41: RENGIFO RUIZ, RIDER | C41: 907880 | D41: 10 | E41: 0 | F41: 0 | G41: 10 | H41: 10 | I41: 0 | J41: 0 | K41: 10 | L41: 10 | M41: 0 | N41: 0 | O41: 10 | P41: 10 | Q41: 0 | R41: 0 | S41: 10 | T41: 10 | U41: 0 | V41: 0 | W41: 10 | X41: 10 | Y41: 0 | Z41: 0 | AA41: 10 | AB41: 10 | AC41: 0 | AD41: 0 | AE41: 10 | AF41: 10 | AG41: 0 | AH41: 0 | AI41: 10 | AJ41: 10 | AK41: 0 | AL41: 0 | AM41: 10 | AN41: 10 | AO41: 0 | AP41: 0 | AQ41: 10 | AR41: 10 | AS41: 0 | AT41: 0 | AU41: 10 | AV41: 0 | AW41: 0 | AX41: 0 | AY41: 0 | AZ41: 110 | BA41: 0 | BB41: 0 | BC41: 110 | BE41: 110
A42: 39 | B42: RETAMOZO VARGAS, JENNY MARIBEL | C42: 40175985 | D42: 10 | E42: 300 | F42: 0 | G42: 310 | H42: 10 | I42: 300 | J42: 0 | K42: 310 | L42: 20 | M42: 300 | N42: 0 | O42: 320 | P42: 10 | Q42: 300 | R42: 0 | S42: 310 | T42: 10 | U42: 300 | V42: 0 | W42: 310 | X42: 10 | Y42: 300 | Z42: 0 | AA42: 310 | AB42: 10 | AC42: 300 | AD42: 0 | AE42: 310 | AF42: 10 | AG42: 300 | AH42: 0 | AI42: 310 | AJ42: 10 | AK42: 300 | AL42: 0 | AM42: 310 | AN42: 10 | AO42: 300 | AP42: 0 | AQ42: 310 | AR42: 10 | AS42: 300 | AT42: 0 | AU42: 310 | AV42: 10 | AW42: 300 | AX42: 0 | AY42: 310 | AZ42: 130 | BA42: 3600 | BB42: 0 | BC42: 3730 | BD42: =300+300+600+2530 -> 3730 | BE42: 0 | BF42: 07/08/2024 - 15/10/2024 - 28/10/2024
A43: 40 | B43: RODRIGUEZ ROJAS, GLADYS KARINA | C43: 40252218 | D43: 10 | E43: 0 | F43: 0 | G43: 10 | H43: 10 | I43: 0 | J43: 0 | K43: 10 | L43: 10 | M43: 0 | N43: 0 | O43: 10 | P43: 10 | Q43: 0 | R43: 0 | S43: 10 | T43: 10 | U43: 0 | V43: 0 | W43: 10 | X43: 10 | Y43: 0 | Z43: 0 | AA43: 10 | AB43: 10 | AC43: 0 | AD43: 0 | AE43: 10 | AF43: 10 | AG43: 0 | AH43: 0 | AI43: 10 | AJ43: 10 | AK43: 0 | AL43: 0 | AM43: 10 | AN43: 10 | AO43: 0 | AP43: 0 | AQ43: 10 | AR43: 10 | AS43: 0 | AT43: 0 | AU43: 10 | AV43: 0 | AW43: 0 | AX43: 0 | AY43: 0 | AZ43: 110 | BA43: 0 | BB43: 0 | BC43: 110 | BE43: 110
A44: 41 | B44: RODRIGUEZ TORRES, WILDER | C44: 42750620 | D44: 10 | E44: 0 | F44: 0 | G44: 10 | H44: 10 | I44: 0 | J44: 0 | K44: 10 | L44: 10 | M44: 0 | N44: 0 | O44: 10 | P44: 10 | Q44: 0 | R44: 0 | S44: 10 | T44: 10 | U44: 0 | V44: 0 | W44: 10 | X44: 10 | Y44: 0 | Z44: 0 | AA44: 10 | AB44: 10 | AC44: 0 | AD44: 0 | AE44: 10 | AF44: 10 | AG44: 0 | AH44: 0 | AI44: 10 | AJ44: 10 | AK44: 0 | AL44: 0 | AM44: 10 | AN44: 10 | AO44: 0 | AP44: 0 | AQ44: 10 | AR44: 10 | AS44: 0 | AT44: 0 | AU44: 10 | AV44: 0 | AW44: 0 | AX44: 0 | AY44: 0 | AZ44: =SUM(D44,H44,L44,P44,T44,X44,AB44,AF44,AJ44,AN44,AR44,AV44) -> 110 | BA44: =SUM(E44,I44,M44,Q44,U44,Y44,AC44,AG44,AK44,AO44,AS44,AW44) -> 0 | BB44: 0 | BC44: =SUM(G44,K44,O44,S44,W44,AA44,AE44,AI44,AM44,AQ44,AU44,AY44) -> 110 | BE44: 110
A45: 42 | B45: RIOS PAREDES, MARIA DEL CARMEN | C45: 46082213 | D45: 0 | E45: 0 | F45: 0 | G45: =SUM(D45:F45) -> 0 | H45: 0 | I45: 150 | J45: 0 | K45: =SUM(H45:J45) -> 150 | L45: 0 | M45: 150 | N45: 0 | O45: =SUM(L45:N45) -> 150 | P45: 0 | Q45: 150 | R45: 0 | S45: =SUM(P45:R45) -> 150 | T45: 0 | U45: 150 | V45: 0 | W45: =SUM(T45:V45) -> 150 | X45: 0 | Y45: 150 | Z45: 0 | AA45: =SUM(X45:Z45) -> 150 | AB45: 0 | AC45: 150 | AD45: 0 | AE45: =SUM(AB45:AD45) -> 150 | AF45: 0 | AG45: 150 | AH45: 0 | AI45: =SUM(AF45:AH45) -> 150 | AJ45: 0 | AK45: 150 | AL45: 0 | AM45: =SUM(AJ45:AL45) -> 150 | AN45: 0 | AO45: 150 | AP45: 0 | AQ45: =SUM(AN45:AP45) -> 150 | AR45: 0 | AS45: 150 | AT45: 0 | AU45: =SUM(AR45:AT45) -> 150 | AV45: 0 | AW45: 150 | AX45: 0 | AY45: =SUM(AV45:AX45) -> 150 | AZ45: =SUM(D45,H45,L45,P45,T45,X45,AB45,AF45,AJ45,AN45,AR45,AV45) -> 0 | BA45: 1650 | BB45: 0 | BC45: 1650 | BD45: 1650 | BE45: =BC45-BD45 -> 0 | BF45: 2024-12-17
A46: 43 | B46: ROJAS CHALCO, ANNIE JACQUELINE | C46: 9616546 | D46: 0 | E46: 100 | F46: 0 | G46: =SUM(D46:F46) -> 100 | H46: 0 | I46: 100 | J46: 0 | K46: =SUM(H46:J46) -> 100 | L46: 0 | M46: 100 | N46: 0 | O46: =SUM(L46:N46) -> 100 | P46: 0 | Q46: 100 | R46: 0 | S46: =SUM(P46:R46) -> 100 | T46: 0 | U46: 100 | V46: 0 | W46: =SUM(T46:V46) -> 100 | X46: 0 | Y46: 100 | Z46: 0 | AA46: =SUM(X46:Z46) -> 100 | AB46: 0 | AC46: 100 | AD46: 0 | AE46: =SUM(AB46:AD46) -> 100 | AF46: 0 | AG46: 100 | AH46: 0 | AI46: =SUM(AF46:AH46) -> 100 | AJ46: 0 | AK46: 100 | AL46: 0 | AM46: =SUM(AJ46:AL46) -> 100 | AN46: 0 | AO46: 100 | AP46: 0 | AQ46: =SUM(AN46:AP46) -> 100 | AR46: 0 | AS46: 100 | AT46: 0 | AU46: =SUM(AR46:AT46) -> 100 | AV46: 0 | AW46: 100 | AX46: 0 | AY46: =SUM(AV46:AX46) -> 100 | AZ46: 0 | BA46: 1200 | BB46: 0 | BC46: 1200 | BD46: 1200 | BE46: =BC46-BD46 -> 0 | BF46: 2024-12-17
A47: 44 | B47: RUIZ DEL AGUILA, CINTHYA MELISSA | C47: 72178867 | D47: 0 | E47: 200 | F47: 0 | G47: =SUM(D47:F47) -> 200 | H47: 0 | I47: 200 | J47: 0 | K47: =SUM(H47:J47) -> 200 | L47: 0 | M47: 200 | N47: 0 | O47: =SUM(L47:N47) -> 200 | P47: 0 | Q47: 200 | R47: 0 | S47: =SUM(P47:R47) -> 200 | T47: 0 | U47: 200 | V47: 0 | W47: =SUM(T47:V47) -> 200 | X47: 0 | Y47: 200 | Z47: 0 | AA47: =SUM(X47:Z47) -> 200 | AB47: 0 | AC47: 200 | AD47: 0 | AE47: =SUM(AB47:AD47) -> 200 | AF47: 0 | AG47: 200 | AH47: 0 | AI47: =SUM(AF47:AH47) -> 200 | AJ47: 0 | AK47: 200 | AL47: 0 | AM47: =SUM(AJ47:AL47) -> 200 | AN47: 0 | AO47: 200 | AP47: 0 | AQ47: =SUM(AN47:AP47) -> 200 | AR47: 0 | AS47: 200 | AT47: 0 | AU47: =SUM(AR47:AT47) -> 200 | AV47: 0 | AW47: 200 | AX47: 0 | AY47: =SUM(AV47:AX47) -> 200 | AZ47: 0 | BA47: 2400 | BB47: 0 | BC47: 2400 | BD47: 2400 | BE47: =BC47-BD47 -> 0 | BF47: 2024-12-17
A48: 45 | B48: ROJAS BECERRA, LUCIA | C48: 838472 | D48: 10 | E48: 100 | F48: 0 | G48: 110 | H48: 10 | I48: 100 | J48: 0 | K48: 110 | L48: 10 | M48: 100 | N48: 0 | O48: 110 | P48: 10 | Q48: 100 | R48: 0 | S48: 110 | T48: 10 | U48: 100 | V48: 0 | W48: 110 | X48: 10 | Y48: 100 | Z48: 0 | AA48: 110 | AB48: 10 | AC48: 100 | AD48: 0 | AE48: 110 | AF48: 10 | AG48: 100 | AH48: 0 | AI48: 110 | AJ48: 10 | AK48: 100 | AL48: 0 | AM48: 110 | AN48: 10 | AO48: 100 | AP48: 0 | AQ48: 110 | AR48: 10 | AS48: 100 | AT48: 0 | AU48: 110 | AV48: 0 | AW48: 0 | AX48: 0 | AY48: 0 | AZ48: 110 | BA48: 1100 | BB48: 0 | BC48: 1210 | BD48: =500+300 -> 800 | BE48: 410 | BF48: 2024-06-18 | BG48: 2024-09-20
